Workbook

Sheet Úvod
B1: PŘEHLED PŘESTUPKŮ ZA ROK 2018 - MINISTERSTVO VNITRA
B5: Základní informace
B7: 1. Podle § 110 odst. 1 zákona č. 250/2016 Sb., o odpovědnosti za přestupky a řízení o nich, ústřední správní úřady, do jejichž působnosti náleží úsek státní správy, na němž došlo k porušení právní povinnosti zakládající odpovědnost za přestupek, nebo Ministerstvo vnitra v případech podle § 103 odst. 4 zpracovávají každoroční přehled přestupků. Ústřední správní úřady nebo Ministerstvo vnitra v případech podle § 103 odst. 4 zveřejňují přehled přestupků způsobem umožňujícím dálkový přístup, a to nejpozději do konce čtvrtého kalendářního měsíce roku následujícího po roce, pro jehož období se přehled zpracovává.
B8: 2. Na následujících listech jsou uvedeny údaje o přestupcích projednaných v roce 2018 ve vztahu k zákonům náležejících do působnosti Ministerstva vnitra. Zákony jsou řazeny chronologicky podle vyhlášení ve Sbírce zákonů.
B9: 3. Údaje se vztahují k úkonům učiněným v roce 2018. Např.: Přestupek spáchaný v roce 2017 byl v roce 2017 oznámen a v tomtéž roce o něm bylo zahájeno řízení s tím, že rozhodnutí bylo vydáno až v roce 2018. Do přehledu přestupků je promínuto pouze vydané rozhodnutí, neboť k ostatním skutečnostem (oznámení přestupku, zahájení řízení) došlo v roce 2017.

Sheet Zákon č. 133-1985 Sb.
B2: PŘEHLED PŘESTUPKŮ ZA ROK 2018
B3: Zákon č. 133/1985 Sb., o požární ochraně
B4: § | C4: odst. | D4: písm. | E4: bod | F4: ve znění zákona č. 225/2017 Sb. | G4: počet podnětů k zahájení řízení o přestupku | H4: počet odložených věcí | I4: počet zahájených řízení o přestupku | L4: počet pravomocných rozhodnutí o uznání obviněného vinným ze spáchání přestupku | O4: počet zastavených řízení | P4: počet rozhodnutí o schválení dohody o narovnání | Q4: počet pravomocných rozhodnutí, kterými bylo upuštěno od uložení správního trestu | R4: počet pravomocných rozhodnutí, kterými byla mimořádně snížena výměra pokuty | S4: počet napomenutí | T4: počet pokut | U4: celková výměra pokut (v Kč) | V4: průměrná výše pokuty (v Kč) | W4: počet zákazů činnosti | X4: celková délka uložených zákazů činnosti (v letech) | Y4: průměrná délka zákazu činnosti (v letech) | Z4: počet propadnutí věci nebo náhradní hodnoty | AA4: počet zveřejnění rozhodnutí o přestupku | AB4: počet omezujících opatření | AC4: počet zabrání věci nebo náhradní hodnoty | AD4: počet podaných odvolání | AE4: odvolání zamítnuto a napadené rozhodnutí potvrzeno | AF4: odvolání vyřízeno v rámci autoremedury | AG4: rozhodnutí změněno | AH4: rozhodnutí zrušeno a věc vrácena k novému projednání | AI4: rozhodnutí zrušeno a řízení zastaveno
I5: oznámení o zahájení řízení | J5: příkaz | K5: příkaz na místě | L5: rozhodnutí | M5: příkaz | N5: příkaz na místě
B6: 76 | C6: 1 | D6: a | G6: 103 | H6: 1 | I6: 4 | J6: 56 | K6: 191 | L6: 5 | M6: 33 | N6: 191 | O6: 0 | P6: 0 | Q6: 0 | R6: 0 | S6: 72 | T6: 90 | U6: 256737.58 | V6: =U6/T6 -> 2852.639778 | W6: 0 | X6: 0 | Y6: 0 | Z6: 0 | AA6: 0 | AB6: 0 | AC6: 0 | AD6: 11 | AE6: 8 | AF6: 1 | AG6: 0 | AH6: 1 | AI6: 1
B7: 76 | C7: 1 | D7: b | G7: 151 | H7: 0 | I7: 6 | J7: 70 | K7: 307 | L7: 7 | M7: 85 | N7: 307 | O7: 0 | P7: 0 | Q7: 0 | R7: 0 | S7: 89 | T7: 213 | U7: 622333.29 | V7: =U7/T7 -> 2921.752535 | W7: 0 | X7: 0 | Y7: 0 | Z7: 0 | AA7: 0 | AB7: 0 | AC7: 0 | AD7: 14 | AE7: 2 | AF7: 1 | AG7: 0 | AH7: 5 | AI7: 1
B8: 76 | C8: 1 | D8: c | G8: 15 | H8: 0 | I8: 6 | J8: 12 | K8: 45 | L8: 6 | M8: 8 | N8: 45 | O8: 0 | P8: 0 | Q8: 0 | R8: 0 | S8: 14 | T8: 34 | U8: 123500 | V8: 3632.352941 | W8: 0 | X8: 0 | Y8: 0 | Z8: 0 | AA8: 0 | AB8: 0 | AC8: 0 | AD8: 4 | AE8: 3 | AF8: 0 | AG8: 0 | AH8: 1 | AI8: 1
B9: 76 | C9: 1 | D9: d | G9: 101 | H9: 37 | I9: 1 | J9: 79 | K9: 142 | L9: 6 | M9: 61 | N9: 142 | O9: 0 | P9: 0 | Q9: 0 | R9: 0 | S9: 59 | T9: 102 | U9: 715044.04 | V9: 7010.235686 | W9: 0 | X9: 0 | Y9: 0 | Z9: 0 | AA9: 0 | AB9: 0 | AC9: 0 | AD9: 14 | AE9: 4 | AF9: 1 | AG9: 0 | AH9: 4 | AI9: 0
B10: 76 | C10: 1 | D10: e | G10: 297 | H10: 11 | I10: 10 | J10: 159 | K10: 636 | L10: 21 | M10: 119 | N10: 636 | O10: 2 | P10: 0 | Q10: 0 | R10: 0 | S10: 214 | T10: 333 | U10: 2168647 | V10: 6512.453453 | W10: 0 | X10: 0 | Y10: 0 | Z10: 0 | AA10: 0 | AB10: 0 | AC10: 0 | AD10: 31 | AE10: 10 | AF10: 0 | AG10: 0 | AH10: 11 | AI10: 1
B11: 76 | C11: 1 | D11: f | G11: 403 | H11: 7 | I11: 6 | J11: 224 | K11: 850 | L11: 27 | M11: 178 | N11: 850 | O11: 0 | P11: 0 | Q11: 0 | R11: 0 | S11: 233 | T11: 605 | U11: 4955280.65 | V11: 8190.546529 | W11: 0 | X11: 0 | Y11: 0 | Z11: 0 | AA11: 0 | AB11: 0 | AC11: 0 | AD11: 26 | AE11: 17 | AF11: 1 | AG11: 0 | AH11: 1 | AI11: 1
B12: 76 | C12: 1 | D12: g | G12: 1 | H12: 0 | I12: 0 | J12: 0 | K12: 2 | L12: 0 | M12: 0 | N12: 2 | O12: 0 | P12: 0 | Q12: 0 | R12: 0 | S12: 0 | T12: 2 | U12: 1000 | V12: 500 | W12: 0 | X12: 0 | Y12: 0 | Z12: 0 | AA12: 0 | AB12: 0 | AC12: 0 | AD12: 0 | AE12: 0 | AF12: 0 | AG12: 0 | AH12: 0 | AI12: 0
B13: 76 | C13: 1 | D13: h | G13: 4 | H13: 0 | I13: 0 | J13: 1 | K13: 10 | L13: 0 | M13: 1 | N13: 10 | O13: 0 | P13: 0 | Q13: 0 | R13: 0 | S13: 3 | T13: 23 | U13: 86100 | V13: 3743.478261 | W13: 0 | X13: 0 | Y13: 0 | Z13: 0 | AA13: 0 | AB13: 0 | AC13: 0 | AD13: 0 | AE13: 0 | AF13: 0 | AG13: 0 | AH13: 0 | AI13: 0
B14: 76 | C14: 1 | D14: i | G14: 5 | H14: 0 | I14: 3 | J14: 16 | K14: 14 | L14: 2 | M14: 19 | N14: 14 | O14: 4 | P14: 0 | Q14: 0 | R14: 0 | S14: 20 | T14: 17 | U14: 216000 | V14: 12705.88235 | W14: 0 | X14: 0 | Y14: 0 | Z14: 0 | AA14: 0 | AB14: 0 | AC14: 0 | AD14: 4 | AE14: 0 | AF14: 0 | AG14: 0 | AH14: 0 | AI14: 0
B15: 76 | C15: 1 | D15: j | G15: 29 | H15: 5 | I15: 2 | J15: 15 | K15: 41 | L15: 2 | M15: 13 | N15: 41 | O15: 0 | P15: 0 | Q15: 0 | R15: 0 | S15: 12 | T15: 30 | U15: 421664.65 | V15: 14055.48833 | W15: 0 | X15: 0 | Y15: 0 | Z15: 0 | AA15: 0 | AB15: 0 | AC15: 0 | AD15: 6 | AE15: 3 | AF15: 0 | AG15: 0 | AH15: 3 | AI15: 0
B16: 76 | C16: 1 | D16: k | G16: 134 | H16: 10 | I16: 5 | J16: 118 | K16: 304 | L16: 15 | M16: 95 | N16: 327 | O16: 1 | P16: 0 | Q16: 0 | R16: 0 | S16: 115 | T16: 259 | U16: 2392339.75 | V16: 9236.833012 | W16: 0 | X16: 0 | Y16: 0 | Z16: 0 | AA16: 0 | AB16: 0 | AC16: 0 | AD16: 14 | AE16: 7 | AF16: 0 | AG16: 0 | AH16: 1 | AI16: 1
B17: 76 | C17: 1 | D17: l | G17: 2 | H17: 0 | I17: 1 | J17: 0 | K17: 3 | L17: 1 | M17: 1 | N17: 3 | O17: 0 | P17: 0 | Q17: 0 | R17: 0 | S17: 2 | T17: 2 | U17: 5000 | V17: 2500 | W17: 0 | X17: 0 | Y17: 0 | Z17: 0 | AA17: 0 | AB17: 0 | AC17: 0 | AD17: 3 | AE17: 0 | AF17: 0 | AG17: 0 | AH17: 2 | AI17: 1
B18: 76 | C18: 1 | D18: m | G18: 2 | H18: 0 | I18: 0 | J18: 0 | K18: 3 | L18: 0 | M18: 1 | N18: 3 | O18: 0 | P18: 0 | Q18: 0 | R18: 0 | S18: 1 | T18: 2 | U18: 2000 | V18: 1000 | W18: 0 | X18: 0 | Y18: 0 | Z18: 0 | AA18: 0 | AB18: 0 | AC18: 0 | AD18: 0 | AE18: 0 | AF18: 0 | AG18: 0 | AH18: 0 | AI18: 0
B19: 76 | C19: 2 | D19: a | G19: 303 | H19: 9 | I19: 8 | J19: 155 | K19: 339 | L19: 18 | M19: 132 | N19: 339 | O19: 0 | P19: 0 | Q19: 0 | R19: 0 | S19: 97 | T19: 365 | U19: 4881551.23 | V19: 13374.11296 | W19: 0 | X19: 0 | Y19: 0 | Z19: 0 | AA19: 0 | AB19: 0 | AC19: 0 | AD19: 11 | AE19: 11 | AF19: 0 | AG19: 0 | AH19: 0 | AI19: 0
B20: 76 | C20: 2 | D20: b | G20: 9 | H20: 0 | I20: 0 | J20: 3 | K20: 13 | L20: 0 | M20: 3 | N20: 13 | O20: 0 | P20: 0 | Q20: 0 | R20: 0 | S20: 6 | T20: 10 | U20: 93800 | V20: 9380 | W20: 0 | X20: 0 | Y20: 0 | Z20: 0 | AA20: 0 | AB20: 0 | AC20: 0 | AD20: 3 | AE20: 3 | AF20: 0 | AG20: 0 | AH20: 0 | AI20: 0
B21: 76 | C21: 2 | D21: c | G21: 5 | H21: 0 | I21: 0 | J21: 2 | K21: 9 | L21: 0 | M21: 2 | N21: 9 | O21: 0 | P21: 0 | Q21: 0 | R21: 0 | S21: 4 | T21: 7 | U21: 87000 | V21: 12428.57143 | W21: 0 | X21: 0 | Y21: 0 | Z21: 0 | AA21: 0 | AB21: 0 | AC21: 0 | AD21: 1 | AE21: 0 | AF21: 0 | AG21: 0 | AH21: 1 | AI21: 0
B22: 76 | C22: 2 | D22: d | G22: 0 | H22: 0 | I22: 0 | J22: 0 | K22: 0 | L22: 0 | M22: 0 | N22: 0 | O22: 0 | P22: 0 | Q22: 0 | R22: 0 | S22: 0 | T22: 0 | U22: 0 | V22: 0 | W22: 0 | X22: 0 | Y22: 0 | Z22: 0 | AA22: 0 | AB22: 0 | AC22: 0 | AD22: 1 | AE22: 0 | AF22: 0 | AG22: 0 | AH22: 1 | AI22: 0
B23: 76 | C23: 2 | D23: e | G23: 0 | H23: 0 | I23: 0 | J23: 0 | K23: 2 | L23: 0 | M23: 0 | N23: 2 | O23: 0 | P23: 0 | Q23: 0 | R23: 0 | S23: 0 | T23: 2 | U23: 3000 | V23: 1500 | W23: 0 | X23: 0 | Y23: 0 | Z23: 0 | AA23: 0 | AB23: 0 | AC23: 0 | AD23: 0 | AE23: 0 | AF23: 0 | AG23: 0 | AH23: 0 | AI23: 0
B24: 76 | C24: 2 | D24: f | G24: 0 | H24: 0 | I24: 0 | J24: 1 | K24: 1 | L24: 5 | M24: 0 | N24: 1 | O24: 0 | P24: 0 | Q24: 0 | R24: 0 | S24: 1 | T24: 6 | U24: 210000 | V24: 35000 | W24: 0 | X24: 0 | Y24: 0 | Z24: 0 | AA24: 0 | AB24: 0 | AC24: 0 | AD24: 0 | AE24: 0 | AF24: 0 | AG24: 0 | AH24: 0 | AI24: 0
B25: 76 | C25: 2 | D25: g | G25: 1 | H25: 0 | I25: 0 | J25: 0 | K25: 1 | L25: 0 | M25: 0 | N25: 1 | O25: 0 | P25: 0 | Q25: 0 | R25: 0 | S25: 0 | T25: 1 | U25: 5000 | V25: 5000 | W25: 0 | X25: 0 | Y25: 0 | Z25: 0 | AA25: 0 | AB25: 0 | AC25: 0 | AD25: 0 | AE25: 0 | AF25: 0 | AG25: 0 | AH25: 0 | AI25: 0
B26: 76 | C26: 2 | D26: h | G26: 0 | H26: 0 | I26: 0 | J26: 0 | K26: 0 | L26: 0 | M26: 0 | N26: 0 | O26: 0 | P26: 0 | Q26: 0 | R26: 0 | S26: 0 | T26: 0 | U26: 0 | V26: 0 | W26: 0 | X26: 0 | Y26: 0 | Z26: 0 | AA26: 0 | AB26: 0 | AC26: 0 | AD26: 0 | AE26: 0 | AF26: 0 | AG26: 0 | AH26: 0 | AI26: 0
B27: 76 | C27: 2 | D27: i | G27: 0 | H27: 0 | I27: 0 | J27: 0 | K27: 0 | L27: 0 | M27: 0 | N27: 0 | O27: 0 | P27: 0 | Q27: 0 | R27: 0 | S27: 0 | T27: 0 | U27: 0 | V27: 0 | W27: 0 | X27: 0 | Y27: 0 | Z27: 0 | AA27: 0 | AB27: 0 | AC27: 0 | AD27: 1 | AE27: 0 | AF27: 0 | AG27: 0 | AH27: 1 | AI27: 0
B28: 76 | C28: 2 | D28: j | G28: 0 | H28: 0 | I28: 0 | J28: 0 | K28: 2 | L28: 0 | M28: 0 | N28: 2 | O28: 0 | P28: 0 | Q28: 0 | R28: 0 | S28: 0 | T28: 2 | U28: 300 | V28: 150 | W28: 0 | X28: 0 | Y28: 0 | Z28: 0 | AA28: 0 | AB28: 0 | AC28: 0 | AD28: 0 | AE28: 0 | AF28: 0 | AG28: 0 | AH28: 0 | AI28: 0
B29: 76 | C29: 2 | D29: k | G29: 41 | H29: 0 | I29: 2 | J29: 13 | K29: 67 | L29: 5 | M29: 11 | N29: 67 | O29: 1 | P29: 0 | Q29: 0 | R29: 0 | S29: 23 | T29: 56 | U29: 972151 | V29: 17359.83929 | W29: 0 | X29: 0 | Y29: 0 | Z29: 0 | AA29: 0 | AB29: 0 | AC29: 0 | AD29: 0 | AE29: 0 | AF29: 0 | AG29: 0 | AH29: 0 | AI29: 0
B30: 76 | C30: 2 | D30: l | G30: 3 | H30: 1 | I30: 0 | J30: 0 | K30: 3 | L30: 0 | M30: 0 | N30: 3 | O30: 0 | P30: 0 | Q30: 0 | R30: 0 | S30: 1 | T30: 1 | U30: 3000 | V30: 3000 | W30: 0 | X30: 0 | Y30: 0 | Z30: 0 | AA30: 0 | AB30: 0 | AC30: 0 | AD30: 1 | AE30: 0 | AF30: 0 | AG30: 0 | AH30: 1 | AI30: 0
B31: 76 | C31: 2 | D31: m | G31: 32 | H31: 0 | I31: 0 | J31: 2 | K31: 36 | L31: 1 | M31: 2 | N31: 36 | O31: 1 | P31: 0 | Q31: 0 | R31: 0 | S31: 4 | T31: 34 | U31: 135090 | V31: 3973.235294 | W31: 0 | X31: 0 | Y31: 0 | Z31: 0 | AA31: 0 | AB31: 0 | AC31: 0 | AD31: 0 | AE31: 0 | AF31: 0 | AG31: 0 | AH31: 0 | AI31: 0
B32: 76 | C32: 2 | D32: n | G32: 4 | H32: 0 | I32: 0 | J32: 0 | K32: 16 | L32: 0 | M32: 0 | N32: 16 | O32: 0 | P32: 0 | Q32: 0 | R32: 0 | S32: 3 | T32: 13 | U32: 14900 | V32: 1146.153846 | W32: 0 | X32: 0 | Y32: 0 | Z32: 0 | AA32: 0 | AB32: 0 | AC32: 0 | AE32: 0 | AF32: 0 | AG32: 0 | AH32: 0 | AI32: 0
B33: 76 | C33: 2 | D33: o | G33: 0 | H33: 0 | I33: 0 | J33: 0 | K33: 1 | L33: 0 | M33: 0 | N33: 1 | O33: 0 | P33: 0 | Q33: 0 | R33: 0 | S33: 0 | T33: 1 | U33: 10000 | V33: 10000 | W33: 0 | X33: 0 | Y33: 0 | Z33: 0 | AA33: 0 | AB33: 0 | AC33: 0 | AE33: 0 | AF33: 0 | AG33: 0 | AH33: 0 | AI33: 0
B34: 76 | C34: 2 | D34: p | G34: 9 | H34: 0 | I34: 3 | J34: 3 | K34: 4 | L34: 0 | M34: 3 | N34: 4 | O34: 0 | P34: 0 | Q34: 0 | R34: 0 | S34: 4 | T34: 25 | U34: 5000 | V34: 200 | W34: 0 | X34: 0 | Y34: 0 | Z34: 0 | AA34: 0 | AB34: 0 | AC34: 0 | AE34: 0 | AF34: 0 | AG34: 0 | AH34: 0 | AI34: 0
B35: 76 | C35: 2 | D35: q | G35: 0 | H35: 0 | I35: 0 | J35: 0 | K35: 0 | L35: 0 | M35: 0 | N35: 0 | O35: 0 | P35: 0 | Q35: 0 | R35: 0 | S35: 0 | T35: 0 | U35: 0 | V35: 0 | W35: 0 | X35: 0 | Y35: 0 | Z35: 0 | AA35: 0 | AB35: 0 | AC35: 0 | AE35: 0 | AF35: 0 | AG35: 0 | AH35: 0 | AI35: 0
B36: 76 | C36: 4 | G36: 0 | H36: 0 | I36: 0 | J36: 0 | K36: 0 | L36: 0 | M36: 0 | N36: 0 | O36: 0 | P36: 0 | Q36: 0 | R36: 0 | S36: 0 | T36: 0 | U36: 0 | V36: 0 | W36: 0 | X36: 0 | Y36: 0 | Z36: 0 | AA36: 0 | AB36: 0 | AC36: 0 | AE36: 0 | AF36: 0 | AG36: 0 | AH36: 0 | AI36: 0
B37: 76 | C37: 5 | G37: 0 | H37: 0 | I37: 0 | J37: 0 | K37: 0 | L37: 0 | M37: 0 | N37: 0 | O37: 0 | P37: 0 | Q37: 0 | R37: 0 | S37: 0 | T37: 0 | U37: 0 | V37: 0 | W37: 0 | X37: 0 | Y37: 0 | Z37: 0 | AA37: 0 | AB37: 0 | AC37: 0 | AD37: 0 | AE37: 0 | AF37: 0 | AG37: 0 | AH37: 0 | AI37: 0
B38: 76a | C38: 1 | D38: a | G38: 1 | H38: 0 | I38: 0 | J38: 1 | K38: 5 | L38: 0 | M38: 1 | N38: 5 | O38: 0 | P38: 0 | Q38: 0 | R38: 0 | S38: 0 | T38: 5 | U38: 8000 | V38: 1600 | W38: 0 | X38: 0 | Y38: 0 | Z38: 0 | AA38: 0 | AB38: 0 | AC38: 0 | AD38: 0 | AE38: 0 | AF38: 0 | AG38: 0 | AH38: 0 | AI38: 0
B39: 76a | C39: 1 | D39: b | G39: 0 | H39: 0 | I39: 0 | J39: 0 | K39: 0 | L39: 0 | M39: 0 | N39: 0 | O39: 0 | P39: 0 | Q39: 0 | R39: 0 | S39: 0 | T39: 0 | U39: 0 | V39: 0 | W39: 0 | X39: 0 | Y39: 0 | Z39: 0 | AA39: 0 | AB39: 0 | AC39: 0 | AD39: 0 | AE39: 0 | AF39: 0 | AG39: 0 | AH39: 0 | AI39: 0
B40: 76a | C40: 2 | G40: 0 | H40: 0 | I40: 0 | J40: 0 | K40: 0 | L40: 0 | M40: 0 | N40: 0 | O40: 0 | P40: 0 | Q40: 0 | R40: 0 | S40: 0 | T40: 0 | U40: 0 | V40: 0 | W40: 0 | X40: 0 | Y40: 0 | Z40: 0 | AA40: 0 | AB40: 0 | AC40: 0 | AD40: 0 | AE40: 0 | AF40: 0 | AG40: 0 | AH40: 0 | AI40: 0
B41: 76a | C41: 3 | D41: a | G41: 1 | H41: 0 | I41: 0 | J41: 0 | K41: 4 | L41: 0 | M41: 0 | N41: 4 | O41: 0 | P41: 0 | Q41: 0 | R41: 0 | S41: 0 | T41: 4 | U41: 6000 | V41: 1500 | W41: 0 | X41: 0 | Y41: 0 | Z41: 0 | AA41: 0 | AB41: 0 | AC41: 0 | AD41: 0 | AE41: 0 | AF41: 0 | AG41: 0 | AH41: 0 | AI41: 0
B42: 76a | C42: 3 | D42: b | G42: 0 | H42: 0 | I42: 0 | J42: 0 | K42: 0 | L42: 0 | M42: 0 | N42: 0 | O42: 0 | P42: 0 | Q42: 0 | R42: 0 | S42: 0 | T42: 0 | U42: 0 | V42: 0 | W42: 0 | X42: 0 | Y42: 0 | Z42: 0 | AA42: 0 | AB42: 0 | AC42: 0 | AD42: 0 | AE42: 0 | AF42: 0 | AG42: 0 | AH42: 0 | AI42: 0
B43: 76b | G43: 2 | H43: 0 | I43: 0 | J43: 13 | K43: 25 | L43: 2 | M43: 9 | N43: 26 | O43: 0 | P43: 0 | Q43: 0 | R43: 0 | S43: 5 | T43: 24 | U43: 57000 | V43: 2375 | W43: 0 | X43: 0 | Y43: 0 | Z43: 0 | AA43: 0 | AB43: 0 | AC43: 0 | AD43: 3 | AE43: 1 | AF43: 0 | AG43: 0 | AH43: 1 | AI43: 1
B44: 76c | C44: 1 | G44: 0 | H44: 0 | I44: 0 | J44: 1 | K44: 0 | L44: 0 | M44: 0 | N44: 0 | O44: 0 | P44: 0 | Q44: 0 | R44: 0 | S44: 0 | T44: 0 | U44: 2000 | V44: 0 | W44: 0 | X44: 0 | Y44: 0 | Z44: 0 | AA44: 0 | AB44: 0 | AC44: 0 | AD44: 0 | AE44: 0 | AF44: 0 | AG44: 0 | AH44: 0 | AI44: 0
B45: 76c | C45: 2 | G45: 8 | H45: 0 | I45: 0 | J45: 4 | K45: 17 | L45: 0 | M45: 5 | N45: 17 | O45: 0 | P45: 0 | Q45: 0 | R45: 0 | S45: 2 | T45: 19 | U45: 204000 | V45: 10736.84211 | W45: 0 | X45: 0 | Y45: 0 | Z45: 0 | AA45: 0 | AB45: 0 | AC45: 0 | AD45: 0 | AE45: 0 | AF45: 0 | AG45: 0 | AH45: 0 | AI45: 0
B46: 78 | C46: 1 | D46: a | G46: 23 | H46: 6 | I46: 2 | J46: 4 | K46: 14 | L46: 0 | M46: 5 | N46: 14 | O46: 0 | P46: 0 | Q46: 0 | R46: 0 | S46: 4 | T46: 16 | U46: 10400 | V46: 650 | W46: 0 | X46: 0 | Y46: 0 | Z46: 0 | AA46: 0 | AB46: 0 | AC46: 0 | AD46: 0 | AE46: 0 | AF46: 0 | AG46: 0 | AH46: 0 | AI46: 0
B47: 78 | C47: 1 | D47: b | G47: 0 | H47: 0 | I47: 0 | J47: 0 | K47: 0 | L47: 0 | M47: 0 | N47: 0 | O47: 0 | P47: 0 | Q47: 0 | R47: 0 | S47: 0 | T47: 0 | U47: 500 | V47: 0 | W47: 0 | X47: 0 | Y47: 0 | Z47: 0 | AA47: 0 | AB47: 0 | AC47: 0 | AD47: 0 | AE47: 0 | AF47: 0 | AG47: 0 | AH47: 0 | AI47: 0
B48: 78 | C48: 1 | D48: c | G48: 0 | H48: 0 | I48: 0 | J48: 0 | K48: 2 | L48: 0 | M48: 0 | N48: 2 | O48: 0 | P48: 0 | Q48: 0 | R48: 0 | S48: 0 | T48: 2 | U48: 1500 | V48: 750 | W48: 0 | X48: 0 | Y48: 0 | Z48: 0 | AA48: 0 | AB48: 0 | AC48: 0 | AD48: 0 | AE48: 0 | AF48: 0 | AG48: 0 | AH48: 0 | AI48: 0
B49: 78 | C49: 1 | D49: d | G49: 108 | H49: 2 | I49: 3 | J49: 3 | K49: 224 | L49: 24 | M49: 1 | N49: 224 | O49: 0 | P49: 0 | Q49: 0 | R49: 0 | S49: 52 | T49: 165 | U49: 88899.98 | V49: 538.7877576 | W49: 0 | X49: 0 | Y49: 0 | Z49: 0 | AA49: 0 | AB49: 0 | AC49: 0 | AD49: 1 | AE49: 0 | AF49: 0 | AG49: 0 | AH49: 0 | AI49: 1
B50: 78 | C50: 1 | D50: e | G50: 14 | H50: 2 | I50: 2 | J50: 4 | K50: 33 | L50: 1 | M50: 8 | N50: 33 | O50: 0 | P50: 0 | Q50: 0 | R50: 0 | S50: 4 | T50: 30 | U50: 37844 | V50: 1261.466667 | W50: 0 | X50: 0 | Y50: 0 | Z50: 0 | AA50: 0 | AB50: 0 | AC50: 0 | AD50: 0 | AE50: 0 | AF50: 0 | AG50: 0 | AH50: 0 | AI50: 0
B51: 78 | C51: 1 | D51: f | G51: 6 | H51: 1 | I51: 1 | J51: 3 | K51: 8 | L51: 1 | M51: 3 | N51: 8 | O51: 0 | P51: 0 | Q51: 0 | R51: 0 | S51: 0 | T51: 9 | U51: 43500 | V51: 4833.333333 | W51: 0 | X51: 0 | Y51: 0 | Z51: 0 | AA51: 0 | AB51: 0 | AC51: 0 | AD51: 0 | AE51: 0 | AF51: 0 | AG51: 0 | AH51: 0 | AI51: 0
B52: 78 | C52: 1 | D52: g | G52: 44 | H52: 2 | I52: 3 | J52: 16 | K52: 59 | L52: 0 | M52: 4 | N52: 69 | O52: 0 | P52: 0 | Q52: 0 | R52: 0 | S52: 20 | T52: 55 | U52: 55344 | V52: 1006.254545 | W52: 0 | X52: 0 | Y52: 0 | Z52: 0 | AA52: 0 | AB52: 0 | AC52: 0 | AD52: 0 | AE52: 0 | AF52: 0 | AG52: 0 | AH52: 0 | AI52: 0
B53: 78 | C53: 1 | D53: h | G53: 0 | H53: 0 | I53: 0 | J53: 1 | K53: 0 | L53: 0 | M53: 1 | N53: 0 | O53: 0 | P53: 0 | Q53: 0 | R53: 0 | S53: 0 | T53: 1 | U53: 7800 | V53: 7800 | W53: 0 | X53: 0 | Y53: 0 | Z53: 0 | AA53: 0 | AB53: 0 | AC53: 0 | AD53: 0 | AE53: 0 | AF53: 0 | AG53: 0 | AH53: 0 | AI53: 0
B54: 78 | C54: 1 | D54: i | G54: 0 | H54: 0 | I54: 0 | J54: 0 | K54: 0 | L54: 0 | M54: 0 | N54: 0 | O54: 0 | P54: 0 | Q54: 0 | R54: 0 | S54: 0 | T54: 0 | U54: 0 | V54: 0 | W54: 0 | X54: 0 | Y54: 0 | Z54: 0 | AA54: 0 | AB54: 0 | AC54: 0 | AD54: 0 | AE54: 0 | AF54: 0 | AG54: 0 | AH54: 0 | AI54: 0
B55: 78 | C55: 1 | D55: j | G55: 1 | H55: 0 | I55: 0 | J55: 0 | K55: 1 | L55: 0 | M55: 0 | N55: 1 | O55: 0 | P55: 0 | Q55: 0 | R55: 0 | S55: 0 | T55: 1 | U55: 0 | V55: 0 | W55: 0 | X55: 0 | Y55: 0 | Z55: 0 | AA55: 0 | AB55: 0 | AC55: 0 | AD55: 0 | AE55: 0 | AF55: 0 | AG55: 0 | AH55: 0 | AI55: 0
B56: 78 | C56: 1 | D56: k | G56: 17 | H56: 0 | I56: 0 | J56: 0 | K56: 20 | L56: 0 | M56: 0 | N56: 20 | O56: 0 | P56: 0 | Q56: 0 | R56: 0 | S56: 6 | T56: 14 | U56: 9300 | V56: 664.2857143 | W56: 0 | X56: 0 | Y56: 0 | Z56: 0 | AA56: 0 | AB56: 0 | AC56: 0 | AD56: 0 | AE56: 0 | AF56: 0 | AG56: 0 | AH56: 0 | AI56: 0
B57: 78 | C57: 1 | D57: l | G57: 125 | H57: 52 | I57: 14 | J57: 9 | K57: 152 | L57: 1 | M57: 11 | N57: 152 | O57: 0 | P57: 0 | Q57: 0 | R57: 0 | S57: 30 | T57: 122 | U57: 71760.99 | V57: 588.2048361 | W57: 0 | X57: 0 | Y57: 0 | Z57: 0 | AA57: 0 | AB57: 0 | AC57: 0 | AD57: 0 | AE57: 0 | AF57: 0 | AG57: 0 | AH57: 0 | AI57: 0
B58: 78 | C58: 1 | D58: m | G58: 4 | H58: 0 | I58: 0 | J58: 1 | K58: 14 | L58: 0 | M58: 1 | N58: 14 | O58: 0 | P58: 0 | Q58: 0 | R58: 0 | S58: 5 | T58: 10 | U58: 24630 | V58: 2463 | W58: 0 | X58: 0 | Y58: 0 | Z58: 0 | AA58: 0 | AB58: 0 | AC58: 0 | AD58: 0 | AE58: 0 | AF58: 0 | AG58: 0 | AH58: 0 | AI58: 0
B59: 78 | C59: 1 | D59: n | G59: 0 | H59: 0 | I59: 0 | J59: 0 | K59: 0 | L59: 0 | M59: 0 | N59: 0 | O59: 0 | P59: 0 | Q59: 0 | R59: 0 | S59: 0 | T59: 0 | U59: 0 | V59: 0 | W59: 0 | X59: 0 | Y59: 0 | Z59: 0 | AA59: 0 | AB59: 0 | AC59: 0 | AD59: 0 | AE59: 0 | AF59: 0 | AG59: 0 | AH59: 0 | AI59: 0
B60: 78 | C60: 1 | D60: o | G60: 2 | H60: 0 | I60: 1 | J60: 0 | K60: 14 | L60: 0 | M60: 0 | N60: 14 | O60: 0 | P60: 0 | Q60: 0 | R60: 0 | S60: 0 | T60: 14 | U60: 13510 | V60: 965 | W60: 0 | X60: 0 | Y60: 0 | Z60: 0 | AA60: 0 | AB60: 0 | AC60: 0 | AD60: 0 | AE60: 0 | AF60: 0 | AG60: 0 | AH60: 0 | AI60: 0
B61: 78 | C61: 1 | D61: p | G61: 24 | H61: 1 | I61: 4 | J61: 3 | K61: 41 | L61: 0 | M61: 3 | N61: 41 | O61: 0 | P61: 0 | Q61: 0 | R61: 0 | S61: 7 | T61: 52 | U61: 15378 | V61: 295.7307692 | W61: 0 | X61: 0 | Y61: 0 | Z61: 0 | AA61: 0 | AB61: 0 | AC61: 0 | AD61: 0 | AE61: 0 | AF61: 0 | AG61: 0 | AH61: 0 | AI61: 0
B62: 78 | C62: 1 | D62: r | G62: 909 | H62: 110 | I62: 41 | J62: 66 | K62: 1181 | L62: 17 | M62: 69 | N62: 1190 | O62: 1 | P62: 0 | Q62: 0 | R62: 0 | S62: 217 | T62: 872 | U62: 616475.87 | V62: 706.9677408 | W62: 0 | X62: 0 | Y62: 0 | Z62: 0 | AA62: 0 | AB62: 0 | AC62: 0 | AD62: 1 | AE62: 0 | AF62: 0 | AG62: 0 | AH62: 0 | AI62: 0
B63: 78 | C63: 1 | D63: s | G63: 10 | H63: 0 | I63: 0 | J63: 2 | K63: 23 | L63: 0 | M63: 1 | N63: 23 | O63: 0 | P63: 0 | Q63: 0 | R63: 0 | S63: 2 | T63: 22 | U63: 91247 | V63: 4147.590909 | W63: 0 | X63: 0 | Y63: 0 | Z63: 0 | AA63: 0 | AB63: 0 | AC63: 0 | AD63: 0 | AE63: 0 | AF63: 0 | AG63: 0 | AH63: 0 | AI63: 0
B64: 78 | C64: 1 | D64: t | G64: 13 | H64: 0 | I64: 0 | J64: 0 | K64: 31 | L64: 0 | M64: 0 | N64: 31 | O64: 0 | P64: 0 | Q64: 0 | R64: 0 | S64: 8 | T64: 20 | U64: 16220 | V64: 811 | W64: 0 | X64: 0 | Y64: 0 | Z64: 0 | AA64: 0 | AB64: 0 | AC64: 0 | AD64: 0 | AE64: 0 | AF64: 0 | AG64: 0 | AH64: 0 | AI64: 0
B65: 78 | C65: 1 | D65: u | G65: 0 | H65: 0 | I65: 0 | J65: 0 | K65: 0 | L65: 0 | M65: 0 | N65: 0 | O65: 0 | P65: 0 | Q65: 0 | R65: 0 | S65: 0 | T65: 0 | U65: 0 | V65: 0 | W65: 0 | X65: 0 | Y65: 0 | Z65: 0 | AA65: 0 | AB65: 0 | AC65: 0 | AD65: 0 | AE65: 0 | AF65: 0 | AG65: 0 | AH65: 0 | AI65: 0
B66: 78 | C66: 1 | D66: v | G66: 0 | H66: 0 | I66: 0 | J66: 0 | K66: 0 | L66: 0 | M66: 0 | N66: 0 | O66: 0 | P66: 0 | Q66: 0 | R66: 0 | S66: 0 | T66: 0 | U66: 0 | V66: 0 | W66: 0 | X66: 0 | Y66: 0 | Z66: 0 | AA66: 0 | AB66: 0 | AC66: 0 | AD66: 0 | AE66: 0 | AF66: 0 | AG66: 0 | AH66: 0 | AI66: 0
B67: 78 | C67: 1 | D67: z | G67: 0 | H67: 0 | I67: 0 | J67: 0 | K67: 9 | L67: 0 | M67: 0 | N67: 9 | O67: 0 | P67: 0 | Q67: 0 | R67: 0 | S67: 1 | T67: 8 | U67: 0 | V67: 0 | W67: 0 | X67: 0 | Y67: 0 | Z67: 0 | AA67: 0 | AB67: 0 | AC67: 0 | AD67: 0 | AE67: 0 | AF67: 0 | AG67: 0 | AH67: 0 | AI67: 0
B68: 78 | C68: 1 | D68: aa | G68: 101 | H68: 0 | I68: 9 | J68: 5 | K68: 212 | L68: 0 | M68: 4 | N68: 212 | O68: 0 | P68: 0 | Q68: 0 | R68: 0 | S68: 32 | T68: 182 | U68: 110230.97 | V68: 605.6646703 | W68: 0 | X68: 0 | Y68: 0 | Z68: 0 | AA68: 0 | AB68: 0 | AC68: 0 | AD68: 2 | AE68: 0 | AF68: 0 | AG68: 0 | AH68: 2 | AI68: 0
B69: Celkem | G69: =SUM(G6:G68) -> 3067 | H69: =SUM(H6:H68) -> 257 | I69: 137 | J69: 1065 | K69: 5131 | L69: 167 | M69: 893 | N69: 5174 | O69: 10 | P69: 0 | Q69: 0 | R69: 0 | S69: 1372 | T69: 3882 | U69: 19877980 | V69: 5120.551262 | W69: 0 | X69: 0 | Y69: 0 | Z69: 0 | AA69: 0 | AB69: 0 | AC69: 0 | AD69: 152 | AE69: 69 | AF69: 4 | AG69: 0 | AH69: 36 | AI69: 9

Sheet Zákon č. 84-1990 Sb.
B2: PŘEHLED PŘESTUPKŮ ZA ROK 2018
B3: Zákon č. 84/1990 Sb., o právu shromažďovacím
B4: § | C4: odst. | D4: písm. | E4: bod | F4: ve znění zákona č. 183/2017 Sb. | G4: počet podnětů k zahájení řízení o přestupku | H4: počet odložených věcí | I4: počet zahájených řízení o přestupku | L4: počet pravomocných rozhodnutí o uznání obviněného vinným ze spáchání přestupku | O4: počet zastavených řízení | P4: počet rozhodnutí o schválení dohody o narovnání | Q4: počet pravomocných rozhodnutí, kterými bylo upuštěno od uložení správního trestu | R4: počet pravomocných rozhodnutí, kterými byla mimořádně snížena výměra pokuty | S4: počet napomenutí | T4: počet pokut | U4: celková výměra pokut (v Kč) | V4: průměrná výše pokuty (v Kč) | W4: počet zákazů činnosti | X4: celková délka uložených zákazů činnosti (v letech) | Y4: průměrná délka zákazu činnosti (v letech) | Z4: počet propadnutí věci nebo náhradní hodnoty | AA4: počet zveřejnění rozhodnutí o přestupku | AB4: počet omezujících opatření | AC4: počet zabrání věci nebo náhradní hodnoty | AD4: počet podaných odvolání | AE4: odvolání zamítnuto a napadené rozhodnutí potvrzeno | AF4: odvolání vyřízeno v rámci autoremedury | AG4: rozhodnutí změněno | AH4: rozhodnutí zrušeno a věc vrácena k novému projednání | AI4: rozhodnutí zrušeno a řízení zastaveno
I5: oznámení o zahájení řízení | J5: příkaz | K5: příkaz na místě | L5: rozhodnutí | M5: příkaz | N5: příkaz na místě
B6: 14 | C6: 1 | D6: a | G6: 4 | H6: 1 | I6: 3 | J6: 1 | K6: 0 | L6: 2 | M6: 1 | N6: 0 | O6: 0 | P6: 0 | Q6: 0 | R6: 0 | S6: 0 | T6: 3 | U6: 4000 | V6: =U6/T6 -> 1333.333333 | W6: 0 | X6: 0 | Y6: 0 | Z6: 0 | AA6: 0 | AB6: 0 | AC6: 0 | AD6: 0 | AE6: 0 | AF6: 0 | AG6: 0 | AH6: 0 | AI6: 0
B7: 14 | C7: 1 | D7: b | G7: 1 | H7: 0 | I7: 1 | J7: 0 | K7: 0 | L7: 1 | M7: 0 | N7: 0 | O7: 0 | P7: 0 | Q7: 0 | R7: 0 | S7: 0 | T7: 1 | U7: 4000 | V7: =U7/T7 -> 4000 | W7: 0 | X7: 0 | Y7: 0 | Z7: 0 | AA7: 0 | AB7: 0 | AC7: 0 | AD7: 0 | AE7: 0 | AF7: 0 | AG7: 0 | AH7: 0 | AI7: 0
B8: 14 | C8: 1 | D8: c | G8: 1 | H8: 2 | I8: 1 | J8: 0 | K8: 0 | L8: 0 | M8: 0 | N8: 0 | O8: 1 | P8: 0 | Q8: 0 | R8: 0 | S8: 0 | T8: 0 | U8: 0 | V8: 0 | W8: 0 | X8: 0 | Y8: 0 | Z8: 0 | AA8: 0 | AB8: 0 | AC8: 0 | AD8: 0 | AE8: 0 | AF8: 0 | AG8: 0 | AH8: 0 | AI8: 0
B9: 14 | C9: 1 | D9: d | G9: 271 | H9: 184 | I9: 26 | J9: 63 | K9: 0 | L9: 3 | M9: 62 | N9: 0 | O9: 15 | P9: 0 | Q9: 0 | R9: 0 | S9: 0 | T9: 65 | U9: 37000 | V9: 569.2307692 | W9: 0 | X9: 0 | Y9: 0 | Z9: 0 | AA9: 0 | AB9: 0 | AC9: 0 | AD9: 2 | AE9: 0 | AF9: 0 | AG9: 0 | AH9: 0 | AI9: 2
B10: 14 | C10: 1 | D10: e | G10: 3 | H10: 0 | I10: 2 | J10: 1 | K10: 0 | L10: 0 | M10: 1 | N10: 0 | O10: 0 | P10: 0 | Q10: 0 | R10: 0 | S10: 0 | T10: 0 | U10: 0 | V10: 0 | W10: 0 | X10: 0 | Y10: 0 | Z10: 0 | AA10: 0 | AB10: 0 | AC10: 0 | AD10: 0 | AE10: 0 | AF10: 0 | AG10: 0 | AH10: 0 | AI10: 0
B11: 14 | C11: 1 | D11: f | G11: 6 | H11: 1 | I11: 6 | J11: 0 | K11: 0 | L11: 1 | M11: 0 | N11: 0 | O11: 3 | P11: 0 | Q11: 0 | R11: 0 | S11: 0 | T11: 1 | U11: 5000 | V11: 5000 | W11: 0 | X11: 0 | Y11: 0 | Z11: 0 | AA11: 0 | AB11: 0 | AC11: 0 | AD11: 0 | AE11: 0 | AF11: 0 | AG11: 0 | AH11: 0 | AI11: 0
B12: 14 | C12: 2 | D12: a | G12: 2 | H12: 2 | I12: 2 | J12: 0 | K12: 0 | L12: 0 | M12: 0 | N12: 0 | O12: 1 | P12: 0 | Q12: 0 | R12: 0 | S12: 0 | T12: 0 | U12: 0 | V12: 0 | W12: 0 | X12: 0 | Y12: 0 | Z12: 0 | AA12: 0 | AB12: 0 | AC12: 0 | AD12: 0 | AE12: 0 | AF12: 0 | AG12: 0 | AH12: 0 | AI12: 0
B13: 14 | C13: 2 | D13: b | G13: 4 | H13: 0 | I13: 6 | J13: 0 | K13: 0 | L13: 0 | M13: 0 | N13: 0 | O13: 5 | P13: 0 | Q13: 0 | R13: 0 | S13: 0 | T13: 0 | U13: 0 | V13: 0 | W13: 0 | X13: 0 | Y13: 0 | Z13: 0 | AA13: 0 | AB13: 0 | AC13: 0 | AD13: 0 | AE13: 0 | AF13: 0 | AG13: 0 | AH13: 0 | AI13: 0
B14: 14 | C14: 2 | D14: c | G14: 3 | H14: 0 | I14: 4 | J14: 0 | K14: 0 | L14: 3 | M14: 0 | N14: 0 | O14: 3 | P14: 0 | Q14: 0 | R14: 0 | S14: 1 | T14: 1 | U14: 3000 | V14: 3000 | W14: 0 | X14: 0 | Y14: 0 | Z14: 0 | AA14: 0 | AB14: 0 | AC14: 0 | AD14: 0 | AE14: 0 | AF14: 0 | AG14: 0 | AH14: 0 | AI14: 0
B15: 14 | C15: 3 | D15: a | G15: 13 | H15: 7 | I15: 1 | J15: 3 | K15: 0 | L15: 1 | M15: 3 | N15: 0 | O15: 1 | P15: 0 | Q15: 0 | R15: 0 | S15: 2 | T15: 3 | U15: 4500 | V15: 1500 | W15: 0 | X15: 0 | Y15: 0 | Z15: 0 | AA15: 0 | AB15: 0 | AC15: 0 | AD15: 0 | AE15: 0 | AF15: 0 | AG15: 0 | AH15: 0 | AI15: 0
B16: 14 | C16: 3 | D16: b | G16: 3 | H16: 0 | I16: 7 | J16: 0 | K16: 0 | L16: 0 | M16: 0 | N16: 0 | O16: 2 | P16: 0 | Q16: 0 | R16: 0 | S16: 0 | T16: 0 | U16: 0 | V16: 0 | W16: 0 | X16: 0 | Y16: 0 | Z16: 0 | AA16: 0 | AB16: 0 | AC16: 0 | AD16: 0 | AE16: 0 | AF16: 0 | AG16: 0 | AH16: 0 | AI16: 0
B17: 14 | C17: 3 | D17: c | G17: 4 | H17: 0 | I17: 13 | J17: 3 | K17: 0 | L17: 0 | M17: 3 | N17: 0 | O17: 0 | P17: 0 | Q17: 0 | R17: 0 | S17: 2 | T17: 1 | U17: 1000 | V17: 1000 | W17: 0 | X17: 0 | Y17: 0 | Z17: 0 | AA17: 0 | AB17: 0 | AC17: 0 | AD17: 0 | AE17: 0 | AF17: 0 | AG17: 0 | AH17: 0 | AI17: 0
B18: 14 | C18: 3 | D18: d | G18: 0 | H18: 0 | I18: 0 | J18: 0 | K18: 0 | L18: 0 | M18: 0 | N18: 0 | O18: 0 | P18: 0 | Q18: 0 | R18: 0 | S18: 0 | T18: 0 | U18: 0 | V18: 0 | W18: 0 | X18: 0 | Y18: 0 | Z18: 0 | AA18: 0 | AB18: 0 | AC18: 0 | AD18: 0 | AE18: 0 | AF18: 0 | AG18: 0 | AH18: 0 | AI18: 0
B19: 14 | C19: 3 | D19: e | G19: 0 | H19: 3 | I19: 3 | J19: 0 | K19: 0 | L19: 0 | M19: 0 | N19: 0 | O19: 0 | P19: 0 | Q19: 0 | R19: 0 | S19: 0 | T19: 0 | U19: 0 | V19: 0 | W19: 0 | X19: 0 | Y19: 0 | Z19: 0 | AA19: 0 | AB19: 0 | AC19: 0 | AD19: 0 | AE19: 0 | AF19: 0 | AG19: 0 | AH19: 0 | AI19: 0
B20: 14a | C20: 1 | D20: a | G20: 2 | H20: 1 | I20: 0 | J20: 1 | K20: 0 | L20: 0 | M20: 1 | N20: 0 | O20: 0 | P20: 0 | Q20: 0 | R20: 0 | S20: 0 | T20: 1 | U20: 5000 | V20: 5000 | W20: 0 | X20: 0 | Y20: 0 | Z20: 0 | AA20: 0 | AB20: 0 | AC20: 0 | AD20: 0 | AE20: 0 | AF20: 0 | AG20: 0 | AH20: 0 | AI20: 0
B21: 14a | C21: 1 | D21: b | G21: 0 | H21: 0 | I21: 0 | J21: 0 | K21: 0 | L21: 0 | M21: 0 | N21: 0 | O21: 0 | P21: 0 | Q21: 0 | R21: 0 | S21: 0 | T21: 0 | U21: 0 | V21: 0 | W21: 0 | X21: 0 | Y21: 0 | Z21: 0 | AA21: 0 | AB21: 0 | AC21: 0 | AD21: 0 | AE21: 0 | AF21: 0 | AG21: 0 | AH21: 0 | AI21: 0
B22: 14a | C22: 1 | D22: c | G22: 0 | H22: 0 | I22: 0 | J22: 0 | K22: 0 | L22: 0 | M22: 0 | N22: 0 | O22: 0 | P22: 0 | Q22: 0 | R22: 0 | S22: 0 | T22: 0 | U22: 0 | V22: 0 | W22: 0 | X22: 0 | Y22: 0 | Z22: 0 | AA22: 0 | AB22: 0 | AC22: 0 | AD22: 0 | AE22: 0 | AF22: 0 | AG22: 0 | AH22: 0 | AI22: 0
B23: 14a | C23: 1 | D23: d | G23: 0 | H23: 0 | I23: 0 | J23: 0 | K23: 0 | L23: 0 | M23: 0 | N23: 0 | O23: 0 | P23: 0 | Q23: 0 | R23: 0 | S23: 0 | T23: 0 | U23: 0 | V23: 0 | W23: 0 | X23: 0 | Y23: 0 | Z23: 0 | AA23: 0 | AB23: 0 | AC23: 0 | AD23: 0 | AE23: 0 | AF23: 0 | AG23: 0 | AH23: 0 | AI23: 0
B24: 14a | C24: 1 | D24: e | G24: 0 | H24: 0 | I24: 0 | J24: 0 | K24: 0 | L24: 0 | M24: 0 | N24: 0 | O24: 0 | P24: 0 | Q24: 0 | R24: 0 | S24: 0 | T24: 0 | U24: 0 | V24: 0 | W24: 0 | X24: 0 | Y24: 0 | Z24: 0 | AA24: 0 | AB24: 0 | AC24: 0 | AD24: 0 | AE24: 0 | AF24: 0 | AG24: 0 | AH24: 0 | AI24: 0
B25: Celkem | G25: =SUM(G6:G24) -> 317 | H25: =SUM(H6:H24) -> 201 | I25: 75 | J25: 72 | K25: 0 | L25: 11 | M25: 71 | N25: 0 | O25: 31 | P25: 0 | Q25: 0 | R25: 0 | S25: 5 | T25: 76 | U25: 63500 | V25: 835.5263158 | W25: 0 | X25: 0 | Y25: 0 | Z25: 0 | AA25: 0 | AB25: 0 | AC25: 0 | AD25: 2 | AE25: 0 | AF25: 0 | AG25: 0 | AH25: 0 | AI25: 2

Sheet Zákon č. 200-1990 Sb.
B2: PŘEHLED PŘESTUPKŮ ZA ROK 2018
B3: Zákon č. 200/1990 Sb., o přestupcích
B4: § | C4: odst. | D4: písm. | E4: bod | F4: ve znění zákona č. 65/2017 Sb. | G4: počet podnětů k zahájení řízení o přestupku | H4: počet odložených věcí | I4: počet zahájených řízení o přestupku | L4: počet pravomocných rozhodnutí o uznání obviněného vinným ze spáchání přestupku | O4: počet zastavených řízení | P4: počet rozhodnutí o schválení dohody o narovnání | Q4: počet pravomocných rozhodnutí, kterými bylo upuštěno od uložení správního trestu | R4: počet pravomocných rozhodnutí, kterými byla mimořádně snížena výměra pokuty | S4: počet napomenutí | T4: počet pokut | U4: celková výměra pokut (v Kč) | V4: průměrná výměra pokuty (v Kč) | W4: počet zákazů činnosti | X4: celková délka uložených zákazů činnosti (v letech) | Y4: průměrná délka zákazu činnosti (v letech) | Z4: počet propadnutí věci nebo náhradní hodnoty | AA4: počet zveřejnění rozhodnutí o přestupku | AB4: počet omezujících opatření | AC4: počet zabrání věci nebo náhradní hodnoty | AD4: počet podaných odvolání | AE4: odvolání zamítnuto a napadené rozhodnutí potvrzeno | AF4: odvolání vyřízeno v rámci autoremedury | AG4: rozhodnutí změněno | AH4: rozhodnutí zrušeno a věc vrácena k novému projednání | AI4: rozhodnutí zrušeno a řízení zastaveno
I5: oznámení o zahájení řízení | J5: příkaz | K5: příkaz na místě | L5: rozhodnutí | M5: příkaz | N5: příkaz na místě
B6: 21 | C6: 1 | D6: a | G6: 7 | H6: 1 | I6: 0 | J6: 3 | K6: 4 | L6: 3 | M6: 1 | N6: 4 | O6: 0 | P6: 0 | Q6: 0 | R6: 0 | S6: 0 | T6: 10 | U6: 27600 | V6: =U6/T6 -> 2760 | W6: 0 | X6: 0 | Y6: 0 | Z6: 3 | AA6: 0 | AB6: 0 | AC6: 0 | AD6: 0 | AE6: 0 | AF6: 0 | AG6: 0 | AH6: 0 | AI6: 0
B7: 21 | C7: 1 | D7: b | G7: 11 | H7: 7 | I7: 0 | J7: 1 | K7: 1 | L7: 0 | M7: 1 | N7: 1 | O7: 0 | P7: 0 | Q7: 0 | R7: 0 | S7: 0 | T7: 2 | U7: 5000 | V7: 2500 | W7: 0 | X7: 0 | Y7: 0 | Z7: 0 | AA7: 0 | AB7: 0 | AC7: 0 | AD7: 0 | AE7: 0 | AF7: 0 | AG7: 0 | AH7: 0 | AI7: 0
B8: 21 | C8: 1 | D8: c | G8: 7 | H8: 5 | I8: 0 | J8: 1 | K8: 0 | L8: 0 | M8: 3 | N8: 0 | O8: 0 | P8: 0 | Q8: 0 | R8: 0 | S8: 0 | T8: 3 | U8: 9000 | V8: 3000 | W8: 0 | X8: 0 | Y8: 0 | Z8: 0 | AA8: 0 | AB8: 0 | AC8: 0 | AD8: 0 | AE8: 0 | AF8: 0 | AG8: 0 | AH8: 0 | AI8: 0
B9: 21 | C9: 1 | D9: d | G9: 3 | H9: 2 | I9: 0 | J9: 0 | K9: 2 | L9: 0 | M9: 0 | N9: 2 | O9: 0 | P9: 0 | Q9: 0 | R9: 0 | S9: 0 | T9: 2 | U9: 2000 | V9: 1000 | W9: 0 | X9: 0 | Y9: 0 | Z9: 0 | AA9: 0 | AB9: 0 | AC9: 0 | AD9: 0 | AE9: 0 | AF9: 0 | AG9: 0 | AH9: 0 | AI9: 0
B10: 21 | C10: 1 | D10: e | G10: 0 | H10: 0 | I10: 0 | J10: 0 | K10: 0 | L10: 0 | M10: 0 | N10: 0 | O10: 0 | P10: 0 | Q10: 0 | R10: 0 | S10: 0 | T10: 0 | U10: 0 | V10: 0 | W10: 0 | X10: 0 | Y10: 0 | Z10: 0 | AA10: 0 | AB10: 0 | AC10: 0 | AD10: 0 | AE10: 0 | AF10: 0 | AG10: 0 | AH10: 0 | AI10: 0
B11: 21 | C11: 1 | D11: f | G11: 1 | H11: 0 | I11: 0 | J11: 0 | K11: 0 | L11: 0 | M11: 0 | N11: 0 | O11: 0 | P11: 0 | Q11: 0 | R11: 0 | S11: 0 | T11: 0 | U11: 0 | V11: 0 | W11: 0 | X11: 0 | Y11: 0 | Z11: 0 | AA11: 0 | AB11: 0 | AC11: 0 | AD11: 0 | AE11: 0 | AF11: 0 | AG11: 0 | AH11: 0 | AI11: 0
B12: 21 | C12: 1 | D12: g | G12: 11 | H12: 4 | I12: 2 | J12: 3 | K12: 0 | L12: 3 | M12: 3 | N12: 0 | O12: 2 | P12: 0 | Q12: 0 | R12: 0 | S12: 0 | T12: 4 | U12: 8800 | V12: 2200 | W12: 0 | X12: 0 | Y12: 0 | Z12: 0 | AA12: 0 | AB12: 0 | AC12: 0 | AD12: 0 | AE12: 0 | AF12: 0 | AG12: 0 | AH12: 0 | AI12: 0
B13: 21 | C13: 1 | D13: h | G13: 1 | H13: 0 | I13: 0 | J13: 0 | K13: 0 | L13: 0 | M13: 0 | N13: 0 | O13: 0 | P13: 0 | Q13: 0 | R13: 0 | S13: 0 | T13: 0 | U13: 0 | V13: 0 | W13: 0 | X13: 0 | Y13: 0 | Z13: 0 | AA13: 0 | AB13: 0 | AC13: 0 | AD13: 0 | AE13: 0 | AF13: 0 | AG13: 0 | AH13: 0 | AI13: 0
B14: 21 | C14: 1 | D14: ch | G14: 0 | H14: 0 | I14: 0 | J14: 0 | K14: 0 | L14: 0 | M14: 0 | N14: 0 | O14: 0 | P14: 0 | Q14: 0 | R14: 0 | S14: 0 | T14: 0 | U14: 0 | V14: 0 | W14: 0 | X14: 0 | Y14: 0 | Z14: 0 | AA14: 0 | AB14: 0 | AC14: 0 | AD14: 0 | AE14: 0 | AF14: 0 | AG14: 0 | AH14: 0 | AI14: 0
B15: 21 | C15: 1 | D15: i | G15: 3 | H15: 0 | I15: 0 | J15: 0 | K15: 0 | L15: 0 | M15: 2 | N15: 0 | O15: 0 | P15: 0 | Q15: 0 | R15: 0 | S15: 2 | T15: 0 | U15: 0 | V15: 0 | W15: 0 | X15: 0 | Y15: 0 | Z15: 0 | AA15: 0 | AB15: 0 | AC15: 0 | AD15: 0 | AE15: 0 | AF15: 0 | AG15: 0 | AH15: 0 | AI15: 0
B16: 21a | C16: 1 | D16: a | G16: 1 | H16: 0 | I16: 0 | J16: 0 | K16: 0 | L16: 0 | M16: 0 | N16: 0 | O16: 0 | P16: 0 | Q16: 0 | R16: 0 | S16: 0 | T16: 0 | U16: 0 | V16: 0 | W16: 0 | X16: 0 | Y16: 0 | Z16: 0 | AA16: 0 | AB16: 0 | AC16: 0 | AD16: 0 | AE16: 0 | AF16: 0 | AG16: 0 | AH16: 0 | AI16: 0
B17: 21a | C17: 1 | D17: b | G17: 0 | H17: 0 | I17: 0 | J17: 0 | K17: 0 | L17: 0 | M17: 0 | N17: 0 | O17: 0 | P17: 0 | Q17: 0 | R17: 0 | S17: 0 | T17: 0 | U17: 0 | V17: 0 | W17: 0 | X17: 0 | Y17: 0 | Z17: 0 | AA17: 0 | AB17: 0 | AC17: 0 | AD17: 0 | AE17: 0 | AF17: 0 | AG17: 0 | AH17: 0 | AI17: 0
B18: 21a | C18: 1 | D18: c | G18: 0 | H18: 0 | I18: 0 | J18: 0 | K18: 0 | L18: 0 | M18: 0 | N18: 0 | O18: 0 | P18: 0 | Q18: 0 | R18: 0 | S18: 0 | T18: 0 | U18: 0 | V18: 0 | W18: 0 | X18: 0 | Y18: 0 | Z18: 0 | AA18: 0 | AB18: 0 | AC18: 0 | AD18: 0 | AE18: 0 | AF18: 0 | AG18: 0 | AH18: 0 | AI18: 0
B19: 42 | C19: 1 | D19: a | G19: 1 | H19: 0 | I19: 0 | J19: 0 | K19: 0 | L19: 0 | M19: 0 | N19: 0 | O19: 0 | P19: 0 | Q19: 0 | R19: 0 | S19: 0 | T19: 0 | U19: 0 | V19: 0 | W19: 0 | X19: 0 | Y19: 0 | Z19: 0 | AA19: 0 | AB19: 0 | AC19: 0 | AD19: 0 | AE19: 0 | AF19: 0 | AG19: 0 | AH19: 0 | AI19: 0
B20: 42 | C20: 1 | D20: b | G20: 0 | H20: 0 | I20: 0 | J20: 0 | K20: 0 | L20: 0 | M20: 0 | N20: 0 | O20: 0 | P20: 0 | Q20: 0 | R20: 0 | S20: 0 | T20: 0 | U20: 0 | V20: 0 | W20: 0 | X20: 0 | Y20: 0 | Z20: 0 | AA20: 0 | AB20: 0 | AC20: 0 | AD20: 0 | AE20: 0 | AF20: 0 | AG20: 0 | AH20: 0 | AI20: 0
B21: 42c | C21: 1 | D21: a | G21: 1 | H21: 0 | I21: 0 | J21: 1 | K21: 0 | L21: 0 | M21: 1 | N21: 0 | O21: 0 | P21: 0 | Q21: 0 | R21: 0 | S21: 0 | T21: 1 | U21: 150 | V21: 150 | W21: 0 | X21: 0 | Y21: 0 | Z21: 0 | AA21: 0 | AB21: 0 | AC21: 0 | AD21: 0 | AE21: 0 | AF21: 0 | AG21: 0 | AH21: 0 | AI21: 0
B22: 42c | C22: 1 | D22: b | G22: 2 | H22: 0 | I22: 0 | J22: 2 | K22: 0 | L22: 0 | M22: 2 | N22: 0 | O22: 0 | P22: 0 | Q22: 0 | R22: 0 | S22: 0 | T22: 2 | U22: 3000 | V22: 1500 | W22: 0 | X22: 0 | Y22: 0 | Z22: 0 | AA22: 0 | AB22: 0 | AC22: 0 | AD22: 0 | AE22: 0 | AF22: 0 | AG22: 0 | AH22: 0 | AI22: 0
B23: 42c | C23: 1 | D23: c | G23: 2 | H23: 2 | I23: 0 | J23: 1 | K23: 0 | L23: 0 | M23: 1 | N23: 0 | O23: 0 | P23: 0 | Q23: 0 | R23: 0 | S23: 0 | T23: 1 | U23: 2000 | V23: 2000 | W23: 0 | X23: 0 | Y23: 0 | Z23: 0 | AA23: 0 | AB23: 0 | AC23: 0 | AD23: 0 | AE23: 0 | AF23: 0 | AG23: 0 | AH23: 0 | AI23: 0
B24: 44 | C24: 1 | D24: a | G24: 3 | H24: 0 | I24: 1 | J24: 1 | K24: 1 | L24: 1 | M24: 1 | N24: 1 | O24: 0 | P24: 0 | Q24: 0 | R24: 0 | S24: 0 | T24: 3 | U24: 28000 | V24: 9333.333333 | W24: 0 | X24: 0 | Y24: 0 | Z24: 0 | AA24: 0 | AB24: 0 | AC24: 0 | AD24: 0 | AE24: 0 | AF24: 0 | AG24: 0 | AH24: 0 | AI24: 0
B25: 44 | C25: 1 | D25: b | G25: 3 | H25: 0 | I25: 0 | J25: 3 | K25: 0 | L25: 0 | M25: 3 | N25: 0 | O25: 0 | P25: 0 | Q25: 0 | R25: 0 | S25: 0 | T25: 3 | U25: 16150 | V25: 5383.333333 | W25: 0 | X25: 0 | Y25: 0 | Z25: 0 | AA25: 0 | AB25: 0 | AC25: 0 | AD25: 0 | AE25: 0 | AF25: 0 | AG25: 0 | AH25: 0 | AI25: 0
B26: 44 | C26: 1 | D26: c | G26: 0 | H26: 0 | I26: 0 | J26: 0 | K26: 0 | L26: 0 | M26: 0 | N26: 0 | O26: 0 | P26: 0 | Q26: 0 | R26: 0 | S26: 0 | T26: 0 | U26: 0 | V26: 0 | W26: 0 | X26: 0 | Y26: 0 | Z26: 0 | AA26: 0 | AB26: 0 | AC26: 0 | AD26: 0 | AE26: 0 | AF26: 0 | AG26: 0 | AH26: 0 | AI26: 0
B27: 46 | C27: 1 | G27: 27 | H27: 39 | I27: 18 | J27: 6 | K27: 14 | L27: 9 | M27: 6 | N27: 14 | O27: 8 | P27: 0 | Q27: 0 | R27: 0 | S27: 0 | T27: 29 | U27: 38500 | V27: 1327.586207 | W27: 0 | X27: 0 | Y27: 0 | Z27: 0 | AA27: 0 | AB27: 0 | AC27: 1 | AD27: 2 | AE27: 2 | AF27: 0 | AG27: 0 | AH27: 0 | AI27: 0
B28: 46 | C28: 2 | G28: 175 | H28: 164 | I28: 15 | J28: 90 | K28: 4 | L28: 16 | M28: 101 | N28: 52 | O28: 38 | P28: 0 | Q28: 4 | R28: 0 | S28: 6 | T28: 156 | U28: 84800 | V28: 543.5897436 | W28: 0 | X28: 0 | Y28: 0 | Z28: 2 | AA28: 0 | AB28: 0 | AC28: 0 | AD28: 3 | AE28: 1 | AF28: 0 | AG28: 2 | AH28: 0 | AI28: 0
B29: 47 | C29: 1 | D29: a | G29: 74 | H29: 111 | I29: 38 | J29: 90 | K29: 4 | L29: 49 | M29: 106 | N29: 10 | O29: 49 | P29: 0 | Q29: 2 | R29: 0 | S29: 4 | T29: 144 | U29: 195200 | V29: 1355.555556 | W29: 0 | X29: 0 | Y29: 0 | Z29: 0 | AA29: 0 | AB29: 0 | AC29: 0 | AD29: 6 | AE29: 4 | AF29: 0 | AG29: 0 | AH29: 3 | AI29: 0
B30: 47 | C30: 1 | D30: b | G30: 27 | H30: 8 | I30: 8 | J30: 11 | K30: 1 | L30: 6 | M30: 7 | N30: 1 | O30: 4 | P30: 0 | Q30: 0 | R30: 0 | S30: 6 | T30: 11 | U30: 13000 | V30: 1181.818182 | W30: 0 | X30: 0 | Y30: 0 | Z30: 0 | AA30: 0 | AB30: 0 | AC30: 0 | AD30: 2 | AE30: 2 | AF30: 0 | AG30: 0 | AH30: 0 | AI30: 0
B31: 47 | C31: 1 | D31: c | G31: 43 | H31: 64 | I31: 24 | J31: 22 | K31: 4 | L31: 27 | M31: 31 | N31: 4 | O31: 30 | P31: 0 | Q31: 2 | R31: 0 | S31: 6 | T31: 41 | U31: 47200 | V31: 1151.219512 | W31: 0 | X31: 0 | Y31: 0 | Z31: 0 | AA31: 0 | AB31: 0 | AC31: 0 | AD31: 1 | AE31: 1 | AF31: 0 | AG31: 0 | AH31: 0 | AI31: 0
B32: 47 | C32: 1 | D32: d | G32: 26 | H32: 52 | I32: 15 | J32: 7 | K32: 0 | L32: 14 | M32: 8 | N32: 8 | O32: 18 | P32: 0 | Q32: 0 | R32: 0 | S32: 2 | T32: 14 | U32: 15600 | V32: 1114.285714 | W32: 0 | X32: 0 | Y32: 0 | Z32: 0 | AA32: 0 | AB32: 0 | AC32: 0 | AD32: 0 | AE32: 0 | AF32: 0 | AG32: 0 | AH32: 0 | AI32: 0
B33: 47 | C33: 1 | D33: e | G33: 17 | H33: 64 | I33: 5 | J33: 20 | K33: 0 | L33: 12 | M33: 23 | N33: 1 | O33: 4 | P33: 0 | Q33: 1 | R33: 0 | S33: 5 | T33: 24 | U33: 23200 | V33: 966.6666667 | W33: 0 | X33: 0 | Y33: 0 | Z33: 0 | AA33: 0 | AB33: 0 | AC33: 0 | AD33: 1 | AE33: 0 | AF33: 0 | AG33: 0 | AH33: 0 | AI33: 0
B34: 47 | C34: 1 | D34: f | G34: 15 | H34: 6 | I34: 1 | J34: 2 | K34: 0 | L34: 2 | M34: 4 | N34: 2 | O34: 0 | P34: 0 | Q34: 1 | R34: 0 | S34: 0 | T34: 9 | U34: 9800 | V34: 1088.888889 | W34: 0 | X34: 0 | Y34: 0 | Z34: 0 | AA34: 0 | AB34: 1 | AC34: 0 | AD34: 0 | AE34: 0 | AF34: 0 | AG34: 0 | AH34: 0 | AI34: 0
B35: 47 | C35: 1 | D35: g | G35: 43 | H35: 1 | I35: 0 | J35: 1 | K35: 42 | L35: 1 | M35: 2 | N35: 42 | O35: 0 | P35: 0 | Q35: 0 | R35: 0 | S35: 0 | T35: 44 | U35: 13300 | V35: 302.2727273 | W35: 0 | X35: 0 | Y35: 0 | Z35: 0 | AA35: 0 | AB35: 0 | AC35: 0 | AD35: 0 | AE35: 0 | AF35: 0 | AG35: 0 | AH35: 0 | AI35: 0
B36: 47 | C36: 1 | D36: h | G36: 55 | H36: 194 | I36: 12 | J36: 24 | K36: 25 | L36: 15 | M36: 31 | N36: 26 | O36: 8 | P36: 0 | Q36: 1 | R36: 0 | S36: 3 | T36: 63 | U36: 19700 | V36: 312.6984127 | W36: 0 | X36: 0 | Y36: 0 | Z36: 0 | AA36: 0 | AB36: 0 | AC36: 0 | AD36: 3 | AE36: 2 | AF36: 0 | AG36: 1 | AH36: 0 | AI36: 0
B37: 47 | C37: 1 | D37: i | G37: 2 | H37: 9 | I37: 2 | J37: 1 | K37: 3 | L37: 3 | M37: 1 | N37: 3 | O37: 6 | P37: 0 | Q37: 0 | R37: 0 | S37: 0 | T37: 5 | U37: 4700 | V37: 940 | W37: 0 | X37: 0 | Y37: 0 | Z37: 0 | AA37: 0 | AB37: 0 | AC37: 0 | AD37: 0 | AE37: 0 | AF37: 0 | AG37: 0 | AH37: 0 | AI37: 0
B38: 47 | C38: 2 | G38: 0 | H38: 0 | I38: 0 | J38: 0 | K38: 0 | L38: 0 | M38: 0 | N38: 0 | O38: 0 | P38: 0 | Q38: 0 | R38: 0 | S38: 0 | T38: 0 | U38: 0 | V38: 0 | W38: 0 | X38: 0 | Y38: 0 | Z38: 0 | AA38: 0 | AB38: 0 | AC38: 0 | AD38: 0 | AE38: 0 | AF38: 0 | AG38: 0 | AH38: 0 | AI38: 0
B39: 47a | C39: 1 | D39: a | G39: 15 | H39: 10 | I39: 7 | J39: 5 | K39: 0 | L39: 6 | M39: 5 | N39: 0 | O39: 4 | P39: 0 | Q39: 0 | R39: 0 | S39: 3 | T39: 6 | U39: 11500 | V39: 1916.666667 | W39: 0 | X39: 0 | Y39: 0 | Z39: 0 | AA39: 0 | AB39: 0 | AC39: 0 | AD39: 2 | AE39: 0 | AF39: 0 | AG39: 1 | AH39: 1 | AI39: 0
B40: 47a | C40: 1 | D40: b | G40: 11 | H40: 8 | I40: 3 | J40: 0 | K40: 0 | L40: 3 | M40: 0 | N40: 0 | O40: 1 | P40: 0 | Q40: 0 | R40: 0 | S40: 1 | T40: 1 | U40: 500 | V40: 500 | W40: 0 | X40: 0 | Y40: 0 | Z40: 0 | AA40: 0 | AB40: 0 | AC40: 0 | AD40: 0 | AE40: 0 | AF40: 0 | AG40: 0 | AH40: 0 | AI40: 0
B41: 47b | C41: 1 | D41: a | G41: 0 | H41: 0 | I41: 0 | J41: 0 | K41: 0 | L41: 0 | M41: 0 | N41: 0 | O41: 0 | P41: 0 | Q41: 0 | R41: 0 | S41: 0 | T41: 0 | U41: 0 | V41: 0 | W41: 0 | X41: 0 | Y41: 0 | Z41: 0 | AA41: 0 | AB41: 0 | AC41: 0 | AD41: 0 | AE41: 0 | AF41: 0 | AG41: 0 | AH41: 0 | AI41: 0
B42: 47b | C42: 1 | D42: b | G42: 0 | H42: 0 | I42: 0 | J42: 0 | K42: 0 | L42: 0 | M42: 0 | N42: 0 | O42: 0 | P42: 0 | Q42: 0 | R42: 0 | S42: 0 | T42: 0 | U42: 0 | V42: 0 | W42: 0 | X42: 0 | Y42: 0 | Z42: 0 | AA42: 0 | AB42: 0 | AC42: 0 | AD42: 0 | AE42: 0 | AF42: 0 | AG42: 0 | AH42: 0 | AI42: 0
B43: 47b | C43: 1 | D43: c | G43: 0 | H43: 1 | I43: 0 | J43: 1 | K43: 0 | L43: 0 | M43: 1 | N43: 0 | O43: 0 | P43: 0 | Q43: 0 | R43: 0 | S43: 0 | T43: 0 | U43: 0 | V43: 0 | W43: 0 | X43: 0 | Y43: 0 | Z43: 0 | AA43: 0 | AB43: 0 | AC43: 0 | AD43: 0 | AE43: 0 | AF43: 0 | AG43: 0 | AH43: 0 | AI43: 0
B44: 47b | C44: 1 | D44: d | G44: 0 | H44: 2 | I44: 0 | J44: 0 | K44: 0 | L44: 0 | M44: 0 | N44: 0 | O44: 0 | P44: 0 | Q44: 0 | R44: 0 | S44: 0 | T44: 0 | U44: 0 | V44: 0 | W44: 0 | X44: 0 | Y44: 0 | Z44: 0 | AA44: 0 | AB44: 0 | AC44: 0 | AD44: 0 | AE44: 0 | AF44: 0 | AG44: 0 | AH44: 0 | AI44: 0
B45: 48 | G45: 22 | H45: 2 | I45: 0 | J45: 0 | K45: 0 | L45: 0 | M45: 0 | N45: 3 | O45: 0 | P45: 0 | Q45: 0 | R45: 0 | S45: 0 | T45: 3 | U45: 1300 | V45: 433.3333333 | W45: 0 | X45: 0 | Y45: 0 | Z45: 0 | AA45: 0 | AB45: 0 | AC45: 0 | AD45: 0 | AE45: 0 | AF45: 0 | AG45: 0 | AH45: 0 | AI45: 0
B46: 49 | C46: 1 | D46: a | G46: 430 | H46: 567 | I46: 114 | J46: 5 | K46: 2 | L46: 110 | M46: 7 | N46: 2 | O46: 238 | P46: 1 | Q46: 3 | R46: 1 | S46: 12 | T46: 65 | U46: 90800 | V46: 1396.923077 | W46: 0 | X46: 0 | Y46: 0 | Z46: 0 | AA46: 0 | AB46: 0 | AC46: 0 | AD46: 23 | AE46: 11 | AF46: 1 | AG46: 1 | AH46: 11 | AI46: 6
B47: 49 | C47: 1 | D47: b | G47: 382 | H47: 515 | I47: 178 | J47: 84 | K47: 24 | L47: 221 | M47: 99 | N47: 28 | O47: 435 | P47: 0 | Q47: 5 | R47: 0 | S47: 26 | T47: 251 | U47: 475150 | V47: 1893.027888 | W47: 0 | X47: 0 | Y47: 0 | Z47: 0 | AA47: 0 | AB47: 0 | AC47: 1 | AD47: 29 | AE47: 10 | AF47: 1 | AG47: 2 | AH47: 16 | AI47: 2
B48: 49 | C48: 2 | D48: a | G48: 199 | H48: 255 | I48: 78 | J48: 42 | K48: 8 | L48: 84 | M48: 51 | N48: 9 | O48: 236 | P48: 0 | Q48: 4 | R48: 0 | S48: 11 | T48: 85 | U48: 143300 | V48: 1685.882353 | W48: 0 | X48: 0 | Y48: 0 | Z48: 0 | AA48: 0 | AB48: 0 | AC48: 0 | AD48: 3 | AE48: 2 | AF48: 0 | AG48: 0 | AH48: 0 | AI48: 2
B49: 49 | C49: 2 | D49: b | G49: 26 | H49: 36 | I49: 8 | J49: 4 | K49: 0 | L49: 16 | M49: 3 | N49: 0 | O49: 18 | P49: 0 | Q49: 1 | R49: 0 | S49: 2 | T49: 9 | U49: 24500 | V49: 2722.222222 | W49: 0 | X49: 0 | Y49: 0 | Z49: 0 | AA49: 0 | AB49: 0 | AC49: 0 | AD49: 2 | AE49: 1 | AF49: 0 | AG49: 0 | AH49: 1 | AI49: 0
B50: 49 | C50: 2 | D50: c | G50: 237 | H50: 232 | I50: 61 | J50: 15 | K50: 4 | L50: 76 | M50: 20 | N50: 8 | O50: 149 | P50: 0 | Q50: 0 | R50: 0 | S50: 9 | T50: 52 | U50: 79600 | V50: 1530.769231 | W50: 0 | X50: 0 | Y50: 0 | Z50: 0 | AA50: 0 | AB50: 0 | AC50: 0 | AD50: 14 | AE50: 6 | AF50: 1 | AG50: 1 | AH50: 5 | AI50: 1
B51: 49 | C51: 2 | D51: d | G51: 750 | H51: 926 | I51: 303 | J51: 194 | K51: 29 | L51: 427 | M51: 230 | N51: 43 | O51: 707 | P51: 1 | Q51: 10 | R51: 0 | S51: 90 | T51: 457 | U51: 665133 | V51: 1455.43326 | W51: 0 | X51: 0 | Y51: 0 | Z51: 0 | AA51: 0 | AB51: 1 | AC51: 1 | AD51: 47 | AE51: 27 | AF51: 0 | AG51: 0 | AH51: 21 | AI51: 7
B52: 49 | C52: 3 | D52: a | G52: 2 | H52: 0 | I52: 2 | J52: 0 | K52: 0 | L52: 0 | M52: 0 | N52: 0 | O52: 2 | P52: 0 | Q52: 0 | R52: 0 | S52: 0 | T52: 0 | U52: 0 | V52: 0 | W52: 0 | X52: 0 | Y52: 0 | Z52: 0 | AA52: 0 | AB52: 0 | AC52: 0 | AD52: 0 | AE52: 0 | AF52: 0 | AG52: 0 | AH52: 0 | AI52: 0
B53: 49 | C53: 3 | D53: b | G53: 6 | H53: 8 | I53: 2 | J53: 0 | K53: 0 | L53: 3 | M53: 0 | N53: 1 | O53: 8 | P53: 0 | Q53: 0 | R53: 0 | S53: 0 | T53: 1 | U53: 3000 | V53: 3000 | W53: 0 | X53: 0 | Y53: 0 | Z53: 0 | AA53: 0 | AB53: 0 | AC53: 0 | AD53: 0 | AE53: 0 | AF53: 0 | AG53: 0 | AH53: 0 | AI53: 0
B54: 50 | C54: 1 | D54: a | G54: 432 | H54: 566 | I54: 181 | J54: 227 | K54: 9 | L54: 288 | M54: 322 | N54: 16 | O54: 321 | P54: 0 | Q54: 12 | R54: 0 | S54: 35 | T54: 498 | U54: 1160800 | V54: 2330.923695 | W54: 0 | X54: 0 | Y54: 0 | Z54: 0 | AA54: 0 | AB54: 0 | AC54: 1 | AD54: 8 | AE54: 6 | AF54: 0 | AG54: 1 | AH54: 5 | AI54: 4
B55: 50 | C55: 1 | D55: b | G55: 29 | H55: 32 | I55: 17 | J55: 10 | K55: 0 | L55: 23 | M55: 13 | N55: 3 | O55: 17 | P55: 0 | Q55: 0 | R55: 0 | S55: 2 | T55: 28 | U55: 80300 | V55: 2867.857143 | W55: 0 | X55: 0 | Y55: 0 | Z55: 0 | AA55: 0 | AB55: 0 | AC55: 0 | AD55: 5 | AE55: 3 | AF55: 0 | AG55: 0 | AH55: 2 | AI55: 0
B56: 50 | C56: 1 | D56: c | G56: 86 | H56: 135 | I56: 35 | J56: 21 | K56: 1 | L56: 52 | M56: 23 | N56: 1 | O56: 76 | P56: 0 | Q56: 3 | R56: 0 | S56: 3 | T56: 67 | U56: 226700 | V56: 3383.58209 | W56: 0 | X56: 0 | Y56: 0 | Z56: 1 | AA56: 0 | AB56: 0 | AC56: 0 | AD56: 2 | AE56: 2 | AF56: 0 | AG56: 0 | AH56: 0 | AI56: 0
B57: 50 | C57: 1 | D57: d | G57: 152 | H57: 188 | I57: 78 | J57: 54 | K57: 5 | L57: 147 | M57: 59 | N57: 11 | O57: 189 | P57: 0 | Q57: 2 | R57: 0 | S57: 11 | T57: 174 | U57: 372500 | V57: 2140.804598 | W57: 0 | X57: 0 | Y57: 0 | Z57: 2 | AA57: 0 | AB57: 1 | AC57: 0 | AD57: 20 | AE57: 3 | AF57: 0 | AG57: 2 | AH57: 10 | AI57: 3
B58: 50 | C58: 2 | D58: a | G58: 36 | H58: 19 | I58: 20 | J58: 5 | K58: 0 | L58: 13 | M58: 5 | N58: 2 | O58: 13 | P58: 0 | Q58: 0 | R58: 0 | S58: 0 | T58: 16 | U58: 25300 | V58: 1581.25 | W58: 0 | X58: 0 | Y58: 0 | Z58: 0 | AA58: 0 | AB58: 0 | AC58: 0 | AD58: 3 | AE58: 1 | AF58: 0 | AG58: 1 | AH58: 0 | AI58: 0
B59: 50 | C59: 2 | D59: b | G59: 29 | H59: 36 | I59: 13 | J59: 20 | K59: 3 | L59: 18 | M59: 21 | N59: 3 | O59: 25 | P59: 0 | Q59: 0 | R59: 0 | S59: 6 | T59: 36 | U59: 66800 | V59: 1855.555556 | W59: 0 | X59: 0 | Y59: 0 | Z59: 0 | AA59: 0 | AB59: 0 | AC59: 0 | AD59: 2 | AE59: 0 | AF59: 0 | AG59: 0 | AH59: 2 | AI59: 0
B60: 50 | C60: 2 | D60: c | G60: 9 | H60: 8 | I60: 5 | J60: 4 | K60: 0 | L60: 3 | M60: 4 | N60: 1 | O60: 3 | P60: 0 | Q60: 0 | R60: 0 | S60: 0 | T60: 7 | U60: 16000 | V60: 2285.714286 | W60: 0 | X60: 0 | Y60: 0 | Z60: 0 | AA60: 0 | AB60: 0 | AC60: 0 | AD60: 0 | AE60: 0 | AF60: 0 | AG60: 0 | AH60: 0 | AI60: 0
B61: Celkem | G61: =SUM(G6:G60) -> 3414 | H61: =SUM(H6:H60) -> 4279 | I61: 1246 | J61: 981 | K61: 190 | L61: 1651 | M61: 1201 | N61: 302 | O61: 2609 | P61: 2 | Q61: 51 | R61: 1 | S61: 245 | T61: 2327 | U61: 4009883 | V61: 1723.198539 | W61: 0 | X61: 0 | Y61: 0 | Z61: 8 | AA61: 0 | AB61: 3 | AC61: 4 | AD61: 178 | AE61: 84 | AF61: 3 | AG61: 12 | AH61: 77 | AI61: 25

Sheet Zákon č. 424-1991 Sb.
B2: PŘEHLED PŘESTUPKŮ ZA ROK 2018
B3: Zákon č. 424/1991 Sb., o sdružování v politických stranách a v politických hnutích, ve znění pozdějších předpisů
B4: § | C4: odst. | D4: písm. | E4: bod | F4: ve znění zákona č. 303/2017 Sb. | G4: počet podnětů k zahájení řízení o přestupku | H4: počet odložených věcí | I4: počet zahájených řízení o přestupku | L4: počet pravomocných rozhodnutí o uznání obviněného vinným ze spáchání přestupku | O4: počet zastavených řízení | P4: počet rozhodnutí o schválení dohody o narovnání | Q4: počet pravomocných rozhodnutí, kterými bylo upuštěno od uložení správního trestu | R4: počet pravomocných rozhodnutí, kterými byla mimořádně snížena výměra pokuty | S4: počet napomenutí | T4: počet pokut | U4: celková výměra pokut (v Kč) | V4: průměrná výměra pokuty (v Kč) | W4: počet zákazů činnosti | X4: celková délka uložených zákazů činnosti (v letech) | Y4: průměrná délka zákazu činnosti (v letech) | Z4: počet propadnutí věci nebo náhradní hodnoty | AA4: počet zveřejnění rozhodnutí o přestupku | AB4: počet omezujících opatření | AC4: počet zabrání věci nebo náhradní hodnoty | AD4: počet podaných odvolání | AE4: odvolání zamítnuto a napadené rozhodnutí potvrzeno | AF4: odvolání vyřízeno v rámci autoremedury | AG4: rozhodnutí změněno | AH4: rozhodnutí zrušeno a věc vrácena k novému projednání | AI4: rozhodnutí zrušeno a řízení zastaveno
I5: oznámení o zahájení řízení | J5: příkaz | K5: příkaz na místě | L5: rozhodnutí | M5: příkaz | N5: příkaz na místě
B6: 19i | C6: 1 | G6: 0 | H6: 0 | I6: 0 | J6: 0 | K6: 0 | L6: 0 | M6: 0 | N6: 0 | O6: 0 | P6: 0 | Q6: 0 | R6: 0 | S6: 0 | T6: 0 | U6: 0 | V6: 0 | W6: 0 | X6: 0 | Y6: 0 | Z6: 0 | AA6: 0 | AB6: 0 | AC6: 0 | AD6: 0 | AE6: 0 | AF6: 0 | AG6: 0 | AH6: 0 | AI6: 0
B7: 19j | C7: 1 | G7: 0 | H7: 0 | I7: 0 | J7: 0 | K7: 0 | L7: 0 | M7: 0 | N7: 0 | O7: 0 | P7: 0 | Q7: 0 | R7: 0 | S7: 0 | T7: 0 | U7: 0 | V7: 0 | W7: 0 | X7: 0 | Y7: 0 | Z7: 0 | AA7: 0 | AB7: 0 | AC7: 0 | AD7: 0 | AE7: 0 | AF7: 0 | AG7: 0 | AH7: 0 | AI7: 0
B8: 19j | C8: 2 | D8: a | G8: 0 | H8: 0 | I8: 0 | J8: 0 | K8: 0 | L8: 0 | M8: 0 | N8: 0 | O8: 0 | P8: 0 | Q8: 0 | R8: 0 | S8: 0 | T8: 0 | U8: 0 | V8: 0 | W8: 0 | X8: 0 | Y8: 0 | Z8: 0 | AA8: 0 | AB8: 0 | AC8: 0 | AD8: 0 | AE8: 0 | AF8: 0 | AG8: 0 | AH8: 0 | AI8: 0
B9: 19j | C9: 2 | D9: b | G9: 2 | H9: 0 | I9: 0 | J9: 0 | K9: 0 | L9: 1 | M9: 0 | N9: 0 | O9: 99 | P9: 0 | Q9: 0 | R9: 0 | S9: 0 | T9: 0 | U9: 0 | V9: 0 | W9: 0 | X9: 0 | Y9: 0 | Z9: 0 | AA9: 0 | AB9: 0 | AC9: 0 | AD9: 0 | AE9: 0 | AF9: 0 | AG9: 0 | AH9: 0 | AI9: 0
B10: 19j | C10: 2 | D10: c | G10: 2 | H10: 0 | I10: 0 | J10: 30 | K10: 0 | L10: 99 | M10: 26 | N10: 0 | O10: 5 | P10: 0 | Q10: 0 | R10: 0 | S10: 0 | T10: 99 | U10: 505200 | V10: =U10/T10 -> 5103.030303 | W10: 0 | X10: 0 | Y10: 0 | Z10: 0 | AA10: 0 | AB10: 0 | AC10: 0 | AD10: 0 | AE10: 0 | AF10: 0 | AG10: 0 | AH10: 0 | AI10: 0
B11: 19j | C11: 2 | D11: d | G11: 0 | H11: 0 | I11: 0 | J11: 70 | K11: 0 | L11: 0 | M11: 60 | N11: 0 | O11: 0 | P11: 0 | Q11: 0 | R11: 0 | S11: 15 | T11: 39 | U11: 723000 | V11: 18538.46154 | W11: 0 | X11: 0 | Y11: 0 | Z11: 0 | AA11: 0 | AB11: 0 | AC11: 0 | AD11: 0 | AE11: 0 | AF11: 0 | AG11: 0 | AH11: 0 | AI11: 0
B12: 19j | C12: 2 | D12: e | G12: 0 | H12: 0 | I12: 0 | J12: 18 | K12: 0 | L12: 0 | M12: 14 | N12: 0 | O12: 0 | P12: 0 | Q12: 0 | R12: 0 | S12: 0 | T12: 14 | U12: 152000 | V12: 10857.14286 | W12: 0 | X12: 0 | Y12: 0 | Z12: 0 | AA12: 0 | AB12: 0 | AC12: 0 | AD12: 0 | AE12: 0 | AF12: 0 | AG12: 0 | AH12: 0 | AI12: 0
B13: 19j | C13: 2 | D13: f | G13: 0 | H13: 0 | I13: 0 | J13: 0 | K13: 0 | L13: 0 | M13: 0 | N13: 0 | O13: 0 | P13: 0 | Q13: 0 | R13: 0 | S13: 0 | T13: 0 | U13: 0 | V13: 0 | W13: 0 | X13: 0 | Y13: 0 | Z13: 0 | AA13: 0 | AB13: 0 | AC13: 0 | AD13: 0 | AE13: 0 | AF13: 0 | AG13: 0 | AH13: 0 | AI13: 0
B14: 19j | C14: 2 | D14: g | G14: 2 | H14: 2 | I14: 0 | J14: 0 | K14: 0 | L14: 0 | M14: 0 | N14: 0 | O14: 0 | P14: 0 | Q14: 0 | R14: 0 | S14: 0 | T14: 0 | U14: 0 | V14: 0 | W14: 0 | X14: 0 | Y14: 0 | Z14: 0 | AA14: 0 | AB14: 0 | AC14: 0 | AD14: 0 | AE14: 0 | AF14: 0 | AG14: 0 | AH14: 0 | AI14: 0
B15: 19k | C15: 1 | D15: a | G15: 0 | H15: 0 | I15: 0 | J15: 0 | K15: 0 | L15: 0 | M15: 0 | N15: 0 | O15: 0 | P15: 0 | Q15: 0 | R15: 0 | S15: 0 | T15: 0 | U15: 0 | V15: 0 | W15: 0 | X15: 0 | Y15: 0 | Z15: 0 | AA15: 0 | AB15: 0 | AC15: 0 | AD15: 0 | AE15: 0 | AF15: 0 | AG15: 0 | AH15: 0 | AI15: 0
B16: 19k | C16: 1 | D16: b | G16: 0 | H16: 0 | I16: 0 | J16: 0 | K16: 0 | L16: 0 | M16: 0 | N16: 0 | O16: 0 | P16: 0 | Q16: 0 | R16: 0 | S16: 0 | T16: 0 | U16: 0 | V16: 0 | W16: 0 | X16: 0 | Y16: 0 | Z16: 0 | AA16: 0 | AB16: 0 | AC16: 0 | AD16: 0 | AE16: 0 | AF16: 0 | AG16: 0 | AH16: 0 | AI16: 0
B17: 19k | C17: 1 | D17: c | G17: 0 | H17: 0 | I17: 0 | J17: 0 | K17: 0 | L17: 0 | M17: 0 | N17: 0 | O17: 0 | P17: 0 | Q17: 0 | R17: 0 | S17: 0 | T17: 0 | U17: 0 | V17: 0 | W17: 0 | X17: 0 | Y17: 0 | Z17: 0 | AA17: 0 | AB17: 0 | AC17: 0 | AD17: 0 | AE17: 0 | AF17: 0 | AG17: 0 | AH17: 0 | AI17: 0
B18: Celkem | G18: =SUM(G6:G17) -> 6 | H18: =SUM(H6:H17) -> 2 | I18: 0 | J18: 118 | K18: 0 | L18: 100 | M18: 100 | N18: 0 | O18: 104 | P18: 0 | Q18: 0 | R18: 0 | S18: 15 | T18: 152 | U18: 1380200 | V18: =SUM(U18/T18) -> 9080.263158 | W18: 0 | X18: 0 | Y18: 0 | Z18: 0 | AA18: 0 | AB18: 0 | AC18: 0 | AD18: 0 | AE18: 0 | AF18: 0 | AG18: 0 | AH18: 0 | AI18: 0

Sheet Zákon č. 451-1991 Sb.
B2: PŘEHLED PŘESTUPKŮ ZA ROK 2018
B3: Zákon č. 451/1991 Sb., kterým se stanoví některé další předpoklady pro výkon některých funkcí ve státních orgánech a organizacích České a Slovenské Federativní Republiky, České republiky a Slovenské republiky
B4: § | C4: odst. | D4: písm. | E4: bod | F4: ve znění zákona č. 205/2017 Sb. | G4: počet podnětů k zahájení řízení o přestupku | H4: počet odložených věcí | I4: počet zahájených řízení o přestupku | L4: počet pravomocných rozhodnutí o uznání obviněného vinným ze spáchání přestupku | O4: počet zastavených řízení | P4: počet rozhodnutí o schválení dohody o narovnání | Q4: počet pravomocných rozhodnutí, kterými bylo upuštěno od uložení správního trestu | R4: počet pravomocných rozhodnutí, kterými byla mimořádně snížena výměra pokuty | S4: počet napomenutí | T4: počet pokut | U4: celková výměra pokut (v Kč) | V4: průměrná výměra pokuty (v Kč) | W4: počet zákazů činnosti | X4: celková délka uložených zákazů činnosti (v letech) | Y4: průměrná délka zákazu činnosti (v letech) | Z4: počet propadnutí věci nebo náhradní hodnoty | AA4: počet zveřejnění rozhodnutí o přestupku | AB4: počet omezujících opatření | AC4: počet zabrání věci nebo náhradní hodnoty | AD4: počet podaných odvolání | AE4: odvolání zamítnuto a napadené rozhodnutí potvrzeno | AF4: odvolání vyřízeno v rámci autoremedury | AG4: rozhodnutí změněno | AH4: rozhodnutí zrušeno a věc vrácena k novému projednání | AI4: rozhodnutí zrušeno a řízení zastaveno
I5: oznámení o zahájení řízení | J5: příkaz | K5: příkaz na místě | L5: rozhodnutí | M5: příkaz | N5: příkaz na místě
B6: 13 | C6: 1 | G6: 40 | H6: 2 | I6: 18 | J6: 0 | K6: 0 | L6: 13 | M6: 4 | N6: 0 | O6: 6 | P6: 0 | Q6: 0 | R6: 0 | S6: 0 | T6: 22 | U6: 306000 | V6: =U6/T6 -> 13909.09091 | W6: 0 | X6: 0 | Y6: 0 | Z6: 0 | AA6: 0 | AB6: 0 | AC6: 0 | AD6: 2 | AE6: 0 | AF6: 0 | AG6: 0 | AH6: 2 | AI6: 0
B7: 13 | C7: 2 | D7: a | G7: 16 | H7: 1 | I7: 6 | J7: 0 | K7: 0 | L7: 6 | M7: 7 | N7: 0 | O7: 0 | P7: 0 | Q7: 0 | R7: 0 | S7: 0 | T7: 8 | U7: 12000 | V7: =U7/T7 -> 1500 | W7: 0 | X7: 0 | Y7: 0 | Z7: 0 | AA7: 0 | AB7: 0 | AC7: 0 | AD7: 0 | AE7: 0 | AF7: 0 | AG7: 0 | AH7: 0 | AI7: 0
B8: 13 | C8: 2 | D8: b | G8: 0 | H8: 0 | I8: 0 | J8: 0 | K8: 0 | L8: 0 | M8: 0 | N8: 0 | O8: 0 | P8: 0 | Q8: 0 | R8: 0 | S8: 0 | T8: 0 | U8: 0 | V8: 0 | W8: 0 | X8: 0 | Y8: 0 | Z8: 0 | AA8: 0 | AB8: 0 | AC8: 0 | AD8: 0 | AE8: 0 | AF8: 0 | AG8: 0 | AH8: 0 | AI8: 0
B9: Celkem | G9: =SUM(G6:G8) -> 56 | H9: =SUM(H6:H8) -> 3 | I9: 24 | J9: 0 | K9: 0 | L9: 19 | M9: 11 | N9: 0 | O9: 6 | P9: 0 | Q9: 0 | R9: 0 | S9: 0 | T9: 30 | U9: 318000 | V9: 10600 | W9: 0 | X9: 0 | Y9: 0 | Z9: 0 | AA9: 0 | AB9: 0 | AC9: 0 | AD9: 2 | AE9: 0 | AF9: 0 | AG9: 0 | AH9: 2 | AI9: 0

Sheet Zákon č. 553-1991 Sb.
B2: PŘEHLED PŘESTUPKŮ ZA ROK 2018
B3: Zákon č. 553/1991 Sb., o obecní policii
B4: § | C4: odst. | D4: písm. | E4: bod | F4: ve znění zákona č. 248/2017 Sb. | G4: počet podnětů k zahájení řízení o přestupku | H4: počet odložených věcí | I4: počet zahájených řízení o přestupku | L4: počet pravomocných rozhodnutí o uznání obviněného vinným ze spáchání přestupku | O4: počet zastavených řízení | P4: počet rozhodnutí o schválení dohody o narovnání | Q4: počet pravomocných rozhodnutí, kterými bylo upuštěno od uložení správního trestu | R4: počet pravomocných rozhodnutí, kterými byla mimořádně snížena výměra pokuty | S4: počet napomenutí | T4: počet pokut | U4: celková výměra pokut (v Kč) | V4: průměrná výměra pokuty (v Kč) | W4: počet zákazů činnosti | X4: celková délka uložených zákazů činnosti (v letech) | Y4: průměrná délka zákazu činnosti (v letech) | Z4: počet propadnutí věci nebo náhradní hodnoty | AA4: počet zveřejnění rozhodnutí o přestupku | AB4: počet omezujících opatření | AC4: počet zabrání věci nebo náhradní hodnoty | AD4: počet podaných odvolání | AE4: odvolání zamítnuto a napadené rozhodnutí potvrzeno | AF4: odvolání vyřízeno v rámci autoremedury | AG4: rozhodnutí změněno | AH4: rozhodnutí zrušeno a věc vrácena k novému projednání | AI4: rozhodnutí zrušeno a řízení zastaveno
I5: oznámení o zahájení řízení | J5: příkaz | K5: příkaz na místě | L5: rozhodnutí | M5: příkaz | N5: příkaz na místě
B6: 27a | C6: 1 | G6: 0 | H6: 0 | I6: 0 | J6: 0 | K6: 0 | L6: 0 | M6: 0 | N6: 0 | O6: 0 | P6: 0 | Q6: 0 | R6: 0 | S6: 0 | T6: 0 | U6: 0 | V6: 0 | W6: 0 | X6: 0 | Y6: 0 | Z6: 0 | AA6: 0 | AB6: 0 | AC6: 0 | AD6: 0 | AE6: 0 | AF6: 0 | AG6: 0 | AH6: 0 | AI6: 0
B7: 28 | C7: 1 | G7: 0 | H7: 0 | I7: 0 | J7: 0 | K7: 0 | L7: 0 | M7: 0 | N7: 0 | O7: 0 | P7: 0 | Q7: 0 | R7: 0 | S7: 0 | T7: 0 | U7: 0 | V7: 0 | W7: 0 | X7: 0 | Y7: 0 | Z7: 0 | AA7: 0 | AB7: 0 | AC7: 0 | AD7: 0 | AE7: 0 | AF7: 0 | AG7: 0 | AH7: 0 | AI7: 0
B8: 28 | C8: 2 | G8: 5 | H8: 0 | I8: 0 | J8: 4 | K8: 0 | L8: 0 | M8: 4 | N8: 0 | O8: 0 | P8: 0 | Q8: 0 | R8: 0 | S8: 0 | T8: 4 | U8: 8500 | V8: =U8/T8 -> 2125 | W8: 0 | X8: 0 | Y8: 0 | Z8: 0 | AA8: 0 | AB8: 0 | AC8: 0 | AD8: 0 | AE8: 0 | AF8: 0 | AG8: 0 | AH8: 0 | AI8: 0
B9: 28 | C9: 3 | D9: a | G9: 0 | H9: 0 | I9: 0 | J9: 0 | K9: 0 | L9: 0 | M9: 0 | N9: 0 | O9: 0 | P9: 0 | Q9: 0 | R9: 0 | S9: 0 | T9: 0 | U9: 0 | V9: 0 | W9: 0 | X9: 0 | Y9: 0 | Z9: 0 | AA9: 0 | AB9: 0 | AC9: 0 | AD9: 0 | AE9: 0 | AF9: 0 | AG9: 0 | AH9: 0 | AI9: 0
B10: 28 | C10: 3 | D10: b | G10: 0 | H10: 0 | I10: 0 | J10: 0 | K10: 0 | L10: 0 | M10: 0 | N10: 0 | O10: 0 | P10: 0 | Q10: 0 | R10: 0 | S10: 0 | T10: 0 | U10: 0 | V10: 0 | W10: 0 | X10: 0 | Y10: 0 | Z10: 0 | AA10: 0 | AB10: 0 | AC10: 0 | AD10: 0 | AE10: 0 | AF10: 0 | AG10: 0 | AH10: 0 | AI10: 0
B11: Celkem | G11: =SUM(G6:G10) -> 5 | H11: =SUM(H6:H10) -> 0 | I11: 0 | J11: 4 | K11: 0 | L11: 0 | M11: 4 | N11: 0 | O11: 0 | P11: 0 | Q11: 0 | R11: 0 | S11: 0 | T11: 4 | U11: 8500 | V11: 2125 | W11: 0 | X11: 0 | Y11: 0 | Z11: 0 | AA11: 0 | AB11: 0 | AC11: 0 | AD11: 0 | AE11: 0 | AF11: 0 | AG11: 0 | AH11: 0 | AI11: 0

Sheet Zákon č. 279-1992 Sb.
B2: PŘEHLED PŘESTUPKŮ ZA ROK 2018
B3: Zákon č. 279/1992 Sb., o některých dalších předpokladech pro výkon některých funkcí obsazovaných ustanovením nebo jmenování příslušníků Policie České republiky a příslušníků Sboru nápravné výchovy České republiky
B4: § | C4: odst. | D4: písm. | E4: bod | F4: ve znění zákona č. 183/2017 Sb. | G4: počet podnětů k zahájení řízení o přestupku | H4: počet odložených věcí | I4: počet zahájených řízení o přestupku | L4: počet pravomocných rozhodnutí o uznání obviněného vinným ze spáchání přestupku | O4: počet zastavených řízení | P4: počet rozhodnutí o schválení dohody o narovnání | Q4: počet pravomocných rozhodnutí, kterými bylo upuštěno od uložení správního trestu | R4: počet pravomocných rozhodnutí, kterými byla mimořádně snížena výměra pokuty | S4: počet napomenutí | T4: počet pokut | U4: celková výměra pokut (v Kč) | V4: průměrná výměra pokuty (v Kč) | W4: počet zákazů činnosti | X4: celková délka uložených zákazů činnosti (v letech) | Y4: průměrná délka zákazu činnosti (v letech) | Z4: počet propadnutí věci nebo náhradní hodnoty | AA4: počet zveřejnění rozhodnutí o přestupku | AB4: počet omezujících opatření | AC4: počet zabrání věci nebo náhradní hodnoty | AD4: počet podaných odvolání | AE4: odvolání zamítnuto a napadené rozhodnutí potvrzeno | AF4: odvolání vyřízeno v rámci autoremedury | AG4: rozhodnutí změněno | AH4: rozhodnutí zrušeno a věc vrácena k novému projednání | AI4: rozhodnutí zrušeno a řízení zastaveno
I5: oznámení o zahájení řízení | J5: příkaz | K5: příkaz na místě | L5: rozhodnutí | M5: příkaz | N5: příkaz na místě
B6: 10d | C6: 1 | G6: 1 | H6: 0 | I6: 0 | J6: 0 | K6: 1 | L6: 0 | M6: 0 | N6: 1 | O6: 0 | P6: 0 | Q6: 0 | R6: 0 | S6: 0 | T6: 1 | U6: 500 | V6: =U6/T6 -> 500 | W6: 0 | X6: 0 | Y6: 0 | Z6: 0 | AA6: 0 | AB6: 0 | AC6: 0 | AD6: 0 | AE6: 0 | AF6: 0 | AG6: 0 | AH6: 0 | AI6: 0
B7: 10d | C7: 2 | D7: a | G7: 9 | H7: 6 | I7: 1 | J7: 2 | K7: 0 | L7: 0 | M7: 0 | N7: 0 | O7: 0 | P7: 0 | Q7: 0 | R7: 0 | S7: 0 | T7: 0 | U7: 0 | V7: 0 | W7: 0 | X7: 0 | Y7: 0 | Z7: 0 | AA7: 0 | AB7: 0 | AC7: 0 | AD7: 2 | AE7: 0 | AF7: 2 | AG7: 0 | AH7: 0 | AI7: 0
B8: 10d | C8: 2 | D8: b | G8: 19 | H8: 6 | I8: 0 | J8: 4 | K8: 0 | L8: 0 | M8: 3 | N8: 0 | O8: 0 | P8: 0 | Q8: 0 | R8: 0 | S8: 1 | T8: 5 | U8: 8500 | V8: =U8/T8 -> 1700 | W8: 0 | X8: 0 | Y8: 0 | Z8: 0 | AA8: 0 | AB8: 0 | AC8: 0 | AD8: 0 | AE8: 0 | AF8: 0 | AG8: 0 | AH8: 0 | AI8: 0
B9: Celkem | G9: =SUM(G5:G8) -> 29 | H9: 12 | I9: 1 | J9: 6 | K9: 1 | L9: =SUM(L5:L8) -> 0 | M9: =SUM(M5:M8) -> 3 | N9: =SUM(N5:N8) -> 1 | O9: =SUM(O5:O8) -> 0 | P9: =SUM(P5:P8) -> 0 | Q9: =SUM(Q5:Q8) -> 0 | R9: =SUM(R5:R8) -> 0 | S9: =SUM(S5:S8) -> 1 | T9: =SUM(T5:T8) -> 6 | U9: =SUM(U5:U8) -> 9000 | V9: 1500 | W9: =SUM(W6:W8) -> 0 | X9: =SUM(X5:X8) -> 0 | Y9: 0 | Z9: =SUM(Z6:Z8) -> 0 | AA9: =SUM(AA5:AA8) -> 0 | AB9: =SUM(AB5:AB8) -> 0 | AC9: =SUM(AC5:AC8) -> 0 | AD9: =SUM(AD5:AD8) -> 2 | AE9: =SUM(AE5:AE8) -> 0 | AF9: =SUM(AF5:AF8) -> 2 | AG9: =SUM(AG5:AG8) -> 0 | AH9: =SUM(AH5:AH8) -> 0 | AI9: =SUM(AI5:AI8) -> 0

Sheet Zákon č. 247-1995 Sb.
B2: PŘEHLED PŘESTUPKŮ ZA ROK 2018
B3: Zákon č. 247/1995 Sb., o volbách do Parlamentu České republiky a o změně a doplnění některých dalších zákonů
B4: § | C4: odst. | D4: písm. | E4: bod | F4: ve znění zákona č. 72/2018 Sb. | G4: počet podnětů k zahájení řízení o přestupku | H4: počet odložených věcí | I4: počet zahájených řízení o přestupku | L4: počet pravomocných rozhodnutí o uznání obviněného vinným ze spáchání přestupku | O4: počet zastavených řízení | P4: počet rozhodnutí o schválení dohody o narovnání | Q4: počet pravomocných rozhodnutí, kterými bylo upuštěno od uložení správního trestu | R4: počet pravomocných rozhodnutí, kterými byla mimořádně snížena výměra pokuty | S4: počet napomenutí | T4: počet pokut | U4: celková výměra pokut (v Kč) | V4: průměrná výměra pokuty (v Kč) | W4: počet zákazů činnosti | X4: celková délka uložených zákazů činnosti (v letech) | Y4: průměrná délka zákazu činnosti (v letech) | Z4: počet propadnutí věci nebo náhradní hodnoty | AA4: počet zveřejnění rozhodnutí o přestupku | AB4: počet omezujících opatření | AC4: počet zabrání věci nebo náhradní hodnoty | AD4: počet podaných odvolání | AE4: odvolání zamítnuto a napadené rozhodnutí potvrzeno | AF4: odvolání vyřízeno v rámci autoremedury | AG4: rozhodnutí změněno | AH4: rozhodnutí zrušeno a věc vrácena k novému projednání | AI4: rozhodnutí zrušeno a řízení zastaveno
I5: oznámení o zahájení řízení | J5: příkaz | K5: příkaz na místě | L5: rozhodnutí | M5: příkaz | N5: příkaz na místě
B6: 16g | C6: 1 | D6: a | G6: 0 | H6: 1 | I6: 0 | J6: 1 | K6: 0 | L6: 0 | M6: 1 | N6: 0 | O6: 0 | P6: 0 | Q6: 0 | R6: 0 | S6: 1 | T6: 0 | U6: 0 | V6: 0 | W6: 0 | X6: 0 | Y6: 0 | Z6: 0 | AA6: 0 | AB6: 0 | AC6: 0 | AD6: 0 | AE6: 0 | AF6: 0 | AG6: 0 | AH6: 0 | AI6: 0
B7: 16g | C7: 1 | D7: b | G7: 0 | H7: 0 | I7: 0 | J7: 0 | K7: 0 | L7: 0 | M7: 0 | N7: 0 | O7: 0 | P7: 0 | Q7: 0 | R7: 0 | S7: 0 | T7: 0 | U7: 0 | V7: 0 | W7: 0 | X7: 0 | Y7: 0 | Z7: 0 | AA7: 0 | AB7: 0 | AC7: 0 | AD7: 0 | AE7: 0 | AF7: 0 | AG7: 0 | AH7: 0 | AI7: 0
B8: 16g | C8: 1 | D8: c | G8: 0 | H8: 0 | I8: 0 | J8: 1 | K8: 0 | L8: 0 | M8: 0 | N8: 0 | O8: 0 | P8: 0 | Q8: 0 | R8: 0 | S8: 0 | T8: 0 | U8: 0 | V8: 0 | W8: 0 | X8: 0 | Y8: 0 | Z8: 0 | AA8: 0 | AB8: 0 | AC8: 0 | AD8: 0 | AE8: 0 | AF8: 0 | AG8: 0 | AH8: 0 | AI8: 0
B9: 16g | C9: 1 | D9: d | G9: 0 | H9: 0 | I9: 0 | J9: 0 | K9: 0 | L9: 0 | M9: 0 | N9: 0 | O9: 0 | P9: 0 | Q9: 0 | R9: 0 | S9: 0 | T9: 0 | U9: 0 | V9: 0 | W9: 0 | X9: 0 | Y9: 0 | Z9: 0 | AA9: 0 | AB9: 0 | AC9: 0 | AD9: 0 | AE9: 0 | AF9: 0 | AG9: 0 | AH9: 0 | AI9: 0
B10: 16g | C10: 1 | D10: e | G10: 0 | H10: 0 | I10: 0 | J10: 0 | K10: 0 | L10: 0 | M10: 0 | N10: 0 | O10: 0 | P10: 0 | Q10: 0 | R10: 0 | S10: 0 | T10: 0 | U10: 0 | V10: 0 | W10: 0 | X10: 0 | Y10: 0 | Z10: 0 | AA10: 0 | AB10: 0 | AC10: 0 | AD10: 0 | AE10: 0 | AF10: 0 | AG10: 0 | AH10: 0 | AI10: 0
B11: 16g | C11: 1 | D11: f | G11: 0 | H11: 0 | I11: 0 | J11: 5 | K11: 0 | L11: 0 | M11: 5 | N11: 0 | O11: 0 | P11: 0 | Q11: 0 | R11: 0 | S11: 0 | T11: 0 | U11: 0 | V11: 0 | W11: 0 | X11: 0 | Y11: 0 | Z11: 0 | AA11: 0 | AB11: 0 | AC11: 0 | AD11: 0 | AE11: 0 | AF11: 0 | AG11: 0 | AH11: 0 | AI11: 0
B12: 16g | C12: 1 | D12: g | G12: 0 | H12: 0 | I12: 0 | J12: 4 | K12: 0 | L12: 1 | M12: 3 | N12: 0 | O12: 0 | P12: 0 | Q12: 0 | R12: 0 | S12: 0 | T12: 1 | U12: 13000 | V12: =U12/T12 -> 13000 | W12: 0 | X12: 0 | Y12: 0 | Z12: 0 | AA12: 0 | AB12: 0 | AC12: 0 | AD12: 0 | AE12: 0 | AF12: 0 | AG12: 0 | AH12: 0 | AI12: 0
B13: 16g | C13: 1 | D13: h | G13: 0 | H13: 0 | I13: 0 | J13: 0 | K13: 0 | L13: 0 | M13: 0 | N13: 0 | O13: 0 | P13: 0 | Q13: 0 | R13: 0 | S13: 0 | T13: 0 | U13: 0 | V13: 0 | W13: 0 | X13: 0 | Y13: 0 | Z13: 0 | AA13: 0 | AB13: 0 | AC13: 0 | AD13: 0 | AE13: 0 | AF13: 0 | AG13: 0 | AH13: 0 | AI13: 0
B14: 16g | C14: 1 | D14: i | G14: 0 | H14: 0 | I14: 0 | J14: 2 | K14: 0 | L14: 1 | M14: 1 | N14: 0 | O14: 0 | P14: 0 | Q14: 0 | R14: 0 | S14: 0 | T14: 0 | U14: 0 | V14: 0 | W14: 0 | X14: 0 | Y14: 0 | Z14: 0 | AA14: 0 | AB14: 0 | AC14: 0 | AD14: 0 | AE14: 0 | AF14: 0 | AG14: 0 | AH14: 0 | AI14: 0
B15: 16g | C15: 1 | D15: j | G15: 0 | H15: 0 | I15: 0 | J15: 9 | K15: 0 | L15: 1 | M15: 8 | N15: 0 | O15: 0 | P15: 0 | Q15: 0 | R15: 0 | S15: 0 | T15: 2 | U15: 20000 | V15: 10000 | W15: 0 | X15: 0 | Y15: 0 | Z15: 0 | AA15: 0 | AB15: 0 | AC15: 0 | AD15: 0 | AE15: 0 | AF15: 0 | AG15: 0 | AH15: 0 | AI15: 0
B16: 16g | C16: 1 | D16: k | G16: 0 | H16: 0 | I16: 0 | J16: 12 | K16: 0 | L16: 1 | M16: 11 | N16: 0 | O16: 0 | P16: 0 | Q16: 0 | R16: 0 | S16: 2 | T16: 10 | U16: 179000 | V16: 17900 | W16: 0 | X16: 0 | Y16: 0 | Z16: 0 | AA16: 0 | AB16: 0 | AC16: 0 | AD16: 0 | AE16: 0 | AF16: 0 | AG16: 0 | AH16: 0 | AI16: 0
B17: 16g | C17: 2 | D17: a | G17: 0 | H17: 0 | I17: 0 | J17: 0 | K17: 0 | L17: 0 | M17: 0 | N17: 0 | O17: 0 | P17: 0 | Q17: 0 | R17: 0 | S17: 0 | T17: 0 | U17: 0 | V17: 0 | W17: 0 | X17: 0 | Y17: 0 | Z17: 0 | AA17: 0 | AB17: 0 | AC17: 0 | AD17: 0 | AE17: 0 | AF17: 0 | AG17: 0 | AH17: 0 | AI17: 0
B18: 16g | C18: 2 | D18: b | G18: 0 | H18: 0 | I18: 0 | J18: 0 | K18: 0 | L18: 0 | M18: 0 | N18: 0 | O18: 0 | P18: 0 | Q18: 0 | R18: 0 | S18: 0 | T18: 0 | U18: 0 | V18: 0 | W18: 0 | X18: 0 | Y18: 0 | Z18: 0 | AA18: 0 | AB18: 0 | AC18: 0 | AD18: 0 | AE18: 0 | AF18: 0 | AG18: 0 | AH18: 0 | AI18: 0
B19: 16g | C19: 2 | D19: c | G19: 0 | H19: 0 | I19: 0 | J19: 0 | K19: 0 | L19: 0 | M19: 0 | N19: 0 | O19: 0 | P19: 0 | Q19: 0 | R19: 0 | S19: 0 | T19: 0 | U19: 0 | V19: 0 | W19: 0 | X19: 0 | Y19: 0 | Z19: 0 | AA19: 0 | AB19: 0 | AC19: 0 | AD19: 0 | AE19: 0 | AF19: 0 | AG19: 0 | AH19: 0 | AI19: 0
B20: 16g | C20: 2 | D20: d | G20: 0 | H20: 0 | I20: 0 | J20: 0 | K20: 0 | L20: 0 | M20: 0 | N20: 0 | O20: 0 | P20: 0 | Q20: 0 | R20: 0 | S20: 0 | T20: 0 | U20: 0 | V20: 0 | W20: 0 | X20: 0 | Y20: 0 | Z20: 0 | AA20: 0 | AB20: 0 | AC20: 0 | AD20: 0 | AE20: 0 | AF20: 0 | AG20: 0 | AH20: 0 | AI20: 0
B21: 16g | C21: 2 | D21: e | G21: 0 | H21: 0 | I21: 0 | J21: 0 | K21: 0 | L21: 0 | M21: 0 | N21: 0 | O21: 0 | P21: 0 | Q21: 0 | R21: 0 | S21: 0 | T21: 0 | U21: 0 | V21: 0 | W21: 0 | X21: 0 | Y21: 0 | Z21: 0 | AA21: 0 | AB21: 0 | AC21: 0 | AD21: 0 | AE21: 0 | AF21: 0 | AG21: 0 | AH21: 0 | AI21: 0
B22: 16g | C22: 2 | D22: f | G22: 0 | H22: 0 | I22: 0 | J22: 0 | K22: 0 | L22: 0 | M22: 0 | N22: 0 | O22: 0 | P22: 0 | Q22: 0 | R22: 0 | S22: 0 | T22: 0 | U22: 0 | V22: 0 | W22: 0 | X22: 0 | Y22: 0 | Z22: 0 | AA22: 0 | AB22: 0 | AC22: 0 | AD22: 0 | AE22: 0 | AF22: 0 | AG22: 0 | AH22: 0 | AI22: 0
B23: 16g | C23: 2 | D23: g | G23: 0 | H23: 0 | I23: 0 | J23: 0 | K23: 0 | L23: 0 | M23: 0 | N23: 0 | O23: 0 | P23: 0 | Q23: 0 | R23: 0 | S23: 0 | T23: 0 | U23: 0 | V23: 0 | W23: 0 | X23: 0 | Y23: 0 | Z23: 0 | AA23: 0 | AB23: 0 | AC23: 0 | AD23: 0 | AE23: 0 | AF23: 0 | AG23: 0 | AH23: 0 | AI23: 0
B24: 16g | C24: 2 | D24: h | G24: 0 | H24: 0 | I24: 0 | J24: 0 | K24: 0 | L24: 0 | M24: 0 | N24: 0 | O24: 0 | P24: 0 | Q24: 0 | R24: 0 | S24: 0 | T24: 0 | U24: 0 | V24: 0 | W24: 0 | X24: 0 | Y24: 0 | Z24: 0 | AA24: 0 | AB24: 0 | AC24: 0 | AD24: 0 | AE24: 0 | AF24: 0 | AG24: 0 | AH24: 0 | AI24: 0
B25: 16g | C25: 2 | D25: i | G25: 0 | H25: 0 | I25: 0 | J25: 0 | K25: 0 | L25: 0 | M25: 0 | N25: 0 | O25: 0 | P25: 0 | Q25: 0 | R25: 0 | S25: 0 | T25: 0 | U25: 0 | V25: 0 | W25: 0 | X25: 0 | Y25: 0 | Z25: 0 | AA25: 0 | AB25: 0 | AC25: 0 | AD25: 0 | AE25: 0 | AF25: 0 | AG25: 0 | AH25: 0 | AI25: 0
B26: 16g | C26: 2 | D26: j | G26: 0 | H26: 0 | I26: 0 | J26: 0 | K26: 0 | L26: 0 | M26: 0 | N26: 0 | O26: 0 | P26: 0 | Q26: 0 | R26: 0 | S26: 0 | T26: 0 | U26: 0 | V26: 0 | W26: 0 | X26: 0 | Y26: 0 | Z26: 0 | AA26: 0 | AB26: 0 | AC26: 0 | AD26: 0 | AE26: 0 | AF26: 0 | AG26: 0 | AH26: 0 | AI26: 0
B27: 16g | C27: 2 | D27: k | G27: 0 | H27: 0 | I27: 0 | J27: 0 | K27: 0 | L27: 0 | M27: 0 | N27: 0 | O27: 0 | P27: 0 | Q27: 0 | R27: 0 | S27: 0 | T27: 0 | U27: 0 | V27: 0 | W27: 0 | X27: 0 | Y27: 0 | Z27: 0 | AA27: 0 | AB27: 0 | AC27: 0 | AD27: 0 | AE27: 0 | AF27: 0 | AG27: 0 | AH27: 0 | AI27: 0
B28: 16g | C28: 2 | D28: l | G28: 0 | H28: 0 | I28: 0 | J28: 8 | K28: 0 | L28: 0 | M28: 4 | N28: 0 | O28: 0 | P28: 0 | Q28: 0 | R28: 0 | S28: 0 | T28: 4 | U28: 40000 | V28: 10000 | W28: 0 | X28: 0 | Y28: 0 | Z28: 0 | AA28: 0 | AB28: 0 | AC28: 0 | AD28: 0 | AE28: 0 | AF28: 0 | AG28: 0 | AH28: 0 | AI28: 0
B29: 16h | C29: 1 | D29: a | G29: 4 | H29: 2 | I29: 0 | J29: 0 | K29: 0 | L29: 1 | M29: 0 | N29: 0 | O29: 0 | P29: 0 | Q29: 0 | R29: 0 | S29: 0 | T29: 0 | U29: 0 | V29: 0 | W29: 0 | X29: 0 | Y29: 0 | Z29: 0 | AA29: 0 | AB29: 0 | AC29: 0 | AD29: 0 | AE29: 0 | AF29: 0 | AG29: 0 | AH29: 0 | AI29: 0
B30: 16h | C30: 1 | D30: b | G30: 4 | H30: 2 | I30: 0 | J30: 3 | K30: 0 | L30: 0 | M30: 2 | N30: 0 | O30: 1 | P30: 0 | Q30: 0 | R30: 0 | S30: 0 | T30: 2 | U30: 25000 | V30: 12500 | W30: 0 | X30: 0 | Y30: 0 | Z30: 0 | AA30: 0 | AB30: 0 | AC30: 0 | AD30: 0 | AE30: 0 | AF30: 0 | AG30: 0 | AH30: 0 | AI30: 0
B31: 16h | C31: 1 | D31: c | G31: 12 | H31: 5 | I31: 0 | J31: 20 | K31: 0 | L31: 1 | M31: 14 | N31: 0 | O31: 2 | P31: 0 | Q31: 0 | R31: 0 | S31: 16 | T31: 3 | U31: 68000 | V31: 22666.66667 | W31: 0 | X31: 0 | Y31: 0 | Z31: 0 | AA31: 0 | AB31: 0 | AC31: 0 | AD31: 0 | AE31: 0 | AF31: 0 | AG31: 0 | AH31: 0 | AI31: 0
B32: 16h | C32: 1 | D32: d | G32: 0 | H32: 0 | I32: 0 | J32: 1 | K32: 0 | L32: 0 | M32: 1 | N32: 0 | O32: 0 | P32: 0 | Q32: 0 | R32: 0 | S32: 0 | T32: 0 | U32: 0 | V32: 0 | W32: 0 | X32: 0 | Y32: 0 | Z32: 0 | AA32: 0 | AB32: 0 | AC32: 0 | AD32: 0 | AE32: 0 | AF32: 0 | AG32: 0 | AH32: 0 | AI32: 0
B33: 16h | C33: 1 | D33: e | G33: 0 | H33: 0 | I33: 0 | J33: 0 | K33: 0 | L33: 0 | M33: 0 | N33: 0 | O33: 0 | P33: 0 | Q33: 0 | R33: 0 | S33: 0 | T33: 0 | U33: 0 | V33: 0 | W33: 0 | X33: 0 | Y33: 0 | Z33: 0 | AA33: 0 | AB33: 0 | AC33: 0 | AD33: 0 | AE33: 0 | AF33: 0 | AG33: 0 | AH33: 0 | AI33: 0
B34: 16h | C34: 1 | D34: f | G34: 0 | H34: 0 | I34: 0 | J34: 11 | K34: 0 | L34: 0 | M34: 11 | N34: 0 | O34: 0 | P34: 0 | Q34: 0 | R34: 0 | S34: 6 | T34: 0 | U34: 0 | V34: 0 | W34: 0 | X34: 0 | Y34: 0 | Z34: 0 | AA34: 0 | AB34: 0 | AC34: 0 | AD34: 0 | AE34: 0 | AF34: 0 | AG34: 0 | AH34: 0 | AI34: 0
B35: 16h | C35: 1 | D35: g | G35: 0 | H35: 0 | I35: 0 | J35: 1 | K35: 0 | L35: 0 | M35: 1 | N35: 0 | O35: 0 | P35: 0 | Q35: 0 | R35: 0 | S35: 0 | T35: 1 | U35: 15000 | V35: 15000 | W35: 0 | X35: 0 | Y35: 0 | Z35: 0 | AA35: 0 | AB35: 0 | AC35: 0 | AD35: 0 | AE35: 0 | AF35: 0 | AG35: 0 | AH35: 0 | AI35: 0
B36: 16h | C36: 1 | D36: h | G36: 0 | H36: 0 | I36: 0 | J36: 0 | K36: 0 | L36: 0 | M36: 0 | N36: 0 | O36: 0 | P36: 0 | Q36: 0 | R36: 0 | S36: 0 | T36: 0 | U36: 0 | V36: 0 | W36: 0 | X36: 0 | Y36: 0 | Z36: 0 | AA36: 0 | AB36: 0 | AC36: 0 | AD36: 0 | AE36: 0 | AF36: 0 | AG36: 0 | AH36: 0 | AI36: 0
B37: 16h | C37: 1 | D37: i | G37: 0 | H37: 0 | I37: 0 | J37: 2 | K37: 0 | L37: 0 | M37: 2 | N37: 0 | O37: 0 | P37: 0 | Q37: 0 | R37: 0 | S37: 0 | T37: 1 | U37: 12000 | V37: 12000 | W37: 0 | X37: 0 | Y37: 0 | Z37: 0 | AA37: 0 | AB37: 0 | AC37: 0 | AD37: 0 | AE37: 0 | AF37: 0 | AG37: 0 | AH37: 0 | AI37: 0
B38: 16h | C38: 1 | D38: j | G38: 0 | H38: 0 | I38: 0 | J38: 5 | K38: 0 | L38: 0 | M38: 5 | N38: 0 | O38: 0 | P38: 0 | Q38: 0 | R38: 0 | S38: 0 | T38: 1 | U38: 10000 | V38: 10000 | W38: 0 | X38: 0 | Y38: 0 | Z38: 0 | AA38: 0 | AB38: 0 | AC38: 0 | AD38: 0 | AE38: 0 | AF38: 0 | AG38: 0 | AH38: 0 | AI38: 0
B39: 16h | C39: 1 | D39: k | G39: 0 | H39: 0 | I39: 0 | J39: 8 | K39: 0 | L39: 0 | M39: 8 | N39: 0 | O39: 0 | P39: 0 | Q39: 0 | R39: 0 | S39: 2 | T39: 5 | U39: 66000 | V39: 13200 | W39: 0 | X39: 0 | Y39: 0 | Z39: 0 | AA39: 0 | AB39: 0 | AC39: 0 | AD39: 0 | AE39: 0 | AF39: 0 | AG39: 0 | AH39: 0 | AI39: 0
B40: 16h | C40: 2 | D40: a | G40: 0 | H40: 0 | I40: 0 | J40: 0 | K40: 0 | L40: 0 | M40: 0 | N40: 0 | O40: 0 | P40: 0 | Q40: 0 | R40: 0 | S40: 0 | T40: 0 | U40: 0 | V40: 0 | W40: 0 | X40: 0 | Y40: 0 | Z40: 0 | AA40: 0 | AB40: 0 | AC40: 0 | AD40: 0 | AE40: 0 | AF40: 0 | AG40: 0 | AH40: 0 | AI40: 0
B41: 16h | C41: 2 | D41: b | G41: 0 | H41: 0 | I41: 0 | J41: 0 | K41: 0 | L41: 3 | M41: 0 | N41: 0 | O41: 1 | P41: 0 | Q41: 0 | R41: 0 | S41: 0 | T41: 3 | U41: 22000 | V41: 7333.333333 | W41: 0 | X41: 0 | Y41: 0 | Z41: 0 | AA41: 0 | AB41: 0 | AC41: 0 | AD41: 0 | AE41: 0 | AF41: 0 | AG41: 0 | AH41: 0 | AI41: 0
B42: 16h | C42: 2 | D42: c | G42: 0 | H42: 0 | I42: 0 | J42: 0 | K42: 0 | L42: 0 | M42: 0 | N42: 0 | O42: 0 | P42: 0 | Q42: 0 | R42: 0 | S42: 0 | T42: 0 | U42: 0 | V42: 0 | W42: 0 | X42: 0 | Y42: 0 | Z42: 0 | AA42: 0 | AB42: 0 | AC42: 0 | AD42: 0 | AE42: 0 | AF42: 0 | AG42: 0 | AH42: 0 | AI42: 0
B43: 16h | C43: 2 | D43: d | G43: 0 | H43: 0 | I43: 0 | J43: 1 | K43: 0 | L43: 0 | M43: 1 | N43: 0 | O43: 0 | P43: 0 | Q43: 0 | R43: 0 | S43: 0 | T43: 1 | U43: 45000 | V43: 45000 | W43: 0 | X43: 0 | Y43: 0 | Z43: 0 | AA43: 0 | AB43: 0 | AC43: 0 | AD43: 0 | AE43: 0 | AF43: 0 | AG43: 0 | AH43: 0 | AI43: 0
B44: 16h | C44: 2 | D44: e | G44: 0 | H44: 0 | I44: 0 | J44: 0 | K44: 0 | L44: 0 | M44: 0 | N44: 0 | O44: 0 | P44: 0 | Q44: 0 | R44: 0 | S44: 0 | T44: 0 | U44: 0 | V44: 0 | W44: 0 | X44: 0 | Y44: 0 | Z44: 0 | AA44: 0 | AB44: 0 | AC44: 0 | AD44: 0 | AE44: 0 | AF44: 0 | AG44: 0 | AH44: 0 | AI44: 0
B45: 16h | C45: 2 | D45: f | G45: 0 | H45: 0 | I45: 0 | J45: 0 | K45: 0 | L45: 0 | M45: 0 | N45: 0 | O45: 0 | P45: 0 | Q45: 0 | R45: 0 | S45: 0 | T45: 0 | U45: 0 | V45: 0 | W45: 0 | X45: 0 | Y45: 0 | Z45: 0 | AA45: 0 | AB45: 0 | AC45: 0 | AD45: 0 | AE45: 0 | AF45: 0 | AG45: 0 | AH45: 0 | AI45: 0
B46: 16h | C46: 2 | D46: g | G46: 0 | H46: 0 | I46: 0 | J46: 0 | K46: 0 | L46: 0 | M46: 0 | N46: 0 | O46: 0 | P46: 0 | Q46: 0 | R46: 0 | S46: 0 | T46: 0 | U46: 0 | V46: 0 | W46: 0 | X46: 0 | Y46: 0 | Z46: 0 | AA46: 0 | AB46: 0 | AC46: 0 | AD46: 0 | AE46: 0 | AF46: 0 | AG46: 0 | AH46: 0 | AI46: 0
B47: 16h | C47: 2 | D47: h | G47: 0 | H47: 0 | I47: 0 | J47: 0 | K47: 0 | L47: 0 | M47: 0 | N47: 0 | O47: 0 | P47: 0 | Q47: 0 | R47: 0 | S47: 0 | T47: 0 | U47: 0 | V47: 0 | W47: 0 | X47: 0 | Y47: 0 | Z47: 0 | AA47: 0 | AB47: 0 | AC47: 0 | AD47: 0 | AE47: 0 | AF47: 0 | AG47: 0 | AH47: 0 | AI47: 0
B48: 16h | C48: 2 | D48: i | G48: 0 | H48: 0 | I48: 0 | J48: 0 | K48: 0 | L48: 0 | M48: 0 | N48: 0 | O48: 0 | P48: 0 | Q48: 0 | R48: 0 | S48: 0 | T48: 0 | U48: 0 | V48: 0 | W48: 0 | X48: 0 | Y48: 0 | Z48: 0 | AA48: 0 | AB48: 0 | AC48: 0 | AD48: 0 | AE48: 0 | AF48: 0 | AG48: 0 | AH48: 0 | AI48: 0
B49: 16h | C49: 2 | D49: j | G49: 0 | H49: 0 | I49: 0 | J49: 0 | K49: 0 | L49: 0 | M49: 0 | N49: 0 | O49: 0 | P49: 0 | Q49: 0 | R49: 0 | S49: 0 | T49: 0 | U49: 0 | V49: 0 | W49: 0 | X49: 0 | Y49: 0 | Z49: 0 | AA49: 0 | AB49: 0 | AC49: 0 | AD49: 0 | AE49: 0 | AF49: 0 | AG49: 0 | AH49: 0 | AI49: 0
B50: 16h | C50: 2 | D50: k | G50: 0 | H50: 0 | I50: 0 | J50: 2 | K50: 0 | L50: 6 | M50: 0 | N50: 0 | O50: 1 | P50: 0 | Q50: 0 | R50: 0 | S50: 0 | T50: 6 | U50: 298000 | V50: 49666.66667 | W50: 0 | X50: 0 | Y50: 0 | Z50: 0 | AA50: 0 | AB50: 0 | AC50: 0 | AD50: 0 | AE50: 0 | AF50: 0 | AG50: 0 | AH50: 0 | AI50: 0
B51: 16h | C51: 2 | D51: l | G51: 5 | H51: 1 | I51: 0 | J51: 31 | K51: 0 | L51: 6 | M51: 24 | N51: 0 | O51: 3 | P51: 0 | Q51: 0 | R51: 2 | S51: 15 | T51: 11 | U51: 155000 | V51: 14090.90909 | W51: 0 | X51: 0 | Y51: 0 | Z51: 0 | AA51: 0 | AB51: 0 | AC51: 0 | AD51: 0 | AE51: 0 | AF51: 0 | AG51: 0 | AH51: 0 | AI51: 0
B52: Celkem | G52: =SUM(G4:G51) -> 25 | H52: =SUM(H4:H51) -> 11 | I52: 0 | J52: 127 | K52: 0 | L52: 21 | M52: 102 | N52: 0 | O52: 8 | P52: 0 | Q52: 0 | R52: 2 | S52: 42 | T52: 51 | U52: 968000 | V52: =U52/T52 -> 18980.39216 | W52: 0 | X52: 0 | Y52: 0 | Z52: 0 | AA52: 0 | AB52: 0 | AC52: 0 | AD52: 0 | AE52: 0 | AF52: 0 | AG52: 0 | AH52: 0 | AI52: 0

Sheet Zákon č. 325-1999 Sb.
B2: PŘEHLED PŘESTUPKŮ ZA ROK 2018
B3: Zákon č. 325/1999 Sb., o azylu
B4: § | C4: odst. | D4: písm. | E4: bod | F4: ve znění zákona č. 222/2017 Sb. | G4: počet podnětů k zahájení řízení o přestupku | H4: počet odložených věcí | I4: počet zahájených řízení o přestupku | L4: počet pravomocných rozhodnutí o uznání obviněného vinným ze spáchání přestupku | O4: počet zastavených řízení | P4: počet rozhodnutí o schválení dohody o narovnání | Q4: počet pravomocných rozhodnutí, kterými bylo upuštěno od uložení správního trestu | R4: počet pravomocných rozhodnutí, kterými byla mimořádně snížena výměra pokuty | S4: počet napomenutí | T4: počet pokut | U4: celková výměra pokut (v Kč) | V4: průměrná výměra pokuty (v Kč) | W4: počet zákazů činnosti | X4: celková délka uložených zákazů činnosti (v letech) | Y4: průměrná délka zákazu činnosti (v letech) | Z4: počet propadnutí věci nebo náhradní hodnoty | AA4: počet zveřejnění rozhodnutí o přestupku | AB4: počet omezujících opatření | AC4: počet zabrání věci nebo náhradní hodnoty | AD4: počet podaných odvolání | AE4: odvolání zamítnuto a napadené rozhodnutí potvrzeno | AF4: odvolání vyřízeno v rámci autoremedury | AG4: rozhodnutí změněno | AH4: rozhodnutí zrušeno a věc vrácena k novému projednání | AI4: rozhodnutí zrušeno a řízení zastaveno
I5: oznámení o zahájení řízení | J5: příkaz | K5: příkaz na místě | L5: rozhodnutí | M5: příkaz | N5: příkaz na místě
B6: 93 | C6: 1 | D6: a | G6: 0 | H6: 0 | I6: 0 | J6: 0 | K6: 0 | L6: 0 | M6: 0 | N6: 0 | O6: 0 | P6: 0 | Q6: 0 | R6: 0 | S6: 0 | T6: 0 | U6: 0 | V6: 0 | W6: 0 | X6: 0 | Y6: 0 | Z6: 0 | AA6: 0 | AB6: 0 | AC6: 0 | AD6: 0 | AE6: 0 | AF6: 0 | AG6: 0 | AH6: 0 | AI6: 0
B7: 93 | C7: 1 | D7: b | G7: 0 | H7: 0 | I7: 0 | J7: 0 | K7: 0 | L7: 0 | M7: 0 | N7: 0 | O7: 0 | P7: 0 | Q7: 0 | R7: 0 | S7: 0 | T7: 0 | U7: 0 | V7: 0 | W7: 0 | X7: 0 | Y7: 0 | Z7: 0 | AA7: 0 | AB7: 0 | AC7: 0 | AD7: 0 | AE7: 0 | AF7: 0 | AG7: 0 | AH7: 0 | AI7: 0
B8: 93 | C8: 1 | D8: c | G8: 0 | H8: 0 | I8: 0 | J8: 0 | K8: 0 | L8: 0 | M8: 0 | N8: 0 | O8: 0 | P8: 0 | Q8: 0 | R8: 0 | S8: 0 | T8: 0 | U8: 0 | V8: 0 | W8: 0 | X8: 0 | Y8: 0 | Z8: 0 | AA8: 0 | AB8: 0 | AC8: 0 | AD8: 0 | AE8: 0 | AF8: 0 | AG8: 0 | AH8: 0 | AI8: 0
B9: 93 | C9: 2 | G9: 0 | H9: 0 | I9: 0 | J9: 0 | K9: 0 | L9: 0 | M9: 0 | N9: 0 | O9: 0 | P9: 0 | Q9: 0 | R9: 0 | S9: 0 | T9: 0 | U9: 0 | V9: 0 | W9: 0 | X9: 0 | Y9: 0 | Z9: 0 | AA9: 0 | AB9: 0 | AC9: 0 | AD9: 0 | AE9: 0 | AF9: 0 | AG9: 0 | AH9: 0 | AI9: 0
B10: 93 | C10: 3 | D10: a | E10: 1 | G10: 0 | H10: 0 | I10: 0 | J10: 0 | K10: 0 | L10: 0 | M10: 0 | N10: 0 | O10: 0 | P10: 0 | Q10: 0 | R10: 0 | S10: 0 | T10: 0 | U10: 0 | V10: 0 | W10: 0 | X10: 0 | Y10: 0 | Z10: 0 | AA10: 0 | AB10: 0 | AC10: 0 | AD10: 0 | AE10: 0 | AF10: 0 | AG10: 0 | AH10: 0 | AI10: 0
B11: 93 | C11: 3 | D11: a | E11: 2 | G11: 0 | H11: 0 | I11: 0 | J11: 0 | K11: 0 | L11: 0 | M11: 0 | N11: 0 | O11: 0 | P11: 0 | Q11: 0 | R11: 0 | S11: 0 | T11: 0 | U11: 0 | V11: 0 | W11: 0 | X11: 0 | Y11: 0 | Z11: 0 | AA11: 0 | AB11: 0 | AC11: 0 | AD11: 0 | AE11: 0 | AF11: 0 | AG11: 0 | AH11: 0 | AI11: 0
B12: 93 | C12: 3 | D12: b | G12: 0 | H12: 0 | I12: 0 | J12: 0 | K12: 0 | L12: 0 | M12: 0 | N12: 0 | O12: 0 | P12: 0 | Q12: 0 | R12: 0 | S12: 0 | T12: 0 | U12: 0 | V12: 0 | W12: 0 | X12: 0 | Y12: 0 | Z12: 0 | AA12: 0 | AB12: 0 | AC12: 0 | AD12: 0 | AE12: 0 | AF12: 0 | AG12: 0 | AH12: 0 | AI12: 0
B13: 93 | C13: 3 | D13: c | G13: 0 | H13: 0 | I13: 0 | J13: 0 | K13: 0 | L13: 0 | M13: 0 | N13: 0 | O13: 0 | P13: 0 | Q13: 0 | R13: 0 | S13: 0 | T13: 0 | U13: 0 | V13: 0 | W13: 0 | X13: 0 | Y13: 0 | Z13: 0 | AA13: 0 | AB13: 0 | AC13: 0 | AD13: 0 | AE13: 0 | AF13: 0 | AG13: 0 | AH13: 0 | AI13: 0
B14: 93 | C14: 3 | D14: d | G14: 0 | H14: 0 | I14: 0 | J14: 0 | K14: 2 | L14: 0 | M14: 0 | N14: 2 | O14: 0 | P14: 0 | Q14: 0 | R14: 0 | S14: 0 | T14: 2 | U14: 600 | V14: =U14/T14 -> 300 | W14: 0 | X14: 0 | Y14: 0 | Z14: 0 | AA14: 0 | AB14: 0 | AC14: 0 | AD14: 0 | AE14: 0 | AF14: 0 | AG14: 0 | AH14: 0 | AI14: 0
B15: 93 | C15: 3 | D15: e | G15: 0 | H15: 0 | I15: 0 | J15: 0 | K15: 0 | L15: 0 | M15: 0 | N15: 0 | O15: 0 | P15: 0 | Q15: 0 | R15: 0 | S15: 0 | T15: 0 | U15: 0 | V15: 0 | W15: 0 | X15: 0 | Y15: 0 | Z15: 0 | AA15: 0 | AB15: 0 | AC15: 0 | AD15: 0 | AE15: 0 | AF15: 0 | AG15: 0 | AH15: 0 | AI15: 0
B16: 93 | C16: 3 | D16: f | G16: 0 | H16: 0 | I16: 0 | J16: 0 | K16: 0 | L16: 0 | M16: 0 | N16: 0 | O16: 0 | P16: 0 | Q16: 0 | R16: 0 | S16: 0 | T16: 0 | U16: 0 | V16: 0 | W16: 0 | X16: 0 | Y16: 0 | Z16: 0 | AA16: 0 | AB16: 0 | AC16: 0 | AD16: 0 | AE16: 0 | AF16: 0 | AG16: 0 | AH16: 0 | AI16: 0
B17: 93 | C17: 3 | D17: g | G17: 0 | H17: 0 | I17: 0 | J17: 0 | K17: 3 | L17: 0 | M17: 0 | N17: 3 | O17: 0 | P17: 0 | Q17: 0 | R17: 0 | S17: 3 | T17: 0 | U17: 0 | V17: 0 | W17: 0 | X17: 0 | Y17: 0 | Z17: 0 | AA17: 0 | AB17: 0 | AC17: 0 | AD17: 0 | AE17: 0 | AF17: 0 | AG17: 0 | AH17: 0 | AI17: 0
B18: 93 | C18: 3 | D18: h | G18: 0 | H18: 0 | I18: 0 | J18: 0 | K18: 57 | L18: 0 | M18: 0 | N18: 57 | O18: 0 | P18: 0 | Q18: 0 | R18: 0 | S18: 56 | T18: 1 | U18: 500 | V18: =U18/T18 -> 500 | W18: 0 | X18: 0 | Y18: 0 | Z18: 0 | AA18: 0 | AB18: 0 | AC18: 0 | AD18: 0 | AE18: 0 | AF18: 0 | AG18: 0 | AH18: 0 | AI18: 0
B19: 93 | C19: 3 | D19: i | G19: 0 | H19: 0 | I19: 0 | J19: 0 | K19: 0 | L19: 0 | M19: 0 | N19: 0 | O19: 0 | P19: 0 | Q19: 0 | R19: 0 | S19: 0 | T19: 0 | U19: 0 | V19: 0 | W19: 0 | X19: 0 | Y19: 0 | Z19: 0 | AA19: 0 | AB19: 0 | AC19: 0 | AD19: 0 | AE19: 0 | AF19: 0 | AG19: 0 | AH19: 0 | AI19: 0
B20: 93 | C20: 3 | D20: j | G20: 0 | H20: 0 | I20: 0 | J20: 0 | K20: 6 | L20: 0 | M20: 0 | N20: 6 | O20: 0 | P20: 0 | Q20: 0 | R20: 0 | S20: 5 | T20: 1 | U20: 200 | V20: =U20/T20 -> 200 | W20: 0 | X20: 0 | Y20: 0 | Z20: 0 | AA20: 0 | AB20: 0 | AC20: 0 | AD20: 0 | AE20: 0 | AF20: 0 | AG20: 0 | AH20: 0 | AI20: 0
B21: 93 | C21: 3 | D21: k | G21: 0 | H21: 0 | I21: 0 | J21: 0 | K21: 0 | L21: 0 | M21: 0 | N21: 0 | O21: 0 | P21: 0 | Q21: 0 | R21: 0 | S21: 0 | T21: 0 | U21: 0 | V21: 0 | W21: 0 | X21: 0 | Y21: 0 | Z21: 0 | AA21: 0 | AB21: 0 | AC21: 0 | AD21: 0 | AE21: 0 | AF21: 0 | AG21: 0 | AH21: 0 | AI21: 0
B22: 93 | C22: 3 | D22: l | G22: 0 | H22: 0 | I22: 0 | J22: 0 | K22: 0 | L22: 0 | M22: 0 | N22: 0 | O22: 0 | P22: 0 | Q22: 0 | R22: 0 | S22: 0 | T22: 0 | U22: 0 | V22: 0 | W22: 0 | X22: 0 | Y22: 0 | Z22: 0 | AA22: 0 | AB22: 0 | AC22: 0 | AD22: 0 | AE22: 0 | AF22: 0 | AG22: 0 | AH22: 0 | AI22: 0
B23: 93 | C23: 3 | D23: m | G23: 0 | H23: 0 | I23: 0 | J23: 0 | K23: 131 | L23: 0 | M23: 0 | N23: 131 | O23: 0 | P23: 0 | Q23: 0 | R23: 0 | S23: 125 | T23: 6 | U23: 2100 | V23: =U23/T23 -> 350 | W23: 0 | X23: 0 | Y23: 0 | Z23: 0 | AA23: 0 | AB23: 0 | AC23: 0 | AD23: 0 | AE23: 0 | AF23: 0 | AG23: 0 | AH23: 0 | AI23: 0
B24: 93 | C24: 3 | D24: n | G24: 0 | H24: 0 | I24: 0 | J24: 0 | K24: 0 | L24: 0 | M24: 0 | N24: 0 | O24: 0 | P24: 0 | Q24: 0 | R24: 0 | S24: 0 | T24: 0 | U24: 0 | V24: 0 | W24: 0 | X24: 0 | Y24: 0 | Z24: 0 | AA24: 0 | AB24: 0 | AC24: 0 | AD24: 0 | AE24: 0 | AF24: 0 | AG24: 0 | AH24: 0 | AI24: 0
B25: 93 | C25: 4 | D25: a | G25: 0 | H25: 0 | I25: 0 | J25: 0 | K25: 4 | L25: 0 | M25: 0 | N25: 4 | O25: 0 | P25: 0 | Q25: 0 | R25: 0 | S25: 4 | T25: 0 | U25: 0 | V25: 0 | W25: 0 | X25: 0 | Y25: 0 | Z25: 0 | AA25: 0 | AB25: 0 | AC25: 0 | AD25: 0 | AE25: 0 | AF25: 0 | AG25: 0 | AH25: 0 | AI25: 0
B26: 93 | C26: 4 | D26: b | G26: 0 | H26: 0 | I26: 0 | J26: 0 | K26: 0 | L26: 0 | M26: 0 | N26: 0 | O26: 0 | P26: 0 | Q26: 0 | R26: 0 | S26: 0 | T26: 0 | U26: 0 | V26: 0 | W26: 0 | X26: 0 | Y26: 0 | Z26: 0 | AA26: 0 | AB26: 0 | AC26: 0 | AD26: 0 | AE26: 0 | AF26: 0 | AG26: 0 | AH26: 0 | AI26: 0
B27: 93 | C27: 4 | D27: c | G27: 0 | H27: 0 | I27: 0 | J27: 0 | K27: 0 | L27: 0 | M27: 0 | N27: 0 | O27: 0 | P27: 0 | Q27: 0 | R27: 0 | S27: 0 | T27: 0 | U27: 0 | V27: 0 | W27: 0 | X27: 0 | Y27: 0 | Z27: 0 | AA27: 0 | AB27: 0 | AC27: 0 | AD27: 0 | AE27: 0 | AF27: 0 | AG27: 0 | AH27: 0 | AI27: 0
B28: 93 | C28: 4 | D28: d | G28: 0 | H28: 0 | I28: 0 | J28: 0 | K28: 0 | L28: 0 | M28: 0 | N28: 0 | O28: 0 | P28: 0 | Q28: 0 | R28: 0 | S28: 0 | T28: 0 | U28: 0 | V28: 0 | W28: 0 | X28: 0 | Y28: 0 | Z28: 0 | AA28: 0 | AB28: 0 | AC28: 0 | AD28: 0 | AE28: 0 | AF28: 0 | AG28: 0 | AH28: 0 | AI28: 0
B29: 93 | C29: 5 | D29: a | G29: 0 | H29: 0 | I29: 0 | J29: 0 | K29: 29 | L29: 0 | M29: 0 | N29: 29 | O29: 0 | P29: 0 | Q29: 0 | R29: 0 | S29: 25 | T29: 4 | U29: 1300 | V29: =U29/T29 -> 325 | W29: 0 | X29: 0 | Y29: 0 | Z29: 0 | AA29: 0 | AB29: 0 | AC29: 0 | AD29: 0 | AE29: 0 | AF29: 0 | AG29: 0 | AH29: 0 | AI29: 0
B30: 93 | C30: 5 | D30: b | G30: 0 | H30: 0 | I30: 0 | J30: 0 | K30: 0 | L30: 0 | M30: 0 | N30: 0 | O30: 0 | P30: 0 | Q30: 0 | R30: 0 | S30: 0 | T30: 0 | U30: 0 | V30: 0 | W30: 0 | X30: 0 | Y30: 0 | Z30: 0 | AA30: 0 | AB30: 0 | AC30: 0 | AD30: 0 | AE30: 0 | AF30: 0 | AG30: 0 | AH30: 0 | AI30: 0
B31: 93 | C31: 5 | D31: c | G31: 0 | H31: 0 | I31: 0 | J31: 0 | K31: 0 | L31: 0 | M31: 0 | N31: 0 | O31: 0 | P31: 0 | Q31: 0 | R31: 0 | S31: 0 | T31: 0 | U31: 0 | V31: 0 | W31: 0 | X31: 0 | Y31: 0 | Z31: 0 | AA31: 0 | AB31: 0 | AC31: 0 | AD31: 0 | AE31: 0 | AF31: 0 | AG31: 0 | AH31: 0 | AI31: 0
B32: 93 | C32: 5 | D32: d | G32: 0 | H32: 0 | I32: 0 | J32: 0 | K32: 0 | L32: 0 | M32: 0 | N32: 0 | O32: 0 | P32: 0 | Q32: 0 | R32: 0 | S32: 0 | T32: 0 | U32: 0 | V32: 0 | W32: 0 | X32: 0 | Y32: 0 | Z32: 0 | AA32: 0 | AB32: 0 | AC32: 0 | AD32: 0 | AE32: 0 | AF32: 0 | AG32: 0 | AH32: 0 | AI32: 0
B33: 93 | C33: 5 | D33: e | G33: 0 | H33: 0 | I33: 0 | J33: 0 | K33: 0 | L33: 0 | M33: 0 | N33: 0 | O33: 0 | P33: 0 | Q33: 0 | R33: 0 | S33: 0 | T33: 0 | U33: 0 | V33: 0 | W33: 0 | X33: 0 | Y33: 0 | Z33: 0 | AA33: 0 | AB33: 0 | AC33: 0 | AD33: 0 | AE33: 0 | AF33: 0 | AG33: 0 | AH33: 0 | AI33: 0
B34: 93 | C34: 6 | D34: a | G34: 0 | H34: 0 | I34: 0 | J34: 0 | K34: 0 | L34: 0 | M34: 0 | N34: 0 | O34: 0 | P34: 0 | Q34: 0 | R34: 0 | S34: 0 | T34: 0 | U34: 0 | V34: 0 | W34: 0 | X34: 0 | Y34: 0 | Z34: 0 | AA34: 0 | AB34: 0 | AC34: 0 | AD34: 0 | AE34: 0 | AF34: 0 | AG34: 0 | AH34: 0 | AI34: 0
B35: 93 | C35: 6 | D35: b | G35: 0 | H35: 0 | I35: 0 | J35: 0 | K35: 0 | L35: 0 | M35: 0 | N35: 0 | O35: 0 | P35: 0 | Q35: 0 | R35: 0 | S35: 0 | T35: 0 | U35: 0 | V35: 0 | W35: 0 | X35: 0 | Y35: 0 | Z35: 0 | AA35: 0 | AB35: 0 | AC35: 0 | AD35: 0 | AE35: 0 | AF35: 0 | AG35: 0 | AH35: 0 | AI35: 0
B36: 93 | C36: 6 | D36: c | G36: 0 | H36: 0 | I36: 0 | J36: 0 | K36: 0 | L36: 0 | M36: 0 | N36: 0 | O36: 0 | P36: 0 | Q36: 0 | R36: 0 | S36: 0 | T36: 0 | U36: 0 | V36: 0 | W36: 0 | X36: 0 | Y36: 0 | Z36: 0 | AA36: 0 | AB36: 0 | AC36: 0 | AD36: 0 | AE36: 0 | AF36: 0 | AG36: 0 | AH36: 0 | AI36: 0
B37: 93a | C37: 1 | G37: 0 | H37: 0 | I37: 0 | J37: 0 | K37: 0 | L37: 0 | M37: 0 | N37: 0 | O37: 0 | P37: 0 | Q37: 0 | R37: 0 | S37: 0 | T37: 0 | U37: 0 | V37: 0 | W37: 0 | X37: 0 | Y37: 0 | Z37: 0 | AA37: 0 | AB37: 0 | AC37: 0 | AD37: 0 | AE37: 0 | AF37: 0 | AG37: 0 | AH37: 0 | AI37: 0
B38: Celkem | G38: =SUM(G6:G37) -> 0 | H38: 0 | I38: 0 | J38: 0 | K38: 232 | L38: 0 | M38: 0 | N38: 232 | O38: 0 | P38: 0 | Q38: 0 | R38: 0 | S38: 218 | T38: 14 | U38: 4700 | V38: =U38/T38 -> 335.7142857 | W38: =SUM(W6:W37) -> 0 | X38: 0 | Y38: 0 | Z38: 0 | AA38: 0 | AB38: 0 | AC38: 0 | AD38: 0 | AE38: 0 | AF38: 0 | AG38: 0 | AH38: 0 | AI38: 0

Sheet Zákon č. 326-1999 Sb.
B2: PŘEHLED PŘESTUPKŮ ZA ROK 2018
B3: Zákon č. 326/1999 Sb., o pobytu cizinců na území České republiky a o změně některých zákonů
B4: § | C4: odst. | D4: písm. | E4: bod | F4: ve znění zákona č. 222/2017 Sb. | G4: počet podnětů k zahájení řízení o přestupku | H4: počet odložených věcí | I4: počet zahájených řízení o přestupku | L4: počet pravomocných rozhodnutí o uznání obviněného vinným ze spáchání přestupku | O4: počet zastavených řízení | P4: počet rozhodnutí o schválení dohody o narovnání | Q4: počet pravomocných rozhodnutí, kterými bylo upuštěno od uložení správního trestu | R4: počet pravomocných rozhodnutí, kterými byla mimořádně snížena výměra pokuty | S4: počet napomenutí | T4: počet pokut | U4: celková výměra pokut (v Kč) | V4: průměrná výměra pokuty (v Kč) | W4: počet zákazů činnosti | X4: celková délka uložených zákazů činnosti (v letech) | Y4: průměrná délka zákazu činnosti (v letech) | Z4: počet propadnutí věci nebo náhradní hodnoty | AA4: počet zveřejnění rozhodnutí o přestupku | AB4: počet omezujících opatření | AC4: počet zabrání věci nebo náhradní hodnoty | AD4: počet podaných odvolání | AE4: odvolání zamítnuto a napadené rozhodnutí potvrzeno | AF4: odvolání vyřízeno v rámci autoremedury | AG4: rozhodnutí změněno | AH4: rozhodnutí zrušeno a věc vrácena k novému projednání | AI4: rozhodnutí zrušeno a řízení zastaveno
I5: oznámení o zahájení řízení | J5: příkaz | K5: příkaz na místě | L5: rozhodnutí | M5: příkaz | N5: příkaz na místě
B6: 156 | C6: 1 | D6: a | G6: 7 | H6: 0 | I6: 0 | J6: 0 | K6: 8 | L6: 0 | M6: 0 | N6: 8 | O6: 0 | P6: 0 | Q6: 0 | R6: 0 | S6: 0 | T6: 8 | U6: 9200 | V6: =U6/T6 -> 1150 | W6: 0 | X6: 0 | Y6: 0 | Z6: 0 | AA6: 0 | AB6: 0 | AC6: 0 | AD6: 0 | AE6: 0 | AF6: 0 | AG6: 0 | AH6: 0 | AI6: 0
B7: 156 | C7: 1 | D7: b | G7: 0 | H7: 0 | I7: 0 | J7: 0 | K7: 197 | L7: 0 | M7: 0 | N7: 197 | O7: 0 | P7: 0 | Q7: 0 | R7: 0 | S7: 0 | T7: 197 | U7: 237385 | V7: 0 | W7: 0 | X7: 0 | Y7: 0 | Z7: 0 | AA7: 0 | AB7: 0 | AC7: 0 | AD7: 0 | AE7: 0 | AF7: 0 | AG7: 0 | AH7: 0 | AI7: 0
B8: 156 | C8: 1 | D8: c | G8: 0 | H8: 0 | I8: 0 | J8: 0 | K8: 28 | L8: 0 | M8: 0 | N8: 28 | O8: 0 | P8: 0 | Q8: 0 | R8: 0 | S8: 0 | T8: 28 | U8: 26012 | V8: 0 | W8: 0 | X8: 0 | Y8: 0 | Z8: 0 | AA8: 0 | AB8: 0 | AC8: 0 | AD8: 0 | AE8: 0 | AF8: 0 | AG8: 0 | AH8: 0 | AI8: 0
B9: 156 | C9: 1 | D9: d | G9: 3040 | H9: 1 | I9: 1 | J9: 6 | K9: 3267 | L9: 0 | M9: 6 | N9: 3267 | O9: 1 | P9: 0 | Q9: 0 | R9: 0 | S9: 0 | T9: 3273 | U9: 1835005 | V9: 560.6492515 | W9: 0 | X9: 0 | Y9: 0 | Z9: 0 | AA9: 0 | AB9: 0 | AC9: 0 | AD9: 0 | AE9: 0 | AF9: 0 | AG9: 0 | AH9: 0 | AI9: 0
B10: 156 | C10: 1 | D10: e | G10: 9 | H10: 0 | I10: 0 | J10: 0 | K10: 29 | L10: 0 | M10: 0 | N10: 29 | O10: 0 | P10: 0 | Q10: 0 | R10: 0 | S10: 0 | T10: 29 | U10: 41000 | V10: 1413.793103 | W10: 0 | X10: 0 | Y10: 0 | Z10: 0 | AA10: 0 | AB10: 0 | AC10: 0 | AD10: 0 | AE10: 0 | AF10: 0 | AG10: 0 | AH10: 0 | AI10: 0
B11: 156 | C11: 1 | D11: f | G11: 5646 | H11: 0 | I11: 3 | J11: 21 | K11: 7014 | L11: 0 | M11: 21 | N11: 7014 | O11: 0 | P11: 0 | Q11: 0 | R11: 0 | S11: 4 | T11: 7023 | U11: 6057642 | V11: 862.5433575 | W11: 0 | X11: 0 | Y11: 0 | Z11: 0 | AA11: 0 | AB11: 0 | AC11: 0 | AD11: 0 | AE11: 0 | AF11: 0 | AG11: 0 | AH11: 0 | AI11: 0
B12: 156 | C12: 1 | D12: g | G12: 20730 | H12: 0 | I12: 3 | J12: 121 | K12: 24237 | L12: 1 | M12: 121 | N12: 24237 | O12: 0 | P12: 0 | Q12: 0 | R12: 0 | S12: 5 | T12: 24342 | U12: 13056540 | V12: 536.3790979 | W12: 0 | X12: 0 | Y12: 0 | Z12: 0 | AA12: 0 | AB12: 0 | AC12: 0 | AD12: 0 | AE12: 0 | AF12: 0 | AG12: 0 | AH12: 0 | AI12: 0
B13: 156 | C13: 1 | D13: h | G13: 1241 | H13: 0 | I13: 0 | J13: 1 | K13: 1284 | L13: 0 | M13: 1 | N13: 1284 | O13: 0 | P13: 0 | Q13: 0 | R13: 0 | S13: 0 | T13: 1285 | U13: 586340 | V13: 456.2957198 | W13: 0 | X13: 0 | Y13: 0 | Z13: 0 | AA13: 0 | AB13: 0 | AC13: 0 | AD13: 0 | AE13: 0 | AF13: 0 | AG13: 0 | AH13: 0 | AI13: 0
B14: 156 | C14: 1 | D14: i | G14: 2 | H14: 0 | I14: 0 | J14: 0 | K14: 44 | L14: 0 | M14: 0 | N14: 44 | O14: 0 | P14: 0 | Q14: 0 | R14: 0 | S14: 0 | T14: 44 | U14: 31086 | V14: 706.5 | W14: 0 | X14: 0 | Y14: 0 | Z14: 0 | AA14: 0 | AB14: 0 | AC14: 0 | AD14: 0 | AE14: 0 | AF14: 0 | AG14: 0 | AH14: 0 | AI14: 0
B15: 156 | C15: 1 | D15: j | G15: 15 | H15: 0 | I15: 0 | J15: 0 | K15: 27 | L15: 0 | M15: 0 | N15: 27 | O15: 0 | P15: 0 | Q15: 0 | R15: 0 | S15: 0 | T15: 27 | U15: 20000 | V15: 740.7407407 | W15: 0 | X15: 0 | Y15: 0 | Z15: 0 | AA15: 0 | AB15: 0 | AC15: 0 | AD15: 0 | AE15: 0 | AF15: 0 | AG15: 0 | AH15: 0 | AI15: 0
B16: 156 | C16: 1 | D16: k | G16: 29 | H16: 0 | I16: 0 | J16: 0 | K16: 29 | L16: 0 | M16: 0 | N16: 29 | O16: 0 | P16: 0 | Q16: 0 | R16: 0 | S16: 0 | T16: 29 | U16: 10900 | V16: 375.862069 | W16: 0 | X16: 0 | Y16: 0 | Z16: 0 | AA16: 0 | AB16: 0 | AC16: 0 | AD16: 0 | AE16: 0 | AF16: 0 | AG16: 0 | AH16: 0 | AI16: 0
B17: 156 | C17: 1 | D17: l | G17: 5 | H17: 0 | I17: 0 | J17: 3 | K17: 17 | L17: 0 | M17: 3 | N17: 17 | O17: 0 | P17: 0 | Q17: 0 | R17: 0 | S17: 0 | T17: 20 | U17: 32995 | V17: 1649.75 | W17: 0 | X17: 0 | Y17: 0 | Z17: 0 | AA17: 0 | AB17: 0 | AC17: 0 | AD17: 0 | AE17: 0 | AF17: 0 | AG17: 0 | AH17: 0 | AI17: 0
B18: 156 | C18: 1 | D18: m | G18: 12 | H18: 0 | I18: 0 | J18: 0 | K18: 18 | L18: 0 | M18: 0 | N18: 18 | O18: 0 | P18: 0 | Q18: 0 | R18: 0 | S18: 0 | T18: 18 | U18: 28696 | V18: 1594.222222 | W18: 0 | X18: 0 | Y18: 0 | Z18: 0 | AA18: 0 | AB18: 0 | AC18: 0 | AD18: 0 | AE18: 0 | AF18: 0 | AG18: 0 | AH18: 0 | AI18: 0
B19: 156 | C19: 1 | D19: n | G19: 80 | H19: 0 | I19: 0 | J19: 0 | K19: 136 | L19: 0 | M19: 0 | N19: 136 | O19: 0 | P19: 0 | Q19: 0 | R19: 0 | S19: 0 | T19: 136 | U19: 177728 | V19: 1306.823529 | W19: 0 | X19: 0 | Y19: 0 | Z19: 0 | AA19: 0 | AB19: 0 | AC19: 0 | AD19: 0 | AE19: 0 | AF19: 0 | AG19: 0 | AH19: 0 | AI19: 0
B20: 156 | C20: 1 | D20: o | G20: 0 | H20: 0 | I20: 0 | J20: 0 | K20: 76 | L20: 0 | M20: 0 | N20: 76 | O20: 0 | P20: 0 | Q20: 0 | R20: 0 | S20: 0 | T20: 76 | U20: 91580 | V20: 0 | W20: 0 | X20: 0 | Y20: 0 | Z20: 0 | AA20: 0 | AB20: 0 | AC20: 0 | AD20: 0 | AE20: 0 | AF20: 0 | AG20: 0 | AH20: 0 | AI20: 0
B21: 156 | C21: 2 | D21: a | G21: 288 | H21: 0 | I21: 3 | J21: 7 | K21: 280 | L21: 3 | M21: 7 | N21: 282 | O21: 0 | P21: 0 | Q21: 0 | R21: 0 | S21: 0 | T21: 290 | U21: 282200 | V21: 973.1034483 | W21: 0 | X21: 0 | Y21: 0 | Z21: 0 | AA21: 0 | AB21: 0 | AC21: 0 | AD21: 0 | AE21: 0 | AF21: 0 | AG21: 0 | AH21: 0 | AI21: 0
B22: 156 | C22: 2 | D22: b | G22: 98 | H22: 0 | I22: 0 | J22: 2 | K22: 96 | L22: 0 | M22: 2 | N22: 96 | O22: 0 | P22: 0 | Q22: 0 | R22: 0 | S22: 0 | T22: 98 | U22: 57700 | V22: 588.7755102 | W22: 0 | X22: 0 | Y22: 0 | Z22: 0 | AA22: 0 | AB22: 0 | AC22: 0 | AD22: 0 | AE22: 0 | AF22: 0 | AG22: 0 | AH22: 0 | AI22: 0
B23: 156 | C23: 2 | D23: c | G23: 11 | H23: 0 | I23: 0 | J23: 0 | K23: 11 | L23: 0 | M23: 0 | N23: 11 | O23: 0 | P23: 0 | Q23: 0 | R23: 0 | S23: 0 | T23: 11 | U23: 9900 | V23: 900 | W23: 0 | X23: 0 | Y23: 0 | Z23: 0 | AA23: 0 | AB23: 0 | AC23: 0 | AD23: 0 | AE23: 0 | AF23: 0 | AG23: 0 | AH23: 0 | AI23: 0
B24: 156 | C24: 3 | D24: a | G24: 0 | H24: 0 | I24: 0 | J24: 0 | K24: 0 | L24: 0 | M24: 0 | N24: 0 | O24: 0 | P24: 0 | Q24: 0 | R24: 0 | S24: 0 | T24: 0 | U24: 0 | V24: 0 | W24: 0 | X24: 0 | Y24: 0 | Z24: 0 | AA24: 0 | AB24: 0 | AC24: 0 | AD24: 0 | AE24: 0 | AF24: 0 | AG24: 0 | AH24: 0 | AI24: 0
B25: 156 | C25: 3 | D25: b | G25: 0 | H25: 0 | I25: 0 | J25: 0 | K25: 0 | L25: 0 | M25: 0 | N25: 0 | O25: 0 | P25: 0 | Q25: 0 | R25: 0 | S25: 0 | T25: 0 | U25: 0 | V25: 0 | W25: 0 | X25: 0 | Y25: 0 | Z25: 0 | AA25: 0 | AB25: 0 | AC25: 0 | AD25: 0 | AE25: 0 | AF25: 0 | AG25: 0 | AH25: 0 | AI25: 0
B26: 156 | C26: 3 | D26: c | G26: 0 | H26: 0 | I26: 0 | J26: 0 | K26: 0 | L26: 0 | M26: 0 | N26: 0 | O26: 0 | P26: 0 | Q26: 0 | R26: 0 | S26: 0 | T26: 0 | U26: 0 | V26: 0 | W26: 0 | X26: 0 | Y26: 0 | Z26: 0 | AA26: 0 | AB26: 0 | AC26: 0 | AD26: 0 | AE26: 0 | AF26: 0 | AG26: 0 | AH26: 0 | AI26: 0
B27: 156 | C27: 3 | D27: d | G27: 162 | H27: 0 | I27: 0 | J27: 0 | K27: 162 | L27: 0 | M27: 0 | N27: 162 | O27: 0 | P27: 0 | Q27: 0 | R27: 0 | S27: 0 | T27: 162 | U27: 197102 | V27: 1216.679012 | W27: 0 | X27: 0 | Y27: 0 | Z27: 0 | AA27: 0 | AB27: 0 | AC27: 0 | AD27: 0 | AE27: 0 | AF27: 0 | AG27: 0 | AH27: 0 | AI27: 0
B28: 156 | C28: 4 | D28: a | G28: 0 | H28: 0 | I28: 0 | J28: 0 | K28: 0 | L28: 0 | M28: 0 | N28: 0 | O28: 0 | P28: 0 | Q28: 0 | R28: 0 | S28: 0 | T28: 0 | U28: 0 | V28: 0 | W28: 0 | X28: 0 | Y28: 0 | Z28: 0 | AA28: 0 | AB28: 0 | AC28: 0 | AD28: 0 | AE28: 0 | AF28: 0 | AG28: 0 | AH28: 0 | AI28: 0
B29: 156 | C29: 4 | D29: b | G29: 0 | H29: 0 | I29: 0 | J29: 0 | K29: 0 | L29: 0 | M29: 0 | N29: 0 | O29: 0 | P29: 0 | Q29: 0 | R29: 0 | S29: 0 | T29: 0 | U29: 0 | V29: 0 | W29: 0 | X29: 0 | Y29: 0 | Z29: 0 | AA29: 0 | AB29: 0 | AC29: 0 | AD29: 0 | AE29: 0 | AF29: 0 | AG29: 0 | AH29: 0 | AI29: 0
B30: 157 | C30: 1 | D30: a | G30: 1 | H30: 0 | I30: 0 | J30: 1 | K30: 0 | L30: 0 | M30: 1 | N30: 0 | O30: 0 | P30: 0 | Q30: 0 | R30: 0 | S30: 0 | T30: 1 | U30: 500 | V30: 500 | W30: 0 | X30: 0 | Y30: 0 | Z30: 0 | AA30: 0 | AB30: 0 | AC30: 0 | AD30: 0 | AE30: 0 | AF30: 0 | AG30: 0 | AH30: 0 | AI30: 0
B31: 157 | C31: 1 | D31: b | G31: 0 | H31: 0 | I31: 0 | J31: 0 | K31: 0 | L31: 0 | M31: 0 | N31: 0 | O31: 0 | P31: 0 | Q31: 0 | R31: 0 | S31: 0 | T31: 0 | U31: 0 | V31: 0 | W31: 0 | X31: 0 | Y31: 0 | Z31: 0 | AA31: 0 | AB31: 0 | AC31: 0 | AD31: 0 | AE31: 0 | AF31: 0 | AG31: 0 | AH31: 0 | AI31: 0
B32: 157 | C32: 2 | G32: 0 | H32: 0 | I32: 0 | J32: 0 | K32: 0 | L32: 0 | M32: 0 | N32: 0 | O32: 0 | P32: 0 | Q32: 0 | R32: 0 | S32: 0 | T32: 0 | U32: 0 | V32: 0 | W32: 0 | X32: 0 | Y32: 0 | Z32: 0 | AA32: 0 | AB32: 0 | AC32: 0 | AD32: 0 | AE32: 0 | AF32: 0 | AG32: 0 | AH32: 0 | AI32: 0
B33: 157 | C33: 3 | G33: 0 | H33: 0 | I33: 0 | J33: 0 | K33: 0 | L33: 0 | M33: 0 | N33: 0 | O33: 0 | P33: 0 | Q33: 0 | R33: 0 | S33: 0 | T33: 0 | U33: 0 | V33: 0 | W33: 0 | X33: 0 | Y33: 0 | Z33: 0 | AA33: 0 | AB33: 0 | AC33: 0 | AD33: 0 | AE33: 0 | AF33: 0 | AG33: 0 | AH33: 0 | AI33: 0
B34: 157 | C34: 4 | D34: a | G34: 1813 | H34: 1 | I34: 7 | J34: 21 | K34: 1784 | L34: 4 | M34: 21 | N34: 1784 | O34: 2 | P34: 0 | Q34: 0 | R34: 0 | S34: 0 | T34: 1807 | U34: 1787100 | V34: 988.9872717 | W34: 0 | X34: 0 | Y34: 0 | Z34: 0 | AA34: 0 | AB34: 0 | AC34: 0 | AD34: 1 | AE34: 1 | AF34: 0 | AG34: 0 | AH34: 0 | AI34: 0
B35: 157 | C35: 4 | D35: b | G35: 749 | H35: 0 | I35: 0 | J35: 9 | K35: 740 | L35: 0 | M35: 9 | N35: 740 | O35: 0 | P35: 0 | Q35: 0 | R35: 0 | S35: 2 | T35: 747 | U35: 519800 | V35: 695.8500669 | W35: 0 | X35: 0 | Y35: 0 | Z35: 0 | AA35: 0 | AB35: 0 | AC35: 0 | AD35: 0 | AE35: 0 | AF35: 0 | AG35: 0 | AH35: 0 | AI35: 0
B36: 157 | C36: 4 | D36: c | G36: 34 | H36: 0 | I36: 0 | J36: 0 | K36: 34 | L36: 0 | M36: 0 | N36: 34 | O36: 0 | P36: 0 | Q36: 0 | R36: 0 | S36: 0 | T36: 34 | U36: 51000 | V36: 1500 | W36: 0 | X36: 0 | Y36: 0 | Z36: 0 | AA36: 0 | AB36: 0 | AC36: 0 | AD36: 0 | AE36: 0 | AF36: 0 | AG36: 0 | AH36: 0 | AI36: 0
B37: 157 | C37: 5 | D37: a | G37: 0 | H37: 0 | I37: 0 | J37: 0 | K37: 0 | L37: 0 | M37: 0 | N37: 0 | O37: 0 | P37: 0 | Q37: 0 | R37: 0 | S37: 0 | T37: 0 | U37: 0 | V37: 0 | W37: 0 | X37: 0 | Y37: 0 | Z37: 0 | AA37: 0 | AB37: 0 | AC37: 0 | AD37: 0 | AE37: 0 | AF37: 0 | AG37: 0 | AH37: 0 | AI37: 0
B38: 157 | C38: 5 | D38: b | G38: 0 | H38: 0 | I38: 0 | J38: 0 | K38: 0 | L38: 0 | M38: 0 | N38: 0 | O38: 0 | P38: 0 | Q38: 0 | R38: 0 | S38: 0 | T38: 0 | U38: 0 | V38: 0 | W38: 0 | X38: 0 | Y38: 0 | Z38: 0 | AA38: 0 | AB38: 0 | AC38: 0 | AD38: 0 | AE38: 0 | AF38: 0 | AG38: 0 | AH38: 0 | AI38: 0
B39: 157 | C39: 6 | G39: 0 | H39: 0 | I39: 0 | J39: 0 | K39: 0 | L39: 0 | M39: 0 | N39: 0 | O39: 0 | P39: 0 | Q39: 0 | R39: 0 | S39: 0 | T39: 0 | U39: 0 | V39: 0 | W39: 0 | X39: 0 | Y39: 0 | Z39: 0 | AA39: 0 | AB39: 0 | AC39: 0 | AD39: 0 | AE39: 0 | AF39: 0 | AG39: 0 | AH39: 0 | AI39: 0
B40: 157 | C40: 7 | G40: 0 | H40: 0 | I40: 0 | J40: 0 | K40: 0 | L40: 0 | M40: 0 | N40: 0 | O40: 0 | P40: 0 | Q40: 0 | R40: 0 | S40: 0 | T40: 0 | U40: 0 | V40: 0 | W40: 0 | X40: 0 | Y40: 0 | Z40: 0 | AA40: 0 | AB40: 0 | AC40: 0 | AD40: 0 | AE40: 0 | AF40: 0 | AG40: 0 | AH40: 0 | AI40: 0
B41: Celkem | G41: =SUM(G6:G40) -> 33972 | H41: =SUM(H6:H40) -> 2 | I41: 17 | J41: 192 | K41: 39518 | L41: 8 | M41: 192 | N41: 39520 | O41: 3 | P41: 0 | Q41: 0 | R41: 0 | S41: 11 | T41: 39685 | U41: 25147411 | V41: =SUM(U41/T41) -> 633.6754693 | W41: 0 | X41: 0 | Y41: 0 | Z41: 0 | AA41: 0 | AB41: 0 | AC41: 0 | AD41: 1 | AE41: 1 | AF41: 0 | AG41: 0 | AH41: 0 | AI41: 0

Sheet Zákon č. 328-1999 Sb.
B2: PŘEHLED PŘESTUPKŮ ZA ROK 2018
B3: Zákon č. 328/1999 Sb., o občanských průkazech
B4: § | C4: odst. | D4: písm. | E4: bod | F4: ve znění zákona č. 251/2017 Sb. | G4: počet podnětů k zahájení řízení o přestupku | H4: počet odložených věcí | I4: počet zahájených řízení o přestupku | L4: počet pravomocných rozhodnutí o uznání obviněného vinným ze spáchání přestupku | O4: počet zastavených řízení | P4: počet rozhodnutí o schválení dohody o narovnání | Q4: počet pravomocných rozhodnutí, kterými bylo upuštěno od uložení správního trestu | R4: počet pravomocných rozhodnutí, kterými byla mimořádně snížena výměra pokuty | S4: počet napomenutí | T4: počet pokut | U4: celková výměra pokut (v Kč) | V4: průměrná výměra pokuty (v Kč) | W4: počet zákazů činnosti | X4: celková délka uložených zákazů činnosti (v letech) | Y4: průměrná délka zákazu činnosti (v letech) | Z4: počet propadnutí věci nebo náhradní hodnoty | AA4: počet zveřejnění rozhodnutí o přestupku | AB4: počet omezujících opatření | AC4: počet zabrání věci nebo náhradní hodnoty | AD4: počet podaných odvolání | AE4: odvolání zamítnuto a napadené rozhodnutí potvrzeno | AF4: odvolání vyřízeno v rámci autoremedury | AG4: rozhodnutí změněno | AH4: rozhodnutí zrušeno a věc vrácena k novému projednání | AI4: rozhodnutí zrušeno a řízení zastaveno
I5: oznámení o zahájení řízení | J5: příkaz | K5: příkaz na místě | L5: rozhodnutí | M5: příkaz | N5: příkaz na místě
B6: 16a | C6: 1 | D6: a | G6: 1547 | H6: 20 | I6: 100 | J6: 70 | K6: 1263 | L6: 5 | M6: 62 | N6: 1263 | O6: 0 | P6: 0 | Q6: 2 | R6: 0 | S6: 861 | T6: 1430 | U6: 533300 | V6: =U6/T6 -> 372.9370629 | W6: 0 | X6: 0 | Y6: 0 | Z6: 0 | AA6: 0 | AB6: 0 | AC6: 0 | AD6: 0 | AE6: 0 | AF6: 0 | AG6: 0 | AH6: 0 | AI6: 0
B7: 16a | C7: 1 | D7: b | G7: 32817 | H7: 514 | I7: 1925 | J7: 1910 | K7: 30530 | L7: 151 | M7: 1301 | N7: 34809 | O7: 143 | P7: 0 | Q7: 1390 | R7: 0 | S7: 18276 | T7: 17729 | U7: 6166060 | V7: 347.7951379 | W7: 0 | X7: 0 | Y7: 0 | Z7: 0 | AA7: 0 | AB7: 0 | AC7: 0 | AD7: 4 | AE7: 0 | AF7: 1 | AG7: 1 | AH7: 3 | AI7: 0
B8: 16a | C8: 1 | D8: c | G8: 9253 | H8: 292 | I8: 608 | J8: 426 | K8: 10181 | L8: 54 | M8: 379 | N8: 10790 | O8: 4 | P8: 0 | Q8: 1 | R8: 0 | S8: 4573 | T8: 8275 | U8: 2954530 | V8: 357.0429003 | W8: 0 | X8: 0 | Y8: 0 | Z8: 0 | AA8: 0 | AB8: 0 | AC8: 0 | AD8: 3 | AE8: 1 | AF8: 0 | AG8: 0 | AH8: 0 | AI8: 0
B9: 16a | C9: 1 | D9: d | G9: 13 | H9: 1 | I9: 0 | J9: 0 | K9: 16 | L9: 0 | M9: 0 | N9: 16 | O9: 0 | P9: 0 | Q9: 0 | R9: 0 | S9: 3 | T9: 16 | U9: 35700 | V9: 2231.25 | W9: 0 | X9: 0 | Y9: 0 | Z9: 0 | AA9: 0 | AB9: 0 | AC9: 0 | AD9: 0 | AE9: 0 | AF9: 0 | AG9: 0 | AH9: 0 | AI9: 0
B10: 16a | C10: 1 | D10: e | G10: 443 | H10: 11 | I10: 5 | J10: 72 | K10: 302 | L10: 25 | M10: 145 | N10: 301 | O10: 2 | P10: 0 | Q10: 46 | R10: 0 | S10: 127 | T10: 525 | U10: 720500 | V10: =U10/T10 -> 1372.380952 | W10: 0 | X10: 0 | Y10: 0 | Z10: 0 | AA10: 0 | AB10: 0 | AC10: 0 | AD10: 0 | AE10: 0 | AF10: 0 | AG10: 0 | AH10: 0 | AI10: 0
B11: 16a | C11: 1 | D11: f | G11: 6 | H11: 0 | I11: 0 | J11: 1 | K11: 0 | L11: 0 | M11: 3 | N11: 0 | O11: 0 | P11: 0 | Q11: 0 | R11: 0 | S11: 0 | T11: 3 | U11: 5600 | V11: =U11/T11 -> 1866.666667 | W11: 0 | X11: 0 | Y11: 0 | Z11: 0 | AA11: 0 | AB11: 0 | AC11: 0 | AD11: 0 | AE11: 0 | AF11: 0 | AG11: 0 | AH11: 0 | AI11: 0
B12: 16a | C12: 1 | D12: g | G12: 61 | H12: 0 | I12: 4 | J12: 3 | K12: 40 | L12: 2 | M12: 15 | N12: 48 | O12: 2 | P12: 0 | Q12: 0 | R12: 0 | S12: 2 | T12: 79 | U12: 444600 | V12: 5627.848101 | W12: 0 | X12: 0 | Y12: 0 | Z12: 0 | AA12: 0 | AB12: 0 | AC12: 0 | AD12: 4 | AE12: 2 | AF12: 0 | AG12: 0 | AH12: 2 | AI12: 0
B13: 16a | C13: 1 | D13: h | G13: 88 | H13: 0 | I13: 0 | J13: 2 | K13: 187 | L13: 0 | M13: 24 | N13: 199 | O13: 0 | P13: 0 | Q13: 10 | R13: 0 | S13: 9 | T13: 215 | U13: 629700 | V13: 2928.837209 | W13: 0 | X13: 0 | Y13: 0 | Z13: 0 | AA13: 0 | AB13: 0 | AC13: 0 | AD13: 0 | AE13: 0 | AF13: 0 | AG13: 0 | AH13: 0 | AI13: 0
B14: 16a | C14: 1 | D14: i | G14: 113 | H14: 19 | I14: 40 | J14: 25 | K14: 66 | L14: 4 | M14: 29 | N14: 51 | O14: 2 | P14: 0 | Q14: 0 | R14: 0 | S14: 2 | T14: 100 | U14: 73460 | V14: 734.6 | W14: 0 | X14: 0 | Y14: 0 | Z14: 0 | AA14: 0 | AB14: 0 | AC14: 0 | AD14: 0 | AE14: 0 | AF14: 0 | AG14: 0 | AH14: 0 | AI14: 0
B15: 16a | C15: 1 | D15: j | G15: 36 | H15: 8 | I15: 4 | J15: 13 | K15: 19 | L15: 2 | M15: 13 | N15: 15 | O15: 1 | P15: 0 | Q15: 0 | R15: 0 | S15: 8 | T15: 25 | U15: 14000 | V15: 560 | W15: 0 | X15: 0 | Y15: 0 | Z15: 0 | AA15: 0 | AB15: 0 | AC15: 0 | AD15: 0 | AE15: 0 | AF15: 0 | AG15: 0 | AH15: 0 | AI15: 0
B16: 16a | C16: 1 | D16: k | G16: 9 | H16: 2 | I16: 0 | J16: 1 | K16: 6 | L16: 0 | M16: 1 | N16: 6 | O16: 0 | P16: 0 | Q16: 0 | R16: 0 | S16: 0 | T16: 7 | U16: 3300 | V16: 471.4285714 | W16: 0 | X16: 0 | Y16: 0 | Z16: 0 | AA16: 0 | AB16: 0 | AC16: 0 | AD16: 0 | AE16: 0 | AF16: 0 | AG16: 0 | AH16: 0 | AI16: 0
B17: 16a | C17: 1 | D17: l | G17: 216 | H17: 10 | I17: 34 | J17: 5 | K17: 272 | L17: 6 | M17: 11 | N17: 263 | O17: 0 | P17: 0 | Q17: 0 | R17: 0 | S17: 76 | T17: 214 | U17: 49720 | V17: 232.3364486 | W17: 0 | X17: 0 | Y17: 0 | Z17: 0 | AA17: 0 | AB17: 0 | AC17: 0 | AD17: 0 | AE17: 0 | AF17: 0 | AG17: 0 | AH17: 0 | AI17: 0
B18: 16a | C18: 1 | D18: m | G18: 3 | H18: 0 | I18: 1 | J18: 0 | K18: 0 | L18: 2 | M18: 3 | N18: 0 | O18: 0 | P18: 0 | Q18: 0 | R18: 0 | S18: 0 | T18: 4 | U18: 24000 | V18: =U18/T18 -> 6000 | W18: 0 | X18: 0 | Y18: 0 | Z18: 0 | AA18: 0 | AB18: 0 | AC18: 0 | AD18: 0 | AE18: 0 | AF18: 0 | AG18: 0 | AH18: 0 | AI18: 0
B19: 16a | C19: 1 | D19: n | G19: 278 | H19: 30 | I19: 8 | J19: 128 | K19: 175 | L19: 9 | M19: 122 | N19: 184 | O19: 0 | P19: 0 | Q19: 4 | R19: 0 | S19: 68 | T19: 237 | U19: 117700 | V19: =U19/T19 -> 496.6244726 | W19: 0 | X19: 0 | Y19: 0 | Z19: 0 | AA19: 0 | AB19: 0 | AC19: 0 | AD19: 0 | AE19: 0 | AF19: 0 | AG19: 0 | AH19: 0 | AI19: 0
B20: 16a | C20: 1 | D20: o | G20: 0 | H20: 0 | I20: 0 | J20: 0 | K20: 0 | L20: 0 | M20: 0 | N20: 0 | O20: 0 | P20: 0 | Q20: 0 | R20: 0 | S20: 0 | T20: 0 | U20: 0 | V20: 0 | W20: 0 | X20: 0 | Y20: 0 | Z20: 0 | AA20: 0 | AB20: 0 | AC20: 0 | AD20: 0 | AE20: 0 | AF20: 0 | AG20: 0 | AH20: 0 | AI20: 0
B21: 16a | C21: 1 | D21: p | G21: 0 | H21: 0 | I21: 0 | J21: 0 | K21: 0 | L21: 0 | M21: 0 | N21: 0 | O21: 0 | P21: 0 | Q21: 0 | R21: 0 | S21: 0 | T21: 0 | U21: 0 | V21: 0 | W21: 0 | X21: 0 | Y21: 0 | Z21: 0 | AA21: 0 | AB21: 0 | AC21: 0 | AD21: 0 | AE21: 0 | AF21: 0 | AG21: 0 | AH21: 0 | AI21: 0
B22: Celkem | G22: =SUM(G6:G21) -> 44883 | H22: =SUM(H6:H21) -> 907 | I22: 2729 | J22: 2656 | K22: 43057 | L22: 260 | M22: 2108 | N22: 47945 | O22: 154 | P22: 0 | Q22: 1453 | R22: 0 | S22: 24005 | T22: 28859 | U22: 11772170 | V22: =U22/T22 -> 407.9202329 | W22: 0 | X22: 0 | Y22: 0 | Z22: 0 | AA22: 0 | AB22: 0 | AC22: 0 | AD22: 11 | AE22: 3 | AF22: 1 | AG22: 1 | AH22: 5 | AI22: 0

Sheet Zákon č. 329-1999 Sb.
B2: PŘEHLED PŘESTUPKŮ ZA ROK 2018
B3: Zákon č. 329/1999 Sb., o cestovních dokladech
B4: § | C4: odst. | D4: písm. | E4: bod | F4: ve znění zákona č. 195/2017 Sb. | G4: počet podnětů k zahájení řízení o přestupku | H4: počet odložených věcí | I4: počet zahájených řízení o přestupku | L4: počet pravomocných rozhodnutí o uznání obviněného vinným ze spáchání přestupku | O4: počet zastavených řízení | P4: počet rozhodnutí o schválení dohody o narovnání | Q4: počet pravomocných rozhodnutí, kterými bylo upuštěno od uložení správního trestu | R4: počet pravomocných rozhodnutí, kterými byla mimořádně snížena výměra pokuty | S4: počet napomenutí | T4: počet pokut | U4: celková výměra pokut (v Kč) | V4: průměrná výměra pokuty (v Kč) | W4: počet zákazů činnosti | X4: celková délka uložených zákazů činnosti (v letech) | Y4: průměrná délka zákazu činnosti (v letech) | Z4: počet propadnutí věci nebo náhradní hodnoty | AA4: počet zveřejnění rozhodnutí o přestupku | AB4: počet omezujících opatření | AC4: počet zabrání věci nebo náhradní hodnoty | AD4: počet podaných odvolání | AE4: odvolání zamítnuto a napadené rozhodnutí potvrzeno | AF4: odvolání vyřízeno v rámci autoremedury | AG4: rozhodnutí změněno | AH4: rozhodnutí zrušeno a věc vrácena k novému projednání | AI4: rozhodnutí zrušeno a řízení zastaveno
I5: oznámení o zahájení řízení | J5: příkaz | K5: příkaz na místě | L5: rozhodnutí | M5: příkaz | N5: příkaz na místě
B6: 34a | C6: 1 | D6: a | G6: 8912 | H6: 484 | I6: 372 | J6: 109 | K6: 7079 | L6: 485 | M6: 108 | N6: 7377 | O6: 0 | P6: 0 | Q6: 660 | R6: 0 | S6: 5948 | T6: 4963 | U6: 971960 | V6: =U6/T6 -> 195.8412251 | W6: 0 | X6: 0 | Y6: 0 | Z6: 0 | AA6: 0 | AB6: 0 | AC6: 0 | AD6: 0 | AE6: 0 | AF6: 0 | AG6: 0 | AH6: 0 | AI6: 0
B7: 34a | C7: 1 | D7: b | G7: 172 | H7: 0 | I7: 0 | J7: 1 | K7: 71 | L7: 0 | M7: 1 | N7: 71 | O7: 12 | P7: 0 | Q7: 0 | R7: 0 | S7: 145 | T7: 78 | U7: 16100 | V7: 206.4102564 | W7: 0 | X7: 0 | Y7: 0 | Z7: 0 | AA7: 0 | AB7: 0 | AC7: 0 | AD7: 0 | AE7: 0 | AF7: 0 | AG7: 0 | AH7: 0 | AI7: 0
B8: 34a | C8: 1 | D8: c | G8: 1 | H8: 0 | I8: 0 | J8: 0 | K8: 1 | L8: 0 | M8: 0 | N8: 1 | O8: 0 | P8: 0 | Q8: 0 | R8: 0 | S8: 55 | T8: 0 | U8: 0 | V8: 0 | W8: 0 | X8: 0 | Y8: 0 | Z8: 0 | AA8: 0 | AB8: 0 | AC8: 0 | AD8: 0 | AE8: 0 | AF8: 0 | AG8: 0 | AH8: 0 | AI8: 0
B9: 34a | C9: 1 | D9: d | G9: 327 | H9: 245 | I9: 23 | J9: 5 | K9: 438 | L9: 47 | M9: 5 | N9: 438 | O9: 0 | P9: 0 | Q9: 0 | R9: 0 | S9: 235 | T9: 186 | U9: 41000 | V9: 220.4301075 | W9: 0 | X9: 0 | Y9: 0 | Z9: 0 | AA9: 0 | AB9: 0 | AC9: 0 | AD9: 0 | AE9: 0 | AF9: 0 | AG9: 0 | AH9: 0 | AI9: 0
B10: 34a | C10: 1 | D10: e | G10: 2185 | H10: 1505 | I10: 7 | J10: 73 | K10: 96 | L10: 93 | M10: 64 | N10: 225 | O10: 4 | P10: 0 | Q10: 0 | R10: 0 | S10: 113 | T10: 78 | U10: 64800 | V10: 830.7692308 | W10: 0 | X10: 0 | Y10: 0 | Z10: 0 | AA10: 0 | AB10: 0 | AC10: 0 | AD10: 0 | AE10: 0 | AF10: 0 | AG10: 0 | AH10: 0 | AI10: 0
B11: 34a | C11: 1 | D11: f | G11: 652 | H11: 5 | I11: 2 | J11: 13 | K11: 636 | L11: 1 | M11: 13 | N11: 636 | O11: 0 | P11: 0 | Q11: 0 | R11: 0 | S11: 5 | T11: 59 | U11: 18250 | V11: 309.3220339 | W11: 0 | X11: 0 | Y11: 0 | Z11: 0 | AA11: 0 | AB11: 0 | AC11: 0 | AD11: 0 | AE11: 0 | AF11: 0 | AG11: 0 | AH11: 0 | AI11: 0
B12: 34a | C12: 1 | D12: g | G12: 21 | H12: 9 | I12: 3 | J12: 1 | K12: 9 | L12: 0 | M12: 2 | N12: 10 | O12: 0 | P12: 0 | Q12: 0 | R12: 0 | S12: 1 | T12: 9 | U12: 3405 | V12: 378.3333333 | W12: 0 | X12: 0 | Y12: 0 | Z12: 0 | AA12: 0 | AB12: 0 | AC12: 0 | AD12: 0 | AE12: 0 | AF12: 0 | AG12: 0 | AH12: 0 | AI12: 0
B13: 34a | C13: 1 | D13: h | G13: 0 | H13: 0 | I13: 0 | J13: 0 | K13: 0 | L13: 0 | M13: 0 | N13: 0 | O13: 0 | P13: 0 | Q13: 0 | R13: 0 | S13: 0 | T13: 0 | U13: 0 | V13: 0 | W13: 0 | X13: 0 | Y13: 0 | Z13: 0 | AA13: 0 | AB13: 0 | AC13: 0 | AD13: 0 | AE13: 0 | AF13: 0 | AG13: 0 | AH13: 0 | AI13: 0
B14: 34a | C14: 1 | D14: i | G14: 1 | H14: 1 | I14: 0 | J14: 0 | K14: 0 | L14: 0 | M14: 0 | N14: 0 | O14: 0 | P14: 0 | Q14: 0 | R14: 0 | S14: 0 | T14: 0 | U14: 0 | V14: 0 | W14: 0 | X14: 0 | Y14: 0 | Z14: 0 | AA14: 0 | AB14: 0 | AC14: 0 | AD14: 0 | AE14: 0 | AF14: 0 | AG14: 0 | AH14: 0 | AI14: 0
B15: 34a | C15: 1 | D15: j | G15: 0 | H15: 0 | I15: 0 | J15: 0 | K15: 0 | L15: 0 | M15: 0 | N15: 0 | O15: 0 | P15: 0 | Q15: 0 | R15: 0 | S15: 0 | T15: 0 | U15: 0 | V15: 0 | W15: 0 | X15: 0 | Y15: 0 | Z15: 0 | AA15: 0 | AB15: 0 | AC15: 0 | AD15: 0 | AE15: 0 | AF15: 0 | AG15: 0 | AH15: 0 | AI15: 0
B16: Celkem | G16: =SUM(G6:G15) -> 12271 | H16: =SUM(H6:H15) -> 2249 | I16: 407 | J16: 202 | K16: 8330 | L16: 626 | M16: 193 | N16: 8758 | O16: 16 | P16: 0 | Q16: 660 | R16: 0 | S16: 6502 | T16: 5373 | U16: 1115515 | V16: 207.6149265 | W16: 0 | X16: 0 | Y16: 0 | Z16: 0 | AA16: 0 | AB16: 0 | AC16: 0 | AD16: 0 | AE16: 0 | AF16: 0 | AG16: 0 | AH16: 0 | AI16: 0

Sheet Zákon č. 128-2000 Sb.
B2: PŘEHLED PŘESTUPKŮ ZA ROK 2018
B3: Zákon č. 128/2000 Sb., o obcích (obecní zřízení)
B4: § | C4: odst. | D4: písm. | E4: bod | F4: ve znění zákona č. 175/2018 Sb. | G4: počet podnětů k zahájení řízení o přestupku | H4: počet odložených věcí | I4: počet zahájených řízení o přestupku | L4: počet pravomocných rozhodnutí o uznání obviněného vinným ze spáchání přestupku | O4: počet zastavených řízení | P4: počet rozhodnutí o schválení dohody o narovnání | Q4: počet pravomocných rozhodnutí, kterými bylo upuštěno od uložení správního trestu | R4: počet pravomocných rozhodnutí, kterými byla mimořádně snížena výměra pokuty | S4: počet napomenutí | T4: počet pokut | U4: celková výměra pokut (v Kč) | V4: průměrná výměra pokuty (v Kč) | W4: počet zákazů činnosti | X4: celková délka uložených zákazů činnosti (v letech) | Y4: průměrná délka zákazu činnosti (v letech) | Z4: počet propadnutí věci nebo náhradní hodnoty | AA4: počet zveřejnění rozhodnutí o přestupku | AB4: počet omezujících opatření | AC4: počet zabrání věci nebo náhradní hodnoty | AD4: počet podaných odvolání | AE4: odvolání zamítnuto a napadené rozhodnutí potvrzeno | AF4: odvolání vyřízeno v rámci autoremedury | AG4: rozhodnutí změněno | AH4: rozhodnutí zrušeno a věc vrácena k novému projednání | AI4: rozhodnutí zrušeno a řízení zastaveno
I5: oznámení o zahájení řízení | J5: příkaz | K5: příkaz na místě | L5: rozhodnutí | M5: příkaz | N5: příkaz na místě
B6: 66d | C6: 1 | D6: a | G6: 1 | H6: 1 | I6: 0 | J6: 0 | K6: 0 | L6: 0 | M6: 0 | N6: 0 | O6: 0 | P6: 0 | Q6: 0 | R6: 0 | S6: 0 | T6: 0 | U6: 0 | V6: 0 | W6: 0 | X6: 0 | Y6: 0 | Z6: 0 | AA6: 0 | AB6: 0 | AC6: 0 | AD6: 0 | AE6: 0 | AF6: 0 | AG6: 0 | AH6: 0 | AI6: 0
B7: 66d | C7: 1 | D7: b | G7: 17 | H7: 4 | I7: 8 | J7: 10 | K7: 2 | L7: 0 | M7: 10 | N7: 2 | O7: 0 | P7: 0 | Q7: 0 | R7: 0 | S7: 3 | T7: 9 | U7: 26200 | V7: =U7/T7 -> 2911.111111 | W7: 0 | X7: 0 | Y7: 0 | Z7: 0 | AA7: 0 | AB7: 0 | AC7: 0 | AD7: 0 | AE7: 0 | AF7: 0 | AG7: 0 | AH7: 0 | AI7: 0
B8: 66d | C8: 1 | D8: c | G8: 34 | H8: 12 | I8: 4 | J8: 0 | K8: 13 | L8: 0 | M8: 0 | N8: 13 | O8: 1 | P8: 0 | Q8: 0 | R8: 0 | S8: 0 | T8: 13 | U8: 5800 | V8: 446.1538462 | W8: 0 | X8: 0 | Y8: 0 | Z8: 0 | AA8: 0 | AB8: 0 | AC8: 0 | AD8: 0 | AE8: 0 | AF8: 0 | AG8: 0 | AH8: 0 | AI8: 0
B9: 66d | C9: 2 | D9: a | G9: 0 | H9: 0 | I9: 0 | J9: 0 | K9: 0 | L9: 0 | M9: 0 | N9: 0 | O9: 0 | P9: 0 | Q9: 0 | R9: 0 | S9: 0 | T9: 0 | U9: 0 | V9: 0 | W9: 0 | X9: 0 | Y9: 0 | Z9: 0 | AA9: 0 | AB9: 0 | AC9: 0 | AD9: 0 | AE9: 0 | AF9: 0 | AG9: 0 | AH9: 0 | AI9: 0
B10: 66d | C10: 2 | D10: b | G10: 5 | H10: 0 | I10: 2 | J10: 3 | K10: 0 | L10: 1 | M10: 3 | N10: 0 | O10: 0 | P10: 0 | Q10: 0 | R10: 0 | S10: 0 | T10: 4 | U10: 45000 | V10: 11250 | W10: 0 | X10: 0 | Y10: 0 | Z10: 0 | AA10: 0 | AB10: 0 | AC10: 0 | AD10: 1 | AE10: 1 | AF10: 0 | AG10: 0 | AH10: 0 | AI10: 0
B11: 66d | C11: 2 | D11: c | G11: 3 | H11: 0 | I11: 0 | J11: 1 | K11: 0 | L11: 0 | M11: 1 | N11: 0 | O11: 0 | P11: 0 | Q11: 0 | R11: 0 | S11: 0 | T11: 1 | U11: 5000 | V11: 5000 | W11: 0 | X11: 0 | Y11: 0 | Z11: 0 | AA11: 0 | AB11: 0 | AC11: 0 | AD11: 0 | AE11: 0 | AF11: 0 | AG11: 0 | AH11: 0 | AI11: 0
B12: 66d | C12: 3 | D12: a | G12: 27 | H12: 18 | I12: 1 | J12: 2 | K12: 0 | L12: 0 | M12: 3 | N12: 0 | O12: 0 | P12: 0 | Q12: 0 | R12: 0 | S12: 2 | T12: 1 | U12: 200 | V12: 200 | W12: 0 | X12: 0 | Y12: 0 | Z12: 0 | AA12: 0 | AB12: 0 | AC12: 0 | AD12: 0 | AE12: 0 | AF12: 0 | AG12: 0 | AH12: 0 | AI12: 0
B13: 66d | C13: 3 | D13: b | G13: 1 | H13: 0 | I13: 1 | J13: 0 | K13: 0 | L13: 1 | M13: 0 | N13: 0 | O13: 0 | P13: 0 | Q13: 0 | R13: 0 | S13: 0 | T13: 1 | U13: 50000 | V13: 50000 | W13: 0 | X13: 0 | Y13: 0 | Z13: 0 | AA13: 0 | AB13: 0 | AC13: 0 | AD13: 0 | AE13: 0 | AF13: 0 | AG13: 0 | AH13: 0 | AI13: 0
B14: Celkem | G14: =SUM(G5:G13) -> 88 | H14: =SUM(H5:H13) -> 35 | I14: 16 | J14: 16 | K14: 15 | L14: 2 | M14: 17 | N14: 15 | O14: 1 | P14: 0 | Q14: 0 | R14: 0 | S14: 5 | T14: 29 | U14: 132200 | V14: 4558.62069 | W14: 0 | X14: 0 | Y14: 0 | Z14: 0 | AA14: 0 | AB14: 0 | AC14: 0 | AD14: 1 | AE14: 1 | AF14: 0 | AG14: 0 | AH14: 0 | AI14: 0

Sheet Zákon č. 130-2000 Sb.
B2: PŘEHLED PŘESTUPKŮ ZA ROK 2018
B3: Zákon č. 130/2000 Sb., o volbách do zastupitelstev krajů a o změně některých zákonů
B4: § | C4: odst. | D4: písm. | E4: bod | F4: ve znění zákona č. 90/2017 Sb. | G4: počet podnětů k zahájení řízení o přestupku | H4: počet odložených věcí | I4: počet zahájených řízení o přestupku | L4: počet pravomocných rozhodnutí o uznání obviněného vinným ze spáchání přestupku | O4: počet zastavených řízení | P4: počet rozhodnutí o schválení dohody o narovnání | Q4: počet pravomocných rozhodnutí, kterými bylo upuštěno od uložení správního trestu | R4: počet pravomocných rozhodnutí, kterými byla mimořádně snížena výměra pokuty | S4: počet napomenutí | T4: počet pokut | U4: celková výměra pokut (v Kč) | V4: průměrná výměra pokuty (v Kč) | W4: počet zákazů činnosti | X4: celková délka uložených zákazů činnosti (v letech) | Y4: průměrná délka zákazu činnosti (v letech) | Z4: počet propadnutí věci nebo náhradní hodnoty | AA4: počet zveřejnění rozhodnutí o přestupku | AB4: počet omezujících opatření | AC4: počet zabrání věci nebo náhradní hodnoty | AD4: počet podaných odvolání | AE4: odvolání zamítnuto a napadené rozhodnutí potvrzeno | AF4: odvolání vyřízeno v rámci autoremedury | AG4: rozhodnutí změněno | AH4: rozhodnutí zrušeno a věc vrácena k novému projednání | AI4: rozhodnutí zrušeno a řízení zastaveno
I5: oznámení o zahájení řízení | J5: příkaz | K5: příkaz na místě | L5: rozhodnutí | M5: příkaz | N5: příkaz na místě
B6: 57 | C6: 1 | D6: a | G6: 0 | H6: 0 | I6: 0 | J6: 0 | K6: 0 | L6: 0 | M6: 0 | N6: 0 | O6: 0 | P6: 0 | Q6: 0 | R6: 0 | S6: 0 | T6: 0 | U6: 0 | V6: 0 | W6: 0 | X6: 0 | Y6: 0 | Z6: 0 | AA6: 0 | AB6: 0 | AC6: 0 | AD6: 0 | AE6: 0 | AF6: 0 | AG6: 0 | AH6: 0 | AI6: 0
B7: 57 | C7: 1 | D7: b | G7: 0 | H7: 0 | I7: 0 | J7: 0 | K7: 0 | L7: 0 | M7: 0 | N7: 0 | O7: 0 | P7: 0 | Q7: 0 | R7: 0 | S7: 0 | T7: 0 | U7: 0 | V7: 0 | W7: 0 | X7: 0 | Y7: 0 | Z7: 0 | AA7: 0 | AB7: 0 | AC7: 0 | AD7: 0 | AE7: 0 | AF7: 0 | AG7: 0 | AH7: 0 | AI7: 0
B8: 57 | C8: 1 | D8: c | G8: 0 | H8: 0 | I8: 0 | J8: 0 | K8: 0 | L8: 0 | M8: 0 | N8: 0 | O8: 0 | P8: 0 | Q8: 0 | R8: 0 | S8: 0 | T8: 0 | U8: 0 | V8: 0 | W8: 0 | X8: 0 | Y8: 0 | Z8: 0 | AA8: 0 | AB8: 0 | AC8: 0 | AD8: 0 | AE8: 0 | AF8: 0 | AG8: 0 | AH8: 0 | AI8: 0
B9: 57 | C9: 1 | D9: d | G9: 0 | H9: 0 | I9: 0 | J9: 0 | K9: 0 | L9: 0 | M9: 0 | N9: 0 | O9: 0 | P9: 0 | Q9: 0 | R9: 0 | S9: 0 | T9: 0 | U9: 0 | V9: 0 | W9: 0 | X9: 0 | Y9: 0 | Z9: 0 | AA9: 0 | AB9: 0 | AC9: 0 | AD9: 0 | AE9: 0 | AF9: 0 | AG9: 0 | AH9: 0 | AI9: 0
B10: 57 | C10: 1 | D10: e | G10: 1 | H10: 0 | I10: 1 | J10: 0 | K10: 0 | L10: 0 | M10: 0 | N10: 0 | O10: 0 | P10: 0 | Q10: 0 | R10: 0 | S10: 0 | T10: 0 | U10: 0 | V10: 0 | W10: 0 | X10: 0 | Y10: 0 | Z10: 0 | AA10: 0 | AB10: 0 | AC10: 0 | AD10: 0 | AE10: 0 | AF10: 0 | AG10: 0 | AH10: 0 | AI10: 0
B11: 57 | C11: 1 | D11: f | G11: 0 | H11: 0 | I11: 0 | J11: 0 | K11: 0 | L11: 0 | M11: 0 | N11: 0 | O11: 0 | P11: 0 | Q11: 0 | R11: 0 | S11: 0 | T11: 0 | U11: 0 | V11: 0 | W11: 0 | X11: 0 | Y11: 0 | Z11: 0 | AA11: 0 | AB11: 0 | AC11: 0 | AD11: 0 | AE11: 0 | AF11: 0 | AG11: 0 | AH11: 0 | AI11: 0
B12: 57 | C12: 1 | D12: g | G12: 0 | H12: 0 | I12: 0 | J12: 0 | K12: 0 | L12: 0 | M12: 0 | N12: 0 | O12: 0 | P12: 0 | Q12: 0 | R12: 0 | S12: 0 | T12: 0 | U12: 0 | V12: 0 | W12: 0 | X12: 0 | Y12: 0 | Z12: 0 | AA12: 0 | AB12: 0 | AC12: 0 | AD12: 0 | AE12: 0 | AF12: 0 | AG12: 0 | AH12: 0 | AI12: 0
B13: 57 | C13: 1 | D13: h | G13: 0 | H13: 0 | I13: 0 | J13: 0 | K13: 0 | L13: 0 | M13: 0 | N13: 0 | O13: 0 | P13: 0 | Q13: 0 | R13: 0 | S13: 0 | T13: 0 | U13: 0 | V13: 0 | W13: 0 | X13: 0 | Y13: 0 | Z13: 0 | AA13: 0 | AB13: 0 | AC13: 0 | AD13: 0 | AE13: 0 | AF13: 0 | AG13: 0 | AH13: 0 | AI13: 0
B14: 57 | C14: 1 | D14: i | G14: 0 | H14: 0 | I14: 0 | J14: 0 | K14: 0 | L14: 0 | M14: 0 | N14: 0 | O14: 0 | P14: 0 | Q14: 0 | R14: 0 | S14: 0 | T14: 0 | U14: 0 | V14: 0 | W14: 0 | X14: 0 | Y14: 0 | Z14: 0 | AA14: 0 | AB14: 0 | AC14: 0 | AD14: 0 | AE14: 0 | AF14: 0 | AG14: 0 | AH14: 0 | AI14: 0
B15: 57 | C15: 1 | D15: j | G15: 0 | H15: 0 | I15: 0 | J15: 0 | K15: 0 | L15: 0 | M15: 0 | N15: 0 | O15: 0 | P15: 0 | Q15: 0 | R15: 0 | S15: 0 | T15: 0 | U15: 0 | V15: 0 | W15: 0 | X15: 0 | Y15: 0 | Z15: 0 | AA15: 0 | AB15: 0 | AC15: 0 | AD15: 0 | AE15: 0 | AF15: 0 | AG15: 0 | AH15: 0 | AI15: 0
B16: 57 | C16: 1 | D16: k | G16: 0 | H16: 0 | I16: 0 | J16: 0 | K16: 0 | L16: 0 | M16: 0 | N16: 0 | O16: 0 | P16: 0 | Q16: 0 | R16: 0 | S16: 0 | T16: 0 | U16: 0 | V16: 0 | W16: 0 | X16: 0 | Y16: 0 | Z16: 0 | AA16: 0 | AB16: 0 | AC16: 0 | AD16: 0 | AE16: 0 | AF16: 0 | AG16: 0 | AH16: 0 | AI16: 0
B17: 58 | C17: 1 | D17: a | G17: 0 | H17: 0 | I17: 0 | J17: 0 | K17: 0 | L17: 0 | M17: 0 | N17: 0 | O17: 0 | P17: 0 | Q17: 0 | R17: 0 | S17: 0 | T17: 0 | U17: 0 | V17: 0 | W17: 0 | X17: 0 | Y17: 0 | Z17: 0 | AA17: 0 | AB17: 0 | AC17: 0 | AD17: 0 | AE17: 0 | AF17: 0 | AG17: 0 | AH17: 0 | AI17: 0
B18: 58 | C18: 1 | D18: b | G18: 0 | H18: 0 | I18: 0 | J18: 0 | K18: 0 | L18: 0 | M18: 0 | N18: 0 | O18: 0 | P18: 0 | Q18: 0 | R18: 0 | S18: 0 | T18: 0 | U18: 0 | V18: 0 | W18: 0 | X18: 0 | Y18: 0 | Z18: 0 | AA18: 0 | AB18: 0 | AC18: 0 | AD18: 0 | AE18: 0 | AF18: 0 | AG18: 0 | AH18: 0 | AI18: 0
B19: 58 | C19: 1 | D19: c | G19: 0 | H19: 0 | I19: 0 | J19: 0 | K19: 0 | L19: 0 | M19: 0 | N19: 0 | O19: 0 | P19: 0 | Q19: 0 | R19: 0 | S19: 0 | T19: 0 | U19: 0 | V19: 0 | W19: 0 | X19: 0 | Y19: 0 | Z19: 0 | AA19: 0 | AB19: 0 | AC19: 0 | AD19: 0 | AE19: 0 | AF19: 0 | AG19: 0 | AH19: 0 | AI19: 0
B20: 58 | C20: 1 | D20: d | G20: 0 | H20: 0 | I20: 0 | J20: 0 | K20: 0 | L20: 0 | M20: 0 | N20: 0 | O20: 0 | P20: 0 | Q20: 0 | R20: 0 | S20: 0 | T20: 0 | U20: 0 | V20: 0 | W20: 0 | X20: 0 | Y20: 0 | Z20: 0 | AA20: 0 | AB20: 0 | AC20: 0 | AD20: 0 | AE20: 0 | AF20: 0 | AG20: 0 | AH20: 0 | AI20: 0
B21: 58 | C21: 1 | D21: e | G21: 1 | H21: 0 | I21: 1 | J21: 0 | K21: 0 | L21: 0 | M21: 0 | N21: 0 | O21: 0 | P21: 0 | Q21: 0 | R21: 0 | S21: 0 | T21: 0 | U21: 0 | V21: 0 | W21: 0 | X21: 0 | Y21: 0 | Z21: 0 | AA21: 0 | AB21: 0 | AC21: 0 | AD21: 0 | AE21: 0 | AF21: 0 | AG21: 0 | AH21: 0 | AI21: 0
B22: 58 | C22: 1 | D22: f | G22: 0 | H22: 0 | I22: 0 | J22: 0 | K22: 0 | L22: 0 | M22: 0 | N22: 0 | O22: 0 | P22: 0 | Q22: 0 | R22: 0 | S22: 0 | T22: 0 | U22: 0 | V22: 0 | W22: 0 | X22: 0 | Y22: 0 | Z22: 0 | AA22: 0 | AB22: 0 | AC22: 0 | AD22: 0 | AE22: 0 | AF22: 0 | AG22: 0 | AH22: 0 | AI22: 0
B23: 58 | C23: 1 | D23: g | G23: 0 | H23: 0 | I23: 0 | J23: 0 | K23: 0 | L23: 0 | M23: 0 | N23: 0 | O23: 0 | P23: 0 | Q23: 0 | R23: 0 | S23: 0 | T23: 0 | U23: 0 | V23: 0 | W23: 0 | X23: 0 | Y23: 0 | Z23: 0 | AA23: 0 | AB23: 0 | AC23: 0 | AD23: 0 | AE23: 0 | AF23: 0 | AG23: 0 | AH23: 0 | AI23: 0
B24: 58 | C24: 1 | D24: h | G24: 0 | H24: 0 | I24: 0 | J24: 0 | K24: 0 | L24: 0 | M24: 0 | N24: 0 | O24: 0 | P24: 0 | Q24: 0 | R24: 0 | S24: 0 | T24: 0 | U24: 0 | V24: 0 | W24: 0 | X24: 0 | Y24: 0 | Z24: 0 | AA24: 0 | AB24: 0 | AC24: 0 | AD24: 0 | AE24: 0 | AF24: 0 | AG24: 0 | AH24: 0 | AI24: 0
B25: 58 | C25: 1 | D25: i | G25: 0 | H25: 0 | I25: 0 | J25: 0 | K25: 0 | L25: 0 | M25: 0 | N25: 0 | O25: 0 | P25: 0 | Q25: 0 | R25: 0 | S25: 0 | T25: 0 | U25: 0 | V25: 0 | W25: 0 | X25: 0 | Y25: 0 | Z25: 0 | AA25: 0 | AB25: 0 | AC25: 0 | AD25: 0 | AE25: 0 | AF25: 0 | AG25: 0 | AH25: 0 | AI25: 0
B26: 58 | C26: 1 | D26: j | G26: 0 | H26: 0 | I26: 0 | J26: 0 | K26: 0 | L26: 0 | M26: 0 | N26: 0 | O26: 0 | P26: 0 | Q26: 0 | R26: 0 | S26: 0 | T26: 0 | U26: 0 | V26: 0 | W26: 0 | X26: 0 | Y26: 0 | Z26: 0 | AA26: 0 | AB26: 0 | AC26: 0 | AD26: 0 | AE26: 0 | AF26: 0 | AG26: 0 | AH26: 0 | AI26: 0
B27: 58 | C27: 1 | D27: k | G27: 0 | H27: 0 | I27: 0 | J27: 0 | K27: 0 | L27: 0 | M27: 0 | N27: 0 | O27: 0 | P27: 0 | Q27: 0 | R27: 0 | S27: 0 | T27: 0 | U27: 0 | V27: 0 | W27: 0 | X27: 0 | Y27: 0 | Z27: 0 | AA27: 0 | AB27: 0 | AC27: 0 | AD27: 0 | AE27: 0 | AF27: 0 | AG27: 0 | AH27: 0 | AI27: 0
B28: 58 | C28: 1 | D28: l | G28: 0 | H28: 0 | I28: 0 | J28: 0 | K28: 0 | L28: 0 | M28: 0 | N28: 0 | O28: 0 | P28: 0 | Q28: 0 | R28: 0 | S28: 0 | T28: 0 | U28: 0 | V28: 0 | W28: 0 | X28: 0 | Y28: 0 | Z28: 0 | AA28: 0 | AB28: 0 | AC28: 0 | AD28: 0 | AE28: 0 | AF28: 0 | AG28: 0 | AH28: 0 | AI28: 0
B29: Celkem | G29: =SUM(G4:G28) -> 2 | H29: 0 | I29: 2 | J29: 0 | K29: 0 | L29: 0 | M29: 0 | N29: =SUM(N4:N28) -> 0 | O29: 0 | P29: =SUM(P4:P28) -> 0 | Q29: 0 | R29: 0 | S29: 0 | T29: 0 | U29: 0 | V29: 0 | W29: =SUM(W6:W28) -> 0 | X29: =SUM(X4:X28) -> 0 | Y29: 0 | Z29: 0 | AA29: =SUM(AA5:AA28) -> 0 | AB29: 0 | AC29: 0 | AD29: 0 | AE29: 0 | AF29: 0 | AG29: 0 | AH29: 0 | AI29: 0

Sheet Zákon č. 131-2000 Sb.
B2: PŘEHLED PŘESTUPKŮ ZA ROK 2018
B3: Zákon č. 131/2000 Sb., o hlavním městě Praze
B4: § | C4: odst. | D4: písm. | E4: bod | F4: ve znění zákona č. 225/2017 Sb. | G4: počet podnětů k zahájení řízení o přestupku | H4: počet odložených věcí | I4: počet zahájených řízení o přestupku | L4: počet pravomocných rozhodnutí o uznání obviněného vinným ze spáchání přestupku | O4: počet zastavených řízení | P4: počet rozhodnutí o schválení dohody o narovnání | Q4: počet pravomocných rozhodnutí, kterými bylo upuštěno od uložení správního trestu | R4: počet pravomocných rozhodnutí, kterými byla mimořádně snížena výměra pokuty | S4: počet napomenutí | T4: počet pokut | U4: celková výměra pokut (v Kč) | V4: průměrná výměra pokuty (v Kč) | W4: počet zákazů činnosti | X4: celková délka uložených zákazů činnosti (v letech) | Y4: průměrná délka zákazu činnosti (v letech) | Z4: počet propadnutí věci nebo náhradní hodnoty | AA4: počet zveřejnění rozhodnutí o přestupku | AB4: počet omezujících opatření | AC4: počet zabrání věci nebo náhradní hodnoty | AD4: počet podaných odvolání | AE4: odvolání zamítnuto a napadené rozhodnutí potvrzeno | AF4: odvolání vyřízeno v rámci autoremedury | AG4: rozhodnutí změněno | AH4: rozhodnutí zrušeno a věc vrácena k novému projednání | AI4: rozhodnutí zrušeno a řízení zastaveno
I5: oznámení o zahájení řízení | J5: příkaz | K5: příkaz na místě | L5: rozhodnutí | M5: příkaz | N5: příkaz na místě
B6: 33a | C6: 1 | D6: a | G6: 1 | H6: 0 | I6: 0 | J6: 0 | K6: 0 | L6: 0 | M6: 0 | N6: 0 | O6: 0 | P6: 0 | Q6: 0 | R6: 0 | S6: 0 | T6: 0 | U6: 0 | V6: 0 | W6: 0 | X6: 0 | Y6: 0 | Z6: 0 | AA6: 0 | AB6: 0 | AC6: 0 | AD6: 0 | AE6: 0 | AF6: 0 | AG6: 0 | AH6: 0 | AI6: 0
B7: 33a | C7: 1 | D7: b | G7: 4 | H7: 3 | I7: 0 | J7: 1 | K7: 0 | L7: 0 | M7: 1 | N7: 0 | O7: 0 | P7: 0 | Q7: 0 | R7: 0 | S7: 0 | T7: 1 | U7: 1000 | V7: =U7/T7 -> 1000 | W7: 0 | X7: 0 | Y7: 0 | Z7: 0 | AA7: 0 | AB7: 0 | AC7: 0 | AD7: 0 | AE7: 0 | AF7: 0 | AG7: 0 | AH7: 0 | AI7: 0
B8: 33a | C8: 1 | D8: c | G8: 0 | H8: 0 | I8: 0 | J8: 0 | K8: 0 | L8: 0 | M8: 0 | N8: 0 | O8: 0 | P8: 0 | Q8: 0 | R8: 0 | S8: 0 | T8: 0 | U8: 0 | V8: 0 | W8: 0 | X8: 0 | Y8: 0 | Z8: 0 | AA8: 0 | AB8: 0 | AC8: 0 | AD8: 0 | AE8: 0 | AF8: 0 | AG8: 0 | AH8: 0 | AI8: 0
B9: 33a | C9: 2 | D9: a | G9: 0 | H9: 0 | I9: 0 | J9: 0 | K9: 0 | L9: 0 | M9: 0 | N9: 0 | O9: 0 | P9: 0 | Q9: 0 | R9: 0 | S9: 0 | T9: 0 | U9: 0 | V9: 0 | W9: 0 | X9: 0 | Y9: 0 | Z9: 0 | AA9: 0 | AB9: 0 | AC9: 0 | AD9: 0 | AE9: 0 | AF9: 0 | AG9: 0 | AH9: 0 | AI9: 0
B10: 33a | C10: 2 | D10: b | G10: 1 | H10: 0 | I10: 0 | J10: 0 | K10: 0 | L10: 0 | M10: 1 | N10: 0 | O10: 0 | P10: 0 | Q10: 0 | R10: 0 | S10: 0 | T10: 1 | U10: 1000 | V10: 1000 | W10: 0 | X10: 0 | Y10: 0 | Z10: 0 | AA10: 0 | AB10: 0 | AC10: 0 | AD10: 0 | AE10: 0 | AF10: 0 | AG10: 0 | AH10: 0 | AI10: 0
B11: 33a | C11: 2 | D11: c | G11: 1 | H11: 0 | I11: 0 | J11: 0 | K11: 0 | L11: 0 | M11: 0 | N11: 0 | O11: 0 | P11: 0 | Q11: 0 | R11: 0 | S11: 0 | T11: 0 | U11: 0 | V11: 0 | W11: 0 | X11: 0 | Y11: 0 | Z11: 0 | AA11: 0 | AB11: 0 | AC11: 0 | AD11: 0 | AE11: 0 | AF11: 0 | AG11: 0 | AH11: 0 | AI11: 0
B12: 33a | C12: 3 | D12: a | G12: 39 | H12: 31 | I12: 0 | J12: 1 | K12: 0 | L12: 0 | M12: 1 | N12: 0 | O12: 0 | P12: 0 | Q12: 0 | R12: 0 | S12: 0 | T12: 1 | U12: 5000 | V12: 5000 | W12: 0 | X12: 0 | Y12: 0 | Z12: 0 | AA12: 0 | AB12: 0 | AC12: 0 | AD12: 0 | AE12: 0 | AF12: 0 | AG12: 0 | AH12: 0 | AI12: 0
B13: 33a | C13: 3 | D13: b | G13: 0 | H13: 0 | I13: 0 | J13: 0 | K13: 0 | L13: 0 | M13: 0 | N13: 0 | O13: 0 | P13: 0 | Q13: 0 | R13: 0 | S13: 0 | T13: 0 | U13: 0 | V13: 0 | W13: 0 | X13: 0 | Y13: 0 | Z13: 0 | AA13: 0 | AB13: 0 | AC13: 0 | AD13: 0 | AE13: 0 | AF13: 0 | AG13: 0 | AH13: 0 | AI13: 0
B14: Celkem | G14: =SUM(G5:G13) -> 46 | H14: =SUM(H5:H13) -> 34 | I14: 0 | J14: 2 | K14: 0 | L14: 0 | M14: 3 | N14: 0 | O14: 0 | P14: 0 | Q14: 0 | R14: 0 | S14: 0 | T14: 3 | U14: 7000 | V14: =U14/T14 -> 2333.333333 | W14: 0 | X14: 0 | Y14: 0 | Z14: 0 | AA14: 0 | AB14: 0 | AC14: 0 | AD14: 0 | AE14: 0 | AF14: 0 | AG14: 0 | AH14: 0 | AI14: 0

Sheet Zákon č. 133-2000 Sb.
B2: PŘEHLED PŘESTUPKŮ ZA ROK 2018
B3: Zákon č. 133/2000 Sb., o evidenci obyvatel a rodných číslech a o změně některých zákonů (zákon o evidenci obyvatel)
B4: § | C4: odst. | D4: písm. | E4: bod | F4: ve znění zákona č. 183/2017 Sb. | G4: počet podnětů k zahájení řízení o přestupku | H4: počet odložených věcí | I4: počet zahájených řízení o přestupku | L4: počet pravomocných rozhodnutí o uznání obviněného vinným ze spáchání přestupku | O4: počet zastavených řízení | P4: počet rozhodnutí o schválení dohody o narovnání | Q4: počet pravomocných rozhodnutí, kterými bylo upuštěno od uložení správního trestu | R4: počet pravomocných rozhodnutí, kterými byla mimořádně snížena výměra pokuty | S4: počet napomenutí | T4: počet pokut | U4: celková výměra pokut (v Kč) | V4: průměrná výměra pokuty (v Kč) | W4: počet zákazů činnosti | X4: celková délka uložených zákazů činnosti (v letech) | Y4: průměrná délka zákazu činnosti (v letech) | Z4: počet propadnutí věci nebo náhradní hodnoty | AA4: počet zveřejnění rozhodnutí o přestupku | AB4: počet omezujících opatření | AC4: počet zabrání věci nebo náhradní hodnoty | AD4: počet podaných odvolání | AE4: odvolání zamítnuto a napadené rozhodnutí potvrzeno | AF4: odvolání vyřízeno v rámci autoremedury | AG4: rozhodnutí změněno | AH4: rozhodnutí zrušeno a věc vrácena k novému projednání | AI4: rozhodnutí zrušeno a řízení zastaveno
I5: oznámení o zahájení řízení | J5: příkaz | K5: příkaz na místě | L5: rozhodnutí | M5: příkaz | N5: příkaz na místě
B6: 17d | C6: 1 | D6: a | G6: 1 | H6: 0 | I6: 0 | J6: 1 | K6: 0 | L6: 0 | M6: 1 | N6: 0 | O6: 0 | P6: 0 | Q6: 0 | R6: 0 | S6: 0 | T6: 1 | U6: 1000 | V6: =U6/T6 -> 1000 | W6: 0 | X6: 0 | Y6: 0 | Z6: 0 | AA6: 0 | AB6: 0 | AC6: 0 | AD6: 0 | AE6: 0 | AF6: 0 | AG6: 0 | AH6: 0 | AI6: 0
B7: 17d | C7: 1 | D7: b | G7: 0 | H7: 0 | I7: 0 | J7: 0 | K7: 0 | L7: 0 | M7: 0 | N7: 0 | O7: 0 | P7: 0 | Q7: 0 | R7: 0 | S7: 0 | T7: 0 | U7: 0 | V7: 0 | W7: 0 | X7: 0 | Y7: 0 | Z7: 0 | AA7: 0 | AB7: 0 | AC7: 0 | AD7: 0 | AE7: 0 | AF7: 0 | AG7: 0 | AH7: 0 | AI7: 0
B8: 17d | C8: 1 | D8: c | G8: 0 | H8: 0 | I8: 0 | J8: 0 | K8: 0 | L8: 1 | M8: 0 | N8: 0 | O8: 0 | P8: 0 | Q8: 0 | R8: 0 | S8: 0 | T8: 1 | U8: 1000 | V8: 1000 | W8: 0 | X8: 0 | Y8: 0 | Z8: 0 | AA8: 0 | AB8: 0 | AC8: 0 | AD8: 0 | AE8: 0 | AF8: 0 | AG8: 0 | AH8: 0 | AI8: 0
B9: 17d | C9: 1 | D9: d | G9: 9 | H9: 4 | I9: 0 | J9: 1 | K9: 2 | L9: 0 | M9: 1 | N9: 2 | O9: 0 | P9: 0 | Q9: 0 | R9: 0 | S9: 0 | T9: 3 | U9: 28000 | V9: =U9/T9 -> 9333.333333 | W9: 0 | X9: 0 | Y9: 0 | Z9: 0 | AA9: 0 | AB9: 0 | AC9: 0 | AD9: 0 | AE9: 0 | AF9: 0 | AG9: 0 | AH9: 0 | AI9: 0
B10: 17e | C10: 1 | D10: a | G10: 0 | H10: 0 | I10: 0 | J10: 0 | K10: 0 | L10: 0 | M10: 0 | N10: 0 | O10: 0 | P10: 0 | Q10: 0 | R10: 0 | S10: 0 | T10: 0 | U10: 0 | V10: 0 | W10: 0 | X10: 0 | Y10: 0 | Z10: 0 | AA10: 0 | AB10: 0 | AC10: 0 | AD10: 0 | AE10: 0 | AF10: 0 | AG10: 0 | AH10: 0 | AI10: 0
B11: 17e | C11: 1 | D11: b | G11: 0 | H11: 0 | I11: 0 | J11: 0 | K11: 0 | L11: 0 | M11: 0 | N11: 0 | O11: 0 | P11: 0 | Q11: 0 | R11: 0 | S11: 0 | T11: 0 | U11: 0 | V11: 0 | W11: 0 | X11: 0 | Y11: 0 | Z11: 0 | AA11: 0 | AB11: 0 | AC11: 0 | AD11: 0 | AE11: 0 | AF11: 0 | AG11: 0 | AH11: 0 | AI11: 0
B12: Celkem | G12: =SUM(G1:G9) -> 10 | H12: 4 | I12: 0 | J12: 2 | K12: 2 | L12: 1 | M12: 2 | N12: 2 | O12: 0 | P12: 0 | Q12: 0 | R12: 0 | S12: 0 | T12: 5 | U12: 30000 | V12: 6000 | W12: =SUM(W1:W9) -> 0 | X12: 0 | Y12: 0 | Z12: 0 | AA12: 0 | AB12: 0 | AC12: 0 | AD12: 0 | AE12: 0 | AF12: 0 | AG12: 0 | AH12: 0 | AI12: 0

Sheet Zákon č. 239-2000 Sb.
B2: PŘEHLED PŘESTUPKŮ ZA ROK 2018
B3: Zákon č. 239/2000 Sb., o integrovaném záchranném systému a o změně některých zákonů
B4: § | C4: odst. | D4: písm. | E4: bod | F4: ve znění zákona č. 225/2017 Sb. | G4: počet podnětů k zahájení řízení o přestupku | H4: počet odložených věcí | I4: počet zahájených řízení o přestupku | L4: počet pravomocných rozhodnutí o uznání obviněného vinným ze spáchání přestupku | O4: počet zastavených řízení | P4: počet rozhodnutí o schválení dohody o narovnání | Q4: počet pravomocných rozhodnutí, kterými bylo upuštěno od uložení správního trestu | R4: počet pravomocných rozhodnutí, kterými byla mimořádně snížena výměra pokuty | S4: počet napomenutí | T4: počet pokut | U4: celková výměra pokut (v Kč) | V4: průměrná výměra pokuty (v Kč) | W4: počet zákazů činnosti | X4: celková délka uložených zákazů činnosti (v letech) | Y4: průměrná délka zákazu činnosti (v letech) | Z4: počet propadnutí věci nebo náhradní hodnoty | AA4: počet zveřejnění rozhodnutí o přestupku | AB4: počet omezujících opatření | AC4: počet zabrání věci nebo náhradní hodnoty | AD4: počet podaných odvolání | AE4: odvolání zamítnuto a napadené rozhodnutí potvrzeno | AF4: odvolání vyřízeno v rámci autoremedury | AG4: rozhodnutí změněno | AH4: rozhodnutí zrušeno a věc vrácena k novému projednání | AI4: rozhodnutí zrušeno a řízení zastaveno
I5: oznámení o zahájení řízení | J5: příkaz | K5: příkaz na místě | L5: rozhodnutí | M5: příkaz | N5: příkaz na místě
B6: 28 | C6: 1 | D6: a | G6: 0 | H6: 0 | I6: 0 | J6: 0 | K6: 0 | L6: 0 | M6: 0 | N6: 0 | O6: 0 | P6: 0 | Q6: 0 | R6: 0 | S6: 0 | T6: 0 | U6: 0 | V6: 0 | W6: 0 | X6: 0 | Y6: 0 | Z6: 0 | AA6: 0 | AB6: 0 | AC6: 0 | AD6: 0 | AE6: 0 | AF6: 0 | AG6: 0 | AH6: 0 | AI6: 0
B7: 28 | C7: 1 | D7: b | G7: 0 | H7: 0 | I7: 0 | J7: 0 | K7: 0 | L7: 0 | M7: 0 | N7: 0 | O7: 0 | P7: 0 | Q7: 0 | R7: 0 | S7: 0 | T7: 0 | U7: 0 | V7: 0 | W7: 0 | X7: 0 | Y7: 0 | Z7: 0 | AA7: 0 | AB7: 0 | AC7: 0 | AD7: 0 | AE7: 0 | AF7: 0 | AG7: 0 | AH7: 0 | AI7: 0
B8: 28 | C8: 2 | G8: 0 | H8: 0 | I8: 0 | J8: 0 | K8: 0 | L8: 0 | M8: 0 | N8: 0 | O8: 0 | P8: 0 | Q8: 0 | R8: 0 | S8: 0 | T8: 0 | U8: 0 | V8: 0 | W8: 0 | X8: 0 | Y8: 0 | Z8: 0 | AA8: 0 | AB8: 0 | AC8: 0 | AD8: 0 | AE8: 0 | AF8: 0 | AG8: 0 | AH8: 0 | AI8: 0
B9: 28 | C9: 3 | D9: a | G9: 0 | H9: 0 | I9: 0 | J9: 0 | K9: 0 | L9: 0 | M9: 0 | N9: 0 | O9: 0 | P9: 0 | Q9: 0 | R9: 0 | S9: 0 | T9: 0 | U9: 0 | V9: 0 | W9: 0 | X9: 0 | Y9: 0 | Z9: 0 | AA9: 0 | AB9: 0 | AC9: 0 | AD9: 0 | AE9: 0 | AF9: 0 | AG9: 0 | AH9: 0 | AI9: 0
B10: 28 | C10: 3 | D10: b | G10: 0 | H10: 0 | I10: 0 | J10: 0 | K10: 0 | L10: 0 | M10: 0 | N10: 0 | O10: 0 | P10: 0 | Q10: 0 | R10: 0 | S10: 0 | T10: 0 | U10: 0 | V10: 0 | W10: 0 | X10: 0 | Y10: 0 | Z10: 0 | AA10: 0 | AB10: 0 | AC10: 0 | AD10: 0 | AE10: 0 | AF10: 0 | AG10: 0 | AH10: 0 | AI10: 0
B11: 28 | C11: 3 | D11: c | E11: 1 | G11: 0 | H11: 0 | I11: 0 | J11: 0 | K11: 0 | L11: 0 | M11: 0 | N11: 0 | O11: 0 | P11: 0 | Q11: 0 | R11: 0 | S11: 0 | T11: 0 | U11: 0 | V11: 0 | W11: 0 | X11: 0 | Y11: 0 | Z11: 0 | AA11: 0 | AB11: 0 | AC11: 0 | AD11: 0 | AE11: 0 | AF11: 0 | AG11: 0 | AH11: 0 | AI11: 0
B12: 28 | C12: 3 | D12: c | E12: 2 | G12: 0 | H12: 0 | I12: 0 | J12: 0 | K12: 0 | L12: 0 | M12: 0 | N12: 0 | O12: 0 | P12: 0 | Q12: 0 | R12: 0 | S12: 0 | T12: 0 | U12: 0 | V12: 0 | W12: 0 | X12: 0 | Y12: 0 | Z12: 0 | AA12: 0 | AB12: 0 | AC12: 0 | AD12: 0 | AE12: 0 | AF12: 0 | AG12: 0 | AH12: 0 | AI12: 0
B13: 28 | C13: 3 | D13: d | E13: 1 | G13: 0 | H13: 0 | I13: 0 | J13: 0 | K13: 0 | L13: 0 | M13: 0 | N13: 0 | O13: 0 | P13: 0 | Q13: 0 | R13: 0 | S13: 0 | T13: 0 | U13: 0 | V13: 0 | W13: 0 | X13: 0 | Y13: 0 | Z13: 0 | AA13: 0 | AB13: 0 | AC13: 0 | AD13: 0 | AE13: 0 | AF13: 0 | AG13: 0 | AH13: 0 | AI13: 0
B14: 28 | C14: 3 | D14: d | E14: 2 | G14: 0 | H14: 0 | I14: 0 | J14: 0 | K14: 0 | L14: 0 | M14: 0 | N14: 0 | O14: 0 | P14: 0 | Q14: 0 | R14: 0 | S14: 0 | T14: 0 | U14: 0 | V14: 0 | W14: 0 | X14: 0 | Y14: 0 | Z14: 0 | AA14: 0 | AB14: 0 | AC14: 0 | AD14: 0 | AE14: 0 | AF14: 0 | AG14: 0 | AH14: 0 | AI14: 0
B15: 28 | C15: 3 | D15: d | E15: 3 | G15: 0 | H15: 0 | I15: 0 | J15: 0 | K15: 0 | L15: 0 | M15: 0 | N15: 0 | O15: 0 | P15: 0 | Q15: 0 | R15: 0 | S15: 0 | T15: 0 | U15: 0 | V15: 0 | W15: 0 | X15: 0 | Y15: 0 | Z15: 0 | AA15: 0 | AB15: 0 | AC15: 0 | AD15: 0 | AE15: 0 | AF15: 0 | AG15: 0 | AH15: 0 | AI15: 0
B16: 28 | C16: 3 | D16: e | G16: 0 | H16: 0 | I16: 0 | J16: 0 | K16: 0 | L16: 0 | M16: 0 | N16: 0 | O16: 0 | P16: 0 | Q16: 0 | R16: 0 | S16: 0 | T16: 0 | U16: 0 | V16: 0 | W16: 0 | X16: 0 | Y16: 0 | Z16: 0 | AA16: 0 | AB16: 0 | AC16: 0 | AD16: 0 | AE16: 0 | AF16: 0 | AG16: 0 | AH16: 0 | AI16: 0
B17: 28 | C17: 3 | D17: f | G17: 0 | H17: 0 | I17: 0 | J17: 0 | K17: 0 | L17: 0 | M17: 0 | N17: 0 | O17: 0 | P17: 0 | Q17: 0 | R17: 0 | S17: 0 | T17: 0 | U17: 0 | V17: 0 | W17: 0 | X17: 0 | Y17: 0 | Z17: 0 | AA17: 0 | AB17: 0 | AC17: 0 | AD17: 0 | AE17: 0 | AF17: 0 | AG17: 0 | AH17: 0 | AI17: 0
B18: 28 | C18: 4 | G18: 0 | H18: 0 | I18: 0 | J18: 0 | K18: 0 | L18: 0 | M18: 0 | N18: 0 | O18: 0 | P18: 0 | Q18: 0 | R18: 0 | S18: 0 | T18: 0 | U18: 0 | V18: 0 | W18: 0 | X18: 0 | Y18: 0 | Z18: 0 | AA18: 0 | AB18: 0 | AC18: 0 | AD18: 0 | AE18: 0 | AF18: 0 | AG18: 0 | AH18: 0 | AI18: 0
B19: 28a | C19: 1 | D19: a | G19: 0 | H19: 0 | I19: 0 | J19: 0 | K19: 0 | L19: 0 | M19: 0 | N19: 0 | O19: 0 | P19: 0 | Q19: 0 | R19: 0 | S19: 0 | T19: 0 | U19: 0 | V19: 0 | W19: 0 | X19: 0 | Y19: 0 | Z19: 0 | AA19: 0 | AB19: 0 | AC19: 0 | AD19: 0 | AE19: 0 | AF19: 0 | AG19: 0 | AH19: 0 | AI19: 0
B20: 28a | C20: 1 | D20: b | G20: 0 | H20: 0 | I20: 0 | J20: 0 | K20: 0 | L20: 0 | M20: 0 | N20: 0 | O20: 0 | P20: 0 | Q20: 0 | R20: 0 | S20: 0 | T20: 0 | U20: 0 | V20: 0 | W20: 0 | X20: 0 | Y20: 0 | Z20: 0 | AA20: 0 | AB20: 0 | AC20: 0 | AD20: 0 | AE20: 0 | AF20: 0 | AG20: 0 | AH20: 0 | AI20: 0
B21: 28a | C21: 1 | D21: c | E21: 1 | G21: 0 | H21: 0 | I21: 0 | J21: 0 | K21: 0 | L21: 0 | M21: 0 | N21: 0 | O21: 0 | P21: 0 | Q21: 0 | R21: 0 | S21: 0 | T21: 0 | U21: 0 | V21: 0 | W21: 0 | X21: 0 | Y21: 0 | Z21: 0 | AA21: 0 | AB21: 0 | AC21: 0 | AD21: 0 | AE21: 0 | AF21: 0 | AG21: 0 | AH21: 0 | AI21: 0
B22: 28a | C22: 1 | D22: c | E22: 2 | G22: 0 | H22: 0 | I22: 0 | J22: 0 | K22: 0 | L22: 0 | M22: 0 | N22: 0 | O22: 0 | P22: 0 | Q22: 0 | R22: 0 | S22: 0 | T22: 0 | U22: 0 | V22: 0 | W22: 0 | X22: 0 | Y22: 0 | Z22: 0 | AA22: 0 | AB22: 0 | AC22: 0 | AD22: 0 | AE22: 0 | AF22: 0 | AG22: 0 | AH22: 0 | AI22: 0
B23: 28a | C23: 1 | D23: d | E23: 1 | G23: 0 | H23: 0 | I23: 0 | J23: 0 | K23: 0 | L23: 0 | M23: 0 | N23: 0 | O23: 0 | P23: 0 | Q23: 0 | R23: 0 | S23: 0 | T23: 0 | U23: 0 | V23: 0 | W23: 0 | X23: 0 | Y23: 0 | Z23: 0 | AA23: 0 | AB23: 0 | AC23: 0 | AD23: 0 | AE23: 0 | AF23: 0 | AG23: 0 | AH23: 0 | AI23: 0
B24: 28a | C24: 1 | D24: d | E24: 2 | G24: 0 | H24: 0 | I24: 0 | J24: 0 | K24: 0 | L24: 0 | M24: 0 | N24: 0 | O24: 0 | P24: 0 | Q24: 0 | R24: 0 | S24: 0 | T24: 0 | U24: 0 | V24: 0 | W24: 0 | X24: 0 | Y24: 0 | Z24: 0 | AA24: 0 | AB24: 0 | AC24: 0 | AD24: 0 | AE24: 0 | AF24: 0 | AG24: 0 | AH24: 0 | AI24: 0
B25: 28a | C25: 1 | D25: d | E25: 3 | G25: 0 | H25: 0 | I25: 0 | J25: 0 | K25: 0 | L25: 0 | M25: 0 | N25: 0 | O25: 0 | P25: 0 | Q25: 0 | R25: 0 | S25: 0 | T25: 0 | U25: 0 | V25: 0 | W25: 0 | X25: 0 | Y25: 0 | Z25: 0 | AA25: 0 | AB25: 0 | AC25: 0 | AD25: 0 | AE25: 0 | AF25: 0 | AG25: 0 | AH25: 0 | AI25: 0
B26: 28a | C26: 1 | D26: e | G26: 0 | H26: 0 | I26: 0 | J26: 0 | K26: 0 | L26: 0 | M26: 0 | N26: 0 | O26: 0 | P26: 0 | Q26: 0 | R26: 0 | S26: 0 | T26: 0 | U26: 0 | V26: 0 | W26: 0 | X26: 0 | Y26: 0 | Z26: 0 | AA26: 0 | AB26: 0 | AC26: 0 | AD26: 0 | AE26: 0 | AF26: 0 | AG26: 0 | AH26: 0 | AI26: 0
B27: Celkem | G27: =SUM(G3:G26) -> 0 | H27: 0 | I27: 0 | J27: 0 | K27: 0 | L27: 0 | M27: 0 | N27: 0 | O27: 0 | P27: 0 | Q27: 0 | R27: 0 | S27: 0 | T27: 0 | U27: 0 | V27: =U27/T27 ->  | W27: =SUM(W3:W26) -> 0 | X27: 0 | Y27: 0 | Z27: 0 | AA27: 0 | AB27: 0 | AC27: 0 | AD27: 0 | AE27: 0 | AF27: 0 | AG27: 0 | AH27: 0 | AI27: 0

Sheet Zákon č. 240-2000 Sb.
B2: PŘEHLED PŘESTUPKŮ ZA ROK 2018
B3: Zákon č. 240/2000 Sb., o o krizovém řízení a o změně některých zákonů (krizový zákon)
B4: § | C4: odst. | D4: písm. | E4: bod | F4: ve znění zákona č. 205/2017 Sb. | G4: počet podnětů k zahájení řízení o přestupku | H4: počet odložených věcí | I4: počet zahájených řízení o přestupku | L4: počet pravomocných rozhodnutí o uznání obviněného vinným ze spáchání přestupku | O4: počet zastavených řízení | P4: počet rozhodnutí o schválení dohody o narovnání | Q4: počet pravomocných rozhodnutí, kterými bylo upuštěno od uložení správního trestu | R4: počet pravomocných rozhodnutí, kterými byla mimořádně snížena výměra pokuty | S4: počet napomenutí | T4: počet pokut | U4: celková výměra pokut (v Kč) | V4: průměrná výměra pokuty (v Kč) | W4: počet zákazů činnosti | X4: celková délka uložených zákazů činnosti (v letech) | Y4: průměrná délka zákazu činnosti (v letech) | Z4: počet propadnutí věci nebo náhradní hodnoty | AA4: počet zveřejnění rozhodnutí o přestupku | AB4: počet omezujících opatření | AC4: počet zabrání věci nebo náhradní hodnoty | AD4: počet podaných odvolání | AE4: odvolání zamítnuto a napadené rozhodnutí potvrzeno | AF4: odvolání vyřízeno v rámci autoremedury | AG4: rozhodnutí změněno | AH4: rozhodnutí zrušeno a věc vrácena k novému projednání | AI4: rozhodnutí zrušeno a řízení zastaveno
I5: oznámení o zahájení řízení | J5: příkaz | K5: příkaz na místě | L5: rozhodnutí | M5: příkaz | N5: příkaz na místě
B6: 34 | C6: 1 | D6: a | G6: 0 | H6: 0 | I6: 0 | J6: 0 | K6: 0 | L6: 0 | M6: 0 | N6: 0 | O6: 0 | P6: 0 | Q6: 0 | R6: 0 | S6: 0 | T6: 0 | U6: 0 | V6: 0 | W6: 0 | X6: 0 | Y6: 0 | Z6: 0 | AA6: 0 | AB6: 0 | AC6: 0 | AD6: 0 | AE6: 0 | AF6: 0 | AG6: 0 | AH6: 0 | AI6: 0
B7: 34 | C7: 1 | D7: b | G7: 0 | H7: 0 | I7: 0 | J7: 2 | K7: 0 | L7: 0 | M7: 2 | N7: 0 | O7: 0 | P7: 0 | Q7: 0 | R7: 0 | S7: 0 | T7: 2 | U7: 2000 | V7: =U7/T7 -> 1000 | W7: 0 | X7: 0 | Y7: 0 | Z7: 0 | AA7: 0 | AB7: 0 | AC7: 0 | AD7: 0 | AE7: 0 | AF7: 0 | AG7: 0 | AH7: 0 | AI7: 0
B8: 34 | C8: 1 | D8: c | G8: 0 | H8: 0 | I8: 0 | J8: 0 | K8: 0 | L8: 0 | M8: 0 | N8: 0 | O8: 0 | P8: 0 | Q8: 0 | R8: 0 | S8: 0 | T8: 0 | U8: 0 | V8: 0 | W8: 0 | X8: 0 | Y8: 0 | Z8: 0 | AA8: 0 | AB8: 0 | AC8: 0 | AD8: 0 | AE8: 0 | AF8: 0 | AG8: 0 | AH8: 0 | AI8: 0
B9: 34 | C9: 2 | D9: a | G9: 0 | H9: 0 | I9: 0 | J9: 0 | K9: 0 | L9: 0 | M9: 0 | N9: 0 | O9: 0 | P9: 0 | Q9: 0 | R9: 0 | S9: 0 | T9: 0 | U9: 0 | V9: 0 | W9: 0 | X9: 0 | Y9: 0 | Z9: 0 | AA9: 0 | AB9: 0 | AC9: 0 | AD9: 0 | AE9: 0 | AF9: 0 | AG9: 0 | AH9: 0 | AI9: 0
B10: 34 | C10: 2 | D10: b | G10: 1 | H10: 1 | I10: 0 | J10: 0 | K10: 0 | L10: 0 | M10: 0 | N10: 0 | O10: 0 | P10: 0 | Q10: 0 | R10: 0 | S10: 0 | T10: 0 | U10: 0 | V10: 0 | W10: 0 | X10: 0 | Y10: =SUM(Y1:Y9) -> 0 | Z10: 0 | AA10: 0 | AB10: 0 | AC10: 0 | AD10: 0 | AE10: 0 | AF10: 0 | AG10: 0 | AH10: 0 | AI10: 0
B11: 34a | C11: 2 | D11: b | G11: 0 | H11: 0 | I11: 0 | J11: 0 | K11: 0 | L11: 0 | M11: 0 | N11: 0 | O11: 0 | P11: 0 | Q11: 0 | R11: 0 | S11: 0 | T11: 0 | U11: 0 | V11: 0 | W11: 0 | X11: 0 | Y11: 0 | Z11: 0 | AA11: 0 | AB11: 0 | AC11: 0 | AD11: 0 | AE11: 0 | AF11: 0 | AG11: 0 | AH11: 0 | AI11: 0
B12: Celkem | G12: =SUM(G3:G11) -> 1 | H12: =SUM(H3:H11) -> 1 | I12: 0 | J12: 2 | K12: 0 | L12: 0 | M12: 2 | N12: 0 | O12: 0 | P12: 0 | Q12: 0 | R12: 0 | S12: 0 | T12: 2 | U12: 2000 | V12: =U12/T12 -> 1000 | W12: 0 | X12: 0 | Y12: 0 | Z12: 0 | AA12: 0 | AB12: 0 | AC12: 0 | AD12: 0 | AE12: 0 | AF12: 0 | AG12: 0 | AH12: 0 | AI12: 0

Sheet Zákon č. 301-2000 Sb.
B2: PŘEHLED PŘESTUPKŮ ZA ROK 2018
B3: Zákon č. 301/2000 Sb., o matrikách, jménu a příjmení a o změně některých souvisejících zákonů
B4: § | C4: odst. | D4: písm. | E4: bod | F4: ve znění zákona č. 222/2017 Sb. | G4: počet podnětů k zahájení řízení o přestupku | H4: počet odložených věcí | I4: počet zahájených řízení o přestupku | L4: počet pravomocných rozhodnutí o uznání obviněného vinným ze spáchání přestupku | O4: počet zastavených řízení | P4: počet rozhodnutí o schválení dohody o narovnání | Q4: počet pravomocných rozhodnutí, kterými bylo upuštěno od uložení správního trestu | R4: počet pravomocných rozhodnutí, kterými byla mimořádně snížena výměra pokuty | S4: počet napomenutí | T4: počet pokut | U4: celková výměra pokut (v Kč) | V4: průměrná výměra pokuty (v Kč) | W4: počet zákazů činnosti | X4: celková délka uložených zákazů činnosti (v letech) | Y4: průměrná délka zákazu činnosti (v letech) | Z4: počet propadnutí věci nebo náhradní hodnoty | AA4: počet zveřejnění rozhodnutí o přestupku | AB4: počet omezujících opatření | AC4: počet zabrání věci nebo náhradní hodnoty | AD4: počet podaných odvolání | AE4: odvolání zamítnuto a napadené rozhodnutí potvrzeno | AF4: odvolání vyřízeno v rámci autoremedury | AG4: rozhodnutí změněno | AH4: rozhodnutí zrušeno a věc vrácena k novému projednání | AI4: rozhodnutí zrušeno a řízení zastaveno
I5: oznámení o zahájení řízení | J5: příkaz | K5: příkaz na místě | L5: rozhodnutí | M5: příkaz | N5: příkaz na místě
B6: 79a | C6: 1 | D6: a | G6: 3 | H6: 1 | I6: 0 | J6: 0 | K6: 2 | L6: 0 | M6: 0 | N6: 2 | O6: 0 | P6: 0 | Q6: 0 | R6: 0 | S6: 0 | T6: 2 | U6: 1000 | V6: =U6/T6 -> 500 | W6: 0 | X6: 0 | Y6: 0 | Z6: 0 | AA6: 0 | AB6: 0 | AC6: 0 | AD6: 0 | AE6: 0 | AF6: 0 | AG6: 0 | AH6: 0 | AI6: 0
B7: 79a | C7: 1 | D7: b | G7: 0 | H7: 0 | I7: 0 | J7: 0 | K7: 0 | L7: 0 | M7: 0 | N7: 0 | O7: 0 | P7: 0 | Q7: 0 | R7: 0 | S7: 0 | T7: 0 | U7: 0 | V7: 0 | W7: 0 | X7: 0 | Y7: 0 | Z7: 0 | AA7: 0 | AB7: 0 | AC7: 0 | AD7: 0 | AE7: 0 | AF7: 0 | AG7: 0 | AH7: 0 | AI7: 0
B8: 79a | C8: 1 | D8: c | G8: 17 | H8: 8 | I8: 2 | J8: 6 | K8: 0 | L8: 1 | M8: 7 | N8: 0 | O8: 0 | P8: 0 | Q8: 0 | R8: 0 | S8: 3 | T8: 5 | U8: 6200 | V8: 1240 | W8: 0 | X8: 0 | Y8: 0 | Z8: 0 | AA8: 0 | AB8: 0 | AC8: 0 | AD8: 0 | AE8: 0 | AF8: 0 | AG8: 0 | AH8: 0 | AI8: 0
B9: 79a | C9: 1 | D9: d | G9: 2 | H9: 0 | I9: 0 | J9: 2 | K9: 0 | L9: 0 | M9: 2 | N9: 0 | O9: 0 | P9: 0 | Q9: 0 | R9: 0 | S9: 0 | T9: 2 | U9: 2000 | V9: 1000 | W9: 0 | X9: 0 | Y9: 0 | Z9: 0 | AA9: 0 | AB9: 0 | AC9: 0 | AD9: 0 | AE9: 0 | AF9: 0 | AG9: 0 | AH9: 0 | AI9: 0
B10: Celkem | G10: =SUM(G1:G9) -> 22 | H10: =SUM(H1:H9) -> 9 | I10: 2 | J10: 8 | K10: 2 | L10: 1 | M10: 9 | N10: 2 | O10: 0 | P10: 0 | Q10: 0 | R10: 0 | S10: 3 | T10: 9 | U10: 9200 | V10: 1022.222222 | W10: 0 | X10: 0 | Y10: 0 | Z10: 0 | AA10: 0 | AB10: 0 | AC10: 0 | AD10: 0 | AE10: 0 | AF10: 0 | AG10: 0 | AH10: 0 | AI10: 0

Sheet Zákon č. 365-2000 Sb.
B2: PŘEHLED PŘESTUPKŮ ZA ROK 2018
B3: Zákon č. 365/2000 Sb., o informačních systémech veřejné správy a o změně některých dalších zákonů
B4: § | C4: odst. | D4: písm. | E4: bod | F4: ve znění zákona č. 251/2017 Sb. | G4: počet podnětů k zahájení řízení o přestupku | H4: počet odložených věcí | I4: počet zahájených řízení o přestupku | L4: počet pravomocných rozhodnutí o uznání obviněného vinným ze spáchání přestupku | O4: počet zastavených řízení | P4: počet rozhodnutí o schválení dohody o narovnání | Q4: počet pravomocných rozhodnutí, kterými bylo upuštěno od uložení správního trestu | R4: počet pravomocných rozhodnutí, kterými byla mimořádně snížena výměra pokuty | S4: počet napomenutí | T4: počet pokut | U4: celková výměra pokut (v Kč) | V4: průměrná výměra pokuty (v Kč) | W4: počet zákazů činnosti | X4: celková délka uložených zákazů činnosti (v letech) | Y4: průměrná délka zákazu činnosti (v letech) | Z4: počet propadnutí věci nebo náhradní hodnoty | AA4: počet zveřejnění rozhodnutí o přestupku | AB4: počet omezujících opatření | AC4: počet zabrání věci nebo náhradní hodnoty | AD4: počet podaných odvolání | AE4: odvolání zamítnuto a napadené rozhodnutí potvrzeno | AF4: odvolání vyřízeno v rámci autoremedury | AG4: rozhodnutí změněno | AH4: rozhodnutí zrušeno a věc vrácena k novému projednání | AI4: rozhodnutí zrušeno a řízení zastaveno
I5: oznámení o zahájení řízení | J5: příkaz | K5: příkaz na místě | L5: rozhodnutí | M5: příkaz | N5: příkaz na místě
B6: 7 | C6: 1 | D6: a | G6: 0 | H6: 0 | I6: 0 | J6: 0 | K6: 0 | L6: 0 | M6: 0 | N6: 0 | O6: 0 | P6: 0 | Q6: 0 | R6: 0 | S6: 0 | T6: 0 | U6: 0 | V6: 0 | W6: 0 | X6: 0 | Y6: 0 | Z6: 0 | AA6: 0 | AB6: 0 | AC6: 0 | AD6: 0 | AE6: 0 | AF6: 0 | AG6: 0 | AH6: 0 | AI6: 0
B7: 7 | C7: 1 | D7: b | G7: 0 | H7: 0 | I7: 0 | J7: 0 | K7: 0 | L7: 0 | M7: 0 | N7: 0 | O7: 0 | P7: 0 | Q7: 0 | R7: 0 | S7: 0 | T7: 0 | U7: 0 | V7: 0 | W7: 0 | X7: 0 | Y7: 0 | Z7: 0 | AA7: 0 | AB7: 0 | AC7: 0 | AD7: 0 | AE7: 0 | AF7: 0 | AG7: 0 | AH7: 0 | AI7: 0
B8: 7 | C8: 1 | D8: c | G8: 0 | H8: 0 | I8: 0 | J8: 0 | K8: 0 | L8: 0 | M8: 0 | N8: 0 | O8: 0 | P8: 0 | Q8: 0 | R8: 0 | S8: 0 | T8: 0 | U8: 0 | V8: 0 | W8: 0 | X8: 0 | Y8: 0 | Z8: 0 | AA8: 0 | AB8: 0 | AC8: 0 | AD8: 0 | AE8: 0 | AF8: 0 | AG8: 0 | AH8: 0 | AI8: 0
B9: 7 | C9: 1 | D9: d | G9: 0 | H9: 0 | I9: 0 | J9: 0 | K9: 0 | L9: 0 | M9: 0 | N9: 0 | O9: 0 | P9: 0 | Q9: 0 | R9: 0 | S9: 0 | T9: 0 | U9: 0 | V9: 0 | W9: 0 | X9: 0 | Y9: 0 | Z9: 0 | AA9: 0 | AB9: 0 | AC9: 0 | AD9: 0 | AE9: 0 | AF9: 0 | AG9: 0 | AH9: 0 | AI9: 0
B10: 7 | C10: 1 | D10: e | G10: 0 | H10: 0 | I10: 0 | J10: 0 | K10: 0 | L10: 0 | M10: 0 | N10: 0 | O10: 0 | P10: 0 | Q10: 0 | R10: 0 | S10: 0 | T10: 0 | U10: 0 | V10: 0 | W10: 0 | X10: 0 | Y10: 0 | Z10: 0 | AA10: 0 | AB10: 0 | AC10: 0 | AD10: 0 | AE10: 0 | AF10: 0 | AG10: 0 | AH10: 0 | AI10: 0
B11: 7 | C11: 2 | D11: a | G11: 0 | H11: 0 | I11: 0 | J11: 0 | K11: 0 | L11: 0 | M11: 0 | N11: 0 | O11: 0 | P11: 0 | Q11: 0 | R11: 0 | S11: 0 | T11: 0 | U11: 0 | V11: 0 | W11: 0 | X11: 0 | Y11: 0 | Z11: 0 | AA11: 0 | AB11: 0 | AC11: 0 | AD11: 0 | AE11: 0 | AF11: 0 | AG11: 0 | AH11: 0 | AI11: 0
B12: 7 | C12: 2 | D12: b | G12: 0 | H12: 0 | I12: 0 | J12: 0 | K12: 0 | L12: 0 | M12: 0 | N12: 0 | O12: 0 | P12: 0 | Q12: 0 | R12: 0 | S12: 0 | T12: 0 | U12: 0 | V12: 0 | W12: 0 | X12: 0 | Y12: 0 | Z12: 0 | AA12: 0 | AB12: 0 | AC12: 0 | AD12: 0 | AE12: 0 | AF12: 0 | AG12: 0 | AH12: 0 | AI12: 0
B13: 7 | C13: 2 | D13: c | G13: 0 | H13: 0 | I13: 0 | J13: 0 | K13: 0 | L13: 0 | M13: 0 | N13: 0 | O13: 0 | P13: 0 | Q13: 0 | R13: 0 | S13: 0 | T13: 0 | U13: 0 | V13: 0 | W13: 0 | X13: 0 | Y13: 0 | Z13: 0 | AA13: 0 | AB13: 0 | AC13: 0 | AD13: 0 | AE13: 0 | AF13: 0 | AG13: 0 | AH13: 0 | AI13: 0
B14: 7 | C14: 2 | D14: d | G14: 0 | H14: 0 | I14: 0 | J14: 0 | K14: 0 | L14: 0 | M14: 0 | N14: 0 | O14: 0 | P14: 0 | Q14: 0 | R14: 0 | S14: 0 | T14: 0 | U14: 0 | V14: 0 | W14: 0 | X14: 0 | Y14: 0 | Z14: 0 | AA14: 0 | AB14: 0 | AC14: 0 | AD14: 0 | AE14: 0 | AF14: 0 | AG14: 0 | AH14: 0 | AI14: 0
B15: 7 | C15: 2 | D15: e | G15: 0 | H15: 0 | I15: 0 | J15: 0 | K15: 0 | L15: 0 | M15: 0 | N15: 0 | O15: 0 | P15: 0 | Q15: 0 | R15: 0 | S15: 0 | T15: 0 | U15: 0 | V15: 0 | W15: 0 | X15: 0 | Y15: 0 | Z15: 0 | AA15: 0 | AB15: 0 | AC15: 0 | AD15: 0 | AE15: 0 | AF15: 0 | AG15: 0 | AH15: 0 | AI15: 0
B16: 7 | C16: 2 | D16: f | G16: 0 | H16: 0 | I16: 0 | J16: 0 | K16: 0 | L16: 0 | M16: 0 | N16: 0 | O16: 0 | P16: 0 | Q16: 0 | R16: 0 | S16: 0 | T16: 0 | U16: 0 | V16: 0 | W16: 0 | X16: 0 | Y16: 0 | Z16: 0 | AA16: 0 | AB16: 0 | AC16: 0 | AD16: 0 | AE16: 0 | AF16: 0 | AG16: 0 | AH16: 0 | AI16: 0
B17: 7 | C17: 3 | D17: a | G17: 0 | H17: 0 | I17: 0 | J17: 0 | K17: 0 | L17: 0 | M17: 0 | N17: 0 | O17: 0 | P17: 0 | Q17: 0 | R17: 0 | S17: 0 | T17: 0 | U17: 0 | V17: 0 | W17: 0 | X17: 0 | Y17: 0 | Z17: 0 | AA17: 0 | AB17: 0 | AC17: 0 | AD17: 0 | AE17: 0 | AF17: 0 | AG17: 0 | AH17: 0 | AI17: 0
B18: 7 | C18: 3 | D18: b | E18: 1 | G18: 0 | H18: 0 | I18: 0 | J18: 0 | K18: 0 | L18: 0 | M18: 0 | N18: 0 | O18: 0 | P18: 0 | Q18: 0 | R18: 0 | S18: 0 | T18: 0 | U18: 0 | V18: 0 | W18: 0 | X18: 0 | Y18: 0 | Z18: 0 | AA18: 0 | AB18: 0 | AC18: 0 | AD18: 0 | AE18: 0 | AF18: 0 | AG18: 0 | AH18: 0 | AI18: 0
B19: 7 | C19: 3 | D19: b | E19: 2 | G19: 0 | H19: 0 | I19: 0 | J19: 0 | K19: 0 | L19: 0 | M19: 0 | N19: 0 | O19: 0 | P19: 0 | Q19: 0 | R19: 0 | S19: 0 | T19: 0 | U19: 0 | V19: 0 | W19: 0 | X19: 0 | Y19: 0 | Z19: 0 | AA19: 0 | AB19: 0 | AC19: 0 | AD19: 0 | AE19: 0 | AF19: 0 | AG19: 0 | AH19: 0 | AI19: 0
B20: 7 | C20: 3 | D20: b | E20: 3 | G20: 0 | H20: 0 | I20: 0 | J20: 0 | K20: 0 | L20: 0 | M20: 0 | N20: 0 | O20: 0 | P20: 0 | Q20: 0 | R20: 0 | S20: 0 | T20: 0 | U20: 0 | V20: 0 | W20: 0 | X20: 0 | Y20: 0 | Z20: 0 | AA20: 0 | AB20: 0 | AC20: 0 | AD20: 0 | AE20: 0 | AF20: 0 | AG20: 0 | AH20: 0 | AI20: 0
B21: Celkem | G21: =SUM(G1:G20) -> 0 | H21: 0 | I21: 0 | J21: 0 | K21: 0 | L21: 0 | M21: 0 | N21: 0 | O21: 0 | P21: 0 | Q21: 0 | R21: 0 | S21: 0 | T21: 0 | U21: 0 | V21: 0 | W21: =SUM(W1:W20) -> 0 | X21: 0 | Y21: 0 | Z21: 0 | AA21: 0 | AB21: 0 | AC21: 0 | AD21: 0 | AE21: 0 | AF21: 0 | AG21: 0 | AH21: 0 | AI21: 0

Sheet Zákon č. 117-2001 Sb.
B2: PŘEHLED PŘESTUPKŮ ZA ROK 2018
B3: Zákon č. 117/2001 Sb., o veřejných sbírkách a o změně některých zákonů (zákon o veřejných sbírkách)
B4: § | C4: odst. | D4: písm. | E4: bod | F4: ve znění zákona č. 183/2017 Sb. | G4: počet podnětů k zahájení řízení o přestupku | H4: počet odložených věcí | I4: počet zahájených řízení o přestupku | L4: počet pravomocných rozhodnutí o uznání obviněného vinným ze spáchání přestupku | O4: počet zastavených řízení | P4: počet rozhodnutí o schválení dohody o narovnání | Q4: počet pravomocných rozhodnutí, kterými bylo upuštěno od uložení správního trestu | R4: počet pravomocných rozhodnutí, kterými byla mimořádně snížena výměra pokuty | S4: počet napomenutí | T4: počet pokut | U4: celková výměra pokut (v Kč) | V4: průměrná výměra pokuty (v Kč) | W4: počet zákazů činnosti | X4: celková délka uložených zákazů činnosti (v letech) | Y4: průměrná délka zákazu činnosti (v letech) | Z4: počet propadnutí věci nebo náhradní hodnoty | AA4: počet zveřejnění rozhodnutí o přestupku | AB4: počet omezujících opatření | AC4: počet zabrání věci nebo náhradní hodnoty | AD4: počet podaných odvolání | AE4: odvolání zamítnuto a napadené rozhodnutí potvrzeno | AF4: odvolání vyřízeno v rámci autoremedury | AG4: rozhodnutí změněno | AH4: rozhodnutí zrušeno a věc vrácena k novému projednání | AI4: rozhodnutí zrušeno a řízení zastaveno
I5: oznámení o zahájení řízení | J5: příkaz | K5: příkaz na místě | L5: rozhodnutí | M5: příkaz | N5: příkaz na místě
B6: 25 | C6: 1 | D6: a | G6: 0 | H6: 0 | I6: 0 | J6: 0 | K6: 0 | L6: 0 | M6: 0 | N6: 0 | O6: 0 | P6: 0 | Q6: 0 | R6: 0 | S6: 0 | T6: 0 | U6: 0 | V6: 0 | W6: 0 | X6: 0 | Y6: 0 | Z6: 0 | AA6: 0 | AB6: 0 | AC6: 0 | AD6: 0 | AE6: 0 | AF6: 0 | AG6: 0 | AH6: 0 | AI6: 0
B7: 25 | C7: 1 | D7: b | G7: 0 | H7: 0 | I7: 0 | J7: 0 | K7: 0 | L7: 0 | M7: 0 | N7: 0 | O7: 0 | P7: 0 | Q7: 0 | R7: 0 | S7: 0 | T7: 0 | U7: 0 | V7: 0 | W7: 0 | X7: 0 | Y7: 0 | Z7: 0 | AA7: 0 | AB7: 0 | AC7: 0 | AD7: 0 | AE7: 0 | AF7: 0 | AG7: 0 | AH7: 0 | AI7: 0
B8: 25 | C8: 2 | G8: 0 | H8: 0 | I8: 0 | J8: 0 | K8: 0 | L8: 0 | M8: 0 | N8: 0 | O8: 0 | P8: 0 | Q8: 0 | R8: 0 | S8: 0 | T8: 0 | U8: 0 | V8: 0 | W8: 0 | X8: 0 | Y8: 0 | Z8: 0 | AA8: 0 | AB8: 0 | AC8: 0 | AD8: 0 | AE8: 0 | AF8: 0 | AG8: 0 | AH8: 0 | AI8: 0
B9: 25a | C9: 1 | D9: a | G9: 10 | H9: 1 | I9: 0 | J9: 7 | K9: 0 | L9: 1 | M9: 8 | N9: 0 | O9: 0 | P9: 0 | Q9: 0 | R9: 0 | S9: 3 | T9: 6 | U9: 13500 | V9: =U9/T9 -> 2250 | W9: 0 | X9: 0 | Y9: 0 | Z9: 0 | AA9: 0 | AB9: 0 | AC9: 0 | AD9: 0 | AE9: 0 | AF9: 0 | AG9: 0 | AH9: 0 | AI9: 0
B10: 25a | C10: 1 | D10: b | G10: 18 | H10: 1 | I10: 0 | J10: 17 | K10: 2 | L10: 2 | M10: 18 | N10: 2 | O10: 0 | P10: 0 | Q10: 0 | R10: 0 | S10: 10 | T10: 10 | U10: 7100 | V10: 710 | W10: 0 | X10: 0 | Y10: 0 | Z10: 0 | AA10: 0 | AB10: 0 | AC10: 0 | AD10: 0 | AE10: 0 | AF10: 0 | AG10: 0 | AH10: 0 | AI10: 0
B11: 25a | C11: 1 | D11: c | G11: 3 | H11: 0 | I11: 0 | J11: 9 | K11: 0 | L11: 0 | M11: 9 | N11: 0 | O11: 0 | P11: 0 | Q11: 0 | R11: 0 | S11: 0 | T11: 9 | U11: 10800 | V11: 1200 | W11: 0 | X11: 0 | Y11: 0 | Z11: 0 | AA11: 0 | AB11: 0 | AC11: 0 | AD11: 0 | AE11: 0 | AF11: 0 | AG11: 0 | AH11: 0 | AI11: 0
B12: 25a | C12: 1 | D12: d | G12: 2 | H12: 0 | I12: 1 | J12: 3 | K12: 0 | L12: 1 | M12: 1 | N12: 0 | O12: 0 | P12: 0 | Q12: 0 | R12: 0 | S12: 1 | T12: 1 | U12: 2000 | V12: 2000 | W12: 0 | X12: 0 | Y12: 0 | Z12: 0 | AA12: 0 | AB12: 0 | AC12: 0 | AD12: 0 | AE12: 0 | AF12: 0 | AG12: 0 | AH12: 0 | AI12: 0
B13: 25a | C13: 1 | D13: e | G13: 2 | H13: 0 | I13: 0 | J13: 2 | K13: 0 | L13: 0 | M13: 2 | N13: 0 | O13: 0 | P13: 0 | Q13: 0 | R13: 0 | S13: 1 | T13: 1 | U13: 1000 | V13: 1000 | W13: 0 | X13: 0 | Y13: 0 | Z13: 0 | AA13: 0 | AB13: 0 | AC13: 0 | AD13: 0 | AE13: 0 | AF13: 0 | AG13: 0 | AH13: 0 | AI13: 0
B14: 25a | C14: 1 | D14: f | G14: 0 | H14: 0 | I14: 0 | J14: 0 | K14: 0 | L14: 0 | M14: 0 | N14: 0 | O14: 0 | P14: 0 | Q14: 0 | R14: 0 | S14: 0 | T14: 0 | U14: 0 | V14: 0 | W14: 0 | X14: 0 | Y14: 0 | Z14: 0 | AA14: 0 | AB14: 0 | AC14: 0 | AD14: 0 | AE14: 0 | AF14: 0 | AG14: 0 | AH14: 0 | AI14: 0
B15: 25a | C15: 1 | D15: g | G15: 8 | H15: 5 | I15: 0 | J15: 4 | K15: 0 | L15: 0 | M15: 4 | N15: 0 | O15: 0 | P15: 0 | Q15: 0 | R15: 0 | S15: 1 | T15: 3 | U15: 7000 | V15: 2333.333333 | W15: 0 | X15: 0 | Y15: 0 | Z15: 0 | AA15: 0 | AB15: 0 | AC15: 0 | AD15: 0 | AE15: 0 | AF15: 0 | AG15: 0 | AH15: 0 | AI15: 0
B16: 25a | C16: 1 | D16: h | G16: 1 | H16: 3 | I16: 0 | J16: 1 | K16: 0 | L16: 0 | M16: 1 | N16: 0 | O16: 0 | P16: 0 | Q16: 0 | R16: 0 | S16: 0 | T16: 1 | U16: 200 | V16: 200 | W16: 0 | X16: 0 | Y16: 0 | Z16: 0 | AA16: 0 | AB16: 0 | AC16: 0 | AD16: 0 | AE16: 0 | AF16: 0 | AG16: 0 | AH16: 0 | AI16: 0
B17: 25a | C17: 1 | D17: i | G17: 0 | H17: 0 | I17: 0 | J17: 0 | K17: 0 | L17: 0 | M17: 0 | N17: 0 | O17: 0 | P17: 0 | Q17: 0 | R17: 0 | S17: 0 | T17: 0 | U17: 0 | V17: 0 | W17: 0 | X17: 0 | Y17: 0 | Z17: 0 | AA17: 0 | AB17: 0 | AC17: 0 | AD17: 0 | AE17: 0 | AF17: 0 | AG17: 0 | AH17: 0 | AI17: 0
B18: 25a | C18: 1 | D18: j | G18: 2 | H18: 0 | I18: 0 | J18: 0 | K18: 0 | L18: 0 | M18: 0 | N18: 0 | O18: 0 | P18: 0 | Q18: 0 | R18: 0 | S18: 0 | T18: 0 | U18: 0 | V18: 0 | W18: 0 | X18: 0 | Y18: 0 | Z18: 0 | AA18: 0 | AB18: 0 | AC18: 0 | AD18: 0 | AE18: 0 | AF18: 0 | AG18: 0 | AH18: 0 | AI18: 0
B19: 25a | C19: 1 | D19: k | G19: 0 | H19: 0 | I19: 0 | J19: 0 | K19: 0 | L19: 0 | M19: 0 | N19: 0 | O19: 0 | P19: 0 | Q19: 0 | R19: 0 | S19: 0 | T19: 0 | U19: 0 | V19: 0 | W19: 0 | X19: 0 | Y19: 0 | Z19: 0 | AA19: 0 | AB19: 0 | AC19: 0 | AD19: 0 | AE19: 0 | AF19: 0 | AG19: 0 | AH19: 0 | AI19: 0
B20: 25a | C20: 1 | D20: l | G20: 0 | H20: 0 | I20: 0 | J20: 0 | K20: 0 | L20: 0 | M20: 0 | N20: 0 | O20: 0 | P20: 0 | Q20: 0 | R20: 0 | S20: 0 | T20: 0 | U20: 0 | V20: 0 | W20: 0 | X20: 0 | Y20: 0 | Z20: 0 | AA20: 0 | AB20: 0 | AC20: 0 | AD20: 0 | AE20: 0 | AF20: 0 | AG20: 0 | AH20: 0 | AI20: 0
B21: 25a | C21: 1 | D21: m | G21: 0 | H21: 0 | I21: 0 | J21: 0 | K21: 0 | L21: 0 | M21: 0 | N21: 0 | O21: 0 | P21: 0 | Q21: 0 | R21: 0 | S21: 0 | T21: 0 | U21: 0 | V21: 0 | W21: 0 | X21: 0 | Y21: 0 | Z21: 0 | AA21: 0 | AB21: 0 | AC21: 0 | AD21: 0 | AE21: 0 | AF21: 0 | AG21: 0 | AH21: 0 | AI21: 0
B22: 25a | C22: 1 | D22: n | G22: 0 | H22: 0 | I22: 0 | J22: 0 | K22: 0 | L22: 0 | M22: 0 | N22: 0 | O22: 0 | P22: 0 | Q22: 0 | R22: 0 | S22: 0 | T22: 0 | U22: 0 | V22: 0 | W22: 0 | X22: 0 | Y22: 0 | Z22: 0 | AA22: 0 | AB22: 0 | AC22: 0 | AD22: 0 | AE22: 0 | AF22: 0 | AG22: 0 | AH22: 0 | AI22: 0
B23: 25a | C23: 1 | D23: o | G23: 0 | H23: 0 | I23: 0 | J23: 0 | K23: 0 | L23: 0 | M23: 0 | N23: 0 | O23: 0 | P23: 0 | Q23: 0 | R23: 0 | S23: 0 | T23: 0 | U23: 0 | V23: 0 | W23: 0 | X23: 0 | Y23: 0 | Z23: 0 | AA23: 0 | AB23: 0 | AC23: 0 | AD23: 0 | AE23: 0 | AF23: 0 | AG23: 0 | AH23: 0 | AI23: 0
B24: 25a | C24: 1 | D24: p | G24: 0 | H24: 0 | I24: 0 | J24: 0 | K24: 0 | L24: 0 | M24: 0 | N24: 0 | O24: 0 | P24: 0 | Q24: 0 | R24: 0 | S24: 0 | T24: 0 | U24: 0 | V24: 0 | W24: 0 | X24: 0 | Y24: 0 | Z24: 0 | AA24: 0 | AB24: 0 | AC24: 0 | AD24: 0 | AE24: 0 | AF24: 0 | AG24: 0 | AH24: 0 | AI24: 0
B25: 25a | C25: 1 | D25: q | G25: 0 | H25: 0 | I25: 0 | J25: 0 | K25: 0 | L25: 0 | M25: 0 | N25: 0 | O25: 0 | P25: 0 | Q25: 0 | R25: 0 | S25: 0 | T25: 0 | U25: 0 | V25: 0 | W25: 0 | X25: 0 | Y25: 0 | Z25: 0 | AA25: 0 | AB25: 0 | AC25: 0 | AD25: 0 | AE25: 0 | AF25: 0 | AG25: 0 | AH25: 0 | AI25: 0
B26: 25a | C26: 1 | D26: r | G26: 0 | H26: 0 | I26: 0 | J26: 0 | K26: 0 | L26: 0 | M26: 0 | N26: 0 | O26: 0 | P26: 0 | Q26: 0 | R26: 0 | S26: 0 | T26: 0 | U26: 0 | V26: 0 | W26: 0 | X26: 0 | Y26: 0 | Z26: 0 | AA26: 0 | AB26: 0 | AC26: 0 | AD26: 0 | AE26: 0 | AF26: 0 | AG26: 0 | AH26: 0 | AI26: 0
B27: 25a | C27: 1 | D27: s | G27: 0 | H27: 0 | I27: 0 | J27: 0 | K27: 0 | L27: 0 | M27: 0 | N27: 0 | O27: 0 | P27: 0 | Q27: 0 | R27: 0 | S27: 0 | T27: 0 | U27: 0 | V27: 0 | W27: 0 | X27: 0 | Y27: 0 | Z27: 0 | AA27: 0 | AB27: 0 | AC27: 0 | AD27: 0 | AE27: 0 | AF27: 0 | AG27: 0 | AH27: 0 | AI27: 0
B28: 25a | C28: 1 | D28: t | G28: 6 | H28: 0 | I28: 0 | J28: 8 | K28: 0 | L28: 0 | M28: 7 | N28: 0 | O28: 0 | P28: 0 | Q28: 0 | R28: 0 | S28: 2 | T28: 5 | U28: 6500 | V28: 1300 | W28: 0 | X28: 0 | Y28: 0 | Z28: 0 | AA28: 0 | AB28: 0 | AC28: 0 | AD28: 0 | AE28: 0 | AF28: 0 | AG28: 0 | AH28: 0 | AI28: 0
B29: 25a | C29: 1 | D29: u | G29: 2 | H29: 0 | I29: 0 | J29: 6 | K29: 0 | L29: 0 | M29: 2 | N29: 0 | O29: 0 | P29: 0 | Q29: 0 | R29: 0 | S29: 1 | T29: 1 | U29: 2200 | V29: 2200 | W29: 0 | X29: 0 | Y29: 0 | Z29: 0 | AA29: 0 | AB29: 0 | AC29: 0 | AD29: 0 | AE29: 0 | AF29: 0 | AG29: 0 | AH29: 0 | AI29: 0
B30: 25a | C30: 1 | D30: v | G30: 3 | H30: 0 | I30: 0 | J30: 3 | K30: 0 | L30: 0 | M30: 3 | N30: 0 | O30: 0 | P30: 0 | Q30: 0 | R30: 0 | S30: 3 | T30: 0 | U30: 0 | V30: 0 | W30: 0 | X30: 0 | Y30: 0 | Z30: 0 | AA30: 0 | AB30: 0 | AC30: 0 | AD30: 0 | AE30: 0 | AF30: 0 | AG30: 0 | AH30: 0 | AI30: 0
B31: 25a | C31: 1 | D31: w | G31: 12 | H31: 0 | I31: 2 | J31: 47 | K31: 0 | L31: 2 | M31: 38 | N31: 0 | O31: 0 | P31: 0 | Q31: 0 | R31: 0 | S31: 9 | T31: 30 | U31: 26500 | V31: 883.3333333 | W31: 0 | X31: 0 | Y31: 0 | Z31: 0 | AA31: 0 | AB31: 0 | AC31: 0 | AD31: 1 | AE31: 0 | AF31: 0 | AG31: 0 | AH31: 1 | AI31: 0
B32: 25a | C32: 1 | D32: x | G32: 3 | H32: 0 | I32: 0 | J32: 8 | K32: 0 | L32: 0 | M32: 6 | N32: 0 | O32: 0 | P32: 0 | Q32: 0 | R32: 0 | S32: 2 | T32: 4 | U32: 8500 | V32: 2125 | W32: 0 | X32: 0 | Y32: 0 | Z32: 0 | AA32: 0 | AB32: 0 | AC32: 0 | AD32: 0 | AE32: 0 | AF32: 0 | AG32: 0 | AH32: 0 | AI32: 0
B33: 25a | C33: 1 | D33: y | G33: 0 | H33: 0 | I33: 0 | J33: 0 | K33: 0 | L33: 0 | M33: 0 | N33: 0 | O33: 0 | P33: 0 | Q33: 0 | R33: 0 | S33: 0 | T33: 0 | U33: 0 | V33: 0 | W33: 0 | X33: 0 | Y33: 0 | Z33: 0 | AA33: 0 | AB33: 0 | AC33: 0 | AD33: 0 | AE33: 0 | AF33: 0 | AG33: 0 | AH33: 0 | AI33: 0
B34: Celkem | G34: =SUM(G6:G33) -> 72 | H34: =SUM(H6:H33) -> 10 | I34: 3 | J34: 115 | K34: 2 | L34: 6 | M34: 99 | N34: 2 | O34: 0 | P34: 0 | Q34: 0 | R34: 0 | S34: 33 | T34: 71 | U34: 85300 | V34: =U34/T34 -> 1201.408451 | W34: 0 | X34: 0 | Y34: 0 | Z34: 0 | AA34: 0 | AB34: 0 | AC34: 0 | AD34: 1 | AE34: 0 | AF34: 0 | AG34: 0 | AH34: 1 | AI34: 0

Sheet Zákon č. 312-2001 Sb.
B2: PŘEHLED PŘESTUPKŮ ZA ROK 2018
B3: Zákon č. 312/2001 Sb., o státních hranicích
B4: § | C4: odst. | D4: písm. | E4: bod | F4: ve znění zákona č. 225/2017 Sb. | G4: počet podnětů k zahájení řízení o přestupku | H4: počet odložených věcí | I4: počet zahájených řízení o přestupku | L4: počet pravomocných rozhodnutí o uznání obviněného vinným ze spáchání přestupku | O4: počet zastavených řízení | P4: počet rozhodnutí o schválení dohody o narovnání | Q4: počet pravomocných rozhodnutí, kterými bylo upuštěno od uložení správního trestu | R4: počet pravomocných rozhodnutí, kterými byla mimořádně snížena výměra pokuty | S4: počet napomenutí | T4: počet pokut | U4: celková výměra pokut (v Kč) | V4: průměrná výměra pokuty (v Kč) | W4: počet zákazů činnosti | X4: celková délka uložených zákazů činnosti (v letech) | Y4: průměrná délka zákazu činnosti (v letech) | Z4: počet propadnutí věci nebo náhradní hodnoty | AA4: počet zveřejnění rozhodnutí o přestupku | AB4: počet omezujících opatření | AC4: počet zabrání věci nebo náhradní hodnoty | AD4: počet podaných odvolání | AE4: odvolání zamítnuto a napadené rozhodnutí potvrzeno | AF4: odvolání vyřízeno v rámci autoremedury | AG4: rozhodnutí změněno | AH4: rozhodnutí zrušeno a věc vrácena k novému projednání | AI4: rozhodnutí zrušeno a řízení zastaveno
I5: oznámení o zahájení řízení | J5: příkaz | K5: příkaz na místě | L5: rozhodnutí | M5: příkaz | N5: příkaz na místě
B6: 18 | C6: 1 | D6: a | G6: 0 | H6: 0 | I6: 0 | J6: 0 | K6: 0 | L6: 0 | M6: 0 | N6: 0 | O6: 0 | P6: 0 | Q6: 0 | R6: 0 | S6: 0 | T6: 0 | U6: 0 | V6: 0 | W6: 0 | X6: 0 | Y6: 0 | Z6: 0 | AA6: 0 | AB6: 0 | AC6: 0 | AD6: 0 | AE6: 0 | AF6: 0 | AG6: 0 | AH6: 0 | AI6: 0
B7: 18 | C7: 1 | D7: b | G7: 0 | H7: 0 | I7: 0 | J7: 0 | K7: 0 | L7: 0 | M7: 0 | N7: 0 | O7: 0 | P7: 0 | Q7: 0 | R7: 0 | S7: 0 | T7: 0 | U7: 0 | V7: 0 | W7: 0 | X7: 0 | Y7: 0 | Z7: 0 | AA7: 0 | AB7: 0 | AC7: 0 | AD7: 0 | AE7: 0 | AF7: 0 | AG7: 0 | AH7: 0 | AI7: 0
B8: 18 | C8: 1 | D8: c | G8: 0 | H8: 0 | I8: 0 | J8: 0 | K8: 0 | L8: 0 | M8: 0 | N8: 0 | O8: 0 | P8: 0 | Q8: 0 | R8: 0 | S8: 0 | T8: 0 | U8: 0 | V8: 0 | W8: 0 | X8: 0 | Y8: 0 | Z8: 0 | AA8: 0 | AB8: 0 | AC8: 0 | AD8: 0 | AE8: 0 | AF8: 0 | AG8: 0 | AH8: 0 | AI8: 0
B9: Celkem | G9: =SUM(G6:G8) -> 0 | H9: =SUM(H6:H8) -> 0 | I9: 0 | J9: 0 | K9: 0 | L9: 0 | M9: 0 | N9: 0 | O9: 0 | P9: 0 | Q9: 0 | R9: 0 | S9: 0 | T9: 0 | U9: 0 | V9: 0 | W9: 0 | X9: 0 | Y9: 0 | Z9: 0 | AA9: 0 | AB9: 0 | AC9: 0 | AD9: 0 | AE9: 0 | AF9: 0 | AG9: 0 | AH9: 0 | AI9: 0

Sheet Zákon č. 352-2001 Sb.
B2: PŘEHLED PŘESTUPKŮ ZA ROK 2018
B3: Zákon č. 352/2001 Sb., o užívání státních symbolů České republiky a o změně některých zákonů
B4: § | C4: odst. | D4: písm. | E4: bod | F4: ve znění zákona č. 183/2017 Sb. | G4: počet podnětů k zahájení řízení o přestupku | H4: počet odložených věcí | I4: počet zahájených řízení o přestupku | L4: počet pravomocných rozhodnutí o uznání obviněného vinným ze spáchání přestupku | O4: počet zastavených řízení | P4: počet rozhodnutí o schválení dohody o narovnání | Q4: počet pravomocných rozhodnutí, kterými bylo upuštěno od uložení správního trestu | R4: počet pravomocných rozhodnutí, kterými byla mimořádně snížena výměra pokuty | S4: počet napomenutí | T4: počet pokut | U4: celková výměra pokut (v Kč) | V4: průměrná výměra pokuty (v Kč) | W4: počet zákazů činnosti | X4: celková délka uložených zákazů činnosti (v letech) | Y4: průměrná délka zákazu činnosti (v letech) | Z4: počet propadnutí věci nebo náhradní hodnoty | AA4: počet zveřejnění rozhodnutí o přestupku | AB4: počet omezujících opatření | AC4: počet zabrání věci nebo náhradní hodnoty | AD4: počet podaných odvolání | AE4: odvolání zamítnuto a napadené rozhodnutí potvrzeno | AF4: odvolání vyřízeno v rámci autoremedury | AG4: rozhodnutí změněno | AH4: rozhodnutí zrušeno a věc vrácena k novému projednání | AI4: rozhodnutí zrušeno a řízení zastaveno
I5: oznámení o zahájení řízení | J5: příkaz | K5: příkaz na místě | L5: rozhodnutí | M5: příkaz | N5: příkaz na místě
B6: 13 | C6: 1 | D6: a | G6: 3 | H6: 1 | I6: 0 | J6: 0 | K6: 0 | L6: 0 | M6: 0 | N6: 0 | O6: 0 | P6: 0 | Q6: 0 | R6: 0 | S6: 0 | T6: 0 | U6: 0 | V6: 0 | W6: 0 | X6: 0 | Y6: 0 | Z6: 0 | AA6: 0 | AB6: 0 | AC6: 0 | AD6: 0 | AE6: 0 | AF6: 0 | AG6: 0 | AH6: 0 | AI6: 0
B7: 13 | C7: 1 | D7: b | G7: 4 | H7: 1 | I7: 1 | J7: 1 | K7: 1 | L7: 0 | M7: 1 | N7: 1 | O7: 0 | P7: 0 | Q7: 0 | R7: 0 | S7: 0 | T7: 2 | U7: 1900 | V7: =U7/T7 -> 950 | W7: 0 | X7: 0 | Y7: 0 | Z7: 1 | AA7: 0 | AB7: 0 | AC7: 0 | AD7: 0 | AE7: 0 | AF7: 0 | AG7: 0 | AH7: 0 | AI7: 0
B8: 13 | C8: 1 | D8: c | G8: 0 | H8: 0 | I8: 0 | J8: 0 | K8: 0 | L8: 0 | M8: 0 | N8: 0 | O8: 0 | P8: 0 | Q8: 0 | R8: 0 | S8: 0 | T8: 0 | U8: 0 | V8: 0 | W8: 0 | X8: 0 | Y8: 0 | Z8: 0 | AA8: 0 | AB8: 0 | AC8: 0 | AD8: 0 | AE8: 0 | AF8: 0 | AG8: 0 | AH8: 0 | AI8: 0
B9: 13 | C9: 1 | D9: d | G9: 2 | H9: 0 | I9: 0 | J9: 1 | K9: 0 | L9: 0 | M9: 1 | N9: 0 | O9: 0 | P9: 0 | Q9: 0 | R9: 0 | S9: 0 | T9: 1 | U9: 5000 | V9: =U9/T9 -> 5000 | W9: 0 | X9: 0 | Y9: 0 | Z9: 0 | AA9: 0 | AB9: 0 | AC9: 0 | AD9: 0 | AE9: 0 | AF9: 0 | AG9: 0 | AH9: 0 | AI9: 0
B10: 13 | C10: 1 | D10: e | G10: 2 | H10: 1 | I10: 1 | J10: 0 | K10: 0 | L10: 0 | M10: 1 | N10: 0 | O10: 0 | P10: 0 | Q10: 0 | R10: 0 | S10: 0 | T10: 1 | U10: 1000 | V10: 1000 | W10: 0 | X10: 0 | Y10: 0 | Z10: 0 | AA10: 0 | AB10: 0 | AC10: 0 | AD10: 0 | AE10: 0 | AF10: 0 | AG10: 0 | AH10: 0 | AI10: 0
B11: 13 | C11: 1 | D11: f | G11: 1 | H11: 2 | I11: 0 | J11: 0 | K11: 0 | L11: 0 | M11: 0 | N11: 0 | O11: 0 | P11: 0 | Q11: 0 | R11: 0 | S11: 0 | T11: 0 | U11: 0 | V11: 0 | W11: 0 | X11: 0 | Y11: 0 | Z11: 0 | AA11: 0 | AB11: 0 | AC11: 0 | AD11: 0 | AE11: 0 | AF11: 0 | AG11: 0 | AH11: 0 | AI11: 0
B12: Celkem | G12: =SUM(G6:G11) -> 12 | H12: =SUM(H6:H11) -> 5 | I12: 2 | J12: 2 | K12: 1 | L12: 0 | M12: 3 | N12: 1 | O12: 0 | P12: 0 | Q12: 0 | R12: 0 | S12: 0 | T12: 4 | U12: 7900 | V12: 1975 | W12: 0 | X12: 0 | Y12: 0 | Z12: 1 | AA12: 0 | AB12: 0 | AC12: 0 | AD12: 0 | AE12: 0 | AF12: 0 | AG12: 0 | AH12: 0 | AI12: 0

Sheet Zákon č. 491-2001 Sb.
B2: PŘEHLED PŘESTUPKŮ ZA ROK 2018
B3: Zákon č. 491/2001 Sb., o volbách do zastupitelstev obcí a o změně některých zákonů
B4: § | C4: odst. | D4: písm. | E4: bod | F4: ve znění zákona č. 90/2017 Sb. | G4: počet podnětů k zahájení řízení o přestupku | H4: počet odložených věcí | I4: počet zahájených řízení o přestupku | L4: počet pravomocných rozhodnutí o uznání obviněného vinným ze spáchání přestupku | O4: počet zastavených řízení | P4: počet rozhodnutí o schválení dohody o narovnání | Q4: počet pravomocných rozhodnutí, kterými bylo upuštěno od uložení správního trestu | R4: počet pravomocných rozhodnutí, kterými byla mimořádně snížena výměra pokuty | S4: počet napomenutí | T4: počet pokut | U4: celková výměra pokut (v Kč) | V4: průměrná výměra pokuty (v Kč) | W4: počet zákazů činnosti | X4: celková délka uložených zákazů činnosti (v letech) | Y4: průměrná délka zákazu činnosti (v letech) | Z4: počet propadnutí věci nebo náhradní hodnoty | AA4: počet zveřejnění rozhodnutí o přestupku | AB4: počet omezujících opatření | AC4: počet zabrání věci nebo náhradní hodnoty | AD4: počet podaných odvolání | AE4: odvolání zamítnuto a napadené rozhodnutí potvrzeno | AF4: odvolání vyřízeno v rámci autoremedury | AG4: rozhodnutí změněno | AH4: rozhodnutí zrušeno a věc vrácena k novému projednání | AI4: rozhodnutí zrušeno a řízení zastaveno
I5: oznámení o zahájení řízení | J5: příkaz | K5: příkaz na místě | L5: rozhodnutí | M5: příkaz | N5: příkaz na místě
B6: 64 | G6: 0 | H6: 0 | I6: 0 | J6: 0 | K6: 0 | L6: 0 | M6: 0 | N6: 0 | O6: 0 | P6: 0 | Q6: 0 | R6: 0 | S6: 0 | T6: 0 | U6: 0 | V6: 0 | W6: 0 | X6: 0 | Y6: 0 | Z6: 0 | AA6: 0 | AB6: 0 | AC6: 0 | AD6: 0 | AE6: 0 | AF6: 0 | AG6: 0 | AH6: 0 | AI6: 0
B7: 65 | G7: 0 | H7: 0 | I7: 0 | J7: 0 | K7: 0 | L7: 0 | M7: 0 | N7: 0 | O7: 0 | P7: 0 | Q7: 0 | R7: 0 | S7: 0 | T7: 0 | U7: 0 | V7: 0 | W7: 0 | X7: 0 | Y7: 0 | Z7: 0 | AA7: 0 | AB7: 0 | AC7: 0 | AD7: 0 | AE7: 0 | AF7: 0 | AG7: 0 | AH7: 0 | AI7: 0
B8: Celkem | G8: =SUM(G2:G7) -> 0 | H8: =SUM(H2:H7) -> 0 | I8: 0 | J8: 0 | K8: 0 | L8: 0 | M8: 0 | N8: 0 | O8: 0 | P8: 0 | Q8: 0 | R8: 0 | S8: 0 | T8: 0 | U8: 0 | V8: 0 | W8: 0 | X8: 0 | Y8: 0 | Z8: 0 | AA8: 0 | AB8: 0 | AC8: 0 | AD8: 0 | AE8: 0 | AF8: 0 | AG8: 0 | AH8: 0 | AI8: 0

Sheet Zákon č. 119-2002 Sb.
B2: PŘEHLED PŘESTUPKŮ ZA ROK 2018
B3: Zákon č. 119/2002 Sb., o střelných zbraních a střelivu (zákon o zbraních)
B4: § | C4: odst. | D4: písm. | E4: bod | F4: ve znění zákona č. 222/2017 Sb. | G4: počet podnětů k zahájení řízení o přestupku | H4: počet odložených věcí | I4: počet zahájených řízení o přestupku | L4: počet pravomocných rozhodnutí o uznání obviněného vinným ze spáchání přestupku | O4: počet zastavených řízení | P4: počet rozhodnutí o schválení dohody o narovnání | Q4: počet pravomocných rozhodnutí, kterými bylo upuštěno od uložení správního trestu | R4: počet pravomocných rozhodnutí, kterými byla mimořádně snížena výměra pokuty | S4: počet napomenutí | T4: počet pokut | U4: celková výměra pokut (v Kč) | V4: průměrná výměra pokuty (v Kč) | W4: počet zákazů činnosti | X4: celková délka uložených zákazů činnosti (v letech) | Y4: průměrná délka zákazu činnosti (v letech) | Z4: počet propadnutí věci nebo náhradní hodnoty | AA4: počet zveřejnění rozhodnutí o přestupku | AB4: počet omezujících opatření | AC4: počet zabrání věci nebo náhradní hodnoty | AD4: počet podaných odvolání | AE4: odvolání zamítnuto a napadené rozhodnutí potvrzeno | AF4: odvolání vyřízeno v rámci autoremedury | AG4: rozhodnutí změněno | AH4: rozhodnutí zrušeno a věc vrácena k novému projednání | AI4: rozhodnutí zrušeno a řízení zastaveno
I5: oznámení o zahájení řízení | J5: příkaz | K5: příkaz na místě | L5: rozhodnutí | M5: příkaz | N5: příkaz na místě
B6: 76 | C6: 1 | D6: a | G6: 140 | H6: 41 | I6: 29 | J6: 43 | K6: 36 | L6: 9 | M6: 46 | N6: 36 | O6: 4 | P6: 0 | Q6: 0 | R6: 0 | S6: 13 | T6: 79 | U6: 142900 | V6: =U6/T6 -> 1808.860759 | W6: 0 | X6: 0 | Y6: 0 | Z6: 27 | AA6: 0 | AB6: 1 | AC6: 15 | AD6: 1 | AE6: 1 | AF6: 0 | AG6: 0 | AH6: 0 | AI6: 0
B7: 76 | C7: 1 | D7: b | G7: 10 | H7: 3 | I7: 2 | J7: 4 | K7: 0 | L7: 2 | M7: 6 | N7: 0 | O7: 0 | P7: 0 | Q7: 0 | R7: 0 | S7: 1 | T7: 5 | U7: 11000 | V7: 2200 | W7: 0 | X7: 0 | Y7: 0 | Z7: 2 | AA7: 0 | AB7: 0 | AC7: 0 | AD7: 0 | AE7: 0 | AF7: 0 | AG7: 0 | AH7: 0 | AI7: 0
B8: 76 | C8: 1 | D8: c | G8: 159 | H8: 27 | I8: 1 | J8: 16 | K8: 111 | L8: 3 | M8: 12 | N8: 111 | O8: 1 | P8: 0 | Q8: 0 | R8: 0 | S8: 3 | T8: 125 | U8: 78000 | V8: 624 | W8: 0 | X8: 0 | Y8: 0 | Z8: 2 | AA8: 0 | AB8: 0 | AC8: 3 | AD8: 0 | AE8: 0 | AF8: 0 | AG8: 0 | AH8: 0 | AI8: 0
B9: 76 | C9: 1 | D9: d | G9: 23 | H9: 25 | I9: 0 | J9: 3 | K9: 2 | L9: 0 | M9: 4 | N9: 3 | O9: 0 | P9: 0 | Q9: 0 | R9: 0 | S9: 0 | T9: 5 | U9: 5800 | V9: 1160 | W9: 0 | X9: 0 | Y9: 0 | Z9: 1 | AA9: 0 | AB9: 0 | AC9: 4 | AD9: 0 | AE9: 0 | AF9: 0 | AG9: 0 | AH9: 0 | AI9: 0
B10: 76 | C10: 1 | D10: e | G10: 1 | H10: 1 | I10: 0 | J10: 0 | K10: 0 | L10: 0 | M10: 0 | N10: 0 | O10: 0 | P10: 0 | Q10: 0 | R10: 0 | S10: 0 | T10: 0 | U10: 0 | V10: 0 | W10: 0 | X10: 0 | Y10: 0 | Z10: 0 | AA10: 0 | AB10: 0 | AC10: 0 | AD10: 0 | AE10: 0 | AF10: 0 | AG10: 0 | AH10: 0 | AI10: 0
B11: 76 | C11: 1 | D11: f | G11: 2 | H11: 2 | I11: 0 | J11: 0 | K11: 0 | L11: 0 | M11: 1 | N11: 0 | O11: 0 | P11: 0 | Q11: 0 | R11: 0 | S11: 0 | T11: 1 | U11: 1500 | V11: 1500 | W11: 0 | X11: 0 | Y11: 0 | Z11: 0 | AA11: 0 | AB11: 0 | AC11: 0 | AD11: 0 | AE11: 0 | AF11: 0 | AG11: 0 | AH11: 0 | AI11: 0
B12: 76 | C12: 1 | D12: g | G12: 4 | H12: 0 | I12: 1 | J12: 0 | K12: 0 | L12: 1 | M12: 0 | N12: 0 | O12: 0 | P12: 0 | Q12: 0 | R12: 0 | S12: 0 | T12: 0 | U12: 0 | V12: 0 | W12: 0 | X12: 0 | Y12: 0 | Z12: 0 | AA12: 0 | AB12: 0 | AC12: 0 | AD12: 0 | AE12: 0 | AF12: 0 | AG12: 0 | AH12: 0 | AI12: 0
B13: 76 | C13: 1 | D13: h | G13: 0 | H13: 0 | I13: 0 | J13: 0 | K13: 0 | L13: 0 | M13: 0 | N13: 0 | O13: 0 | P13: 0 | Q13: 0 | R13: 0 | S13: 0 | T13: 0 | U13: 0 | V13: 0 | W13: 0 | X13: 0 | Y13: 0 | Z13: 0 | AA13: 0 | AB13: 0 | AC13: 0 | AD13: 0 | AE13: 0 | AF13: 0 | AG13: 0 | AH13: 0 | AI13: 0
B14: 76 | C14: 1 | D14: i | G14: 0 | H14: 0 | I14: 0 | J14: 0 | K14: 0 | L14: 0 | M14: 0 | N14: 0 | O14: 0 | P14: 0 | Q14: 0 | R14: 0 | S14: 0 | T14: 0 | U14: 0 | V14: 0 | W14: 0 | X14: 0 | Y14: 0 | Z14: 0 | AA14: 0 | AB14: 0 | AC14: 0 | AD14: 0 | AE14: 0 | AF14: 0 | AG14: 0 | AH14: 0 | AI14: 0
B15: 76 | C15: 1 | D15: j | G15: 1 | H15: 1 | I15: 0 | J15: 0 | K15: 0 | L15: 0 | M15: 0 | N15: 0 | O15: 0 | P15: 0 | Q15: 0 | R15: 0 | S15: 0 | T15: 0 | U15: 0 | V15: 0 | W15: 0 | X15: 0 | Y15: 0 | Z15: 0 | AA15: 0 | AB15: 0 | AC15: 0 | AD15: 0 | AE15: 0 | AF15: 0 | AG15: 0 | AH15: 0 | AI15: 0
B16: 76 | C16: 1 | D16: k | G16: 1 | H16: 1 | I16: 0 | J16: 0 | K16: 0 | L16: 0 | M16: 0 | N16: 0 | O16: 0 | P16: 0 | Q16: 0 | R16: 0 | S16: 0 | T16: 0 | U16: 0 | V16: 0 | W16: 0 | X16: 0 | Y16: 0 | Z16: 0 | AA16: 0 | AB16: 0 | AC16: 0 | AD16: 0 | AE16: 0 | AF16: 0 | AG16: 0 | AH16: 0 | AI16: 0
B17: 76 | C17: 1 | D17: l | E17: 1 | G17: 4 | H17: 0 | I17: 0 | J17: 0 | K17: 4 | L17: 0 | M17: 0 | N17: 4 | O17: 0 | P17: 0 | Q17: 0 | R17: 0 | S17: 0 | T17: 4 | U17: 900 | V17: 225 | W17: 0 | X17: 0 | Y17: 0 | Z17: 0 | AA17: 0 | AB17: 0 | AC17: 0 | AD17: 0 | AE17: 0 | AF17: 0 | AG17: 0 | AH17: 0 | AI17: 0
B18: 76 | C18: 1 | D18: l | E18: 2 | G18: 0 | H18: 0 | I18: 0 | J18: 0 | K18: 0 | L18: 0 | M18: 0 | N18: 0 | O18: 0 | P18: 0 | Q18: 0 | R18: 0 | S18: 0 | T18: 0 | U18: 0 | V18: 0 | W18: 0 | X18: 0 | Y18: 0 | Z18: 0 | AA18: 0 | AB18: 0 | AC18: 0 | AD18: 0 | AE18: 0 | AF18: 0 | AG18: 0 | AH18: 0 | AI18: 0
B19: 76 | C19: 1 | D19: m | G19: 2 | H19: 2 | I19: 0 | J19: 0 | K19: 0 | L19: 0 | M19: 0 | N19: 0 | O19: 0 | P19: 0 | Q19: 0 | R19: 0 | S19: 0 | T19: 0 | U19: 0 | V19: 0 | W19: 0 | X19: 0 | Y19: 0 | Z19: 0 | AA19: 0 | AB19: 0 | AC19: 0 | AD19: 0 | AE19: 0 | AF19: 0 | AG19: 0 | AH19: 0 | AI19: 0
B20: 76 | C20: 1 | D20: n | G20: 3 | H20: 0 | I20: 0 | J20: 1 | K20: 1 | L20: 1 | M20: 1 | N20: 1 | O20: 0 | P20: 0 | Q20: 0 | R20: 0 | S20: 1 | T20: 2 | U20: 500 | V20: 250 | W20: 0 | X20: 0 | Y20: 0 | Z20: 2 | AA20: 0 | AB20: 1 | AC20: 0 | AD20: 0 | AE20: 0 | AF20: 0 | AG20: 0 | AH20: 0 | AI20: 0
B21: 76 | C21: 1 | D21: o | G21: 0 | H21: 0 | I21: 0 | J21: 0 | K21: 0 | L21: 0 | M21: 0 | N21: 0 | O21: 0 | P21: 0 | Q21: 0 | R21: 0 | S21: 0 | T21: 0 | U21: 0 | V21: 0 | W21: 0 | X21: 0 | Y21: 0 | Z21: 0 | AA21: 0 | AB21: 0 | AC21: 0 | AD21: 0 | AE21: 0 | AF21: 0 | AG21: 0 | AH21: 0 | AI21: 0
B22: 76 | C22: 1 | D22: p | G22: 0 | H22: 0 | I22: 0 | J22: 0 | K22: 0 | L22: 0 | M22: 0 | N22: 0 | O22: 0 | P22: 0 | Q22: 0 | R22: 0 | S22: 0 | T22: 0 | U22: 0 | V22: 0 | W22: 0 | X22: 0 | Y22: 0 | Z22: 0 | AA22: 0 | AB22: 0 | AC22: 0 | AD22: 0 | AE22: 0 | AF22: 0 | AG22: 0 | AH22: 0 | AI22: 0
B23: 76 | C23: 1 | D23: q | G23: 0 | H23: 0 | I23: 0 | J23: 0 | K23: 0 | L23: 0 | M23: 0 | N23: 0 | O23: 0 | P23: 0 | Q23: 0 | R23: 0 | S23: 0 | T23: 0 | U23: 0 | V23: 0 | W23: 0 | X23: 0 | Y23: 0 | Z23: 0 | AA23: 0 | AB23: 0 | AC23: 0 | AD23: 0 | AE23: 0 | AF23: 0 | AG23: 0 | AH23: 0 | AI23: 0
B24: 76 | C24: 1 | D24: r | G24: 0 | H24: 0 | I24: 0 | J24: 0 | K24: 0 | L24: 0 | M24: 0 | N24: 0 | O24: 0 | P24: 0 | Q24: 0 | R24: 0 | S24: 0 | T24: 0 | U24: 0 | V24: 0 | W24: 0 | X24: 0 | Y24: 0 | Z24: 0 | AA24: 0 | AB24: 0 | AC24: 0 | AD24: 0 | AE24: 0 | AF24: 0 | AG24: 0 | AH24: 0 | AI24: 0
B25: 76 | C25: 2 | D25: a | G25: 2 | H25: 0 | I25: 0 | J25: 2 | K25: 0 | L25: 0 | M25: 2 | N25: 0 | O25: 0 | P25: 0 | Q25: 0 | R25: 0 | S25: 0 | T25: 2 | U25: 4000 | V25: 2000 | W25: 0 | X25: 0 | Y25: 0 | Z25: 0 | AA25: 0 | AB25: 0 | AC25: 0 | AD25: 0 | AE25: 0 | AF25: 0 | AG25: 0 | AH25: 0 | AI25: 0
B26: 76 | C26: 2 | D26: b | G26: 0 | H26: 0 | I26: 0 | J26: 0 | K26: 0 | L26: 0 | M26: 0 | N26: 0 | O26: 0 | P26: 0 | Q26: 0 | R26: 0 | S26: 0 | T26: 0 | U26: 0 | V26: 0 | W26: 0 | X26: 0 | Y26: 0 | Z26: 0 | AA26: 0 | AB26: 0 | AC26: 0 | AD26: 0 | AE26: 0 | AF26: 0 | AG26: 0 | AH26: 0 | AI26: 0
B27: 76 | C27: 2 | D27: c | G27: 5 | H27: 0 | I27: 0 | J27: 0 | K27: 5 | L27: 0 | M27: 0 | N27: 5 | O27: 0 | P27: 0 | Q27: 0 | R27: 0 | S27: 0 | T27: 5 | U27: 1100 | V27: 220 | W27: 0 | X27: 0 | Y27: 0 | Z27: 0 | AA27: 0 | AB27: 0 | AC27: 0 | AD27: 0 | AE27: 0 | AF27: 0 | AG27: 0 | AH27: 0 | AI27: 0
B28: 76 | C28: 2 | D28: d | G28: 0 | H28: 0 | I28: 0 | J28: 0 | K28: 0 | L28: 0 | M28: 0 | N28: 0 | O28: 0 | P28: 0 | Q28: 0 | R28: 0 | S28: 0 | T28: 0 | U28: 0 | V28: 0 | W28: 0 | X28: 0 | Y28: 0 | Z28: 0 | AA28: 0 | AB28: 0 | AC28: 0 | AD28: 0 | AE28: 0 | AF28: 0 | AG28: 0 | AH28: 0 | AI28: 0
B29: 76a | C29: 1 | D29: a | G29: 23 | H29: 2 | I29: 8 | J29: 7 | K29: 3 | L29: 1 | M29: 6 | N29: 5 | O29: 3 | P29: 0 | Q29: 0 | R29: 0 | S29: 1 | T29: 11 | U29: 35000 | V29: 3181.818182 | W29: 0 | X29: 0 | Y29: 0 | Z29: 2 | AA29: 0 | AB29: 0 | AC29: 3 | AD29: 0 | AE29: 0 | AF29: 0 | AG29: 0 | AH29: 0 | AI29: 0
B30: 76a | C30: 1 | D30: b | G30: 110 | H30: 12 | I30: 30 | J30: 25 | K30: 15 | L30: 24 | M30: 30 | N30: 15 | O30: 6 | P30: 0 | Q30: 0 | R30: 0 | S30: 4 | T30: 57 | U30: 143300 | V30: 2514.035088 | W30: 0 | X30: 0 | Y30: 0 | Z30: 19 | AA30: 0 | AB30: 0 | AC30: 1 | AD30: 5 | AE30: 2 | AF30: 0 | AG30: 2 | AH30: 1 | AI30: 0
B31: 76a | C31: 1 | D31: c | G31: 81 | H31: 10 | I31: 21 | J31: 22 | K31: 8 | L31: 18 | M31: 27 | N31: 9 | O31: 5 | P31: 0 | Q31: 0 | R31: 0 | S31: 4 | T31: 41 | U31: 96600 | V31: 2356.097561 | W31: 0 | X31: 0 | Y31: 0 | Z31: 18 | AA31: 0 | AB31: 0 | AC31: 2 | AD31: 1 | AE31: 0 | AF31: 0 | AG31: 1 | AH31: 0 | AI31: 0
B32: 76a | C32: 1 | D32: d | G32: 122 | H32: 10 | I32: 33 | J32: 49 | K32: 8 | L32: 21 | M32: 64 | N32: 8 | O32: 7 | P32: 0 | Q32: 1 | R32: 0 | S32: 1 | T32: 90 | U32: 251800 | V32: 2797.777778 | W32: 0 | X32: 0 | Y32: 0 | Z32: 38 | AA32: 0 | AB32: 0 | AC32: 1 | AD32: 1 | AE32: 1 | AF32: 0 | AG32: 0 | AH32: 0 | AI32: 0
B33: 76a | C33: 1 | D33: e | G33: 3 | H33: 0 | I33: 3 | J33: 2 | K33: 1 | L33: 2 | M33: 1 | N33: 1 | O33: 0 | P33: 0 | Q33: 0 | R33: 0 | S33: 0 | T33: 5 | U33: 13000 | V33: 2600 | W33: 0 | X33: 0 | Y33: 0 | Z33: 2 | AA33: 0 | AB33: 0 | AC33: 1 | AD33: 0 | AE33: 0 | AF33: 0 | AG33: 0 | AH33: 0 | AI33: 0
B34: 76a | C34: 2 | D34: a | G34: 0 | H34: 0 | I34: 0 | J34: 0 | K34: 0 | L34: 0 | M34: 0 | N34: 0 | O34: 0 | P34: 0 | Q34: 0 | R34: 0 | S34: 0 | T34: 0 | U34: 0 | V34: 0 | W34: 0 | X34: 0 | Y34: 0 | Z34: 0 | AA34: 0 | AB34: 0 | AC34: 0 | AD34: 0 | AE34: 0 | AF34: 0 | AG34: 0 | AH34: 0 | AI34: 0
B35: 76a | C35: 2 | D35: b | G35: 0 | H35: 0 | I35: 0 | J35: 0 | K35: 0 | L35: 0 | M35: 0 | N35: 0 | O35: 0 | P35: 0 | Q35: 0 | R35: 0 | S35: 0 | T35: 0 | U35: 0 | V35: 0 | W35: 0 | X35: 0 | Y35: 0 | Z35: 0 | AA35: 0 | AB35: 0 | AC35: 0 | AD35: 0 | AE35: 0 | AF35: 0 | AG35: 0 | AH35: 0 | AI35: 0
B36: 76a | C36: 3 | G36: 78 | H36: 12 | I36: 5 | J36: 25 | K36: 26 | L36: 4 | M36: 30 | N36: 26 | O36: 1 | P36: 0 | Q36: 0 | R36: 0 | S36: 3 | T36: 51 | U36: 154200 | V36: 3023.529412 | W36: 0 | X36: 0 | Y36: 0 | Z36: 2 | AA36: 0 | AB36: 0 | AC36: 1 | AD36: 0 | AE36: 0 | AF36: 0 | AG36: 0 | AH36: 0 | AI36: 0
B37: 76a | C37: 4 | D37: a | G37: 27 | H37: 1 | I37: 2 | J37: 10 | K37: 7 | L37: 0 | M37: 13 | N37: 9 | O37: 0 | P37: 0 | Q37: 0 | R37: 0 | S37: 1 | T37: 19 | U37: 58200 | V37: 3063.157895 | W37: 0 | X37: 0 | Y37: 0 | Z37: 1 | AA37: 0 | AB37: 0 | AC37: 0 | AD37: 0 | AE37: 0 | AF37: 0 | AG37: 0 | AH37: 0 | AI37: 0
B38: 76a | C38: 4 | D38: b | G38: 14 | H38: 2 | I38: 0 | J38: 3 | K38: 6 | L38: 0 | M38: 4 | N38: 6 | O38: 0 | P38: 0 | Q38: 0 | R38: 0 | S38: 0 | T38: 7 | U38: 7700 | V38: 1100 | W38: 0 | X38: 0 | Y38: 0 | Z38: 0 | AA38: 0 | AB38: 0 | AC38: 0 | AD38: 0 | AE38: 0 | AF38: 0 | AG38: 0 | AH38: 0 | AI38: 0
B39: 76a | C39: 4 | D39: c | G39: 0 | H39: 0 | I39: 0 | J39: 0 | K39: 0 | L39: 0 | M39: 0 | N39: 0 | O39: 0 | P39: 0 | Q39: 0 | R39: 0 | S39: 0 | T39: 0 | U39: 0 | V39: 0 | W39: 0 | X39: 0 | Y39: 0 | Z39: 0 | AA39: 0 | AB39: 0 | AC39: 0 | AD39: 0 | AE39: 0 | AF39: 0 | AG39: 0 | AH39: 0 | AI39: 0
B40: 76a | C40: 4 | D40: d | G40: 1 | H40: 0 | I40: 0 | J40: 0 | K40: 0 | L40: 0 | M40: 0 | N40: 0 | O40: 0 | P40: 0 | Q40: 0 | R40: 0 | S40: 0 | T40: 0 | U40: 0 | V40: 0 | W40: 0 | X40: 0 | Y40: 0 | Z40: 0 | AA40: 0 | AB40: 0 | AC40: 0 | AD40: 0 | AE40: 0 | AF40: 0 | AG40: 0 | AH40: 0 | AI40: 0
B41: 76a | C41: 4 | D41: e | G41: 8 | H41: 1 | I41: 0 | J41: 2 | K41: 4 | L41: 1 | M41: 2 | N41: 4 | O41: 0 | P41: 0 | Q41: 0 | R41: 0 | S41: 1 | T41: 6 | U41: 7500 | V41: 1250 | W41: 0 | X41: 0 | Y41: 0 | Z41: 1 | AA41: 0 | AB41: 0 | AC41: 1 | AD41: 0 | AE41: 0 | AF41: 0 | AG41: 0 | AH41: 0 | AI41: 0
B42: 76a | C42: 5 | D42: a | G42: 1 | H42: 0 | I42: 0 | J42: 0 | K42: 0 | L42: 0 | M42: 1 | N42: 0 | O42: 0 | P42: 0 | Q42: 0 | R42: 0 | S42: 0 | T42: 1 | U42: 5000 | V42: 5000 | W42: 0 | X42: 0 | Y42: 0 | Z42: 0 | AA42: 0 | AB42: 0 | AC42: 0 | AD42: 0 | AE42: 0 | AF42: 0 | AG42: 0 | AH42: 0 | AI42: 0
B43: 76a | C43: 5 | D43: b | G43: 17 | H43: 0 | I43: 2 | J43: 10 | K43: 3 | L43: 0 | M43: 14 | N43: 4 | O43: 0 | P43: 0 | Q43: 0 | R43: 0 | S43: 0 | T43: 15 | U43: 71800 | V43: 4786.666667 | W43: 0 | X43: 0 | Y43: 0 | Z43: 2 | AA43: 0 | AB43: 0 | AC43: 0 | AD43: 0 | AE43: 0 | AF43: 0 | AG43: 0 | AH43: 0 | AI43: 0
B44: 76a | C44: 6 | D44: a | G44: 10 | H44: 1 | I44: 0 | J44: 1 | K44: 8 | L44: 0 | M44: 1 | N44: 8 | O44: 0 | P44: 0 | Q44: 0 | R44: 0 | S44: 0 | T44: 9 | U44: 8100 | V44: 900 | W44: 0 | X44: 0 | Y44: 0 | Z44: 0 | AA44: 0 | AB44: 0 | AC44: 0 | AD44: 0 | AE44: 0 | AF44: 0 | AG44: 0 | AH44: 0 | AI44: 0
B45: 76a | C45: 6 | D45: b | G45: 0 | H45: 0 | I45: 0 | J45: 0 | K45: 0 | L45: 0 | M45: 0 | N45: 0 | O45: 0 | P45: 0 | Q45: 0 | R45: 0 | S45: 0 | T45: 0 | U45: 0 | V45: 0 | W45: 0 | X45: 0 | Y45: 0 | Z45: 0 | AA45: 0 | AB45: 0 | AC45: 0 | AD45: 0 | AE45: 0 | AF45: 0 | AG45: 0 | AH45: 0 | AI45: 0
B46: 76a | C46: 6 | D46: c | G46: 0 | H46: 0 | I46: 0 | J46: 0 | K46: 0 | L46: 0 | M46: 0 | N46: 0 | O46: 0 | P46: 0 | Q46: 0 | R46: 0 | S46: 0 | T46: 0 | U46: 0 | V46: 0 | W46: 0 | X46: 0 | Y46: 0 | Z46: 0 | AA46: 0 | AB46: 0 | AC46: 0 | AD46: 0 | AE46: 0 | AF46: 0 | AG46: 0 | AH46: 0 | AI46: 0
B47: 76a | C47: 6 | D47: d | G47: 0 | H47: 0 | I47: 0 | J47: 0 | K47: 0 | L47: 0 | M47: 0 | N47: 0 | O47: 0 | P47: 0 | Q47: 0 | R47: 0 | S47: 0 | T47: 0 | U47: 0 | V47: 0 | W47: 0 | X47: 0 | Y47: 0 | Z47: 0 | AA47: 0 | AB47: 0 | AC47: 0 | AD47: 0 | AE47: 0 | AF47: 0 | AG47: 0 | AH47: 0 | AI47: 0
B48: 76a | C48: 7 | G48: 5 | H48: 0 | I48: 0 | J48: 0 | K48: 5 | L48: 0 | M48: 0 | N48: 5 | O48: 0 | P48: 0 | Q48: 0 | R48: 0 | S48: 0 | T48: 5 | U48: 3500 | V48: 700 | W48: 0 | X48: 0 | Y48: 0 | Z48: 0 | AA48: 0 | AB48: 0 | AC48: 0 | AD48: 0 | AE48: 0 | AF48: 0 | AG48: 0 | AH48: 0 | AI48: 0
B49: 76a | C49: 8 | D49: a | G49: 9 | H49: 0 | I49: 0 | J49: 6 | K49: 2 | L49: 0 | M49: 6 | N49: 2 | O49: 0 | P49: 0 | Q49: 0 | R49: 0 | S49: 0 | T49: 8 | U49: 2400 | V49: 300 | W49: 0 | X49: 0 | Y49: 0 | Z49: 0 | AA49: 0 | AB49: 0 | AC49: 0 | AD49: 0 | AE49: 0 | AF49: 0 | AG49: 0 | AH49: 0 | AI49: 0
B50: 76a | C50: 8 | D50: b | E50: 1 | G50: 1 | H50: 0 | I50: 0 | J50: 0 | K50: 1 | L50: 0 | M50: 0 | N50: 1 | O50: 0 | P50: 0 | Q50: 0 | R50: 0 | S50: 0 | T50: 1 | U50: 200 | V50: 200 | W50: 0 | X50: 0 | Y50: 0 | Z50: 0 | AA50: 0 | AB50: 0 | AC50: 0 | AD50: 0 | AE50: 0 | AF50: 0 | AG50: 0 | AH50: 0 | AI50: 0
B51: 76a | C51: 8 | D51: b | E51: 2 | G51: 1 | H51: 0 | I51: 0 | J51: 0 | K51: 1 | L51: 0 | M51: 0 | N51: 1 | O51: 0 | P51: 0 | Q51: 0 | R51: 0 | S51: 0 | T51: 1 | U51: 200 | V51: 200 | W51: 0 | X51: 0 | Y51: 0 | Z51: 0 | AA51: 0 | AB51: 0 | AC51: 0 | AD51: 0 | AE51: 0 | AF51: 0 | AG51: 0 | AH51: 0 | AI51: 0
B52: 76a | C52: 8 | D52: c | G52: 21 | H52: 0 | I52: 0 | J52: 3 | K52: 15 | L52: 0 | M52: 3 | N52: 15 | O52: 0 | P52: 0 | Q52: 1 | R52: 1 | S52: 1 | T52: 17 | U52: 18900 | V52: 1111.764706 | W52: 0 | X52: 0 | Y52: 0 | Z52: 0 | AA52: 0 | AB52: 0 | AC52: 0 | AD52: 0 | AE52: 0 | AF52: 0 | AG52: 0 | AH52: 0 | AI52: 0
B53: 76a | C53: 8 | D53: d | G53: 824 | H53: 13 | I53: 23 | J53: 151 | K53: 609 | L53: 10 | M53: 165 | N53: 610 | O53: 6 | P53: 2 | Q53: 0 | R53: 0 | S53: 14 | T53: 762 | U53: 416400 | V53: 546.4566929 | W53: 0 | X53: 0 | Y53: 0 | Z53: 0 | AA53: 1 | AB53: 0 | AC53: 1 | AD53: 1 | AE53: 1 | AF53: 0 | AG53: 0 | AH53: 0 | AI53: 1
B54: 76a | C54: 8 | D54: e | G54: 0 | H54: 1 | I54: 0 | J54: 0 | K54: 0 | L54: 0 | M54: 0 | N54: 0 | O54: 0 | P54: 0 | Q54: 0 | R54: 0 | S54: 0 | T54: 0 | U54: 0 | V54: 0 | W54: 0 | X54: 0 | Y54: 0 | Z54: 0 | AA54: 0 | AB54: 0 | AC54: 0 | AD54: 0 | AE54: 0 | AF54: 0 | AG54: 0 | AH54: 0 | AI54: 0
B55: 76a | C55: 8 | D55: f | G55: 0 | H55: 0 | I55: 0 | J55: 0 | K55: 0 | L55: 0 | M55: 0 | N55: 0 | O55: 0 | P55: 0 | Q55: 0 | R55: 0 | S55: 0 | T55: 0 | U55: 0 | V55: 0 | W55: 0 | X55: 0 | Y55: 0 | Z55: 0 | AA55: 0 | AB55: 0 | AC55: 0 | AD55: 0 | AE55: 0 | AF55: 0 | AG55: 0 | AH55: 0 | AI55: 0
B56: 76a | C56: 8 | D56: g | E56: 1 | G56: 0 | H56: 0 | I56: 0 | J56: 0 | K56: 0 | L56: 0 | M56: 0 | N56: 0 | O56: 0 | P56: 0 | Q56: 0 | R56: 0 | S56: 0 | T56: 0 | U56: 0 | V56: 0 | W56: 0 | X56: 0 | Y56: 0 | Z56: 0 | AA56: 0 | AB56: 0 | AC56: 0 | AD56: 0 | AE56: 0 | AF56: 0 | AG56: 0 | AH56: 0 | AI56: 0
B57: 76a | C57: 8 | D57: g | E57: 2 | G57: 0 | H57: 0 | I57: 0 | J57: 0 | K57: 0 | L57: 0 | M57: 0 | N57: 0 | O57: 0 | P57: 0 | Q57: 0 | R57: 0 | S57: 0 | T57: 0 | U57: 0 | V57: 0 | W57: 0 | X57: 0 | Y57: 0 | Z57: 0 | AA57: 0 | AB57: 0 | AC57: 0 | AD57: 0 | AE57: 0 | AF57: 0 | AG57: 0 | AH57: 0 | AI57: 0
B58: 76a | C58: 8 | D58: h | G58: 1 | H58: 0 | I58: 0 | J58: 0 | K58: 1 | L58: 0 | M58: 0 | N58: 1 | O58: 0 | P58: 0 | Q58: 0 | R58: 0 | S58: 0 | T58: 1 | U58: 500 | V58: 500 | W58: 0 | X58: 0 | Y58: 0 | Z58: 0 | AA58: 0 | AB58: 0 | AC58: 0 | AD58: 0 | AE58: 0 | AF58: 0 | AG58: 0 | AH58: 0 | AI58: 0
B59: 76a | C59: 8 | D59: i | G59: 1 | H59: 1 | I59: 0 | J59: 0 | K59: 0 | L59: 0 | M59: 0 | N59: 0 | O59: 0 | P59: 0 | Q59: 0 | R59: 0 | S59: 0 | T59: 0 | U59: 0 | V59: 0 | W59: 0 | X59: 0 | Y59: 0 | Z59: 0 | AA59: 0 | AB59: 0 | AC59: 0 | AD59: 0 | AE59: 0 | AF59: 0 | AG59: 0 | AH59: 0 | AI59: 0
B60: 76a | C60: 9 | G60: 1 | H60: 0 | I60: 0 | J60: 0 | K60: 0 | L60: 0 | M60: 0 | N60: 0 | O60: 0 | P60: 0 | Q60: 0 | R60: 0 | S60: 0 | T60: 0 | U60: 0 | V60: 0 | W60: 0 | X60: 0 | Y60: 0 | Z60: 0 | AA60: 0 | AB60: 0 | AC60: 0 | AD60: 0 | AE60: 0 | AF60: 0 | AG60: 0 | AH60: 0 | AI60: 0
B61: 76a | C61: 10 | D61: a | G61: 0 | H61: 0 | I61: 0 | J61: 0 | K61: 0 | L61: 0 | M61: 0 | N61: 0 | O61: 0 | P61: 0 | Q61: 0 | R61: 0 | S61: 0 | T61: 0 | U61: 0 | V61: 0 | W61: 0 | X61: 0 | Y61: 0 | Z61: 0 | AA61: 0 | AB61: 0 | AC61: 0 | AD61: 0 | AE61: 0 | AF61: 0 | AG61: 0 | AH61: 0 | AI61: 0
B62: 76a | C62: 10 | D62: b | G62: 1 | H62: 0 | I62: 0 | J62: 0 | K62: 0 | L62: 0 | M62: 0 | N62: 0 | O62: 0 | P62: 0 | Q62: 0 | R62: 0 | S62: 0 | T62: 0 | U62: 0 | V62: 0 | W62: 0 | X62: 0 | Y62: 0 | Z62: 0 | AA62: 0 | AB62: 0 | AC62: 0 | AD62: 0 | AE62: 0 | AF62: 0 | AG62: 0 | AH62: 0 | AI62: 0
B63: 76a | C63: 10 | D63: c | G63: 2 | H63: 0 | I63: 0 | J63: 1 | K63: 0 | L63: 2 | M63: 1 | N63: 0 | O63: 0 | P63: 0 | Q63: 2 | R63: 0 | S63: 0 | T63: 1 | U63: 5000 | V63: 5000 | W63: 0 | X63: 0 | Y63: 0 | Z63: 1 | AA63: 0 | AB63: 0 | AC63: 0 | AD63: 0 | AE63: 0 | AF63: 0 | AG63: 0 | AH63: 0 | AI63: 0
B64: 76a | C64: 11 | G64: 0 | H64: 0 | I64: 0 | J64: 0 | K64: 0 | L64: 0 | M64: 0 | N64: 0 | O64: 0 | P64: 0 | Q64: 0 | R64: 0 | S64: 0 | T64: 0 | U64: 0 | V64: 0 | W64: 0 | X64: 0 | Y64: 0 | Z64: 0 | AA64: 0 | AB64: 0 | AC64: 0 | AD64: 0 | AE64: 0 | AF64: 0 | AG64: 0 | AH64: 0 | AI64: 0
B65: 76a | C65: 12 | D65: a | G65: 2 | H65: 0 | I65: 0 | J65: 0 | K65: 2 | L65: 0 | M65: 0 | N65: 2 | O65: 0 | P65: 0 | Q65: 0 | R65: 0 | S65: 0 | T65: 2 | U65: 200 | V65: 100 | W65: 0 | X65: 0 | Y65: 0 | Z65: 0 | AA65: 0 | AB65: 0 | AC65: 0 | AD65: 0 | AE65: 0 | AF65: 0 | AG65: 0 | AH65: 0 | AI65: 0
B66: 76a | C66: 12 | D66: b | G66: 4 | H66: 0 | I66: 1 | J66: 2 | K66: 0 | L66: 0 | M66: 2 | N66: 0 | O66: 0 | P66: 0 | Q66: 0 | R66: 0 | S66: 2 | T66: 0 | U66: 0 | V66: 0 | W66: 0 | X66: 0 | Y66: 0 | Z66: 0 | AA66: 0 | AB66: 0 | AC66: 0 | AD66: 0 | AE66: 0 | AF66: 0 | AG66: 0 | AH66: 0 | AI66: 0
B67: 76a | C67: 12 | D67: c | G67: 0 | H67: 0 | I67: 0 | J67: 0 | K67: 0 | L67: 0 | M67: 0 | N67: 0 | O67: 0 | P67: 0 | Q67: 0 | R67: 0 | S67: 0 | T67: 0 | U67: 0 | V67: 0 | W67: 0 | X67: 0 | Y67: 0 | Z67: 0 | AA67: 0 | AB67: 0 | AC67: 0 | AD67: 0 | AE67: 0 | AF67: 0 | AG67: 0 | AH67: 0 | AI67: 0
B68: 76a | C68: 13 | D68: a | G68: 0 | H68: 0 | I68: 0 | J68: 0 | K68: 0 | L68: 0 | M68: 0 | N68: 0 | O68: 0 | P68: 0 | Q68: 0 | R68: 0 | S68: 0 | T68: 0 | U68: 0 | V68: 0 | W68: 0 | X68: 0 | Y68: 0 | Z68: 0 | AA68: 0 | AB68: 0 | AC68: 0 | AD68: 0 | AE68: 0 | AF68: 0 | AG68: 0 | AH68: 0 | AI68: 0
B69: 76a | C69: 13 | D69: b | G69: 0 | H69: 0 | I69: 0 | J69: 0 | K69: 0 | L69: 0 | M69: 0 | N69: 0 | O69: 0 | P69: 0 | Q69: 0 | R69: 0 | S69: 0 | T69: 0 | U69: 0 | V69: 0 | W69: 0 | X69: 0 | Y69: 0 | Z69: 0 | AA69: 0 | AB69: 0 | AC69: 0 | AD69: 0 | AE69: 0 | AF69: 0 | AG69: 0 | AH69: 0 | AI69: 0
B70: 76a | C70: 13 | D70: c | G70: 0 | H70: 0 | I70: 0 | J70: 0 | K70: 0 | L70: 0 | M70: 0 | N70: 0 | O70: 0 | P70: 0 | Q70: 0 | R70: 0 | S70: 0 | T70: 0 | U70: 0 | V70: 0 | W70: 0 | X70: 0 | Y70: 0 | Z70: 0 | AA70: 0 | AB70: 0 | AC70: 0 | AD70: 0 | AE70: 0 | AF70: 0 | AG70: 0 | AH70: 0 | AI70: 0
B71: 76a | C71: 13 | D71: d | G71: 0 | H71: 0 | I71: 0 | J71: 0 | K71: 0 | L71: 0 | M71: 0 | N71: 0 | O71: 0 | P71: 0 | Q71: 0 | R71: 0 | S71: 0 | T71: 0 | U71: 0 | V71: 0 | W71: 0 | X71: 0 | Y71: 0 | Z71: 0 | AA71: 0 | AB71: 0 | AC71: 0 | AD71: 0 | AE71: 0 | AF71: 0 | AG71: 0 | AH71: 0 | AI71: 0
B72: 76a | C72: 13 | D72: e | G72: 0 | H72: 0 | I72: 0 | J72: 0 | K72: 0 | L72: 0 | M72: 0 | N72: 0 | O72: 0 | P72: 0 | Q72: 0 | R72: 0 | S72: 0 | T72: 0 | U72: 0 | V72: 0 | W72: 0 | X72: 0 | Y72: 0 | Z72: 0 | AA72: 0 | AB72: 0 | AC72: 0 | AD72: 0 | AE72: 0 | AF72: 0 | AG72: 0 | AH72: 0 | AI72: 0
B73: 76a | C73: 13 | D73: f | G73: 0 | H73: 0 | I73: 0 | J73: 0 | K73: 0 | L73: 0 | M73: 0 | N73: 0 | O73: 0 | P73: 0 | Q73: 0 | R73: 0 | S73: 0 | T73: 0 | U73: 0 | V73: 0 | W73: 0 | X73: 0 | Y73: 0 | Z73: 0 | AA73: 0 | AB73: 0 | AC73: 0 | AD73: 0 | AE73: 0 | AF73: 0 | AG73: 0 | AH73: 0 | AI73: 0
B74: 76a | C74: 13 | D74: g | G74: 0 | H74: 0 | I74: 0 | J74: 0 | K74: 0 | L74: 0 | M74: 0 | N74: 0 | O74: 0 | P74: 0 | Q74: 0 | R74: 0 | S74: 0 | T74: 0 | U74: 0 | V74: 0 | W74: 0 | X74: 0 | Y74: 0 | Z74: 0 | AA74: 0 | AB74: 0 | AC74: 0 | AD74: 0 | AE74: 0 | AF74: 0 | AG74: 0 | AH74: 0 | AI74: 0
B75: 76a | C75: 13 | D75: h | G75: 0 | H75: 0 | I75: 0 | J75: 0 | K75: 0 | L75: 0 | M75: 0 | N75: 0 | O75: 0 | P75: 0 | Q75: 0 | R75: 0 | S75: 0 | T75: 0 | U75: 0 | V75: 0 | W75: 0 | X75: 0 | Y75: 0 | Z75: 0 | AA75: 0 | AB75: 0 | AC75: 0 | AD75: 0 | AE75: 0 | AF75: 0 | AG75: 0 | AH75: 0 | AI75: 0
B76: 76a | C76: 13 | D76: i | G76: 0 | H76: 0 | I76: 0 | J76: 0 | K76: 0 | L76: 0 | M76: 0 | N76: 0 | O76: 0 | P76: 0 | Q76: 0 | R76: 0 | S76: 0 | T76: 0 | U76: 0 | V76: 0 | W76: 0 | X76: 0 | Y76: 0 | Z76: 0 | AA76: 0 | AB76: 0 | AC76: 0 | AD76: 0 | AE76: 0 | AF76: 0 | AG76: 0 | AH76: 0 | AI76: 0
B77: 76a | C77: 13 | D77: j | G77: 0 | H77: 0 | I77: 0 | J77: 0 | K77: 0 | L77: 0 | M77: 0 | N77: 0 | O77: 0 | P77: 0 | Q77: 0 | R77: 0 | S77: 0 | T77: 0 | U77: 0 | V77: 0 | W77: 0 | X77: 0 | Y77: 0 | Z77: 0 | AA77: 0 | AB77: 0 | AC77: 0 | AD77: 0 | AE77: 0 | AF77: 0 | AG77: 0 | AH77: 0 | AI77: 0
B78: 76b | C78: 1 | D78: a | G78: 1 | H78: 0 | I78: 1 | J78: 0 | K78: 0 | L78: 0 | M78: 0 | N78: 0 | O78: 0 | P78: 0 | Q78: 0 | R78: 0 | S78: 0 | T78: 0 | U78: 0 | V78: 0 | W78: 0 | X78: 0 | Y78: 0 | Z78: 0 | AA78: 0 | AB78: 0 | AC78: 0 | AD78: 0 | AE78: 0 | AF78: 0 | AG78: 0 | AH78: 0 | AI78: 0
B79: 76b | C79: 1 | D79: b | G79: 0 | H79: 0 | I79: 0 | J79: 0 | K79: 0 | L79: 0 | M79: 0 | N79: 0 | O79: 0 | P79: 0 | Q79: 0 | R79: 0 | S79: 0 | T79: 0 | U79: 0 | V79: 0 | W79: 0 | X79: 0 | Y79: 0 | Z79: 0 | AA79: 0 | AB79: 0 | AC79: 0 | AD79: 0 | AE79: 0 | AF79: 0 | AG79: 0 | AH79: 0 | AI79: 0
B80: 76b | C80: 2 | D80: a | G80: 0 | H80: 0 | I80: 0 | J80: 0 | K80: 0 | L80: 0 | M80: 0 | N80: 0 | O80: 0 | P80: 0 | Q80: 0 | R80: 0 | S80: 0 | T80: 0 | U80: 0 | V80: 0 | W80: 0 | X80: 0 | Y80: 0 | Z80: 0 | AA80: 0 | AB80: 0 | AC80: 0 | AD80: 0 | AE80: 0 | AF80: 0 | AG80: 0 | AH80: 0 | AI80: 0
B81: 76b | C81: 2 | D81: b | G81: 0 | H81: 0 | I81: 0 | J81: 0 | K81: 0 | L81: 0 | M81: 0 | N81: 0 | O81: 0 | P81: 0 | Q81: 0 | R81: 0 | S81: 0 | T81: 0 | U81: 0 | V81: 0 | W81: 0 | X81: 0 | Y81: 0 | Z81: 0 | AA81: 0 | AB81: 0 | AC81: 0 | AD81: 0 | AE81: 0 | AF81: 0 | AG81: 0 | AH81: 0 | AI81: 0
B82: 76b | C82: 2 | D82: c | G82: 0 | H82: 0 | I82: 0 | J82: 0 | K82: 0 | L82: 0 | M82: 0 | N82: 0 | O82: 0 | P82: 0 | Q82: 0 | R82: 0 | S82: 0 | T82: 0 | U82: 0 | V82: 0 | W82: 0 | X82: 0 | Y82: 0 | Z82: 0 | AA82: 0 | AB82: 0 | AC82: 0 | AD82: 0 | AE82: 0 | AF82: 0 | AG82: 0 | AH82: 0 | AI82: 0
B83: 76b | C83: 2 | D83: d | G83: 0 | H83: 0 | I83: 0 | J83: 0 | K83: 0 | L83: 0 | M83: 0 | N83: 0 | O83: 0 | P83: 0 | Q83: 0 | R83: 0 | S83: 0 | T83: 0 | U83: 0 | V83: 0 | W83: 0 | X83: 0 | Y83: 0 | Z83: 0 | AA83: 0 | AB83: 0 | AC83: 0 | AD83: 0 | AE83: 0 | AF83: 0 | AG83: 0 | AH83: 0 | AI83: 0
B84: 76b | C84: 3 | G84: 4 | H84: 0 | I84: 0 | J84: 0 | K84: 3 | L84: 0 | M84: 0 | N84: 3 | O84: 0 | P84: 0 | Q84: 0 | R84: 0 | S84: 1 | T84: 2 | U84: 2500 | V84: =U84/T84 -> 1250 | W84: 0 | X84: 0 | Y84: 0 | Z84: 0 | AA84: 0 | AB84: 0 | AC84: 0 | AD84: 0 | AE84: 0 | AF84: 0 | AG84: 0 | AH84: 0 | AI84: 0
B85: 76b | C85: 4 | G85: 0 | H85: 0 | I85: 0 | J85: 0 | K85: 0 | L85: 0 | M85: 0 | N85: 0 | O85: 0 | P85: 0 | Q85: 0 | R85: 0 | S85: 0 | T85: 0 | U85: 0 | V85: 0 | W85: 0 | X85: 0 | Y85: 0 | Z85: 0 | AA85: 0 | AB85: 0 | AC85: 0 | AD85: 0 | AE85: 0 | AF85: 0 | AG85: 0 | AH85: 0 | AI85: 0
B86: 76b | C86: 5 | D86: a | G86: 0 | H86: 0 | I86: 0 | J86: 0 | K86: 0 | L86: 0 | M86: 0 | N86: 0 | O86: 0 | P86: 0 | Q86: 0 | R86: 0 | S86: 0 | T86: 0 | U86: 0 | V86: 0 | W86: 0 | X86: 0 | Y86: 0 | Z86: 0 | AA86: 0 | AB86: 0 | AC86: 0 | AD86: 0 | AE86: 0 | AF86: 0 | AG86: 0 | AH86: 0 | AI86: 0
B87: 76b | C87: 5 | D87: b | G87: 0 | H87: 0 | I87: 0 | J87: 0 | K87: 0 | L87: 0 | M87: 0 | N87: 0 | O87: 0 | P87: 0 | Q87: 0 | R87: 0 | S87: 0 | T87: 0 | U87: 0 | V87: 0 | W87: 0 | X87: 0 | Y87: 0 | Z87: 0 | AA87: 0 | AB87: 0 | AC87: 0 | AD87: 0 | AE87: 0 | AF87: 0 | AG87: 0 | AH87: 0 | AI87: 0
B88: 76b | C88: 6 | G88: 0 | H88: 0 | I88: 0 | J88: 0 | K88: 0 | L88: 0 | M88: 0 | N88: 0 | O88: 0 | P88: 0 | Q88: 0 | R88: 0 | S88: 0 | T88: 0 | U88: 0 | V88: 0 | W88: 0 | X88: 0 | Y88: 0 | Z88: 0 | AA88: 0 | AB88: 0 | AC88: 0 | AD88: 0 | AE88: 0 | AF88: 0 | AG88: 0 | AH88: 0 | AI88: 0
B89: 76c | C89: 1 | G89: 0 | H89: 0 | I89: 0 | J89: 0 | K89: 0 | L89: 0 | M89: 0 | N89: 0 | O89: 0 | P89: 0 | Q89: 0 | R89: 0 | S89: 0 | T89: 0 | U89: 0 | V89: 0 | W89: 0 | X89: 0 | Y89: 0 | Z89: 0 | AA89: 0 | AB89: 0 | AC89: 0 | AD89: 0 | AE89: 0 | AF89: 0 | AG89: 0 | AH89: 0 | AI89: 0
B90: 76c | C90: 2 | D90: a | G90: 1 | H90: 0 | I90: 0 | J90: 0 | K90: 0 | L90: 0 | M90: 0 | N90: 1 | O90: 0 | P90: 0 | Q90: 0 | R90: 0 | S90: 0 | T90: 1 | U90: 2000 | V90: 2000 | W90: 0 | X90: 0 | Y90: 0 | Z90: 0 | AA90: 0 | AB90: 0 | AC90: 0 | AD90: 0 | AE90: 0 | AF90: 0 | AG90: 0 | AH90: 0 | AI90: 0
B91: 76c | C91: 2 | D91: b | G91: 0 | H91: 0 | I91: 0 | J91: 0 | K91: 0 | L91: 0 | M91: 0 | N91: 0 | O91: 0 | P91: 0 | Q91: 0 | R91: 0 | S91: 0 | T91: 0 | U91: 0 | V91: 0 | W91: 0 | X91: 0 | Y91: 0 | Z91: 0 | AA91: 0 | AB91: 0 | AC91: 0 | AD91: 0 | AE91: 0 | AF91: 0 | AG91: 0 | AH91: 0 | AI91: 0
B92: 76c | C92: 2 | D92: c | G92: 3 | H92: 0 | I92: 1 | J92: 2 | K92: 0 | L92: 1 | M92: 2 | N92: 0 | O92: 0 | P92: 0 | Q92: 0 | R92: 0 | S92: 0 | T92: 3 | U92: 81500 | V92: 27166.66667 | W92: 0 | X92: 0 | Y92: 0 | Z92: 0 | AA92: 0 | AB92: 0 | AC92: 0 | AD92: 1 | AE92: 1 | AF92: 0 | AG92: 0 | AH92: 0 | AI92: 0
B93: 76c | C93: 2 | D93: d | G93: 0 | H93: 0 | I93: 0 | J93: 0 | K93: 0 | L93: 0 | M93: 0 | N93: 0 | O93: 0 | P93: 0 | Q93: 0 | R93: 0 | S93: 0 | T93: 0 | U93: 0 | V93: 0 | W93: 0 | X93: 0 | Y93: 0 | Z93: 0 | AA93: 0 | AB93: 0 | AC93: 0 | AD93: 0 | AE93: 0 | AF93: 0 | AG93: 0 | AH93: 0 | AI93: 0
B94: 76c | C94: 2 | D94: e | G94: 0 | H94: 0 | I94: 0 | J94: 0 | K94: 0 | L94: 0 | M94: 0 | N94: 0 | O94: 0 | P94: 0 | Q94: 0 | R94: 0 | S94: 0 | T94: 0 | U94: 0 | V94: 0 | W94: 0 | X94: 0 | Y94: 0 | Z94: 0 | AA94: 0 | AB94: 0 | AC94: 0 | AD94: 0 | AE94: 0 | AF94: 0 | AG94: 0 | AH94: 0 | AI94: 0
B95: 76c | C95: 2 | D95: f | G95: 0 | H95: 0 | I95: 0 | J95: 0 | K95: 0 | L95: 0 | M95: 0 | N95: 0 | O95: 0 | P95: 0 | Q95: 0 | R95: 0 | S95: 0 | T95: 0 | U95: 0 | V95: 0 | W95: 0 | X95: 0 | Y95: 0 | Z95: 0 | AA95: 0 | AB95: 0 | AC95: 0 | AD95: 0 | AE95: 0 | AF95: 0 | AG95: 0 | AH95: 0 | AI95: 0
B96: 76c | C96: 2 | D96: g | G96: 0 | H96: 0 | I96: 0 | J96: 0 | K96: 0 | L96: 0 | M96: 0 | N96: 0 | O96: 0 | P96: 0 | Q96: 0 | R96: 0 | S96: 0 | T96: 0 | U96: 0 | V96: 0 | W96: 0 | X96: 0 | Y96: 0 | Z96: 0 | AA96: 0 | AB96: 0 | AC96: 0 | AD96: 0 | AE96: 0 | AF96: 0 | AG96: 0 | AH96: 0 | AI96: 0
B97: 76c | C97: 2 | D97: h | E97: 1 | G97: 0 | H97: 0 | I97: 0 | J97: 0 | K97: 0 | L97: 0 | M97: 0 | N97: 0 | O97: 0 | P97: 0 | Q97: 0 | R97: 0 | S97: 0 | T97: 0 | U97: 0 | V97: 0 | W97: 0 | X97: 0 | Y97: 0 | Z97: 0 | AA97: 0 | AB97: 0 | AC97: 0 | AD97: 0 | AE97: 0 | AF97: 0 | AG97: 0 | AH97: 0 | AI97: 0
B98: 76c | C98: 2 | D98: h | E98: 2 | G98: 0 | H98: 0 | I98: 0 | J98: 0 | K98: 0 | L98: 0 | M98: 0 | N98: 0 | O98: 0 | P98: 0 | Q98: 0 | R98: 0 | S98: 0 | T98: 0 | U98: 0 | V98: 0 | W98: 0 | X98: 0 | Y98: 0 | Z98: 0 | AA98: 0 | AB98: 0 | AC98: 0 | AD98: 0 | AE98: 0 | AF98: 0 | AG98: 0 | AH98: 0 | AI98: 0
B99: 76c | C99: 2 | D99: h | E99: 3 | G99: 0 | H99: 0 | I99: 0 | J99: 0 | K99: 0 | L99: 0 | M99: 0 | N99: 0 | O99: 0 | P99: 0 | Q99: 0 | R99: 0 | S99: 0 | T99: 0 | U99: 0 | V99: 0 | W99: 0 | X99: 0 | Y99: 0 | Z99: 0 | AA99: 0 | AB99: 0 | AC99: 0 | AD99: 0 | AE99: 0 | AF99: 0 | AG99: 0 | AH99: 0 | AI99: 0
B100: 76c | C100: 2 | D100: i | G100: 0 | H100: 0 | I100: 0 | J100: 0 | K100: 0 | L100: 0 | M100: 0 | N100: 0 | O100: 0 | P100: 0 | Q100: 0 | R100: 0 | S100: 0 | T100: 0 | U100: 0 | V100: 0 | W100: 0 | X100: 0 | Y100: 0 | Z100: 0 | AA100: 0 | AB100: 0 | AC100: 0 | AD100: 0 | AE100: 0 | AF100: 0 | AG100: 0 | AH100: 0 | AI100: 0
B101: 76c | C101: 2 | D101: j | G101: 0 | H101: 0 | I101: 0 | J101: 0 | K101: 0 | L101: 0 | M101: 0 | N101: 0 | O101: 0 | P101: 0 | Q101: 0 | R101: 0 | S101: 0 | T101: 0 | U101: 0 | V101: 0 | W101: 0 | X101: 0 | Y101: 0 | Z101: 0 | AA101: 0 | AB101: 0 | AC101: 0 | AD101: 0 | AE101: 0 | AF101: 0 | AG101: 0 | AH101: 0 | AI101: 0
B102: 76c | C102: 2 | D102: k | G102: 0 | H102: 0 | I102: 0 | J102: 0 | K102: 0 | L102: 0 | M102: 0 | N102: 0 | O102: 0 | P102: 0 | Q102: 0 | R102: 0 | S102: 0 | T102: 0 | U102: 0 | V102: 0 | W102: 0 | X102: 0 | Y102: 0 | Z102: 0 | AA102: 0 | AB102: 0 | AC102: 0 | AD102: 0 | AE102: 0 | AF102: 0 | AG102: 0 | AH102: 0 | AI102: 0
B103: 76c | C103: 3 | D103: a | G103: 0 | H103: 0 | I103: 0 | J103: 0 | K103: 0 | L103: 0 | M103: 0 | N103: 0 | O103: 0 | P103: 0 | Q103: 0 | R103: 0 | S103: 0 | T103: 0 | U103: 0 | V103: 0 | W103: 0 | X103: 0 | Y103: 0 | Z103: 0 | AA103: 0 | AB103: 0 | AC103: 0 | AD103: 0 | AE103: 0 | AF103: 0 | AG103: 0 | AH103: 0 | AI103: 0
B104: 76c | C104: 3 | D104: b | G104: 0 | H104: 0 | I104: 0 | J104: 0 | K104: 0 | L104: 0 | M104: 0 | N104: 0 | O104: 0 | P104: 0 | Q104: 0 | R104: 0 | S104: 0 | T104: 0 | U104: 0 | V104: 0 | W104: 0 | X104: 0 | Y104: 0 | Z104: 0 | AA104: 0 | AB104: 0 | AC104: 0 | AD104: 0 | AE104: 0 | AF104: 0 | AG104: 0 | AH104: 0 | AI104: 0
B105: 76c | C105: 3 | D105: c | G105: 0 | H105: 0 | I105: 0 | J105: 0 | K105: 0 | L105: 0 | M105: 0 | N105: 0 | O105: 0 | P105: 0 | Q105: 0 | R105: 0 | S105: 0 | T105: 0 | U105: 0 | V105: 0 | W105: 0 | X105: 0 | Y105: 0 | Z105: 0 | AA105: 0 | AB105: 0 | AC105: 0 | AD105: 0 | AE105: 0 | AF105: 0 | AG105: 0 | AH105: 0 | AI105: 0
B106: 76c | C106: 3 | D106: d | G106: 1 | H106: 0 | I106: 0 | J106: 0 | K106: 1 | L106: 0 | M106: 0 | N106: 1 | O106: 0 | P106: 0 | Q106: 0 | R106: 0 | S106: 0 | T106: 1 | U106: 300 | V106: 300 | W106: 0 | X106: 0 | Y106: 0 | Z106: 0 | AA106: 0 | AB106: 0 | AC106: 0 | AD106: 0 | AE106: 0 | AF106: 0 | AG106: 0 | AH106: 0 | AI106: 0
B107: 76c | C107: 4 | D107: a | G107: 1 | H107: 0 | I107: 0 | J107: 0 | K107: 1 | L107: 0 | M107: 0 | N107: 1 | O107: 0 | P107: 0 | Q107: 0 | R107: 0 | S107: 0 | T107: 1 | U107: 1500 | V107: 1500 | W107: 0 | X107: 0 | Y107: 0 | Z107: 0 | AA107: 0 | AB107: 0 | AC107: 0 | AD107: 0 | AE107: 0 | AF107: 0 | AG107: 0 | AH107: 0 | AI107: 0
B108: 76c | C108: 4 | D108: b | G108: 10 | H108: 0 | I108: 0 | J108: 1 | K108: 9 | L108: 0 | M108: 1 | N108: 9 | O108: 0 | P108: 0 | Q108: 0 | R108: 0 | S108: 0 | T108: 10 | U108: 11000 | V108: 1100 | W108: 0 | X108: 0 | Y108: 0 | Z108: 0 | AA108: 0 | AB108: 0 | AC108: 0 | AD108: 0 | AE108: 0 | AF108: 0 | AG108: 0 | AH108: 0 | AI108: 0
B109: 76c | C109: 4 | D109: c | G109: 0 | H109: 0 | I109: 0 | J109: 0 | K109: 0 | L109: 0 | M109: 0 | N109: 0 | O109: 0 | P109: 0 | Q109: 0 | R109: 0 | S109: 0 | T109: 0 | U109: 0 | V109: 0 | W109: 0 | X109: 0 | Y109: 0 | Z109: 0 | AA109: 0 | AB109: 0 | AC109: 0 | AD109: 0 | AE109: 0 | AF109: 0 | AG109: 0 | AH109: 0 | AI109: 0
B110: 76c | C110: 4 | D110: d | G110: 1 | H110: 0 | I110: 0 | J110: 0 | K110: 1 | L110: 0 | M110: 0 | N110: 1 | O110: 0 | P110: 0 | Q110: 0 | R110: 0 | S110: 0 | T110: 1 | U110: 500 | V110: 500 | W110: 0 | X110: 0 | Y110: 0 | Z110: 0 | AA110: 0 | AB110: 0 | AC110: 0 | AD110: 0 | AE110: 0 | AF110: 0 | AG110: 0 | AH110: 0 | AI110: 0
B111: 76c | C111: 5 | G111: 1 | H111: 0 | I111: 0 | J111: 0 | K111: 1 | L111: 0 | M111: 0 | N111: 1 | O111: 0 | P111: 0 | Q111: 0 | R111: 0 | S111: 0 | T111: 1 | U111: 4000 | V111: 4000 | W111: 0 | X111: 0 | Y111: 0 | Z111: 0 | AA111: 0 | AB111: 0 | AC111: 0 | AD111: 0 | AE111: 0 | AF111: 0 | AG111: 0 | AH111: 0 | AI111: 0
B112: 76d | C112: 1 | D112: a | G112: 3 | H112: 0 | I112: 2 | J112: 1 | K112: 0 | L112: 0 | M112: 1 | N112: 0 | O112: 0 | P112: 0 | Q112: 0 | R112: 0 | S112: 0 | T112: 1 | U112: 6000 | V112: 6000 | W112: 0 | X112: 0 | Y112: 0 | Z112: 0 | AA112: 0 | AB112: 0 | AC112: 0 | AD112: 0 | AE112: 0 | AF112: 0 | AG112: 0 | AH112: 0 | AI112: 0
B113: 76d | C113: 1 | D113: b | G113: 1 | H113: 0 | I113: 0 | J113: 0 | K113: 1 | L113: 0 | M113: 0 | N113: 1 | O113: 0 | P113: 0 | Q113: 0 | R113: 0 | S113: 0 | T113: 1 | U113: 1000 | V113: 1000 | W113: 0 | X113: 0 | Y113: 0 | Z113: 0 | AA113: 0 | AB113: 0 | AC113: 0 | AD113: 0 | AE113: 0 | AF113: 0 | AG113: 0 | AH113: 0 | AI113: 0
B114: 76d | C114: 1 | D114: c | G114: 19 | H114: 0 | I114: 0 | J114: 1 | K114: 18 | L114: 0 | M114: 1 | N114: 18 | O114: 0 | P114: 0 | Q114: 0 | R114: 0 | S114: 0 | T114: 19 | U114: 6300 | V114: 331.5789474 | W114: 0 | X114: 0 | Y114: 0 | Z114: 0 | AA114: 0 | AB114: 0 | AC114: 0 | AD114: 0 | AE114: 0 | AF114: 0 | AG114: 0 | AH114: 0 | AI114: 0
B115: 76d | C115: 1 | D115: d | G115: 16 | H115: 1 | I115: 2 | J115: 13 | K115: 0 | L115: 2 | M115: 13 | N115: 0 | O115: 0 | P115: 0 | Q115: 0 | R115: 0 | S115: 0 | T115: 15 | U115: 243000 | V115: 16200 | W115: 0 | X115: 0 | Y115: 0 | Z115: 0 | AA115: 0 | AB115: 0 | AC115: 0 | AD115: 0 | AE115: 0 | AF115: 0 | AG115: 0 | AH115: 0 | AI115: 0
B116: 76d | C116: 1 | D116: e | G116: 1 | H116: 0 | I116: 1 | J116: 0 | K116: 0 | L116: 0 | M116: 0 | N116: 0 | O116: 0 | P116: 0 | Q116: 0 | R116: 0 | S116: 0 | T116: 0 | U116: 0 | V116: 0 | W116: 0 | X116: 0 | Y116: 0 | Z116: 0 | AA116: 0 | AB116: 0 | AC116: 0 | AD116: 0 | AE116: 0 | AF116: 0 | AG116: 0 | AH116: 0 | AI116: 0
B117: 76d | C117: 1 | D117: f | G117: 0 | H117: 0 | I117: 0 | J117: 0 | K117: 0 | L117: 0 | M117: 0 | N117: 0 | O117: 0 | P117: 0 | Q117: 0 | R117: 0 | S117: 0 | T117: 0 | U117: 0 | V117: 0 | W117: 0 | X117: 0 | Y117: 0 | Z117: 0 | AA117: 0 | AB117: 0 | AC117: 0 | AD117: 0 | AE117: 0 | AF117: 0 | AG117: 0 | AH117: 0 | AI117: 0
B118: 76d | C118: 1 | D118: g | G118: 3 | H118: 0 | I118: 2 | J118: 1 | K118: 0 | L118: 1 | M118: 1 | N118: 0 | O118: 0 | P118: 0 | Q118: 0 | R118: 0 | S118: 0 | T118: 2 | U118: 8000 | V118: 4000 | W118: 0 | X118: 0 | Y118: 0 | Z118: 0 | AA118: 0 | AB118: 0 | AC118: 0 | AD118: 0 | AE118: 0 | AF118: 0 | AG118: 0 | AH118: 0 | AI118: 0
B119: 76d | C119: 1 | D119: h | E119: 1 | G119: 0 | H119: 0 | I119: 0 | J119: 0 | K119: 0 | L119: 0 | M119: 0 | N119: 0 | O119: 0 | P119: 0 | Q119: 0 | R119: 0 | S119: 0 | T119: 0 | U119: 0 | V119: 0 | W119: 0 | X119: 0 | Y119: 0 | Z119: 0 | AA119: 0 | AB119: 0 | AC119: 0 | AD119: 0 | AE119: 0 | AF119: 0 | AG119: 0 | AH119: 0 | AI119: 0
B120: 76d | C120: 1 | D120: h | E120: 2 | G120: 0 | H120: 0 | I120: 0 | J120: 0 | K120: 0 | L120: 0 | M120: 0 | N120: 0 | O120: 0 | P120: 0 | Q120: 0 | R120: 0 | S120: 0 | T120: 0 | U120: 0 | V120: 0 | W120: 0 | X120: 0 | Y120: 0 | Z120: 0 | AA120: 0 | AB120: 0 | AC120: 0 | AD120: 0 | AE120: 0 | AF120: 0 | AG120: 0 | AH120: 0 | AI120: 0
B121: 76d | C121: 1 | D121: i | G121: 5 | H121: 0 | I121: 2 | J121: 3 | K121: 0 | L121: 0 | M121: 2 | N121: 0 | O121: 1 | P121: 0 | Q121: 1 | R121: 0 | S121: 0 | T121: 1 | U121: 1000 | V121: 1000 | W121: 0 | X121: 0 | Y121: 0 | Z121: 0 | AA121: 0 | AB121: 0 | AC121: 0 | AD121: 1 | AE121: 0 | AF121: 0 | AG121: 0 | AH121: 0 | AI121: 1
B122: 76d | C122: 1 | D122: j | G122: 18 | H122: 0 | I122: 3 | J122: 5 | K122: 10 | L122: 2 | M122: 1 | N122: 10 | O122: 0 | P122: 0 | Q122: 0 | R122: 0 | S122: 0 | T122: 17 | U122: 24500 | V122: 1441.176471 | W122: 0 | X122: 0 | Y122: 0 | Z122: 0 | AA122: 0 | AB122: 0 | AC122: 0 | AD122: 0 | AE122: 0 | AF122: 0 | AG122: 0 | AH122: 0 | AI122: 0
B123: 76d | C123: 1 | D123: k | G123: 20 | H123: 1 | I123: 3 | J123: 14 | K123: 2 | L123: 3 | M123: 14 | N123: 2 | O123: 0 | P123: 0 | Q123: 0 | R123: 0 | S123: 0 | T123: 19 | U123: 27000 | V123: 1421.052632 | W123: 0 | X123: 0 | Y123: 0 | Z123: 0 | AA123: 0 | AB123: 0 | AC123: 0 | AD123: 0 | AE123: 0 | AF123: 0 | AG123: 0 | AH123: 0 | AI123: 0
B124: 76d | C124: 1 | D124: l | G124: 25 | H124: 1 | I124: 3 | J124: 16 | K124: 5 | L124: 3 | M124: 16 | N124: 5 | O124: 0 | P124: 0 | Q124: 0 | R124: 0 | S124: 0 | T124: 23 | U124: 187000 | V124: 8130.434783 | W124: 0 | X124: 0 | Y124: 0 | Z124: 0 | AA124: 0 | AB124: 0 | AC124: 0 | AD124: 3 | AE124: 0 | AF124: 0 | AG124: 1 | AH124: 2 | AI124: 0
B125: 76d | C125: 1 | D125: m | G125: 3 | H125: 0 | I125: 1 | J125: 2 | K125: 0 | L125: 0 | M125: 2 | N125: 0 | O125: 0 | P125: 0 | Q125: 0 | R125: 0 | S125: 0 | T125: 2 | U125: 3000 | V125: 1500 | W125: 0 | X125: 0 | Y125: 0 | Z125: 0 | AA125: 0 | AB125: 0 | AC125: 0 | AD125: 0 | AE125: 0 | AF125: 0 | AG125: 0 | AH125: 0 | AI125: 0
B126: 76d | C126: 1 | D126: n | G126: 2 | H126: 0 | I126: 0 | J126: 2 | K126: 0 | L126: 0 | M126: 1 | N126: 0 | O126: 0 | P126: 0 | Q126: 0 | R126: 0 | S126: 0 | T126: 2 | U126: 3000 | V126: 1500 | W126: 0 | X126: 0 | Y126: 0 | Z126: 0 | AA126: 0 | AB126: 0 | AC126: 0 | AD126: 0 | AE126: 0 | AF126: 0 | AG126: 0 | AH126: 0 | AI126: 0
B127: 76d | C127: 1 | D127: o | G127: 37 | H127: 3 | I127: 3 | J127: 22 | K127: 9 | L127: 3 | M127: 21 | N127: 9 | O127: 0 | P127: 0 | Q127: 0 | R127: 0 | S127: 0 | T127: 32 | U127: 64900 | V127: 2028.125 | W127: 0 | X127: 0 | Y127: 0 | Z127: 0 | AA127: 0 | AB127: 0 | AC127: 0 | AD127: 1 | AE127: 0 | AF127: 0 | AG127: 0 | AH127: 1 | AI127: 0
B128: 76d | C128: 1 | D128: p | G128: 0 | H128: 0 | I128: 0 | J128: 0 | K128: 0 | L128: 0 | M128: 0 | N128: 0 | O128: 0 | P128: 0 | Q128: 0 | R128: 0 | S128: 0 | T128: 0 | U128: 0 | V128: 0 | W128: 0 | X128: 0 | Y128: 0 | Z128: 0 | AA128: 0 | AB128: 0 | AC128: 0 | AD128: 0 | AE128: 0 | AF128: 0 | AG128: 0 | AH128: 0 | AI128: 0
B129: 76d | C129: 1 | D129: q | G129: 0 | H129: 0 | I129: 0 | J129: 0 | K129: 0 | L129: 0 | M129: 0 | N129: 0 | O129: 0 | P129: 0 | Q129: 0 | R129: 0 | S129: 0 | T129: 0 | U129: 0 | V129: 0 | W129: 0 | X129: 0 | Y129: 0 | Z129: 0 | AA129: 0 | AB129: 0 | AC129: 0 | AD129: 0 | AE129: 0 | AF129: 0 | AG129: 0 | AH129: 0 | AI129: 0
B130: 76d | C130: 1 | D130: r | G130: 2 | H130: 1 | I130: 0 | J130: 1 | K130: 0 | L130: 0 | M130: 0 | N130: 0 | O130: 0 | P130: 0 | Q130: 0 | R130: 0 | S130: 0 | T130: 1 | U130: 3000 | V130: 3000 | W130: 0 | X130: 0 | Y130: 0 | Z130: 0 | AA130: 0 | AB130: 0 | AC130: 0 | AD130: 0 | AE130: 0 | AF130: 0 | AG130: 0 | AH130: 0 | AI130: 0
B131: 76d | C131: 1 | D131: s | G131: 0 | H131: 0 | I131: 0 | J131: 0 | K131: 0 | L131: 0 | M131: 0 | N131: 0 | O131: 0 | P131: 0 | Q131: 0 | R131: 0 | S131: 0 | T131: 0 | U131: 0 | V131: 0 | W131: 0 | X131: 0 | Y131: 0 | Z131: 0 | AA131: 0 | AB131: 0 | AC131: 0 | AD131: 0 | AE131: 0 | AF131: 0 | AG131: 0 | AH131: 0 | AI131: 0
B132: 76d | C132: 1 | D132: t | G132: 0 | H132: 0 | I132: 0 | J132: 0 | K132: 0 | L132: 0 | M132: 0 | N132: 0 | O132: 0 | P132: 0 | Q132: 0 | R132: 0 | S132: 0 | T132: 0 | U132: 0 | V132: 0 | W132: 0 | X132: 0 | Y132: 0 | Z132: 0 | AA132: 0 | AB132: 0 | AC132: 0 | AD132: 0 | AE132: 0 | AF132: 0 | AG132: 0 | AH132: 0 | AI132: 0
B133: 76d | C133: 1 | D133: u | E133: 1 | G133: 0 | H133: 0 | I133: 0 | J133: 0 | K133: 0 | L133: 0 | M133: 0 | N133: 0 | O133: 0 | P133: 0 | Q133: 0 | R133: 0 | S133: 0 | T133: 0 | U133: 0 | V133: 0 | W133: 0 | X133: 0 | Y133: 0 | Z133: 0 | AA133: 0 | AB133: 0 | AC133: 0 | AD133: 0 | AE133: 0 | AF133: 0 | AG133: 0 | AH133: 0 | AI133: 0
B134: 76d | C134: 1 | D134: u | E134: 2 | G134: 0 | H134: 0 | I134: 0 | J134: 0 | K134: 0 | L134: 0 | M134: 0 | N134: 0 | O134: 0 | P134: 0 | Q134: 0 | R134: 0 | S134: 0 | T134: 0 | U134: 0 | V134: 0 | W134: 0 | X134: 0 | Y134: 0 | Z134: 0 | AA134: 0 | AB134: 0 | AC134: 0 | AD134: 0 | AE134: 0 | AF134: 0 | AG134: 0 | AH134: 0 | AI134: 0
B135: 76d | C135: 1 | D135: v | G135: 1 | H135: 0 | I135: 0 | J135: 1 | K135: 0 | L135: 0 | M135: 1 | N135: 0 | O135: 0 | P135: 0 | Q135: 0 | R135: 0 | S135: 0 | T135: 1 | U135: 10000 | V135: =U135/T135 -> 10000 | W135: 0 | X135: 0 | Y135: 0 | Z135: 0 | AA135: 0 | AB135: 0 | AC135: 0 | AD135: 0 | AE135: 0 | AF135: 0 | AG135: 0 | AH135: 0 | AI135: 0
B136: 76d | C136: 2 | D136: a | G136: 0 | H136: 0 | I136: 0 | J136: 0 | K136: 0 | L136: 0 | M136: 0 | N136: 0 | O136: 0 | P136: 0 | Q136: 0 | R136: 0 | S136: 0 | T136: 0 | U136: 0 | V136: 0 | W136: 0 | X136: 0 | Y136: 0 | Z136: 0 | AA136: 0 | AB136: 0 | AC136: 0 | AD136: 0 | AE136: 0 | AF136: 0 | AG136: 0 | AH136: 0 | AI136: 0
B137: 76d | C137: 2 | D137: b | G137: 0 | H137: 0 | I137: 0 | J137: 0 | K137: 0 | L137: 0 | M137: 0 | N137: 0 | O137: 0 | P137: 0 | Q137: 0 | R137: 0 | S137: 0 | T137: 0 | U137: 0 | V137: 0 | W137: 0 | X137: 0 | Y137: 0 | Z137: 0 | AA137: 0 | AB137: 0 | AC137: 0 | AD137: 0 | AE137: 0 | AF137: 0 | AG137: 0 | AH137: 0 | AI137: 0
B138: 76d | C138: 2 | D138: c | G138: 0 | H138: 0 | I138: 0 | J138: 0 | K138: 0 | L138: 0 | M138: 0 | N138: 0 | O138: 0 | P138: 0 | Q138: 0 | R138: 0 | S138: 0 | T138: 0 | U138: 0 | V138: 0 | W138: 0 | X138: 0 | Y138: 0 | Z138: 0 | AA138: 0 | AB138: 0 | AC138: 0 | AD138: 0 | AE138: 0 | AF138: 0 | AG138: 0 | AH138: 0 | AI138: 0
B139: 76d | C139: 3 | D139: a | G139: 0 | H139: 0 | I139: 0 | J139: 0 | K139: 0 | L139: 0 | M139: 0 | N139: 0 | O139: 0 | P139: 0 | Q139: 0 | R139: 0 | S139: 0 | T139: 0 | U139: 0 | V139: 0 | W139: 0 | X139: 0 | Y139: 0 | Z139: 0 | AA139: 0 | AB139: 0 | AC139: 0 | AD139: 0 | AE139: 0 | AF139: 0 | AG139: 0 | AH139: 0 | AI139: 0
B140: 76d | C140: 3 | D140: b | G140: 0 | H140: 0 | I140: 0 | J140: 0 | K140: 0 | L140: 0 | M140: 0 | N140: 0 | O140: 0 | P140: 0 | Q140: 0 | R140: 0 | S140: 0 | T140: 0 | U140: 0 | V140: 0 | W140: 0 | X140: 0 | Y140: 0 | Z140: 0 | AA140: 0 | AB140: 0 | AC140: 0 | AD140: 0 | AE140: 0 | AF140: 0 | AG140: 0 | AH140: 0 | AI140: 0
B141: 76d | C141: 4 | D141: a | G141: 0 | H141: 0 | I141: 0 | J141: 0 | K141: 0 | L141: 0 | M141: 0 | N141: 0 | O141: 0 | P141: 0 | Q141: 0 | R141: 0 | S141: 0 | T141: 0 | U141: 0 | V141: 0 | W141: 0 | X141: 0 | Y141: 0 | Z141: 0 | AA141: 0 | AB141: 0 | AC141: 0 | AD141: 0 | AE141: 0 | AF141: 0 | AG141: 0 | AH141: 0 | AI141: 0
B142: 76d | C142: 4 | D142: b | G142: 0 | H142: 0 | I142: 0 | J142: 0 | K142: 0 | L142: 0 | M142: 0 | N142: 0 | O142: 0 | P142: 0 | Q142: 0 | R142: 0 | S142: 0 | T142: 0 | U142: 0 | V142: 0 | W142: 0 | X142: 0 | Y142: 0 | Z142: 0 | AA142: 0 | AB142: 0 | AC142: 0 | AD142: 0 | AE142: 0 | AF142: 0 | AG142: 0 | AH142: 0 | AI142: 0
B143: 76d | C143: 5 | G143: 0 | H143: 0 | I143: 0 | J143: 0 | K143: 0 | L143: 0 | M143: 0 | N143: 0 | O143: 0 | P143: 0 | Q143: 0 | R143: 0 | S143: 0 | T143: 0 | U143: 0 | V143: 0 | W143: 0 | X143: 0 | Y143: 0 | Z143: 0 | AA143: 0 | AB143: 0 | AC143: 0 | AD143: 0 | AE143: 0 | AF143: 0 | AG143: 0 | AH143: 0 | AI143: 0
B144: 76d | C144: 6 | G144: 0 | H144: 0 | I144: 0 | J144: 0 | K144: 0 | L144: 0 | M144: 0 | N144: 0 | O144: 0 | P144: 0 | Q144: 0 | R144: 0 | S144: 0 | T144: 0 | U144: 0 | V144: 0 | W144: 0 | X144: 0 | Y144: 0 | Z144: 0 | AA144: 0 | AB144: 0 | AC144: 0 | AD144: 0 | AE144: 0 | AF144: 0 | AG144: 0 | AH144: 0 | AI144: 0
B145: 76d | C145: 7 | D145: a | G145: 0 | H145: 0 | I145: 0 | J145: 0 | K145: 0 | L145: 0 | M145: 0 | N145: 0 | O145: 0 | P145: 0 | Q145: 0 | R145: 0 | S145: 0 | T145: 0 | U145: 0 | V145: 0 | W145: 0 | X145: 0 | Y145: 0 | Z145: 0 | AA145: 0 | AB145: 0 | AC145: 0 | AD145: 0 | AE145: 0 | AF145: 0 | AG145: 0 | AH145: 0 | AI145: 0
B146: 76d | C146: 7 | D146: b | G146: 0 | H146: 0 | I146: 0 | J146: 0 | K146: 0 | L146: 0 | M146: 0 | N146: 0 | O146: 0 | P146: 0 | Q146: 0 | R146: 0 | S146: 0 | T146: 0 | U146: 0 | V146: 0 | W146: 0 | X146: 0 | Y146: 0 | Z146: 0 | AA146: 0 | AB146: 0 | AC146: 0 | AD146: 0 | AE146: 0 | AF146: 0 | AG146: 0 | AH146: 0 | AI146: 0
B147: 76d | C147: 7 | D147: c | G147: 0 | H147: 0 | I147: 0 | J147: 0 | K147: 0 | L147: 0 | M147: 0 | N147: 0 | O147: 0 | P147: 0 | Q147: 0 | R147: 0 | S147: 0 | T147: 0 | U147: 0 | V147: 0 | W147: 0 | X147: 0 | Y147: 0 | Z147: 0 | AA147: 0 | AB147: 0 | AC147: 0 | AD147: 0 | AE147: 0 | AF147: 0 | AG147: 0 | AH147: 0 | AI147: 0
B148: 76d | C148: 7 | D148: d | G148: 0 | H148: 0 | I148: 0 | J148: 0 | K148: 0 | L148: 0 | M148: 0 | N148: 0 | O148: 0 | P148: 0 | Q148: 0 | R148: 0 | S148: 0 | T148: 0 | U148: 0 | V148: 0 | W148: 0 | X148: 0 | Y148: 0 | Z148: 0 | AA148: 0 | AB148: 0 | AC148: 0 | AD148: 0 | AE148: 0 | AF148: 0 | AG148: 0 | AH148: 0 | AI148: 0
B149: 76d | C149: 7 | D149: e | G149: 0 | H149: 0 | I149: 0 | J149: 0 | K149: 0 | L149: 0 | M149: 0 | N149: 0 | O149: 0 | P149: 0 | Q149: 0 | R149: 0 | S149: 0 | T149: 0 | U149: 0 | V149: 0 | W149: 0 | X149: 0 | Y149: 0 | Z149: 0 | AA149: 0 | AB149: 0 | AC149: 0 | AD149: 0 | AE149: 0 | AF149: 0 | AG149: 0 | AH149: 0 | AI149: 0
B150: 76d | C150: 7 | D150: f | G150: 0 | H150: 0 | I150: 0 | J150: 0 | K150: 0 | L150: 0 | M150: 0 | N150: 0 | O150: 0 | P150: 0 | Q150: 0 | R150: 0 | S150: 0 | T150: 0 | U150: 0 | V150: 0 | W150: 0 | X150: 0 | Y150: 0 | Z150: 0 | AA150: 0 | AB150: 0 | AC150: 0 | AD150: 0 | AE150: 0 | AF150: 0 | AG150: 0 | AH150: 0 | AI150: 0
B151: 76d | C151: 7 | D151: g | G151: 0 | H151: 0 | I151: 0 | J151: 0 | K151: 0 | L151: 0 | M151: 0 | N151: 0 | O151: 0 | P151: 0 | Q151: 0 | R151: 0 | S151: 0 | T151: 0 | U151: 0 | V151: 0 | W151: 0 | X151: 0 | Y151: 0 | Z151: 0 | AA151: 0 | AB151: 0 | AC151: 0 | AD151: 0 | AE151: 0 | AF151: 0 | AG151: 0 | AH151: 0 | AI151: 0
B152: 76d | C152: 7 | D152: h | E152: 1 | G152: 0 | H152: 0 | I152: 0 | J152: 0 | K152: 0 | L152: 0 | M152: 0 | N152: 0 | O152: 0 | P152: 0 | Q152: 0 | R152: 0 | S152: 0 | T152: 0 | U152: 0 | V152: 0 | W152: 0 | X152: 0 | Y152: 0 | Z152: 0 | AA152: 0 | AB152: 0 | AC152: 0 | AD152: 0 | AE152: 0 | AF152: 0 | AG152: 0 | AH152: 0 | AI152: 0
B153: 76d | C153: 7 | D153: h | E153: 2 | G153: 0 | H153: 0 | I153: 0 | J153: 0 | K153: 0 | L153: 0 | M153: 0 | N153: 0 | O153: 0 | P153: 0 | Q153: 0 | R153: 0 | S153: 0 | T153: 0 | U153: 0 | V153: 0 | W153: 0 | X153: 0 | Y153: 0 | Z153: 0 | AA153: 0 | AB153: 0 | AC153: 0 | AD153: 0 | AE153: 0 | AF153: 0 | AG153: 0 | AH153: 0 | AI153: 0
B154: 76d | C154: 7 | D154: h | E154: 3 | G154: 0 | H154: 0 | I154: 0 | J154: 0 | K154: 0 | L154: 0 | M154: 0 | N154: 0 | O154: 0 | P154: 0 | Q154: 0 | R154: 0 | S154: 0 | T154: 0 | U154: 0 | V154: 0 | W154: 0 | X154: 0 | Y154: 0 | Z154: 0 | AA154: 0 | AB154: 0 | AC154: 0 | AD154: 0 | AE154: 0 | AF154: 0 | AG154: 0 | AH154: 0 | AI154: 0
B155: 76d | C155: 7 | D155: h | E155: 4 | G155: 0 | H155: 0 | I155: 0 | J155: 0 | K155: 0 | L155: 0 | M155: 0 | N155: 0 | O155: 0 | P155: 0 | Q155: 0 | R155: 0 | S155: 0 | T155: 0 | U155: 0 | V155: 0 | W155: 0 | X155: 0 | Y155: 0 | Z155: 0 | AA155: 0 | AB155: 0 | AC155: 0 | AD155: 0 | AE155: 0 | AF155: 0 | AG155: 0 | AH155: 0 | AI155: 0
B156: 76d | C156: 8 | D156: a | G156: 5 | H156: 0 | I156: 0 | J156: 5 | K156: 0 | L156: 0 | M156: 4 | O156: 1 | P156: 0 | Q156: 0 | R156: 0 | S156: 0 | T156: 3 | U156: 12000 | V156: 4000 | W156: 0 | X156: 0 | Y156: 0 | Z156: 0 | AA156: 0 | AB156: 0 | AC156: 0 | AD156: 0 | AE156: 0 | AF156: 0 | AG156: 0 | AH156: 0 | AI156: 0
B157: 76d | C157: 8 | D157: b | G157: 2 | H157: 2 | I157: 0 | J157: 0 | K157: 0 | L157: 0 | M157: 0 | N157: 0 | O157: 0 | P157: 0 | Q157: 0 | R157: 0 | S157: 0 | T157: 0 | U157: 0 | V157: 0 | W157: 0 | X157: 0 | Y157: 0 | Z157: 0 | AA157: 0 | AB157: 0 | AC157: 0 | AD157: 0 | AE157: 0 | AF157: 0 | AG157: 0 | AH157: 0 | AI157: 0
B158: 76d | C158: 8 | D158: c | G158: 0 | H158: 0 | I158: 0 | J158: 0 | K158: 0 | L158: 0 | M158: 0 | N158: 0 | O158: 0 | P158: 0 | Q158: 0 | R158: 0 | S158: 0 | T158: 0 | U158: 0 | V158: 0 | W158: 0 | X158: 0 | Y158: 0 | Z158: 0 | AA158: 0 | AB158: 0 | AC158: 0 | AD158: 0 | AE158: 0 | AF158: 0 | AG158: 0 | AH158: 0 | AI158: 0
B159: 76d | C159: 8 | D159: d | G159: 0 | H159: 0 | I159: 0 | J159: 0 | K159: 0 | L159: 0 | M159: 0 | N159: 0 | O159: 0 | P159: 0 | Q159: 0 | R159: 0 | S159: 0 | T159: 0 | U159: 0 | V159: 0 | W159: 0 | X159: 0 | Y159: 0 | Z159: 0 | AA159: 0 | AB159: 0 | AC159: 0 | AD159: 0 | AE159: 0 | AF159: 0 | AG159: 0 | AH159: 0 | AI159: 0
B160: 76d | C160: 8 | D160: e | G160: 0 | H160: 0 | I160: 0 | J160: 0 | K160: 0 | L160: 0 | M160: 0 | N160: 0 | O160: 0 | P160: 0 | Q160: 0 | R160: 0 | S160: 0 | T160: 0 | U160: 0 | V160: 0 | W160: 0 | X160: 0 | Y160: 0 | Z160: 0 | AA160: 0 | AB160: 0 | AC160: 0 | AD160: 0 | AE160: 0 | AF160: 0 | AG160: 0 | AH160: 0 | AI160: 0
B161: 76d | C161: 9 | D161: a | G161: 0 | H161: 0 | I161: 0 | J161: 0 | K161: 0 | L161: 0 | M161: 0 | N161: 0 | O161: 0 | P161: 0 | Q161: 0 | R161: 0 | S161: 0 | T161: 0 | U161: 0 | V161: 0 | W161: 0 | X161: 0 | Y161: 0 | Z161: 0 | AA161: 0 | AB161: 0 | AC161: 0 | AD161: 0 | AE161: 0 | AF161: 0 | AG161: 0 | AH161: 0 | AI161: 0
B162: 76d | C162: 9 | D162: b | G162: 0 | H162: 0 | I162: 0 | J162: 0 | K162: 0 | L162: 0 | M162: 0 | N162: 0 | O162: 0 | P162: 0 | Q162: 0 | R162: 0 | S162: 0 | T162: 0 | U162: 0 | V162: 0 | W162: 0 | X162: 0 | Y162: 0 | Z162: 0 | AA162: 0 | AB162: 0 | AC162: 0 | AD162: 0 | AE162: 0 | AF162: 0 | AG162: 0 | AH162: 0 | AI162: 0
B163: 76d | C163: 9 | D163: c | G163: 0 | H163: 0 | I163: 0 | J163: 0 | K163: 0 | L163: 0 | M163: 0 | N163: 0 | O163: 0 | P163: 0 | Q163: 0 | R163: 0 | S163: 0 | T163: 0 | U163: 0 | V163: 0 | W163: 0 | X163: 0 | Y163: 0 | Z163: 0 | AA163: 0 | AB163: 0 | AC163: 0 | AD163: 0 | AE163: 0 | AF163: 0 | AG163: 0 | AH163: 0 | AI163: 0
B164: 76e | C164: 1 | D164: a | G164: 2 | H164: 1 | I164: 0 | J164: 1 | K164: 0 | L164: 1 | M164: 1 | N164: 0 | O164: 0 | P164: 0 | Q164: 0 | R164: 0 | S164: 0 | T164: 2 | U164: 5500 | V164: =U164/T164 -> 2750 | W164: 0 | X164: 0 | Y164: 0 | Z164: 0 | AA164: 0 | AB164: 0 | AC164: 0 | AD164: 0 | AE164: 0 | AF164: 0 | AG164: 0 | AH164: 0 | AI164: 0
B165: 76e | C165: 1 | D165: b | G165: 1 | H165: 0 | I165: 0 | J165: 1 | K165: 0 | L165: 0 | M165: 1 | N165: 0 | O165: 0 | P165: 0 | Q165: 0 | R165: 0 | S165: 0 | T165: 1 | U165: 2000 | V165: 2000 | W165: 0 | X165: 0 | Y165: 0 | Z165: 0 | AA165: 0 | AB165: 0 | AC165: 0 | AD165: 0 | AE165: 0 | AF165: 0 | AG165: 0 | AH165: 0 | AI165: 0
B166: 76e | C166: 1 | D166: c | G166: 0 | H166: 0 | I166: 0 | J166: 0 | K166: 0 | L166: 0 | M166: 0 | N166: 0 | O166: 0 | P166: 0 | Q166: 0 | R166: 0 | S166: 0 | T166: 0 | U166: 0 | V166: 0 | W166: 0 | X166: 0 | Y166: 0 | Z166: 0 | AA166: 0 | AB166: 0 | AC166: 0 | AD166: 0 | AE166: 0 | AF166: 0 | AG166: 0 | AH166: 0 | AI166: 0
B167: 76e | C167: 1 | D167: d | G167: 0 | H167: 0 | I167: 0 | J167: 0 | K167: 0 | L167: 0 | M167: 0 | N167: 0 | O167: 0 | P167: 0 | Q167: 0 | R167: 0 | S167: 0 | T167: 0 | U167: 0 | V167: 0 | W167: 0 | X167: 0 | Y167: 0 | Z167: 1 | AA167: 0 | AB167: 0 | AC167: 0 | AD167: 0 | AE167: 0 | AF167: 0 | AG167: 0 | AH167: 0 | AI167: 0
B168: 76e | C168: 1 | D168: e | G168: 0 | H168: 0 | I168: 0 | J168: 0 | K168: 0 | L168: 0 | M168: 0 | N168: 0 | O168: 0 | P168: 0 | Q168: 0 | R168: 0 | S168: 0 | T168: 0 | U168: 0 | V168: 0 | W168: 0 | X168: 0 | Y168: 0 | Z168: 0 | AA168: 0 | AB168: 0 | AC168: 0 | AD168: 0 | AE168: 0 | AF168: 0 | AG168: 0 | AH168: 0 | AI168: 0
B169: 76e | C169: 1 | D169: f | G169: 0 | H169: 0 | I169: 0 | J169: 0 | K169: 0 | L169: 0 | M169: 0 | N169: 0 | O169: 0 | P169: 0 | Q169: 0 | R169: 0 | S169: 0 | T169: 0 | U169: 0 | V169: 0 | W169: 0 | X169: 0 | Y169: 0 | Z169: 0 | AA169: 0 | AB169: 0 | AC169: 0 | AD169: 0 | AE169: 0 | AF169: 0 | AG169: 0 | AH169: 0 | AI169: 0
B170: 76e | C170: 1 | D170: g | G170: 2 | H170: 2 | I170: 1 | J170: 0 | K170: 0 | L170: 1 | M170: 0 | N170: 0 | O170: 0 | P170: 0 | Q170: 0 | R170: 0 | S170: 0 | T170: 1 | U170: 4000 | V170: 4000 | W170: 0 | X170: 0 | Y170: 0 | Z170: 1 | AA170: 0 | AB170: 0 | AC170: 0 | AD170: 0 | AE170: 0 | AF170: 0 | AG170: 0 | AH170: 0 | AI170: 0
B171: 76e | C171: 2 | D171: a | G171: 0 | H171: 0 | I171: 0 | J171: 0 | K171: 0 | L171: 0 | M171: 0 | N171: 0 | O171: 0 | P171: 0 | Q171: 0 | R171: 0 | S171: 0 | T171: 0 | U171: 0 | V171: 0 | W171: 0 | X171: 0 | Y171: 0 | Z171: 0 | AA171: 0 | AB171: 0 | AC171: 0 | AD171: 0 | AE171: 0 | AF171: 0 | AG171: 0 | AH171: 0 | AI171: 0
B172: 76e | C172: 2 | D172: b | G172: 0 | H172: 0 | I172: 0 | J172: 0 | K172: 0 | L172: 0 | M172: 0 | N172: 0 | O172: 0 | P172: 0 | Q172: 0 | R172: 0 | S172: 0 | T172: 0 | U172: 0 | V172: 0 | W172: 0 | X172: 0 | Y172: 0 | Z172: 0 | AA172: 0 | AB172: 0 | AC172: 0 | AD172: 0 | AE172: 0 | AF172: 0 | AG172: 0 | AH172: 0 | AI172: 0
B173: 76e | C173: 2 | D173: c | G173: 0 | H173: 0 | I173: 0 | J173: 0 | K173: 0 | L173: 0 | M173: 0 | N173: 0 | O173: 0 | P173: 0 | Q173: 0 | R173: 0 | S173: 0 | T173: 0 | U173: 0 | V173: 0 | W173: 0 | X173: 0 | Y173: 0 | Z173: 0 | AA173: 0 | AB173: 0 | AC173: 0 | AD173: 0 | AE173: 0 | AF173: 0 | AG173: 0 | AH173: 0 | AI173: 0
B174: 76e | C174: 2 | D174: d | G174: 0 | H174: 0 | I174: 0 | J174: 0 | K174: 0 | L174: 0 | M174: 0 | N174: 0 | O174: 0 | P174: 0 | Q174: 0 | R174: 0 | S174: 0 | T174: 0 | U174: 0 | V174: 0 | W174: 0 | X174: 0 | Y174: 0 | Z174: 0 | AA174: 0 | AB174: 0 | AC174: 0 | AD174: 0 | AE174: 0 | AF174: 0 | AG174: 0 | AH174: 0 | AI174: 0
B175: 76e | C175: 2 | D175: e | G175: 0 | H175: 0 | I175: 0 | J175: 0 | K175: 0 | L175: 0 | M175: 0 | N175: 0 | O175: 0 | P175: 0 | Q175: 0 | R175: 0 | S175: 0 | T175: 0 | U175: 0 | V175: 0 | W175: 0 | X175: 0 | Y175: 0 | Z175: 0 | AA175: 0 | AB175: 0 | AC175: 0 | AD175: 0 | AE175: 0 | AF175: 0 | AG175: 0 | AH175: 0 | AI175: 0
B176: 76e | C176: 2 | D176: f | G176: 0 | H176: 0 | I176: 0 | J176: 0 | K176: 0 | L176: 0 | M176: 0 | N176: 0 | O176: 0 | P176: 0 | Q176: 0 | R176: 0 | S176: 0 | T176: 0 | U176: 0 | V176: 0 | W176: 0 | X176: 0 | Y176: 0 | Z176: 0 | AA176: 0 | AB176: 0 | AC176: 0 | AD176: 0 | AE176: 0 | AF176: 0 | AG176: 0 | AH176: 0 | AI176: 0
B177: 76e | C177: 2 | D177: g | G177: 0 | H177: 0 | I177: 0 | J177: 0 | K177: 0 | L177: 0 | M177: 0 | N177: 0 | O177: 0 | P177: 0 | Q177: 0 | R177: 0 | S177: 0 | T177: 0 | U177: 0 | V177: 0 | W177: 0 | X177: 0 | Y177: 0 | Z177: 0 | AA177: 0 | AB177: 0 | AC177: 0 | AD177: 0 | AE177: 0 | AF177: 0 | AG177: 0 | AH177: 0 | AI177: 0
B178: 76e | C178: 2 | D178: h | G178: 0 | H178: 0 | I178: 0 | J178: 0 | K178: 0 | L178: 0 | M178: 0 | N178: 0 | O178: 0 | P178: 0 | Q178: 0 | R178: 0 | S178: 0 | T178: 0 | U178: 0 | V178: 0 | W178: 0 | X178: 0 | Y178: 0 | Z178: 0 | AA178: 0 | AB178: 0 | AC178: 0 | AD178: 0 | AE178: 0 | AF178: 0 | AG178: 0 | AH178: 0 | AI178: 0
B179: 76e | C179: 2 | D179: i | G179: 0 | H179: 0 | I179: 0 | J179: 0 | K179: 0 | L179: 0 | M179: 0 | N179: 0 | O179: 0 | P179: 0 | Q179: 0 | R179: 0 | S179: 0 | T179: 0 | U179: 0 | V179: 0 | W179: 0 | X179: 0 | Y179: 0 | Z179: 0 | AA179: 0 | AB179: 0 | AC179: 0 | AD179: 0 | AE179: 0 | AF179: 0 | AG179: 0 | AH179: 0 | AI179: 0
B180: 76e | C180: 2 | D180: j | G180: 0 | H180: 0 | I180: 0 | J180: 0 | K180: 0 | L180: 0 | M180: 0 | N180: 0 | O180: 0 | P180: 0 | Q180: 0 | R180: 0 | S180: 0 | T180: 0 | U180: 0 | V180: 0 | W180: 0 | X180: 0 | Y180: 0 | Z180: 0 | AA180: 0 | AB180: 0 | AC180: 0 | AD180: 0 | AE180: 0 | AF180: 0 | AG180: 0 | AH180: 0 | AI180: 0
B181: 76e | C181: 3 | D181: a | G181: 0 | H181: 0 | I181: 0 | J181: 0 | K181: 0 | L181: 0 | M181: 0 | N181: 0 | O181: 0 | P181: 0 | Q181: 0 | R181: 0 | S181: 0 | T181: 0 | U181: 0 | V181: 0 | W181: 0 | X181: 0 | Y181: 0 | Z181: 0 | AA181: 0 | AB181: 0 | AC181: 0 | AD181: 0 | AE181: 0 | AF181: 0 | AG181: 0 | AH181: 0 | AI181: 0
B182: 76e | C182: 3 | D182: b | G182: 0 | H182: 0 | I182: 0 | J182: 0 | K182: 0 | L182: 0 | M182: 0 | N182: 0 | O182: 0 | P182: 0 | Q182: 0 | R182: 0 | S182: 0 | T182: 0 | U182: 0 | V182: 0 | W182: 0 | X182: 0 | Y182: 0 | Z182: 0 | AA182: 0 | AB182: 0 | AC182: 0 | AD182: 0 | AE182: 0 | AF182: 0 | AG182: 0 | AH182: 0 | AI182: 0
B183: 76e | C183: 3 | D183: c | G183: 0 | H183: 0 | I183: 0 | J183: 0 | K183: 0 | L183: 0 | M183: 0 | N183: 0 | O183: 0 | P183: 0 | Q183: 0 | R183: 0 | S183: 0 | T183: 0 | U183: 0 | V183: 0 | W183: 0 | X183: 0 | Y183: 0 | Z183: 0 | AA183: 0 | AB183: 0 | AC183: 0 | AD183: 0 | AE183: 0 | AF183: 0 | AG183: 0 | AH183: 0 | AI183: 0
B184: 76e | C184: 3 | D184: d | G184: 0 | H184: 0 | I184: 0 | J184: 0 | K184: 0 | L184: 0 | M184: 0 | N184: 0 | O184: 0 | P184: 0 | Q184: 0 | R184: 0 | S184: 0 | T184: 0 | U184: 0 | V184: 0 | W184: 0 | X184: 0 | Y184: 0 | Z184: 0 | AA184: 0 | AB184: 0 | AC184: 0 | AD184: 0 | AE184: 0 | AF184: 0 | AG184: 0 | AH184: 0 | AI184: 0
B185: 76e | C185: 3 | D185: e | G185: 0 | H185: 0 | I185: 0 | J185: 0 | K185: 0 | L185: 0 | M185: 0 | N185: 0 | O185: 0 | P185: 0 | Q185: 0 | R185: 0 | S185: 0 | T185: 0 | U185: 0 | V185: 0 | W185: 0 | X185: 0 | Y185: 0 | Z185: 0 | AA185: 0 | AB185: 0 | AC185: 0 | AD185: 0 | AE185: 0 | AF185: 0 | AG185: 0 | AH185: 0 | AI185: 0
B186: 76e | C186: 4 | D186: a | G186: 0 | H186: 0 | I186: 0 | J186: 0 | K186: 0 | L186: 0 | M186: 0 | N186: 0 | O186: 0 | P186: 0 | Q186: 0 | R186: 0 | S186: 0 | T186: 0 | U186: 0 | V186: 0 | W186: 0 | X186: 0 | Y186: 0 | Z186: 0 | AA186: 0 | AB186: 0 | AC186: 0 | AD186: 0 | AE186: 0 | AF186: 0 | AG186: 0 | AH186: 0 | AI186: 0
B187: 76e | C187: 4 | D187: b | G187: 0 | H187: 0 | I187: 0 | J187: 0 | K187: 0 | L187: 0 | M187: 0 | N187: 0 | O187: 0 | P187: 0 | Q187: 0 | R187: 0 | S187: 0 | T187: 0 | U187: 0 | V187: 0 | W187: 0 | X187: 0 | Y187: 0 | Z187: 0 | AA187: 0 | AB187: 0 | AC187: 0 | AD187: 0 | AE187: 0 | AF187: 0 | AG187: 0 | AH187: 0 | AI187: 0
B188: 76e | C188: 4 | D188: c | G188: 0 | H188: 0 | I188: 0 | J188: 0 | K188: 0 | L188: 0 | M188: 0 | N188: 0 | O188: 0 | P188: 0 | Q188: 0 | R188: 0 | S188: 0 | T188: 0 | U188: 0 | V188: 0 | W188: 0 | X188: 0 | Y188: 0 | Z188: 0 | AA188: 0 | AB188: 0 | AC188: 0 | AD188: 0 | AE188: 0 | AF188: 0 | AG188: 0 | AH188: 0 | AI188: 0
B189: 76e | C189: 4 | D189: d | G189: 0 | H189: 0 | I189: 0 | J189: 0 | K189: 0 | L189: 0 | M189: 0 | N189: 0 | O189: 0 | P189: 0 | Q189: 0 | R189: 0 | S189: 0 | T189: 0 | U189: 0 | V189: 0 | W189: 0 | X189: 0 | Y189: 0 | Z189: 0 | AA189: 0 | AB189: 0 | AC189: 0 | AD189: 0 | AE189: 0 | AF189: 0 | AG189: 0 | AH189: 0 | AI189: 0
B190: 76e | C190: 4 | D190: e | G190: 0 | H190: 0 | I190: 0 | J190: 0 | K190: 0 | L190: 0 | M190: 0 | N190: 0 | O190: 0 | P190: 0 | Q190: 0 | R190: 0 | S190: 0 | T190: 0 | U190: 0 | V190: 0 | W190: 0 | X190: 0 | Y190: 0 | Z190: 0 | AA190: 0 | AB190: 0 | AC190: 0 | AD190: 0 | AE190: 0 | AF190: 0 | AG190: 0 | AH190: 0 | AI190: 0
B191: 76e | C191: 4 | D191: f | G191: 0 | H191: 0 | I191: 0 | J191: 0 | K191: 0 | L191: 0 | M191: 0 | N191: 0 | O191: 0 | P191: 0 | Q191: 0 | R191: 0 | S191: 0 | T191: 0 | U191: 0 | V191: 0 | W191: 0 | X191: 0 | Y191: 0 | Z191: 0 | AA191: 0 | AB191: 0 | AC191: 0 | AD191: 0 | AE191: 0 | AF191: 0 | AG191: 0 | AH191: 0 | AI191: 0
B192: 76e | C192: 4 | D192: g | G192: 0 | H192: 0 | I192: 0 | J192: 0 | K192: 0 | L192: 0 | M192: 0 | N192: 0 | O192: 0 | P192: 0 | Q192: 0 | R192: 0 | S192: 0 | T192: 0 | U192: 0 | V192: 0 | W192: 0 | X192: 0 | Y192: 0 | Z192: 0 | AA192: 0 | AB192: 0 | AC192: 0 | AD192: 0 | AE192: 0 | AF192: 0 | AG192: 0 | AH192: 0 | AI192: 0
B193: 76e | C193: 4 | D193: h | G193: 0 | H193: 0 | I193: 0 | J193: 0 | K193: 0 | L193: 0 | M193: 0 | N193: 0 | O193: 0 | P193: 0 | Q193: 0 | R193: 0 | S193: 0 | T193: 0 | U193: 0 | V193: 0 | W193: 0 | X193: 0 | Y193: 0 | Z193: 0 | AA193: 0 | AB193: 0 | AC193: 0 | AD193: 0 | AE193: 0 | AF193: 0 | AG193: 0 | AH193: 0 | AI193: 0
B194: 76e | C194: 4 | D194: i | G194: 0 | H194: 0 | I194: 0 | J194: 0 | K194: 0 | L194: 0 | M194: 0 | N194: 0 | O194: 0 | P194: 0 | Q194: 0 | R194: 0 | S194: 0 | T194: 0 | U194: 0 | V194: 0 | W194: 0 | X194: 0 | Y194: 0 | Z194: 0 | AA194: 0 | AB194: 0 | AC194: 0 | AD194: 0 | AE194: 0 | AF194: 0 | AG194: 0 | AH194: 0 | AI194: 0
B195: 76e | C195: 4 | D195: j | G195: 0 | H195: 0 | I195: 0 | J195: 0 | K195: 0 | L195: 0 | M195: 0 | N195: 0 | O195: 0 | P195: 0 | Q195: 0 | R195: 0 | S195: 0 | T195: 0 | U195: 0 | V195: 0 | W195: 0 | X195: 0 | Y195: 0 | Z195: 0 | AA195: 0 | AB195: 0 | AC195: 0 | AD195: 0 | AE195: 0 | AF195: 0 | AG195: 0 | AH195: 0 | AI195: 0
B196: 76f | C196: 1 | D196: a | G196: 0 | H196: 0 | I196: 0 | J196: 0 | K196: 0 | L196: 0 | M196: 0 | N196: 0 | O196: 0 | P196: 0 | Q196: 0 | R196: 0 | S196: 0 | T196: 0 | U196: 0 | V196: 0 | W196: 0 | X196: 0 | Y196: 0 | Z196: 0 | AA196: 0 | AB196: 0 | AC196: 0 | AD196: 0 | AE196: 0 | AF196: 0 | AG196: 0 | AH196: 0 | AI196: 0
B197: 76f | C197: 1 | D197: b | G197: 0 | H197: 0 | I197: 0 | J197: 0 | K197: 0 | L197: 0 | M197: 0 | N197: 0 | O197: 0 | P197: 0 | Q197: 0 | R197: 0 | S197: 0 | T197: 0 | U197: 0 | V197: 0 | W197: 0 | X197: 0 | Y197: 0 | Z197: 0 | AA197: 0 | AB197: 0 | AC197: 0 | AD197: 0 | AE197: 0 | AF197: 0 | AG197: 0 | AH197: 0 | AI197: 0
B198: 76f | C198: 1 | D198: c | G198: 0 | H198: 0 | I198: 0 | J198: 0 | K198: 0 | L198: 0 | M198: 0 | N198: 0 | O198: 0 | P198: 0 | Q198: 0 | R198: 0 | S198: 0 | T198: 0 | U198: 0 | V198: 0 | W198: 0 | X198: 0 | Y198: 0 | Z198: 0 | AA198: 0 | AB198: 0 | AC198: 0 | AD198: 0 | AE198: 0 | AF198: 0 | AG198: 0 | AH198: 0 | AI198: 0
B199: 76f | C199: 2 | D199: a | G199: 0 | H199: 0 | I199: 0 | J199: 0 | K199: 0 | L199: 0 | M199: 0 | N199: 0 | O199: 0 | P199: 0 | Q199: 0 | R199: 0 | S199: 0 | T199: 0 | U199: 0 | V199: 0 | W199: 0 | X199: 0 | Y199: 0 | Z199: 0 | AA199: 0 | AB199: 0 | AC199: 0 | AD199: 0 | AE199: 0 | AF199: 0 | AG199: 0 | AH199: 0 | AI199: 0
B200: 76f | C200: 2 | D200: b | G200: 0 | H200: 0 | I200: 0 | J200: 0 | K200: 0 | L200: 0 | M200: 0 | N200: 0 | O200: 0 | P200: 0 | Q200: 0 | R200: 0 | S200: 0 | T200: 0 | U200: 0 | V200: 0 | W200: 0 | X200: 0 | Y200: 0 | Z200: 0 | AA200: 0 | AB200: 0 | AC200: 0 | AD200: 0 | AE200: 0 | AF200: 0 | AG200: 0 | AH200: 0 | AI200: 0
B201: 76f | C201: 2 | D201: c | G201: 0 | H201: 0 | I201: 0 | J201: 0 | K201: 0 | L201: 0 | M201: 0 | N201: 0 | O201: 0 | P201: 0 | Q201: 0 | R201: 0 | S201: 0 | T201: 0 | U201: 0 | V201: 0 | W201: 0 | X201: 0 | Y201: 0 | Z201: 0 | AA201: 0 | AB201: 0 | AC201: 0 | AD201: 0 | AE201: 0 | AF201: 0 | AG201: 0 | AH201: 0 | AI201: 0
... 46 more rows

Sheet Zákon č. 312-2002 Sb.
B2: PŘEHLED PŘESTUPKŮ ZA ROK 2018
B3: Zákon č. 312/2002 Sb., o o úřednících územních samosprávných celků a o změně některých zákonů
B4: § | C4: odst. | D4: písm. | E4: bod | F4: ve znění zákona č. 183/2017 Sb. | G4: počet podnětů k zahájení řízení o přestupku | H4: počet odložených věcí | I4: počet zahájených řízení o přestupku | L4: počet pravomocných rozhodnutí o uznání obviněného vinným ze spáchání přestupku | O4: počet zastavených řízení | P4: počet rozhodnutí o schválení dohody o narovnání | Q4: počet pravomocných rozhodnutí, kterými bylo upuštěno od uložení správního trestu | R4: počet pravomocných rozhodnutí, kterými byla mimořádně snížena výměra pokuty | S4: počet napomenutí | T4: počet pokut | U4: celková výměra pokut (v Kč) | V4: průměrná výměra pokuty (v Kč) | W4: počet zákazů činnosti | X4: celková délka uložených zákazů činnosti (v letech) | Y4: průměrná délka zákazu činnosti (v letech) | Z4: počet propadnutí věci nebo náhradní hodnoty | AA4: počet zveřejnění rozhodnutí o přestupku | AB4: počet omezujících opatření | AC4: počet zabrání věci nebo náhradní hodnoty | AD4: počet podaných odvolání | AE4: odvolání zamítnuto a napadené rozhodnutí potvrzeno | AF4: odvolání vyřízeno v rámci autoremedury | AG4: rozhodnutí změněno | AH4: rozhodnutí zrušeno a věc vrácena k novému projednání | AI4: rozhodnutí zrušeno a řízení zastaveno
I5: oznámení o zahájení řízení | J5: příkaz | K5: příkaz na místě | L5: rozhodnutí | M5: příkaz | N5: příkaz na místě
B6: 38 | C6: 1 | G6: 0 | H6: 0 | I6: 0 | J6: 0 | K6: 0 | L6: 0 | M6: 0 | N6: 0 | O6: 0 | P6: 0 | Q6: 0 | R6: 0 | S6: 0 | T6: 0 | U6: 0 | V6: 0 | W6: 0 | X6: 0 | Y6: 0 | Z6: 0 | AA6: 0 | AB6: 0 | AC6: 0 | AD6: 0 | AE6: 0 | AF6: 0 | AG6: 0 | AH6: 0 | AI6: 0
B7: Celkem | G7: =SUM(G3:G6) -> 0 | H7: 0 | I7: 0 | J7: 0 | K7: 0 | L7: 0 | M7: 0 | N7: 0 | O7: 0 | P7: 0 | Q7: 0 | R7: 0 | S7: 0 | T7: 0 | U7: 0 | V7: 0 | W7: 0 | X7: 0 | Y7: 0 | Z7: 0 | AA7: 0 | AB7: 0 | AC7: 0 | AD7: 0 | AE7: 0 | AF7: 0 | AG7: 0 | AH7: 0 | AI7: 0

Sheet Zákon č. 62-2003 Sb.
B2: PŘEHLED PŘESTUPKŮ ZA ROK 2018
B3: Zákon č. 62/2003 Sb., o volbách do Evropského parlamentu a o změně některých zákonů
B4: § | C4: odst. | D4: písm. | E4: bod | F4: ve znění zákona č. 90/2017 Sb. | G4: počet podnětů k zahájení řízení o přestupku | H4: počet odložených věcí | I4: počet zahájených řízení o přestupku | L4: počet pravomocných rozhodnutí o uznání obviněného vinným ze spáchání přestupku | O4: počet zastavených řízení | P4: počet rozhodnutí o schválení dohody o narovnání | Q4: počet pravomocných rozhodnutí, kterými bylo upuštěno od uložení správního trestu | R4: počet pravomocných rozhodnutí, kterými byla mimořádně snížena výměra pokuty | S4: počet napomenutí | T4: počet pokut | U4: celková výměra pokut (v Kč) | V4: průměrná výměra pokuty (v Kč) | W4: počet zákazů činnosti | X4: celková délka uložených zákazů činnosti (v letech) | Y4: průměrná délka zákazu činnosti (v letech) | Z4: počet propadnutí věci nebo náhradní hodnoty | AA4: počet zveřejnění rozhodnutí o přestupku | AB4: počet omezujících opatření | AC4: počet zabrání věci nebo náhradní hodnoty | AD4: počet podaných odvolání | AE4: odvolání zamítnuto a napadené rozhodnutí potvrzeno | AF4: odvolání vyřízeno v rámci autoremedury | AG4: rozhodnutí změněno | AH4: rozhodnutí zrušeno a věc vrácena k novému projednání | AI4: rozhodnutí zrušeno a řízení zastaveno
I5: oznámení o zahájení řízení | J5: příkaz | K5: příkaz na místě | L5: rozhodnutí | M5: příkaz | N5: příkaz na místě
B6: 62 | C6: 1 | G6: 0 | H6: 0 | I6: 0 | J6: 0 | K6: 0 | L6: 0 | M6: 0 | N6: 0 | O6: 0 | P6: 0 | Q6: 0 | R6: 0 | S6: 0 | T6: 0 | U6: 0 | V6: 0 | W6: 0 | X6: 0 | Y6: 0 | Z6: 0 | AA6: 0 | AB6: 0 | AC6: 0 | AD6: 0 | AE6: 0 | AF6: 0 | AG6: 0 | AH6: 0 | AI6: 0
B7: 62 | C7: 2 | D7: a | G7: 0 | H7: 0 | I7: 0 | J7: 0 | K7: 0 | L7: 0 | M7: 0 | N7: 0 | O7: 0 | P7: 0 | Q7: 0 | R7: 0 | S7: 0 | T7: 0 | U7: 0 | V7: 0 | W7: 0 | X7: 0 | Y7: 0 | Z7: 0 | AA7: 0 | AB7: 0 | AC7: 0 | AD7: 0 | AE7: 0 | AF7: 0 | AG7: 0 | AH7: 0 | AI7: 0
B8: 62 | C8: 2 | D8: b | G8: 0 | H8: 0 | I8: 0 | J8: 0 | K8: 0 | L8: 0 | M8: 0 | N8: 0 | O8: 0 | P8: 0 | Q8: 0 | R8: 0 | S8: 0 | T8: 0 | U8: 0 | V8: 0 | W8: 0 | X8: 0 | Y8: 0 | Z8: 0 | AA8: 0 | AB8: 0 | AC8: 0 | AD8: 0 | AE8: 0 | AF8: 0 | AG8: 0 | AH8: 0 | AI8: 0
B9: 62 | C9: 2 | D9: c | G9: 0 | H9: 0 | I9: 0 | J9: 0 | K9: 0 | L9: 0 | M9: 0 | N9: 0 | O9: 0 | P9: 0 | Q9: 0 | R9: 0 | S9: 0 | T9: 0 | U9: 0 | V9: 0 | W9: 0 | X9: 0 | Y9: 0 | Z9: 0 | AA9: 0 | AB9: 0 | AC9: 0 | AD9: 0 | AE9: 0 | AF9: 0 | AG9: 0 | AH9: 0 | AI9: 0
B10: 62 | C10: 2 | D10: d | G10: 0 | H10: 0 | I10: 0 | J10: 0 | K10: 0 | L10: 0 | M10: 0 | N10: 0 | O10: 0 | P10: 0 | Q10: 0 | R10: 0 | S10: 0 | T10: 0 | U10: 0 | V10: 0 | W10: 0 | X10: 0 | Y10: 0 | Z10: 0 | AA10: 0 | AB10: 0 | AC10: 0 | AD10: 0 | AE10: 0 | AF10: 0 | AG10: 0 | AH10: 0 | AI10: 0
B11: 62 | C11: 2 | D11: e | G11: 0 | H11: 0 | I11: 0 | J11: 0 | K11: 0 | L11: 0 | M11: 0 | N11: 0 | O11: 0 | P11: 0 | Q11: 0 | R11: 0 | S11: 0 | T11: 0 | U11: 0 | V11: 0 | W11: 0 | X11: 0 | Y11: 0 | Z11: 0 | AA11: 0 | AB11: 0 | AC11: 0 | AD11: 0 | AE11: 0 | AF11: 0 | AG11: 0 | AH11: 0 | AI11: 0
B12: 62 | C12: 2 | D12: f | G12: 0 | H12: 0 | I12: 0 | J12: 0 | K12: 0 | L12: 0 | M12: 0 | N12: 0 | O12: 0 | P12: 0 | Q12: 0 | R12: 0 | S12: 0 | T12: 0 | U12: 0 | V12: 0 | W12: 0 | X12: 0 | Y12: 0 | Z12: 0 | AA12: 0 | AB12: 0 | AC12: 0 | AD12: 0 | AE12: 0 | AF12: 0 | AG12: 0 | AH12: 0 | AI12: 0
B13: 62 | C13: 2 | D13: g | G13: 0 | H13: 0 | I13: 0 | J13: 0 | K13: 0 | L13: 0 | M13: 0 | N13: 0 | O13: 0 | P13: 0 | Q13: 0 | R13: 0 | S13: 0 | T13: 0 | U13: 0 | V13: 0 | W13: 0 | X13: 0 | Y13: 0 | Z13: 0 | AA13: 0 | AB13: 0 | AC13: 0 | AD13: 0 | AE13: 0 | AF13: 0 | AG13: 0 | AH13: 0 | AI13: 0
B14: 62 | C14: 2 | D14: h | G14: 0 | H14: 0 | I14: 0 | J14: 0 | K14: 0 | L14: 0 | M14: 0 | N14: 0 | O14: 0 | P14: 0 | Q14: 0 | R14: 0 | S14: 0 | T14: 0 | U14: 0 | V14: 0 | W14: 0 | X14: 0 | Y14: 0 | Z14: 0 | AA14: 0 | AB14: 0 | AC14: 0 | AD14: 0 | AE14: 0 | AF14: 0 | AG14: 0 | AH14: 0 | AI14: 0
B15: 62 | C15: 2 | D15: i | G15: 0 | H15: 0 | I15: 0 | J15: 0 | K15: 0 | L15: 0 | M15: 0 | N15: 0 | O15: 0 | P15: 0 | Q15: 0 | R15: 0 | S15: 0 | T15: 0 | U15: 0 | V15: 0 | W15: 0 | X15: 0 | Y15: 0 | Z15: 0 | AA15: 0 | AB15: 0 | AC15: 0 | AD15: 0 | AE15: 0 | AF15: 0 | AG15: 0 | AH15: 0 | AI15: 0
B16: 62 | C16: 2 | D16: j | G16: 0 | H16: 0 | I16: 0 | J16: 0 | K16: 0 | L16: 0 | M16: 0 | N16: 0 | O16: 0 | P16: 0 | Q16: 0 | R16: 0 | S16: 0 | T16: 0 | U16: 0 | V16: 0 | W16: 0 | X16: 0 | Y16: 0 | Z16: 0 | AA16: 0 | AB16: 0 | AC16: 0 | AD16: 0 | AE16: 0 | AF16: 0 | AG16: 0 | AH16: 0 | AI16: 0
B17: 62 | C17: 2 | D17: k | G17: 0 | H17: 0 | I17: 0 | J17: 0 | K17: 0 | L17: 0 | M17: 0 | N17: 0 | O17: 0 | P17: 0 | Q17: 0 | R17: 0 | S17: 0 | T17: 0 | U17: 0 | V17: 0 | W17: 0 | X17: 0 | Y17: 0 | Z17: 0 | AA17: 0 | AB17: 0 | AC17: 0 | AD17: 0 | AE17: 0 | AF17: 0 | AG17: 0 | AH17: 0 | AI17: 0
B18: 63 | C18: 1 | D18: a | G18: 0 | H18: 0 | I18: 0 | J18: 0 | K18: 0 | L18: 0 | M18: 0 | N18: 0 | O18: 0 | P18: 0 | Q18: 0 | R18: 0 | S18: 0 | T18: 0 | U18: 0 | V18: 0 | W18: 0 | X18: 0 | Y18: 0 | Z18: 0 | AA18: 0 | AB18: 0 | AC18: 0 | AD18: 0 | AE18: 0 | AF18: 0 | AG18: 0 | AH18: 0 | AI18: 0
B19: 63 | C19: 1 | D19: b | G19: 0 | H19: 0 | I19: 0 | J19: 0 | K19: 0 | L19: 0 | M19: 0 | N19: 0 | O19: 0 | P19: 0 | Q19: 0 | R19: 0 | S19: 0 | T19: 0 | U19: 0 | V19: 0 | W19: 0 | X19: 0 | Y19: 0 | Z19: 0 | AA19: 0 | AB19: 0 | AC19: 0 | AD19: 0 | AE19: 0 | AF19: 0 | AG19: 0 | AH19: 0 | AI19: 0
B20: 63 | C20: 1 | D20: c | G20: 0 | H20: 0 | I20: 0 | J20: 0 | K20: 0 | L20: 0 | M20: 0 | N20: 0 | O20: 0 | P20: 0 | Q20: 0 | R20: 0 | S20: 0 | T20: 0 | U20: 0 | V20: 0 | W20: 0 | X20: 0 | Y20: 0 | Z20: 0 | AA20: 0 | AB20: 0 | AC20: 0 | AD20: 0 | AE20: 0 | AF20: 0 | AG20: 0 | AH20: 0 | AI20: 0
B21: 63 | C21: 1 | D21: d | G21: 0 | H21: 0 | I21: 0 | J21: 0 | K21: 0 | L21: 0 | M21: 0 | N21: 0 | O21: 0 | P21: 0 | Q21: 0 | R21: 0 | S21: 0 | T21: 0 | U21: 0 | V21: 0 | W21: 0 | X21: 0 | Y21: 0 | Z21: 0 | AA21: 0 | AB21: 0 | AC21: 0 | AD21: 0 | AE21: 0 | AF21: 0 | AG21: 0 | AH21: 0 | AI21: 0
B22: 63 | C22: 1 | D22: e | G22: 0 | H22: 0 | I22: 0 | J22: 0 | K22: 0 | L22: 0 | M22: 0 | N22: 0 | O22: 0 | P22: 0 | Q22: 0 | R22: 0 | S22: 0 | T22: 0 | U22: 0 | V22: 0 | W22: 0 | X22: 0 | Y22: 0 | Z22: 0 | AA22: 0 | AB22: 0 | AC22: 0 | AD22: 0 | AE22: 0 | AF22: 0 | AG22: 0 | AH22: 0 | AI22: 0
B23: 63 | C23: 1 | D23: f | G23: 0 | H23: 0 | I23: 0 | J23: 0 | K23: 0 | L23: 0 | M23: 0 | N23: 0 | O23: 0 | P23: 0 | Q23: 0 | R23: 0 | S23: 0 | T23: 0 | U23: 0 | V23: 0 | W23: 0 | X23: 0 | Y23: 0 | Z23: 0 | AA23: 0 | AB23: 0 | AC23: 0 | AD23: 0 | AE23: 0 | AF23: 0 | AG23: 0 | AH23: 0 | AI23: 0
B24: 63 | C24: 1 | D24: g | G24: 0 | H24: 0 | I24: 0 | J24: 0 | K24: 0 | L24: 0 | M24: 0 | N24: 0 | O24: 0 | P24: 0 | Q24: 0 | R24: 0 | S24: 0 | T24: 0 | U24: 0 | V24: 0 | W24: 0 | X24: 0 | Y24: 0 | Z24: 0 | AA24: 0 | AB24: 0 | AC24: 0 | AD24: 0 | AE24: 0 | AF24: 0 | AG24: 0 | AH24: 0 | AI24: 0
B25: 63 | C25: 1 | D25: h | G25: 0 | H25: 0 | I25: 0 | J25: 0 | K25: 0 | L25: 0 | M25: 0 | N25: 0 | O25: 0 | P25: 0 | Q25: 0 | R25: 0 | S25: 0 | T25: 0 | U25: 0 | V25: 0 | W25: 0 | X25: 0 | Y25: 0 | Z25: 0 | AA25: 0 | AB25: 0 | AC25: 0 | AD25: 0 | AE25: 0 | AF25: 0 | AG25: 0 | AH25: 0 | AI25: 0
B26: 63 | C26: 1 | D26: i | G26: 0 | H26: 0 | I26: 0 | J26: 0 | K26: 0 | L26: 0 | M26: 0 | N26: 0 | O26: 0 | P26: 0 | Q26: 0 | R26: 0 | S26: 0 | T26: 0 | U26: 0 | V26: 0 | W26: 0 | X26: 0 | Y26: 0 | Z26: 0 | AA26: 0 | AB26: 0 | AC26: 0 | AD26: 0 | AE26: 0 | AF26: 0 | AG26: 0 | AH26: 0 | AI26: 0
B27: 63 | C27: 1 | D27: j | G27: 0 | H27: 0 | I27: 0 | J27: 0 | K27: 0 | L27: 0 | M27: 0 | N27: 0 | O27: 0 | P27: 0 | Q27: 0 | R27: 0 | S27: 0 | T27: 0 | U27: 0 | V27: 0 | W27: 0 | X27: 0 | Y27: 0 | Z27: 0 | AA27: 0 | AB27: 0 | AC27: 0 | AD27: 0 | AE27: 0 | AF27: 0 | AG27: 0 | AH27: 0 | AI27: 0
B28: 63 | C28: 1 | D28: k | G28: 0 | H28: 0 | I28: 0 | J28: 0 | K28: 0 | L28: 0 | M28: 0 | N28: 0 | O28: 0 | P28: 0 | Q28: 0 | R28: 0 | S28: 0 | T28: 0 | U28: 0 | V28: 0 | W28: 0 | X28: 0 | Y28: 0 | Z28: 0 | AA28: 0 | AB28: 0 | AC28: 0 | AD28: 0 | AE28: 0 | AF28: 0 | AG28: 0 | AH28: 0 | AI28: 0
B29: 63 | C29: 2 | D29: a | G29: 0 | H29: 0 | I29: 0 | J29: 0 | K29: 0 | L29: 0 | M29: 0 | N29: 0 | O29: 0 | P29: 0 | Q29: 0 | R29: 0 | S29: 0 | T29: 0 | U29: 0 | V29: 0 | W29: 0 | X29: 0 | Y29: 0 | Z29: 0 | AA29: 0 | AB29: 0 | AC29: 0 | AD29: 0 | AE29: 0 | AF29: 0 | AG29: 0 | AH29: 0 | AI29: 0
B30: 63 | C30: 2 | D30: b | G30: 0 | H30: 0 | I30: 0 | J30: 0 | K30: 0 | L30: 0 | M30: 0 | N30: 0 | O30: 0 | P30: 0 | Q30: 0 | R30: 0 | S30: 0 | T30: 0 | U30: 0 | V30: 0 | W30: 0 | X30: 0 | Y30: 0 | Z30: 0 | AA30: 0 | AB30: 0 | AC30: 0 | AD30: 0 | AE30: 0 | AF30: 0 | AG30: 0 | AH30: 0 | AI30: 0
B31: 63 | C31: 2 | D31: c | G31: 0 | H31: 0 | I31: 0 | J31: 0 | K31: 0 | L31: 0 | M31: 0 | N31: 0 | O31: 0 | P31: 0 | Q31: 0 | R31: 0 | S31: 0 | T31: 0 | U31: 0 | V31: 0 | W31: 0 | X31: 0 | Y31: 0 | Z31: 0 | AA31: 0 | AB31: 0 | AC31: 0 | AD31: 0 | AE31: 0 | AF31: 0 | AG31: 0 | AH31: 0 | AI31: 0
B32: 63 | C32: 2 | D32: d | G32: 0 | H32: 0 | I32: 0 | J32: 0 | K32: 0 | L32: 0 | M32: 0 | N32: 0 | O32: 0 | P32: 0 | Q32: 0 | R32: 0 | S32: 0 | T32: 0 | U32: 0 | V32: 0 | W32: 0 | X32: 0 | Y32: 0 | Z32: 0 | AA32: 0 | AB32: 0 | AC32: 0 | AD32: 0 | AE32: 0 | AF32: 0 | AG32: 0 | AH32: 0 | AI32: 0
B33: 63 | C33: 2 | D33: e | G33: 0 | H33: 0 | I33: 0 | J33: 0 | K33: 0 | L33: 0 | M33: 0 | N33: 0 | O33: 0 | P33: 0 | Q33: 0 | R33: 0 | S33: 0 | T33: 0 | U33: 0 | V33: 0 | W33: 0 | X33: 0 | Y33: 0 | Z33: 0 | AA33: 0 | AB33: 0 | AC33: 0 | AD33: 0 | AE33: 0 | AF33: 0 | AG33: 0 | AH33: 0 | AI33: 0
B34: 63 | C34: 2 | D34: f | G34: 0 | H34: 0 | I34: 0 | J34: 0 | K34: 0 | L34: 0 | M34: 0 | N34: 0 | O34: 0 | P34: 0 | Q34: 0 | R34: 0 | S34: 0 | T34: 0 | U34: 0 | V34: 0 | W34: 0 | X34: 0 | Y34: 0 | Z34: 0 | AA34: 0 | AB34: 0 | AC34: 0 | AD34: 0 | AE34: 0 | AF34: 0 | AG34: 0 | AH34: 0 | AI34: 0
B35: 63 | C35: 2 | D35: g | G35: 0 | H35: 0 | I35: 0 | J35: 0 | K35: 0 | L35: 0 | M35: 0 | N35: 0 | O35: 0 | P35: 0 | Q35: 0 | R35: 0 | S35: 0 | T35: 0 | U35: 0 | V35: 0 | W35: 0 | X35: 0 | Y35: 0 | Z35: 0 | AA35: 0 | AB35: 0 | AC35: 0 | AD35: 0 | AE35: 0 | AF35: 0 | AG35: 0 | AH35: 0 | AI35: 0
B36: 63 | C36: 2 | D36: h | G36: 0 | H36: 0 | I36: 0 | J36: 0 | K36: 0 | L36: 0 | M36: 0 | N36: 0 | O36: 0 | P36: 0 | Q36: 0 | R36: 0 | S36: 0 | T36: 0 | U36: 0 | V36: 0 | W36: 0 | X36: 0 | Y36: 0 | Z36: 0 | AA36: 0 | AB36: 0 | AC36: 0 | AD36: 0 | AE36: 0 | AF36: 0 | AG36: 0 | AH36: 0 | AI36: 0
B37: 63 | C37: 2 | D37: i | G37: 0 | H37: 0 | I37: 0 | J37: 0 | K37: 0 | L37: 0 | M37: 0 | N37: 0 | O37: 0 | P37: 0 | Q37: 0 | R37: 0 | S37: 0 | T37: 0 | U37: 0 | V37: 0 | W37: 0 | X37: 0 | Y37: 0 | Z37: 0 | AA37: 0 | AB37: 0 | AC37: 0 | AD37: 0 | AE37: 0 | AF37: 0 | AG37: 0 | AH37: 0 | AI37: 0
B38: 63 | C38: 2 | D38: j | G38: 0 | H38: 0 | I38: 0 | J38: 0 | K38: 0 | L38: 0 | M38: 0 | N38: 0 | O38: 0 | P38: 0 | Q38: 0 | R38: 0 | S38: 0 | T38: 0 | U38: 0 | V38: 0 | W38: 0 | X38: 0 | Y38: 0 | Z38: 0 | AA38: 0 | AB38: 0 | AC38: 0 | AD38: 0 | AE38: 0 | AF38: 0 | AG38: 0 | AH38: 0 | AI38: 0
B39: 63 | C39: 2 | D39: k | G39: 0 | H39: 0 | I39: 0 | J39: 0 | K39: 0 | L39: 0 | M39: 0 | N39: 0 | O39: 0 | P39: 0 | Q39: 0 | R39: 0 | S39: 0 | T39: 0 | U39: 0 | V39: 0 | W39: 0 | X39: 0 | Y39: 0 | Z39: 0 | AA39: 0 | AB39: 0 | AC39: 0 | AD39: 0 | AE39: 0 | AF39: 0 | AG39: 0 | AH39: 0 | AI39: 0
B40: 63 | C40: 2 | D40: l | G40: 0 | H40: 0 | I40: 0 | J40: 0 | K40: 0 | L40: 0 | M40: 0 | N40: 0 | O40: 0 | P40: 0 | Q40: 0 | R40: 0 | S40: 0 | T40: 0 | U40: 0 | V40: 0 | W40: 0 | X40: 0 | Y40: 0 | Z40: 0 | AA40: 0 | AB40: 0 | AC40: 0 | AD40: 0 | AE40: 0 | AF40: 0 | AG40: 0 | AH40: 0 | AI40: 0
B41: Celkem | G41: =SUM(G3:G40) -> 0 | H41: =SUM(H3:H40) -> 0 | I41: 0 | J41: 0 | K41: 0 | L41: 0 | M41: 0 | N41: 0 | O41: 0 | P41: 0 | Q41: 0 | R41: 0 | S41: 0 | T41: 0 | U41: 0 | V41: =SUM(V3:V40) -> 0 | W41: 0 | X41: 0 | Y41: 0 | Z41: 0 | AA41: 0 | AB41: 0 | AC41: 0 | AD41: 0 | AE41: 0 | AF41: 0 | AG41: 0 | AH41: 0 | AI41: 0

Sheet Zákon č. 221-2003 Sb.
B2: PŘEHLED PŘESTUPKŮ ZA ROK 2018
B3: Zákon č. 221/2003 Sb., o dočasné ochraně cizinců
B4: § | C4: odst. | D4: písm. | E4: bod | F4: ve znění zákona č. 456/2016 Sb. | G4: počet podnětů k zahájení řízení o přestupku | H4: počet odložených věcí | I4: počet zahájených řízení o přestupku | L4: počet pravomocných rozhodnutí o uznání obviněného vinným ze spáchání přestupku | O4: počet zastavených řízení | P4: počet rozhodnutí o schválení dohody o narovnání | Q4: počet pravomocných rozhodnutí, kterými bylo upuštěno od uložení správního trestu | R4: počet pravomocných rozhodnutí, kterými byla mimořádně snížena výměra pokuty | S4: počet napomenutí | T4: počet pokut | U4: celková výměra pokut (v Kč) | V4: průměrná výměra pokuty (v Kč) | W4: počet zákazů činnosti | X4: celková délka uložených zákazů činnosti (v letech) | Y4: průměrná délka zákazu činnosti (v letech) | Z4: počet propadnutí věci nebo náhradní hodnoty | AA4: počet zveřejnění rozhodnutí o přestupku | AB4: počet omezujících opatření | AC4: počet zabrání věci nebo náhradní hodnoty | AD4: počet podaných odvolání | AE4: odvolání zamítnuto a napadené rozhodnutí potvrzeno | AF4: odvolání vyřízeno v rámci autoremedury | AG4: rozhodnutí změněno | AH4: rozhodnutí zrušeno a věc vrácena k novému projednání | AI4: rozhodnutí zrušeno a řízení zastaveno
I5: oznámení o zahájení řízení | J5: příkaz | K5: příkaz na místě | L5: rozhodnutí | M5: příkaz | N5: příkaz na místě
B6: 55 | C6: 1 | D6: a | G6: 0 | H6: 0 | I6: 0 | J6: 0 | K6: 0 | L6: 0 | M6: 0 | N6: 0 | O6: 0 | P6: 0 | Q6: 0 | R6: 0 | S6: 0 | T6: 0 | U6: 0 | V6: 0 | W6: 0 | X6: 0 | Y6: 0 | Z6: 0 | AA6: 0 | AB6: 0 | AC6: 0 | AD6: 0 | AE6: 0 | AF6: 0 | AG6: 0 | AH6: 0 | AI6: 0
B7: 55 | C7: 1 | D7: b | G7: 0 | H7: 0 | I7: 0 | J7: 0 | K7: 0 | L7: 0 | M7: 0 | N7: 0 | O7: 0 | P7: 0 | Q7: 0 | R7: 0 | S7: 0 | T7: 0 | U7: 0 | V7: 0 | W7: 0 | X7: 0 | Y7: 0 | Z7: 0 | AA7: 0 | AB7: 0 | AC7: 0 | AD7: 0 | AE7: 0 | AF7: 0 | AG7: 0 | AH7: 0 | AI7: 0
B8: 55 | C8: 1 | D8: c | G8: 0 | H8: 0 | I8: 0 | J8: 0 | K8: 0 | L8: 0 | M8: 0 | N8: 0 | O8: 0 | P8: 0 | Q8: 0 | R8: 0 | S8: 0 | T8: 0 | U8: 0 | V8: 0 | W8: 0 | X8: 0 | Y8: 0 | Z8: 0 | AA8: 0 | AB8: 0 | AC8: 0 | AD8: 0 | AE8: 0 | AF8: 0 | AG8: 0 | AH8: 0 | AI8: 0
B9: 55 | C9: 2 | G9: 0 | H9: 0 | I9: 0 | J9: 0 | K9: 0 | L9: 0 | M9: 0 | N9: 0 | O9: 0 | P9: 0 | Q9: 0 | R9: 0 | S9: 0 | T9: 0 | U9: 0 | V9: 0 | W9: 0 | X9: 0 | Y9: 0 | Z9: 0 | AA9: 0 | AB9: 0 | AC9: 0 | AD9: 0 | AE9: 0 | AF9: 0 | AG9: 0 | AH9: 0 | AI9: 0
B10: Celkem | G10: =SUM(G3:G9) -> 0 | H10: 0 | I10: 0 | J10: 0 | K10: 0 | L10: 0 | M10: 0 | N10: 0 | O10: 0 | P10: 0 | Q10: 0 | R10: 0 | S10: 0 | T10: 0 | U10: 0 | V10: 0 | W10: =SUM(W3:W9) -> 0 | X10: 0 | Y10: 0 | Z10: 0 | AA10: 0 | AB10: 0 | AC10: 0 | AD10: 0 | AE10: 0 | AF10: 0 | AG10: 0 | AH10: 0 | AI10: 0

Sheet Zákon č. 22-2004 Sb.
B2: PŘEHLED PŘESTUPKŮ ZA ROK 2018
B3: Zákon č. 22/2004 Sb., o místním referendu a o změně některých zákonů
B4: § | C4: odst. | D4: písm. | E4: bod | F4: ve znění zákona č. 58/2014 Sb. | G4: počet podnětů k zahájení řízení o přestupku | H4: počet odložených věcí | I4: počet zahájených řízení o přestupku | L4: počet pravomocných rozhodnutí o uznání obviněného vinným ze spáchání přestupku | O4: počet zastavených řízení | P4: počet rozhodnutí o schválení dohody o narovnání | Q4: počet pravomocných rozhodnutí, kterými bylo upuštěno od uložení správního trestu | R4: počet pravomocných rozhodnutí, kterými byla mimořádně snížena výměra pokuty | S4: počet napomenutí | T4: počet pokut | U4: celková výměra pokut (v Kč) | V4: průměrná výměra pokuty (v Kč) | W4: počet zákazů činnosti | X4: celková délka uložených zákazů činnosti (v letech) | Y4: průměrná délka zákazu činnosti (v letech) | Z4: počet propadnutí věci nebo náhradní hodnoty | AA4: počet zveřejnění rozhodnutí o přestupku | AB4: počet omezujících opatření | AC4: počet zabrání věci nebo náhradní hodnoty | AD4: počet podaných odvolání | AE4: odvolání zamítnuto a napadené rozhodnutí potvrzeno | AF4: odvolání vyřízeno v rámci autoremedury | AG4: rozhodnutí změněno | AH4: rozhodnutí zrušeno a věc vrácena k novému projednání | AI4: rozhodnutí zrušeno a řízení zastaveno
I5: oznámení o zahájení řízení | J5: příkaz | K5: příkaz na místě | L5: rozhodnutí | M5: příkaz | N5: příkaz na místě
B6: 56 | C6: 1 | G6: 257 | H6: 0 | I6: 2 | J6: 252 | K6: 0 | L6: 0 | M6: 252 | N6: 0 | O6: 2 | P6: 0 | Q6: 0 | R6: 0 | S6: 251 | T6: 0 | U6: 0 | V6: 0 | W6: 0 | X6: 0 | Y6: 0 | Z6: 0 | AA6: 0 | AB6: 0 | AC6: 0 | AD6: 0 | AE6: 0 | AF6: 0 | AG6: 0 | AH6: 0 | AI6: 0
B7: 56 | C7: 2 | G7: 2 | H7: 0 | I7: 0 | J7: 1 | K7: 0 | L7: 0 | M7: 105 | N7: 0 | O7: 7 | P7: 0 | Q7: 0 | R7: 0 | S7: 104 | T7: 1 | U7: 1000 | V7: =U7/T7 -> 1000 | W7: 0 | X7: 0 | Y7: 0 | Z7: 0 | AA7: 0 | AB7: 0 | AC7: 0 | AD7: 0 | AE7: 0 | AF7: 0 | AG7: 0 | AH7: 0 | AI7: 0
B8: 56 | C8: 3 | G8: 3 | H8: 0 | I8: 0 | J8: 2 | K8: 0 | L8: 0 | M8: 2 | N8: 0 | O8: 0 | P8: 0 | Q8: 0 | R8: 0 | S8: 0 | T8: 2 | U8: 2000 | V8: =U8/T8 -> 1000 | W8: 0 | X8: 0 | Y8: =SUM(Y2:Y7) -> 0 | Z8: 0 | AA8: 0 | AB8: 0 | AC8: 0 | AD8: 0 | AE8: 0 | AF8: 0 | AG8: 0 | AH8: 0 | AI8: 0
B9: Celkem | G9: =SUM(G3:G8) -> 262 | H9: =SUM(H3:H8) -> 0 | I9: 2 | J9: 255 | K9: 0 | L9: 0 | M9: 359 | N9: 0 | O9: 9 | P9: 0 | Q9: 0 | R9: 0 | S9: 355 | T9: 3 | U9: 3000 | V9: =U9/T9 -> 1000 | W9: 0 | X9: 0 | Y9: 0 | Z9: 0 | AA9: 0 | AB9: 0 | AC9: 0 | AD9: 0 | AE9: 0 | AF9: 0 | AG9: 0 | AH9: 0 | AI9: 0

Sheet Zákon č. 499-2004 Sb.
B2: PŘEHLED PŘESTUPKŮ ZA ROK 2018
B3: Zákon č. 499/2004 Sb., o archivnictví a spisové službě a o změně některých zákonů
B4: § | C4: odst. | D4: písm. | E4: bod | F4: ve znění zákona č. 205/2017 Sb. | G4: počet podnětů k zahájení řízení o přestupku | H4: počet odložených věcí | I4: počet zahájených řízení o přestupku | L4: počet pravomocných rozhodnutí o uznání obviněného vinným ze spáchání přestupku | O4: počet zastavených řízení | P4: počet rozhodnutí o schválení dohody o narovnání | Q4: počet pravomocných rozhodnutí, kterými bylo upuštěno od uložení správního trestu | R4: počet pravomocných rozhodnutí, kterými byla mimořádně snížena výměra pokuty | S4: počet napomenutí | T4: počet pokut | U4: celková výměra pokut (v Kč) | V4: průměrná výměra pokuty (v Kč) | W4: počet zákazů činnosti | X4: celková délka uložených zákazů činnosti (v letech) | Y4: průměrná délka zákazu činnosti (v letech) | Z4: počet propadnutí věci nebo náhradní hodnoty | AA4: počet zveřejnění rozhodnutí o přestupku | AB4: počet omezujících opatření | AC4: počet zabrání věci nebo náhradní hodnoty | AD4: počet podaných odvolání | AE4: odvolání zamítnuto a napadené rozhodnutí potvrzeno | AF4: odvolání vyřízeno v rámci autoremedury | AG4: rozhodnutí změněno | AH4: rozhodnutí zrušeno a věc vrácena k novému projednání | AI4: rozhodnutí zrušeno a řízení zastaveno
I5: oznámení o zahájení řízení | J5: příkaz | K5: příkaz na místě | L5: rozhodnutí | M5: příkaz | N5: příkaz na místě
B6: 73 | C6: 1 | D6: a | G6: 0 | H6: 0 | I6: 0 | J6: 0 | K6: 0 | L6: 0 | M6: 0 | N6: 0 | O6: 0 | P6: 0 | Q6: 0 | R6: 0 | S6: 0 | T6: 0 | U6: 0 | V6: 0 | W6: 0 | X6: 0 | Y6: 0 | Z6: 0 | AA6: 0 | AB6: 0 | AC6: 0 | AD6: 0 | AE6: 0 | AF6: 0 | AG6: 0 | AH6: 0 | AI6: 0
B7: 73 | C7: 1 | D7: b | G7: 0 | H7: 0 | I7: 0 | J7: 0 | K7: 0 | L7: 0 | M7: 0 | N7: 0 | O7: 0 | P7: 0 | Q7: 0 | R7: 0 | S7: 0 | T7: 0 | U7: 0 | V7: 0 | W7: 0 | X7: 0 | Y7: 0 | Z7: 0 | AA7: 0 | AB7: 0 | AC7: 0 | AD7: 0 | AE7: 0 | AF7: 0 | AG7: 0 | AH7: 0 | AI7: 0
B8: 73 | C8: 1 | D8: c | G8: 0 | H8: 0 | I8: 0 | J8: 0 | K8: 0 | L8: 0 | M8: 0 | N8: 0 | O8: 0 | P8: 0 | Q8: 0 | R8: 0 | S8: 0 | T8: 0 | U8: 0 | V8: 0 | W8: 0 | X8: 0 | Y8: =SUM(Y2:Y7) -> 0 | Z8: 0 | AA8: 0 | AB8: 0 | AC8: 0 | AD8: 0 | AE8: 0 | AF8: 0 | AG8: 0 | AH8: 0 | AI8: 0
B9: 73 | C9: 2 | G9: 0 | H9: 0 | I9: 0 | J9: 0 | K9: 0 | L9: 0 | M9: 0 | N9: 0 | O9: 0 | P9: 0 | Q9: 0 | R9: 0 | S9: 0 | T9: 0 | U9: 0 | V9: 0 | W9: 0 | X9: 0 | Y9: 0 | Z9: 0 | AA9: 0 | AB9: 0 | AC9: 0 | AD9: 0 | AE9: 0 | AF9: 0 | AG9: 0 | AH9: 0 | AI9: 0
B10: 73 | C10: 3 | G10: 0 | H10: 0 | I10: 0 | J10: 0 | K10: 0 | L10: 0 | M10: 0 | N10: 0 | O10: 0 | P10: 0 | Q10: 0 | R10: 0 | S10: 0 | T10: 0 | U10: 0 | V10: 0 | W10: 0 | X10: 0 | Y10: 0 | Z10: 0 | AA10: 0 | AB10: 0 | AC10: 0 | AD10: 0 | AE10: 0 | AF10: 0 | AG10: 0 | AH10: 0 | AI10: 0
B11: 73 | C11: 4 | D11: a | G11: 0 | H11: 0 | I11: 0 | J11: 0 | K11: 0 | L11: 0 | M11: 0 | N11: 0 | O11: 0 | P11: 0 | Q11: 0 | R11: 0 | S11: 0 | T11: 0 | U11: 0 | V11: 0 | W11: 0 | X11: 0 | Y11: 0 | Z11: 0 | AA11: 0 | AB11: 0 | AC11: 0 | AD11: 0 | AE11: 0 | AF11: 0 | AG11: 0 | AH11: 0 | AI11: 0
B12: 73 | C12: 4 | D12: b | G12: 0 | H12: 0 | I12: 0 | J12: 0 | K12: 0 | L12: 0 | M12: 0 | N12: 0 | O12: 0 | P12: 0 | Q12: 0 | R12: 0 | S12: 0 | T12: 0 | U12: 0 | V12: 0 | W12: 0 | X12: 0 | Y12: 0 | Z12: 0 | AA12: 0 | AB12: 0 | AC12: 0 | AD12: 0 | AE12: 0 | AF12: 0 | AG12: 0 | AH12: 0 | AI12: 0
B13: 73 | C13: 4 | D13: c | G13: 0 | H13: 0 | I13: 0 | J13: 0 | K13: 0 | L13: 0 | M13: 0 | N13: 0 | O13: 0 | P13: 0 | Q13: 0 | R13: 0 | S13: 0 | T13: 0 | U13: 0 | V13: 0 | W13: 0 | X13: 0 | Y13: 0 | Z13: 0 | AA13: 0 | AB13: 0 | AC13: 0 | AD13: 0 | AE13: 0 | AF13: 0 | AG13: 0 | AH13: 0 | AI13: 0
B14: 73 | C14: 4 | D14: d | G14: 0 | H14: 0 | I14: 0 | J14: 0 | K14: 0 | L14: 0 | M14: 0 | N14: 0 | O14: 0 | P14: 0 | Q14: 0 | R14: 0 | S14: 0 | T14: 0 | U14: 0 | V14: 0 | W14: 0 | X14: 0 | Y14: 0 | Z14: 0 | AA14: 0 | AB14: 0 | AC14: 0 | AD14: 0 | AE14: 0 | AF14: 0 | AG14: 0 | AH14: 0 | AI14: 0
B15: 73 | C15: 4 | D15: e | G15: 0 | H15: 0 | I15: 0 | J15: 0 | K15: 0 | L15: 0 | M15: 0 | N15: 0 | O15: 0 | P15: 0 | Q15: 0 | R15: 0 | S15: 0 | T15: 0 | U15: 0 | V15: 0 | W15: 0 | X15: 0 | Y15: 0 | Z15: 0 | AA15: 0 | AB15: 0 | AC15: 0 | AD15: 0 | AE15: 0 | AF15: 0 | AG15: 0 | AH15: 0 | AI15: 0
B16: 73 | C16: 5 | G16: 0 | H16: 0 | I16: 0 | J16: 0 | K16: 0 | L16: 0 | M16: 0 | N16: 0 | O16: 0 | P16: 0 | Q16: 0 | R16: 0 | S16: 0 | T16: 0 | U16: 0 | V16: 0 | W16: 0 | X16: 0 | Y16: 0 | Z16: 0 | AA16: 0 | AB16: 0 | AC16: 0 | AD16: 0 | AE16: 0 | AF16: 0 | AG16: 0 | AH16: 0 | AI16: 0
B17: 73 | C17: 6 | G17: 0 | H17: 0 | I17: 0 | J17: 0 | K17: 0 | L17: 0 | M17: 0 | N17: 0 | O17: 0 | P17: 0 | Q17: 0 | R17: 0 | S17: 0 | T17: 0 | U17: 0 | V17: 0 | W17: 0 | X17: 0 | Y17: 0 | Z17: 0 | AA17: 0 | AB17: 0 | AC17: 0 | AD17: 0 | AE17: 0 | AF17: 0 | AG17: 0 | AH17: 0 | AI17: 0
B18: 74 | C18: 1 | D18: a | G18: 1 | H18: 0 | I18: 2 | J18: 1 | K18: 0 | L18: 2 | M18: 1 | N18: 0 | O18: 0 | P18: 0 | Q18: 0 | R18: 0 | S18: 0 | T18: 3 | U18: 108000 | V18: =U18/T18 -> 36000 | W18: 0 | X18: 0 | Y18: 0 | Z18: 0 | AA18: 0 | AB18: 0 | AC18: 0 | AD18: 0 | AE18: 0 | AF18: 0 | AG18: 0 | AH18: 0 | AI18: 0
B19: 74 | C19: 1 | D19: b | G19: 0 | H19: 0 | I19: 0 | J19: 0 | K19: 0 | L19: 0 | M19: 0 | N19: 0 | O19: 0 | P19: 0 | Q19: 0 | R19: 0 | S19: 0 | T19: 0 | U19: 0 | V19: 0 | W19: 0 | X19: 0 | Y19: 0 | Z19: 0 | AA19: 0 | AB19: 0 | AC19: 0 | AD19: 0 | AE19: 0 | AF19: 0 | AG19: 0 | AH19: 0 | AI19: 0
B20: 74 | C20: 1 | D20: c | G20: 0 | H20: 0 | I20: 0 | J20: 0 | K20: 0 | L20: 0 | M20: 0 | N20: 0 | O20: 0 | P20: 0 | Q20: 0 | R20: 0 | S20: 0 | T20: 0 | U20: 0 | V20: 0 | W20: 0 | X20: 0 | Y20: 0 | Z20: 0 | AA20: 0 | AB20: 0 | AC20: 0 | AD20: 0 | AE20: 0 | AF20: 0 | AG20: 0 | AH20: 0 | AI20: 0
B21: 74 | C21: 2 | G21: 0 | H21: 0 | I21: 0 | J21: 0 | K21: 0 | L21: 0 | M21: 0 | N21: 0 | O21: 0 | P21: 0 | Q21: 0 | R21: 0 | S21: 0 | T21: 0 | U21: 0 | V21: 0 | W21: 0 | X21: 0 | Y21: 0 | Z21: 0 | AA21: 0 | AB21: 0 | AC21: 0 | AD21: 0 | AE21: 0 | AF21: 0 | AG21: 0 | AH21: 0 | AI21: 0
B22: 74 | C22: 3 | D22: a | G22: 0 | H22: 0 | I22: 0 | J22: 0 | K22: 0 | L22: 0 | M22: 0 | N22: 0 | O22: 0 | P22: 0 | Q22: 0 | R22: 0 | S22: 0 | T22: 0 | U22: 0 | V22: 0 | W22: 0 | X22: 0 | Y22: 0 | Z22: 0 | AA22: 0 | AB22: 0 | AC22: 0 | AD22: 0 | AE22: 0 | AF22: 0 | AG22: 0 | AH22: 0 | AI22: 0
B23: 74 | C23: 3 | D23: b | G23: 0 | H23: 0 | I23: 0 | J23: 0 | K23: 0 | L23: 0 | M23: 0 | N23: 0 | O23: 0 | P23: 0 | Q23: 0 | R23: 0 | S23: 0 | T23: 0 | U23: 0 | V23: 0 | W23: 0 | X23: 0 | Y23: 0 | Z23: 0 | AA23: 0 | AB23: 0 | AC23: 0 | AD23: 0 | AE23: 0 | AF23: 0 | AG23: 0 | AH23: 0 | AI23: 0
B24: 74 | C24: 3 | D24: c | G24: 0 | H24: 0 | I24: 0 | J24: 0 | K24: 0 | L24: 0 | M24: 0 | N24: 0 | O24: 0 | P24: 0 | Q24: 0 | R24: 0 | S24: 0 | T24: 0 | U24: 0 | V24: 0 | W24: 0 | X24: 0 | Y24: 0 | Z24: 0 | AA24: 0 | AB24: 0 | AC24: 0 | AD24: 0 | AE24: 0 | AF24: 0 | AG24: 0 | AH24: 0 | AI24: 0
B25: 74 | C25: 3 | D25: d | G25: 0 | H25: 0 | I25: 0 | J25: 0 | K25: 0 | L25: 0 | M25: 0 | N25: 0 | O25: 0 | P25: 0 | Q25: 0 | R25: 0 | S25: 0 | T25: 0 | U25: 0 | V25: 0 | W25: 0 | X25: 0 | Y25: 0 | Z25: 0 | AA25: 0 | AB25: 0 | AC25: 0 | AD25: 0 | AE25: 0 | AF25: 0 | AG25: 0 | AH25: 0 | AI25: 0
B26: 74 | C26: 3 | D26: e | G26: 0 | H26: 0 | I26: 0 | J26: 0 | K26: 0 | L26: 0 | M26: 0 | N26: 0 | O26: 0 | P26: 0 | Q26: 0 | R26: 0 | S26: 0 | T26: 0 | U26: 0 | V26: 0 | W26: 0 | X26: 0 | Y26: 0 | Z26: 0 | AA26: 0 | AB26: 0 | AC26: 0 | AD26: 0 | AE26: 0 | AF26: 0 | AG26: 0 | AH26: 0 | AI26: 0
B27: 74 | C27: 4 | G27: 0 | H27: 0 | I27: 0 | J27: 0 | K27: 0 | L27: 0 | M27: 0 | N27: 0 | O27: 0 | P27: 0 | Q27: 0 | R27: 0 | S27: 0 | T27: 0 | U27: 0 | V27: 0 | W27: 0 | X27: 0 | Y27: 0 | Z27: 0 | AA27: 0 | AB27: 0 | AC27: 0 | AD27: 0 | AE27: 0 | AF27: 0 | AG27: 0 | AH27: 0 | AI27: 0
B28: 74 | C28: 5 | G28: 0 | H28: 0 | I28: 0 | J28: 0 | K28: 0 | L28: 0 | M28: 0 | N28: 0 | O28: 0 | P28: 0 | Q28: 0 | R28: 0 | S28: 0 | T28: 0 | U28: 0 | V28: 0 | W28: 0 | X28: 0 | Y28: 0 | Z28: 0 | AA28: 0 | AB28: 0 | AC28: 0 | AD28: 0 | AE28: 0 | AF28: 0 | AG28: 0 | AH28: 0 | AI28: 0
B29: 74 | C29: 6 | G29: 8 | H29: 2 | I29: 13 | J29: 1 | K29: 0 | L29: 10 | M29: 4 | N29: 0 | O29: 1 | P29: 0 | Q29: 0 | R29: 0 | S29: 0 | T29: 13 | U29: 134000 | V29: 10307.69231 | W29: 0 | X29: 0 | Y29: 0 | Z29: 0 | AA29: 0 | AB29: 0 | AC29: 0 | AD29: 2 | AE29: 2 | AF29: 0 | AG29: 0 | AH29: 0 | AI29: 0
B30: 74 | C30: 7 | G30: 0 | H30: 0 | I30: 0 | J30: 0 | K30: 0 | L30: 0 | M30: 0 | N30: 0 | O30: 0 | P30: 0 | Q30: 0 | R30: 0 | S30: 0 | T30: 0 | U30: 0 | V30: 0 | W30: 0 | X30: 0 | Y30: 0 | Z30: 0 | AA30: 0 | AB30: 0 | AC30: 0 | AD30: 0 | AE30: 0 | AF30: 0 | AG30: 0 | AH30: 0 | AI30: 0
B31: 74 | C31: 8 | G31: 0 | H31: 0 | I31: 0 | J31: 0 | K31: 0 | L31: 0 | M31: 0 | N31: 0 | O31: 0 | P31: 0 | Q31: 0 | R31: 0 | S31: 0 | T31: 0 | U31: 0 | V31: 0 | W31: 0 | X31: 0 | Y31: 0 | Z31: 0 | AA31: 0 | AB31: 0 | AC31: 0 | AD31: 0 | AE31: 0 | AF31: 0 | AG31: 0 | AH31: 0 | AI31: 0
B32: 74 | C32: 9 | D32: a | G32: 3 | H32: 0 | I32: 8 | J32: 1 | K32: 0 | L32: 7 | M32: 1 | N32: 0 | O32: 0 | P32: 0 | Q32: 0 | R32: 0 | S32: 0 | T32: 7 | U32: 585000 | V32: 83571.42857 | W32: 0 | X32: 0 | Y32: 0 | Z32: 0 | AA32: 0 | AB32: 0 | AC32: 0 | AD32: 3 | AE32: 1 | AF32: 0 | AG32: 0 | AH32: 1 | AI32: 0
B33: 74 | C33: 9 | D33: b | G33: 4 | H33: 0 | I33: 15 | J33: 6 | K33: 0 | L33: 12 | M33: 7 | N33: 0 | O33: 0 | P33: 0 | Q33: 0 | R33: 0 | S33: 0 | T33: 10 | U33: 76000 | V33: 7600 | W33: 0 | X33: 0 | Y33: 0 | Z33: 0 | AA33: 0 | AB33: 0 | AC33: 0 | AD33: 2 | AE33: 2 | AF33: 0 | AG33: 0 | AH33: 0 | AI33: 0
B34: 74 | C34: 9 | D34: c | G34: 1 | H34: 0 | I34: 1 | J34: 1 | K34: 0 | L34: 2 | M34: 1 | N34: 0 | O34: 0 | P34: 0 | Q34: 0 | R34: 0 | S34: 0 | T34: 3 | U34: 95000 | V34: 31666.66667 | W34: 0 | X34: 0 | Y34: 0 | Z34: 0 | AA34: 0 | AB34: 0 | AC34: 0 | AD34: 0 | AE34: 0 | AF34: 0 | AG34: 0 | AH34: 0 | AI34: 0
B35: 74 | C35: 9 | D35: d | G35: 3 | H35: 0 | I35: 12 | J35: 4 | K35: 0 | L35: 11 | M35: 5 | N35: 0 | O35: 0 | P35: 0 | Q35: 0 | R35: 0 | S35: 0 | T35: 5 | U35: 10000 | V35: 2000 | W35: 0 | X35: 0 | Y35: 0 | Z35: 0 | AA35: 0 | AB35: 0 | AC35: 0 | AD35: 2 | AE35: 2 | AF35: 0 | AG35: 0 | AH35: 0 | AI35: 0
B36: 74 | C36: 10 | G36: 5 | H36: 0 | I36: 15 | J36: 22 | K36: 0 | L36: 12 | M36: 22 | N36: 0 | O36: 0 | P36: 0 | Q36: 0 | R36: 0 | S36: 16 | T36: 6 | U36: 14000 | V36: 2333.333333 | W36: 0 | X36: 0 | Y36: 0 | Z36: 0 | AA36: 0 | AB36: 0 | AC36: 0 | AD36: 3 | AE36: 2 | AF36: 0 | AG36: 0 | AH36: 0 | AI36: 0
B37: Celkem | G37: =SUM(G6:G36) -> 25 | H37: =SUM(H6:H36) -> 2 | I37: 66 | J37: 36 | K37: 0 | L37: 56 | M37: 41 | N37: 0 | O37: 1 | P37: 0 | Q37: 0 | R37: 0 | S37: 16 | T37: 47 | U37: 1022000 | V37: 21744.68085 | W37: 0 | X37: 0 | Y37: 0 | Z37: 0 | AA37: 0 | AB37: 0 | AC37: 0 | AD37: 12 | AE37: 9 | AF37: 0 | AG37: 0 | AH37: 1 | AI37: 0

Sheet Zákon č. 273-2008 Sb.
B2: PŘEHLED PŘESTUPKŮ ZA ROK 2018
B3: Zákon č. č. 273/2008 Sb., o Policii České republiky
B4: § | C4: odst. | D4: písm. | E4: bod | F4: ve znění zákona č. 304/2017 Sb. | G4: počet podnětů k zahájení řízení o přestupku | H4: počet odložených věcí | I4: počet zahájených řízení o přestupku | L4: počet pravomocných rozhodnutí o uznání obviněného vinným ze spáchání přestupku | O4: počet zastavených řízení | P4: počet rozhodnutí o schválení dohody o narovnání | Q4: počet pravomocných rozhodnutí, kterými bylo upuštěno od uložení správního trestu | R4: počet pravomocných rozhodnutí, kterými byla mimořádně snížena výměra pokuty | S4: počet napomenutí | T4: počet pokut | U4: celková výměra pokut (v Kč) | V4: průměrná výměra pokuty (v Kč) | W4: počet zákazů činnosti | X4: celková délka uložených zákazů činnosti (v letech) | Y4: průměrná délka zákazu činnosti (v letech) | Z4: počet propadnutí věci nebo náhradní hodnoty | AA4: počet zveřejnění rozhodnutí o přestupku | AB4: počet omezujících opatření | AC4: počet zabrání věci nebo náhradní hodnoty | AD4: počet podaných odvolání | AE4: odvolání zamítnuto a napadené rozhodnutí potvrzeno | AF4: odvolání vyřízeno v rámci autoremedury | AG4: rozhodnutí změněno | AH4: rozhodnutí zrušeno a věc vrácena k novému projednání | AI4: rozhodnutí zrušeno a řízení zastaveno
I5: oznámení o zahájení řízení | J5: příkaz | K5: příkaz na místě | L5: rozhodnutí | M5: příkaz | N5: příkaz na místě
B6: 101 | C6: 1 | D6: a | G6: 7 | H6: 2 | I6: 1 | J6: 4 | K6: 0 | L6: 1 | M6: 3 | N6: 0 | O6: 2 | P6: 0 | Q6: 0 | R6: 0 | S6: 1 | T6: 3 | U6: 6000 | V6: =U6/T6 -> 2000 | W6: 0 | X6: 0 | Y6: 0 | Z6: 1 | AA6: 0 | AB6: 0 | AC6: 0 | AD6: 1 | AE6: 1 | AF6: 0 | AG6: 0 | AH6: 0 | AI6: 0
B7: 101 | C7: 1 | D7: b | G7: 0 | H7: 0 | I7: 0 | J7: 0 | K7: 0 | L7: 0 | M7: 0 | N7: 0 | O7: 0 | P7: 0 | Q7: 0 | R7: 0 | S7: 0 | T7: 0 | U7: 0 | V7: 0 | W7: 0 | X7: 0 | Y7: 0 | Z7: 0 | AA7: 0 | AB7: 0 | AC7: 0 | AD7: 0 | AE7: 0 | AF7: 0 | AG7: 0 | AH7: 0 | AI7: 0
B8: 101 | C8: 1 | D8: c | G8: 3 | H8: 1 | I8: 0 | J8: 0 | K8: 0 | L8: 0 | M8: 0 | N8: 0 | O8: 0 | P8: 0 | Q8: 0 | R8: 0 | S8: 0 | T8: 0 | U8: 0 | V8: 0 | W8: 0 | X8: 0 | Y8: 0 | Z8: 0 | AA8: 0 | AB8: 0 | AC8: 0 | AD8: 0 | AE8: 0 | AF8: 0 | AG8: 0 | AH8: 0 | AI8: 0
B9: 101 | C9: 1 | D9: d | G9: 0 | H9: 0 | I9: 0 | J9: 0 | K9: 0 | L9: 0 | M9: 0 | N9: 0 | O9: 0 | P9: 0 | Q9: 0 | R9: 0 | S9: 0 | T9: 0 | U9: 0 | V9: 0 | W9: 0 | X9: 0 | Y9: 0 | Z9: 0 | AA9: 0 | AB9: 0 | AC9: 0 | AD9: 0 | AE9: 0 | AF9: 0 | AG9: 0 | AH9: 0 | AI9: 0
B10: 101 | C10: 2 | D10: a | G10: 0 | H10: 1 | I10: 0 | J10: 0 | K10: 0 | L10: 0 | M10: 0 | N10: 0 | O10: 0 | P10: 0 | Q10: 0 | R10: 0 | S10: 0 | T10: 0 | U10: 0 | V10: 0 | W10: 0 | X10: 0 | Y10: 0 | Z10: 0 | AA10: 0 | AB10: 0 | AC10: 0 | AD10: 0 | AE10: 0 | AF10: 0 | AG10: 0 | AH10: 0 | AI10: 0
B11: 101 | C11: 2 | D11: b | G11: 0 | H11: 0 | I11: 1 | J11: 0 | K11: 0 | L11: 0 | M11: 0 | N11: 0 | O11: 0 | P11: 0 | Q11: 0 | R11: 0 | S11: 0 | T11: 0 | U11: 0 | V11: 0 | W11: 0 | X11: 0 | Y11: 0 | Z11: 0 | AA11: 0 | AB11: 0 | AC11: 0 | AD11: 0 | AE11: 0 | AF11: 0 | AG11: 0 | AH11: 0 | AI11: 0
B12: Celkem | G12: =SUM(G6:G11) -> 10 | H12: =SUM(H6:H11) -> 4 | I12: 2 | J12: 4 | K12: 0 | L12: 1 | M12: 3 | N12: 0 | O12: 2 | P12: 0 | Q12: 0 | R12: 0 | S12: 1 | T12: 3 | U12: 6000 | V12: =U12/T12 -> 2000 | W12: 0 | X12: 0 | Y12: 0 | Z12: 1 | AA12: 0 | AB12: 0 | AC12: 0 | AD12: 1 | AE12: 1 | AF12: 0 | AG12: 0 | AH12: 0 | AI12: 0

Sheet Zákon č. 300-2008 Sb.
B2: PŘEHLED PŘESTUPKŮ ZA ROK 2018
B3: Zákon č. 300/2008 Sb., o elektronických úkonech a autorizované konverzi dokumentů
B4: § | C4: odst. | D4: písm. | E4: bod | F4: ve znění zákona č. 183/2017 Sb. | G4: počet podnětů k zahájení řízení o přestupku | H4: počet odložených věcí | I4: počet zahájených řízení o přestupku | L4: počet pravomocných rozhodnutí o uznání obviněného vinným ze spáchání přestupku | O4: počet zastavených řízení | P4: počet rozhodnutí o schválení dohody o narovnání | Q4: počet pravomocných rozhodnutí, kterými bylo upuštěno od uložení správního trestu | R4: počet pravomocných rozhodnutí, kterými byla mimořádně snížena výměra pokuty | S4: počet napomenutí | T4: počet pokut | U4: celková výměra pokut (v Kč) | V4: průměrná výměra pokuty (v Kč) | W4: počet zákazů činnosti | X4: celková délka uložených zákazů činnosti (v letech) | Y4: průměrná délka zákazu činnosti (v letech) | Z4: počet propadnutí věci nebo náhradní hodnoty | AA4: počet zveřejnění rozhodnutí o přestupku | AB4: počet omezujících opatření | AC4: počet zabrání věci nebo náhradní hodnoty | AD4: počet podaných odvolání | AE4: odvolání zamítnuto a napadené rozhodnutí potvrzeno | AF4: odvolání vyřízeno v rámci autoremedury | AG4: rozhodnutí změněno | AH4: rozhodnutí zrušeno a věc vrácena k novému projednání | AI4: rozhodnutí zrušeno a řízení zastaveno
I5: oznámení o zahájení řízení | J5: příkaz | K5: příkaz na místě | L5: rozhodnutí | M5: příkaz | N5: příkaz na místě
B6: 26a | C6: 1 | D6: a | G6: 0 | H6: 0 | I6: 0 | J6: 0 | K6: 0 | L6: 0 | M6: 0 | N6: 0 | O6: 0 | P6: 0 | Q6: 0 | R6: 0 | S6: 0 | T6: 0 | U6: 0 | V6: 0 | W6: 0 | X6: 0 | Y6: 0 | Z6: 0 | AA6: 0 | AB6: 0 | AC6: 0 | AD6: 0 | AE6: 0 | AF6: 0 | AG6: 0 | AH6: 0 | AI6: 0
B7: 26a | C7: 1 | D7: b | G7: 0 | H7: 0 | I7: 0 | J7: 0 | K7: 0 | L7: 0 | M7: 0 | N7: 0 | O7: 0 | P7: 0 | Q7: 0 | R7: 0 | S7: 0 | T7: 0 | U7: 0 | V7: 0 | W7: 0 | X7: 0 | Y7: 0 | Z7: 0 | AA7: 0 | AB7: 0 | AC7: 0 | AD7: 0 | AE7: 0 | AF7: 0 | AG7: 0 | AH7: 0 | AI7: 0
B8: 26b | C8: 1 | D8: a | G8: 0 | H8: 0 | I8: 0 | J8: 0 | K8: 0 | L8: 0 | M8: 0 | N8: 0 | O8: 0 | P8: 0 | Q8: 0 | R8: 0 | S8: 0 | T8: 0 | U8: 0 | V8: 0 | W8: 0 | X8: 0 | Y8: 0 | Z8: 0 | AA8: 0 | AB8: 0 | AC8: 0 | AD8: 0 | AE8: 0 | AF8: 0 | AG8: 0 | AH8: 0 | AI8: 0
B9: 26b | C9: 1 | D9: b | G9: 0 | H9: 0 | I9: 0 | J9: 0 | K9: 0 | L9: 0 | M9: 0 | N9: 0 | O9: 0 | P9: 0 | Q9: 0 | R9: 0 | S9: 0 | T9: 0 | U9: 0 | V9: 0 | W9: 0 | X9: 0 | Y9: 0 | Z9: 0 | AA9: 0 | AB9: 0 | AC9: 0 | AD9: 0 | AE9: 0 | AF9: 0 | AG9: 0 | AH9: 0 | AI9: 0
B10: Celkem | G10: =SUM(G3:G9) -> 0 | H10: 0 | I10: 0 | J10: 0 | K10: 0 | L10: 0 | M10: 0 | N10: 0 | O10: 0 | P10: 0 | Q10: 0 | R10: 0 | S10: 0 | T10: 0 | U10: 0 | V10: 0 | W10: =SUM(W3:W9) -> 0 | X10: 0 | Y10: 0 | Z10: 0 | AA10: 0 | AB10: 0 | AC10: 0 | AD10: 0 | AE10: 0 | AF10: 0 | AG10: 0 | AH10: 0 | AI10: 0

Sheet Zákon č. 118-2010 Sb.
B2: PŘEHLED PŘESTUPKŮ ZA ROK 2018
B3: Zákon č. 118/2010 Sb., o krajském referendu a o změně některých zákonů
B4: § | C4: odst. | D4: písm. | E4: bod | F4: ve znění zákona č. 58/2014 Sb. | G4: počet podnětů k zahájení řízení o přestupku | H4: počet odložených věcí | I4: počet zahájených řízení o přestupku | L4: počet pravomocných rozhodnutí o uznání obviněného vinným ze spáchání přestupku | O4: počet zastavených řízení | P4: počet rozhodnutí o schválení dohody o narovnání | Q4: počet pravomocných rozhodnutí, kterými bylo upuštěno od uložení správního trestu | R4: počet pravomocných rozhodnutí, kterými byla mimořádně snížena výměra pokuty | S4: počet napomenutí | T4: počet pokut | U4: celková výměra pokut (v Kč) | V4: průměrná výměra pokuty (v Kč) | W4: počet zákazů činnosti | X4: celková délka uložených zákazů činnosti (v letech) | Y4: průměrná délka zákazu činnosti (v letech) | Z4: počet propadnutí věci nebo náhradní hodnoty | AA4: počet zveřejnění rozhodnutí o přestupku | AB4: počet omezujících opatření | AC4: počet zabrání věci nebo náhradní hodnoty | AD4: počet podaných odvolání | AE4: odvolání zamítnuto a napadené rozhodnutí potvrzeno | AF4: odvolání vyřízeno v rámci autoremedury | AG4: rozhodnutí změněno | AH4: rozhodnutí zrušeno a věc vrácena k novému projednání | AI4: rozhodnutí zrušeno a řízení zastaveno
I5: oznámení o zahájení řízení | J5: příkaz | K5: příkaz na místě | L5: rozhodnutí | M5: příkaz | N5: příkaz na místě
B6: 55 | C6: 1 | G6: 0 | H6: 0 | I6: 0 | J6: 0 | K6: 0 | L6: 0 | M6: 0 | N6: 0 | O6: 0 | P6: 0 | Q6: 0 | R6: 0 | S6: 0 | T6: 0 | U6: 0 | V6: 0 | W6: 0 | X6: 0 | Y6: 0 | Z6: 0 | AA6: 0 | AB6: 0 | AC6: 0 | AD6: 0 | AE6: 0 | AF6: 0 | AG6: 0 | AH6: 0 | AI6: 0
B7: 55 | C7: 2 | G7: 0 | H7: 0 | I7: 0 | J7: 0 | K7: 0 | L7: 0 | M7: 0 | N7: 0 | O7: 0 | P7: 0 | Q7: 0 | R7: 0 | S7: 0 | T7: 0 | U7: 0 | V7: 0 | W7: 0 | X7: 0 | Y7: 0 | Z7: 0 | AA7: 0 | AB7: 0 | AC7: 0 | AD7: 0 | AE7: 0 | AF7: 0 | AG7: 0 | AH7: 0 | AI7: 0
B8: 55 | C8: 3 | G8: 0 | H8: 0 | I8: 0 | J8: 0 | K8: 0 | L8: 0 | M8: 0 | N8: 0 | O8: 0 | P8: 0 | Q8: 0 | R8: 0 | S8: 0 | T8: 0 | U8: 0 | V8: 0 | W8: 0 | X8: 0 | Y8: 0 | Z8: 0 | AA8: 0 | AB8: 0 | AC8: 0 | AD8: 0 | AE8: 0 | AF8: 0 | AG8: 0 | AH8: 0 | AI8: 0
B9: Celkem | G9: =SUM(G3:G8) -> 0 | H9: =SUM(H3:H8) -> 0 | I9: 0 | J9: 0 | K9: 0 | L9: 0 | M9: 0 | N9: 0 | O9: 0 | P9: 0 | Q9: 0 | R9: 0 | S9: 0 | T9: 0 | U9: 0 | V9: 0 | W9: 0 | X9: 0 | Y9: 0 | Z9: 0 | AA9: 0 | AB9: 0 | AC9: 0 | AD9: 0 | AE9: 0 | AF9: 0 | AG9: 0 | AH9: 0 | AI9: 0

Sheet Zákon č. 341-2011 Sb.
B2: PŘEHLED PŘESTUPKŮ ZA ROK 2018
B3: Zákon č. 341/2011 Sb., o Generální inspekci bezpečnostních sborů
B4: § | C4: odst. | D4: písm. | E4: bod | F4: ve znění zákona č. 183/2017 Sb. | G4: počet podnětů k zahájení řízení o přestupku | H4: počet odložených věcí | I4: počet zahájených řízení o přestupku | L4: počet pravomocných rozhodnutí o uznání obviněného vinným ze spáchání přestupku | O4: počet zastavených řízení | P4: počet rozhodnutí o schválení dohody o narovnání | Q4: počet pravomocných rozhodnutí, kterými bylo upuštěno od uložení správního trestu | R4: počet pravomocných rozhodnutí, kterými byla mimořádně snížena výměra pokuty | S4: počet napomenutí | T4: počet pokut | U4: celková výměra pokut (v Kč) | V4: průměrná výměra pokuty (v Kč) | W4: počet zákazů činnosti | X4: celková délka uložených zákazů činnosti (v letech) | Y4: průměrná délka zákazu činnosti (v letech) | Z4: počet propadnutí věci nebo náhradní hodnoty | AA4: počet zveřejnění rozhodnutí o přestupku | AB4: počet omezujících opatření | AC4: počet zabrání věci nebo náhradní hodnoty | AD4: počet podaných odvolání | AE4: odvolání zamítnuto a napadené rozhodnutí potvrzeno | AF4: odvolání vyřízeno v rámci autoremedury | AG4: rozhodnutí změněno | AH4: rozhodnutí zrušeno a věc vrácena k novému projednání | AI4: rozhodnutí zrušeno a řízení zastaveno
I5: oznámení o zahájení řízení | J5: příkaz | K5: příkaz na místě | L5: rozhodnutí | M5: příkaz | N5: příkaz na místě
B6: 58 | C6: 1 | D6: a | G6: 0 | H6: 0 | I6: 0 | J6: 0 | K6: 0 | L6: 0 | M6: 0 | N6: 0 | O6: 0 | P6: 0 | Q6: 0 | R6: 0 | S6: 0 | T6: 0 | U6: 0 | V6: 0 | W6: 0 | X6: 0 | Y6: 0 | Z6: 0 | AA6: 0 | AB6: 0 | AC6: 0 | AD6: 0 | AE6: 0 | AF6: 0 | AG6: 0 | AH6: 0 | AI6: 0
B7: 58 | C7: 1 | D7: b | G7: 0 | H7: 0 | I7: 0 | J7: 0 | K7: 0 | L7: 0 | M7: 0 | N7: 0 | O7: 0 | P7: 0 | Q7: 0 | R7: 0 | S7: 0 | T7: 0 | U7: 0 | V7: 0 | W7: 0 | X7: 0 | Y7: 0 | Z7: 0 | AA7: 0 | AB7: 0 | AC7: 0 | AD7: 0 | AE7: 0 | AF7: 0 | AG7: 0 | AH7: 0 | AI7: 0
B8: 58 | C8: 1 | D8: c | G8: 0 | H8: 0 | I8: 0 | J8: 0 | K8: 0 | L8: 0 | M8: 0 | N8: 0 | O8: 0 | P8: 0 | Q8: 0 | R8: 0 | S8: 0 | T8: 0 | U8: 0 | V8: 0 | W8: 0 | X8: 0 | Y8: 0 | Z8: 0 | AA8: 0 | AB8: 0 | AC8: 0 | AD8: 0 | AE8: 0 | AF8: 0 | AG8: 0 | AH8: 0 | AI8: 0
B9: 58 | C9: 1 | D9: d | G9: 0 | H9: 0 | I9: 0 | J9: 0 | K9: 0 | L9: 0 | M9: 0 | N9: 0 | O9: 0 | P9: 0 | Q9: 0 | R9: 0 | S9: 0 | T9: 0 | U9: 0 | V9: 0 | W9: 0 | X9: 0 | Y9: 0 | Z9: 0 | AA9: 0 | AB9: 0 | AC9: 0 | AD9: 0 | AE9: 0 | AF9: 0 | AG9: 0 | AH9: 0 | AI9: 0
B10: 58 | C10: 2 | G10: 0 | H10: 0 | I10: 0 | J10: 0 | K10: 0 | L10: 0 | M10: 0 | N10: 0 | O10: 0 | P10: 0 | Q10: 0 | R10: 0 | S10: 0 | T10: 0 | U10: 0 | V10: 0 | W10: 0 | X10: 0 | Y10: 0 | Z10: 0 | AA10: 0 | AB10: 0 | AC10: 0 | AD10: 0 | AE10: 0 | AF10: 0 | AG10: 0 | AH10: 0 | AI10: 0
B11: Celkem | G11: =SUM(G5:G10) -> 0 | H11: =SUM(H5:H10) -> 0 | I11: 0 | J11: 0 | K11: 0 | L11: 0 | M11: 0 | N11: 0 | O11: 0 | P11: 0 | Q11: 0 | R11: 0 | S11: 0 | T11: 0 | U11: 0 | V11: 0 | W11: 0 | X11: 0 | Y11: 0 | Z11: 0 | AA11: 0 | AB11: 0 | AC11: 0 | AD11: 0 | AE11: 0 | AF11: 0 | AG11: 0 | AH11: 0 | AI11: 0

Sheet Zákon č. 255-2012 Sb.
B2: PŘEHLED PŘESTUPKŮ ZA ROK 2018
B3: Zákon č. 255/2012 Sb., o kontrole (kontrolní řád) - pouze přestupky spáchané na úseku státní správy spadajícím do působnosti Ministerstva vnitra
B4: § | C4: odst. | D4: písm. | E4: bod | F4: ve znění zákona č. 183/2017 Sb. | G4: počet podnětů k zahájení řízení o přestupku | H4: počet odložených věcí | I4: počet zahájených řízení o přestupku | L4: počet pravomocných rozhodnutí o uznání obviněného vinným ze spáchání přestupku | O4: počet zastavených řízení | P4: počet rozhodnutí o schválení dohody o narovnání | Q4: počet pravomocných rozhodnutí, kterými bylo upuštěno od uložení správního trestu | R4: počet pravomocných rozhodnutí, kterými byla mimořádně snížena výměra pokuty | S4: počet napomenutí | T4: počet pokut | U4: celková výměra pokut (v Kč) | V4: průměrná výměra pokuty (v Kč) | W4: počet zákazů činnosti | X4: celková délka uložených zákazů činnosti (v letech) | Y4: průměrná délka zákazu činnosti (v letech) | Z4: počet propadnutí věci nebo náhradní hodnoty | AA4: počet zveřejnění rozhodnutí o přestupku | AB4: počet omezujících opatření | AC4: počet zabrání věci nebo náhradní hodnoty | AD4: počet podaných odvolání | AE4: odvolání zamítnuto a napadené rozhodnutí potvrzeno | AF4: odvolání vyřízeno v rámci autoremedury | AG4: rozhodnutí změněno | AH4: rozhodnutí zrušeno a věc vrácena k novému projednání | AI4: rozhodnutí zrušeno a řízení zastaveno
I5: oznámení o zahájení řízení | J5: příkaz | K5: příkaz na místě | L5: rozhodnutí | M5: příkaz | N5: příkaz na místě
B6: 15 | C6: 1 | D6: a | G6: 24 | H6: 0 | I6: 3 | J6: 17 | K6: 0 | L6: 5 | M6: 13 | N6: 0 | O6: 0 | P6: 0 | Q6: 0 | R6: 0 | S6: 0 | T6: 19 | U6: 1228000 | V6: =U6/T6 -> 64631.57895 | W6: 0 | X6: 0 | Y6: 0 | Z6: 0 | AA6: 0 | AB6: 0 | AC6: 0 | AD6: 3 | AE6: 2 | AF6: 0 | AG6: 1 | AH6: 0 | AI6: 0
B7: 15 | C7: 1 | D7: b | G7: 0 | H7: 0 | I7: 0 | J7: 0 | K7: 0 | L7: 0 | M7: 0 | N7: 0 | O7: 0 | P7: 0 | Q7: 0 | R7: 0 | S7: 0 | T7: 0 | U7: 0 | V7: 0 | W7: 0 | X7: 0 | Y7: 0 | Z7: 0 | AA7: 0 | AB7: 0 | AC7: 0 | AD7: 0 | AE7: 0 | AF7: 0 | AG7: 0 | AH7: 0 | AI7: 0
B8: Celkem | G8: =SUM(G2:G7) -> 24 | H8: =SUM(H2:H7) -> 0 | I8: 3 | J8: 17 | K8: 0 | L8: 5 | M8: 13 | N8: 0 | O8: 0 | P8: 0 | Q8: 0 | R8: 0 | S8: 0 | T8: 19 | U8: 1228000 | V8: =U8/T8 -> 64631.57895 | W8: 0 | X8: 0 | Y8: 0 | Z8: 0 | AA8: 0 | AB8: 0 | AC8: 0 | AD8: 3 | AE8: 2 | AF8: 0 | AG8: 1 | AH8: 0 | AI8: 0

Sheet Zákon č. 275-2012 Sb.
B2: PŘEHLED PŘESTUPKŮ ZA ROK 2018
B3: Zákon č. 275/2012 Sb., o volbě prezidenta republiky a o změně některých zákonů (zákon o volbě prezidenta republiky)
B4: § | C4: odst. | D4: písm. | E4: bod | F4: ve znění zákona č. 222/2016 Sb. | G4: počet podnětů k zahájení řízení o přestupku | H4: počet odložených věcí | I4: počet zahájených řízení o přestupku | L4: počet pravomocných rozhodnutí o uznání obviněného vinným ze spáchání přestupku | O4: počet zastavených řízení | P4: počet rozhodnutí o schválení dohody o narovnání | Q4: počet pravomocných rozhodnutí, kterými bylo upuštěno od uložení správního trestu | R4: počet pravomocných rozhodnutí, kterými byla mimořádně snížena výměra pokuty | S4: počet napomenutí | T4: počet pokut | U4: celková výměra pokut (v Kč) | V4: průměrná výměra pokuty (v Kč) | W4: počet zákazů činnosti | X4: celková délka uložených zákazů činnosti (v letech) | Y4: průměrná délka zákazu činnosti (v letech) | Z4: počet propadnutí věci nebo náhradní hodnoty | AA4: počet zveřejnění rozhodnutí o přestupku | AB4: počet omezujících opatření | AC4: počet zabrání věci nebo náhradní hodnoty | AD4: počet podaných odvolání | AE4: odvolání zamítnuto a napadené rozhodnutí potvrzeno | AF4: odvolání vyřízeno v rámci autoremedury | AG4: rozhodnutí změněno | AH4: rozhodnutí zrušeno a věc vrácena k novému projednání | AI4: rozhodnutí zrušeno a řízení zastaveno
I5: oznámení o zahájení řízení | J5: příkaz | K5: příkaz na místě | L5: rozhodnutí | M5: příkaz | N5: příkaz na místě
B6: 62 | C6: 1 | D6: a | G6: 6 | H6: 0 | I6: 0 | J6: 0 | K6: 0 | L6: 0 | M6: 0 | N6: 0 | O6: 0 | P6: 0 | Q6: 0 | R6: 0 | S6: 0 | T6: 0 | U6: 0 | V6: 0 | W6: 0 | X6: 0 | Y6: 0 | Z6: 0 | AA6: 0 | AB6: 0 | AC6: 0 | AD6: 0 | AE6: 0 | AF6: 0 | AG6: 0 | AH6: 0 | AI6: 0
B7: 62 | C7: 1 | D7: b | G7: 1 | H7: 0 | I7: 0 | J7: 0 | K7: 0 | L7: 0 | M7: 0 | N7: 0 | O7: 0 | P7: 0 | Q7: 0 | R7: 0 | S7: 0 | T7: 0 | U7: 0 | V7: 0 | W7: 0 | X7: 0 | Y7: 0 | Z7: 0 | AA7: 0 | AB7: 0 | AC7: 0 | AD7: 0 | AE7: 0 | AF7: 0 | AG7: 0 | AH7: 0 | AI7: 0
B8: 62 | C8: 1 | D8: c | G8: 0 | H8: 0 | I8: 0 | J8: 0 | K8: 0 | L8: 0 | M8: 0 | N8: 0 | O8: 0 | P8: 0 | Q8: 0 | R8: 0 | S8: 0 | T8: 0 | U8: 0 | V8: 0 | W8: 0 | X8: 0 | Y8: 0 | Z8: 0 | AA8: 0 | AB8: 0 | AC8: 0 | AD8: 0 | AE8: 0 | AF8: 0 | AG8: 0 | AH8: 0 | AI8: 0
B9: 62 | C9: 1 | D9: d | G9: 1 | H9: 0 | I9: 0 | J9: 0 | K9: 0 | L9: 0 | M9: 0 | N9: 0 | O9: 0 | P9: 0 | Q9: 0 | R9: 0 | S9: 0 | T9: 0 | U9: 0 | V9: 0 | W9: 0 | X9: 0 | Y9: 0 | Z9: 0 | AA9: 0 | AB9: 0 | AC9: 0 | AD9: 0 | AE9: 0 | AF9: 0 | AG9: 0 | AH9: 0 | AI9: 0
B10: 62 | C10: 1 | D10: e | G10: 0 | H10: 0 | I10: 0 | J10: 0 | K10: 0 | L10: 0 | M10: 0 | N10: 0 | O10: 0 | P10: 0 | Q10: 0 | R10: 0 | S10: 0 | T10: 0 | U10: 0 | V10: 0 | W10: 0 | X10: 0 | Y10: 0 | Z10: 0 | AA10: 0 | AB10: 0 | AC10: 0 | AD10: 0 | AE10: 0 | AF10: 0 | AG10: 0 | AH10: 0 | AI10: 0
B11: 62 | C11: 1 | D11: f | G11: 0 | H11: 0 | I11: 0 | J11: 0 | K11: 0 | L11: 0 | M11: 0 | N11: 0 | O11: 0 | P11: 0 | Q11: 0 | R11: 0 | S11: 0 | T11: 0 | U11: 0 | V11: 0 | W11: 0 | X11: 0 | Y11: 0 | Z11: 0 | AA11: 0 | AB11: 0 | AC11: 0 | AD11: 0 | AE11: 0 | AF11: 0 | AG11: 0 | AH11: 0 | AI11: 0
B12: 62 | C12: 1 | D12: g | G12: 0 | H12: 0 | I12: 0 | J12: 0 | K12: 0 | L12: 0 | M12: 0 | N12: 0 | O12: 0 | P12: 0 | Q12: 0 | R12: 0 | S12: 0 | T12: 0 | U12: 0 | V12: 0 | W12: 0 | X12: 0 | Y12: 0 | Z12: 0 | AA12: 0 | AB12: 0 | AC12: 0 | AD12: 0 | AE12: 0 | AF12: 0 | AG12: 0 | AH12: 0 | AI12: 0
B13: 62 | C13: 1 | D13: h | G13: 0 | H13: 0 | I13: 0 | J13: 0 | K13: 0 | L13: 0 | M13: 0 | N13: 0 | O13: 0 | P13: 0 | Q13: 0 | R13: 0 | S13: 0 | T13: 0 | U13: 0 | V13: 0 | W13: 0 | X13: 0 | Y13: 0 | Z13: 0 | AA13: 0 | AB13: 0 | AC13: 0 | AD13: 0 | AE13: 0 | AF13: 0 | AG13: 0 | AH13: 0 | AI13: 0
B14: 62 | C14: 1 | D14: i | G14: 0 | H14: 0 | I14: 0 | J14: 0 | K14: 0 | L14: 0 | M14: 0 | N14: 0 | O14: 0 | P14: 0 | Q14: 0 | R14: 0 | S14: 0 | T14: 0 | U14: 0 | V14: 0 | W14: 0 | X14: 0 | Y14: 0 | Z14: 0 | AA14: 0 | AB14: 0 | AC14: 0 | AD14: 0 | AE14: 0 | AF14: 0 | AG14: 0 | AH14: 0 | AI14: 0
B15: 62 | C15: 1 | D15: j | G15: 0 | H15: 0 | I15: 0 | J15: 0 | K15: 0 | L15: 0 | M15: 0 | N15: 0 | O15: 0 | P15: 0 | Q15: 0 | R15: 0 | S15: 0 | T15: 0 | U15: 0 | V15: 0 | W15: 0 | X15: 0 | Y15: 0 | Z15: 0 | AA15: 0 | AB15: 0 | AC15: 0 | AD15: 0 | AE15: 0 | AF15: 0 | AG15: 0 | AH15: 0 | AI15: 0
B16: 62 | C16: 1 | D16: k | G16: 0 | H16: 0 | I16: 0 | J16: 0 | K16: 0 | L16: 0 | M16: 0 | N16: 0 | O16: 0 | P16: 0 | Q16: 0 | R16: 0 | S16: 0 | T16: 0 | U16: 0 | V16: 0 | W16: 0 | X16: 0 | Y16: 0 | Z16: 0 | AA16: 0 | AB16: 0 | AC16: 0 | AD16: 0 | AE16: 0 | AF16: 0 | AG16: 0 | AH16: 0 | AI16: 0
B17: 62 | C17: 2 | D17: a | G17: 0 | H17: 0 | I17: 0 | J17: 0 | K17: 0 | L17: 0 | M17: 0 | N17: 0 | O17: 0 | P17: 0 | Q17: 0 | R17: 0 | S17: 0 | T17: 0 | U17: 0 | V17: 0 | W17: 0 | X17: 0 | Y17: 0 | Z17: 0 | AA17: 0 | AB17: 0 | AC17: 0 | AD17: 0 | AE17: 0 | AF17: 0 | AG17: 0 | AH17: 0 | AI17: 0
B18: 62 | C18: 2 | D18: b | G18: 0 | H18: 0 | I18: 0 | J18: 0 | K18: 0 | L18: 0 | M18: 0 | N18: 0 | O18: 0 | P18: 0 | Q18: 0 | R18: 0 | S18: 0 | T18: 0 | U18: 0 | V18: 0 | W18: 0 | X18: 0 | Y18: 0 | Z18: 0 | AA18: 0 | AB18: 0 | AC18: 0 | AD18: 0 | AE18: 0 | AF18: 0 | AG18: 0 | AH18: 0 | AI18: 0
B19: 62 | C19: 2 | D19: c | G19: 0 | H19: 0 | I19: 0 | J19: 0 | K19: 0 | L19: 0 | M19: 0 | N19: 0 | O19: 0 | P19: 0 | Q19: 0 | R19: 0 | S19: 0 | T19: 0 | U19: 0 | V19: 0 | W19: 0 | X19: 0 | Y19: 0 | Z19: 0 | AA19: 0 | AB19: 0 | AC19: 0 | AD19: 0 | AE19: 0 | AF19: 0 | AG19: 0 | AH19: 0 | AI19: 0
B20: 62 | C20: 2 | D20: d | G20: 0 | H20: 0 | I20: 0 | J20: 0 | K20: 0 | L20: 0 | M20: 0 | N20: 0 | O20: 0 | P20: 0 | Q20: 0 | R20: 0 | S20: 0 | T20: 0 | U20: 0 | V20: 0 | W20: 0 | X20: 0 | Y20: 0 | Z20: 0 | AA20: 0 | AB20: 0 | AC20: 0 | AD20: 0 | AE20: 0 | AF20: 0 | AG20: 0 | AH20: 0 | AI20: 0
B21: 62 | C21: 2 | D21: e | G21: 0 | H21: 0 | I21: 0 | J21: 0 | K21: 0 | L21: 0 | M21: 0 | N21: 0 | O21: 0 | P21: 0 | Q21: 0 | R21: 0 | S21: 0 | T21: 0 | U21: 0 | V21: 0 | W21: 0 | X21: 0 | Y21: 0 | Z21: 0 | AA21: 0 | AB21: 0 | AC21: 0 | AD21: 0 | AE21: 0 | AF21: 0 | AG21: 0 | AH21: 0 | AI21: 0
B22: 62 | C22: 2 | D22: f | G22: 0 | H22: 0 | I22: 0 | J22: 0 | K22: 0 | L22: 0 | M22: 0 | N22: 0 | O22: 0 | P22: 0 | Q22: 0 | R22: 0 | S22: 0 | T22: 0 | U22: 0 | V22: 0 | W22: 0 | X22: 0 | Y22: 0 | Z22: 0 | AA22: 0 | AB22: 0 | AC22: 0 | AD22: 0 | AE22: 0 | AF22: 0 | AG22: 0 | AH22: 0 | AI22: 0
B23: 62 | C23: 2 | D23: g | G23: 0 | H23: 0 | I23: 0 | J23: 0 | K23: 0 | L23: 0 | M23: 0 | N23: 0 | O23: 0 | P23: 0 | Q23: 0 | R23: 0 | S23: 0 | T23: 0 | U23: 0 | V23: 0 | W23: 0 | X23: 0 | Y23: 0 | Z23: 0 | AA23: 0 | AB23: 0 | AC23: 0 | AD23: 0 | AE23: 0 | AF23: 0 | AG23: 0 | AH23: 0 | AI23: 0
B24: 62 | C24: 2 | D24: h | G24: 0 | H24: 0 | I24: 0 | J24: 0 | K24: 0 | L24: 0 | M24: 0 | N24: 0 | O24: 0 | P24: 0 | Q24: 0 | R24: 0 | S24: 0 | T24: 0 | U24: 0 | V24: 0 | W24: 0 | X24: 0 | Y24: 0 | Z24: 0 | AA24: 0 | AB24: 0 | AC24: 0 | AD24: 0 | AE24: 0 | AF24: 0 | AG24: 0 | AH24: 0 | AI24: 0
B25: 62 | C25: 2 | D25: i | G25: 0 | H25: 0 | I25: 0 | J25: 0 | K25: 0 | L25: 0 | M25: 0 | N25: 0 | O25: 0 | P25: 0 | Q25: 0 | R25: 0 | S25: 0 | T25: 0 | U25: 0 | V25: 0 | W25: 0 | X25: 0 | Y25: 0 | Z25: 0 | AA25: 0 | AB25: 0 | AC25: 0 | AD25: 0 | AE25: 0 | AF25: 0 | AG25: 0 | AH25: 0 | AI25: 0
B26: 62 | C26: 2 | D26: j | G26: 0 | H26: 0 | I26: 0 | J26: 0 | K26: 0 | L26: 0 | M26: 0 | N26: 0 | O26: 0 | P26: 0 | Q26: 0 | R26: 0 | S26: 0 | T26: 0 | U26: 0 | V26: 0 | W26: 0 | X26: 0 | Y26: 0 | Z26: 0 | AA26: 0 | AB26: 0 | AC26: 0 | AD26: 0 | AE26: 0 | AF26: 0 | AG26: 0 | AH26: 0 | AI26: 0
B27: 62 | C27: 2 | D27: k | G27: 1 | H27: 0 | I27: 0 | J27: 0 | K27: 0 | L27: 0 | M27: 0 | N27: 0 | O27: 0 | P27: 0 | Q27: 0 | R27: 0 | S27: 0 | T27: 0 | U27: 0 | V27: 0 | W27: 0 | X27: 0 | Y27: 0 | Z27: 0 | AA27: 0 | AB27: 0 | AC27: 0 | AD27: 0 | AE27: 0 | AF27: 0 | AG27: 0 | AH27: 0 | AI27: 0
B28: 62 | C28: 2 | D28: l | G28: 1 | H28: 0 | I28: 0 | J28: 0 | K28: 0 | L28: 0 | M28: 0 | N28: 0 | O28: 0 | P28: 0 | Q28: 0 | R28: 0 | S28: 0 | T28: 0 | U28: 0 | V28: 0 | W28: 0 | X28: 0 | Y28: 0 | Z28: 0 | AA28: 0 | AB28: 0 | AC28: 0 | AD28: 0 | AE28: 0 | AF28: 0 | AG28: 0 | AH28: 0 | AI28: 0
B29: 63 | C29: 1 | D29: a | G29: 2 | H29: 0 | I29: 0 | J29: 1 | K29: 0 | L29: 0 | M29: 1 | N29: 0 | O29: 0 | P29: 0 | Q29: 0 | R29: 0 | S29: 0 | T29: 1 | U29: 40000 | V29: =U29/T29 -> 40000 | W29: 0 | X29: 0 | Y29: 0 | Z29: 0 | AA29: 0 | AB29: 0 | AC29: 0 | AD29: 0 | AE29: 0 | AF29: 0 | AG29: 0 | AH29: 0 | AI29: 0
B30: 63 | C30: 1 | D30: b | G30: 1 | H30: 0 | I30: 0 | J30: 0 | K30: 0 | L30: 0 | M30: 0 | N30: 0 | O30: 0 | P30: 0 | Q30: 0 | R30: 0 | S30: 0 | T30: 0 | U30: 0 | V30: 0 | W30: 0 | X30: 0 | Y30: 0 | Z30: 0 | AA30: 0 | AB30: 0 | AC30: 0 | AD30: 0 | AE30: 0 | AF30: 0 | AG30: 0 | AH30: 0 | AI30: 0
B31: 63 | C31: 1 | D31: c | G31: 0 | H31: 0 | I31: 0 | J31: 0 | K31: 0 | L31: 0 | M31: 0 | N31: 0 | O31: 0 | P31: 0 | Q31: 0 | R31: 0 | S31: 0 | T31: 0 | U31: 0 | V31: 0 | W31: 0 | X31: 0 | Y31: 0 | Z31: 0 | AA31: 0 | AB31: 0 | AC31: 0 | AD31: 0 | AE31: 0 | AF31: 0 | AG31: 0 | AH31: 0 | AI31: 0
B32: 63 | C32: 1 | D32: d | G32: 0 | H32: 0 | I32: 0 | J32: 0 | K32: 0 | L32: 0 | M32: 0 | N32: 0 | O32: 0 | P32: 0 | Q32: 0 | R32: 0 | S32: 0 | T32: 0 | U32: 0 | V32: 0 | W32: 0 | X32: 0 | Y32: 0 | Z32: 0 | AA32: 0 | AB32: 0 | AC32: 0 | AD32: 0 | AE32: 0 | AF32: 0 | AG32: 0 | AH32: 0 | AI32: 0
B33: 63 | C33: 1 | D33: e | G33: 0 | H33: 0 | I33: 0 | J33: 0 | K33: 0 | L33: 0 | M33: 0 | N33: 0 | O33: 0 | P33: 0 | Q33: 0 | R33: 0 | S33: 0 | T33: 0 | U33: 0 | V33: 0 | W33: 0 | X33: 0 | Y33: 0 | Z33: 0 | AA33: 0 | AB33: 0 | AC33: 0 | AD33: 0 | AE33: 0 | AF33: 0 | AG33: 0 | AH33: 0 | AI33: 0
B34: 63 | C34: 1 | D34: f | G34: 0 | H34: 0 | I34: 0 | J34: 0 | K34: 0 | L34: 0 | M34: 0 | N34: 0 | O34: 0 | P34: 0 | Q34: 0 | R34: 0 | S34: 0 | T34: 0 | U34: 0 | V34: 0 | W34: 0 | X34: 0 | Y34: 0 | Z34: 0 | AA34: 0 | AB34: 0 | AC34: 0 | AD34: 0 | AE34: 0 | AF34: 0 | AG34: 0 | AH34: 0 | AI34: 0
B35: 63 | C35: 1 | D35: g | G35: 0 | H35: 0 | I35: 0 | J35: 0 | K35: 0 | L35: 0 | M35: 0 | N35: 0 | O35: 0 | P35: 0 | Q35: 0 | R35: 0 | S35: 0 | T35: 0 | U35: 0 | V35: 0 | W35: 0 | X35: 0 | Y35: 0 | Z35: 0 | AA35: 0 | AB35: 0 | AC35: 0 | AD35: 0 | AE35: 0 | AF35: 0 | AG35: 0 | AH35: 0 | AI35: 0
B36: 63 | C36: 1 | D36: h | G36: 0 | H36: 0 | I36: 0 | J36: 0 | K36: 0 | L36: 0 | M36: 0 | N36: 0 | O36: 0 | P36: 0 | Q36: 0 | R36: 0 | S36: 0 | T36: 0 | U36: 0 | V36: 0 | W36: 0 | X36: 0 | Y36: 0 | Z36: 0 | AA36: 0 | AB36: 0 | AC36: 0 | AD36: 0 | AE36: 0 | AF36: 0 | AG36: 0 | AH36: 0 | AI36: 0
B37: 63 | C37: 1 | D37: i | G37: 0 | H37: 0 | I37: 0 | J37: 0 | K37: 0 | L37: 0 | M37: 0 | N37: 0 | O37: 0 | P37: 0 | Q37: 0 | R37: 0 | S37: 0 | T37: 0 | U37: 0 | V37: 0 | W37: 0 | X37: 0 | Y37: 0 | Z37: 0 | AA37: 0 | AB37: 0 | AC37: 0 | AD37: 0 | AE37: 0 | AF37: 0 | AG37: 0 | AH37: 0 | AI37: 0
B38: 63 | C38: 1 | D38: j | G38: 0 | H38: 0 | I38: 0 | J38: 0 | K38: 0 | L38: 0 | M38: 0 | N38: 0 | O38: 0 | P38: 0 | Q38: 0 | R38: 0 | S38: 0 | T38: 0 | U38: 0 | V38: 0 | W38: 0 | X38: 0 | Y38: 0 | Z38: 0 | AA38: 0 | AB38: 0 | AC38: 0 | AD38: 0 | AE38: 0 | AF38: 0 | AG38: 0 | AH38: 0 | AI38: 0
B39: 63 | C39: 1 | D39: k | G39: 0 | H39: 0 | I39: 0 | J39: 0 | K39: 0 | L39: 0 | M39: 0 | N39: 0 | O39: 0 | P39: 0 | Q39: 0 | R39: 0 | S39: 0 | T39: 0 | U39: 0 | V39: 0 | W39: 0 | X39: 0 | Y39: 0 | Z39: 0 | AA39: 0 | AB39: 0 | AC39: 0 | AD39: 0 | AE39: 0 | AF39: 0 | AG39: 0 | AH39: 0 | AI39: 0
B40: Celkem | G40: =SUM(G2:G39) -> 13 | H40: 0 | I40: 0 | J40: 1 | K40: 0 | L40: 0 | M40: 1 | N40: 0 | O40: 0 | P40: 0 | Q40: 0 | R40: 0 | S40: 0 | T40: 1 | U40: 40000 | V40: =U40/T40 -> 40000 | W40: =SUM(W2:W39) -> 0 | X40: 0 | Y40: 0 | Z40: 0 | AA40: 0 | AB40: 0 | AC40: 0 | AD40: 0 | AE40: 0 | AF40: 0 | AG40: 0 | AH40: 0 | AI40: 0

Sheet Zákon č. 186-2013 Sb.
B2: PŘEHLED PŘESTUPKŮ ZA ROK 2018
B3: Zákon č. 186/2013 Sb., o státním občanství České republiky a o změně některých zákonů (zákon o státním občanství České republiky)
B4: § | C4: odst. | D4: písm. | E4: bod | F4: ve znění zákona č. 186/2013 Sb. | G4: počet podnětů k zahájení řízení o přestupku | H4: počet odložených věcí | I4: počet zahájených řízení o přestupku | L4: počet pravomocných rozhodnutí o uznání obviněného vinným ze spáchání přestupku | O4: počet zastavených řízení | P4: počet rozhodnutí o schválení dohody o narovnání | Q4: počet pravomocných rozhodnutí, kterými bylo upuštěno od uložení správního trestu | R4: počet pravomocných rozhodnutí, kterými byla mimořádně snížena výměra pokuty | S4: počet napomenutí | T4: počet pokut | U4: celková výměra pokut (v Kč) | V4: průměrná výměra pokuty (v Kč) | W4: počet zákazů činnosti | X4: celková délka uložených zákazů činnosti (v letech) | Y4: průměrná délka zákazu činnosti (v letech) | Z4: počet propadnutí věci nebo náhradní hodnoty | AA4: počet zveřejnění rozhodnutí o přestupku | AB4: počet omezujících opatření | AC4: počet zabrání věci nebo náhradní hodnoty | AD4: počet podaných odvolání | AE4: odvolání zamítnuto a napadené rozhodnutí potvrzeno | AF4: odvolání vyřízeno v rámci autoremedury | AG4: rozhodnutí změněno | AH4: rozhodnutí zrušeno a věc vrácena k novému projednání | AI4: rozhodnutí zrušeno a řízení zastaveno
I5: oznámení o zahájení řízení | J5: příkaz | K5: příkaz na místě | L5: rozhodnutí | M5: příkaz | N5: příkaz na místě
B6: 63 | C6: 1 | D6: a | G6: 0 | H6: 0 | I6: 0 | J6: 0 | K6: 0 | L6: 0 | M6: 0 | N6: 0 | O6: 0 | P6: 0 | Q6: 0 | R6: 0 | S6: 0 | T6: 0 | U6: 0 | V6: 0 | W6: 0 | X6: 0 | Y6: 0 | Z6: 0 | AA6: 0 | AB6: 0 | AC6: 0 | AD6: 0 | AE6: 0 | AF6: 0 | AG6: 0 | AH6: 0 | AI6: 0
B7: 63 | C7: 1 | D7: b | G7: 0 | H7: 0 | I7: 0 | J7: 0 | K7: 0 | L7: 0 | M7: 0 | N7: 0 | O7: 0 | P7: 0 | Q7: 0 | R7: 0 | S7: 0 | T7: 0 | U7: 0 | V7: 0 | W7: 0 | X7: 0 | Y7: 0 | Z7: 0 | AA7: 0 | AB7: 0 | AC7: 0 | AD7: 0 | AE7: 0 | AF7: 0 | AG7: 0 | AH7: 0 | AI7: 0
B8: 63 | C8: 1 | D8: c | E8: 1 | G8: 0 | H8: 0 | I8: 0 | J8: 0 | K8: 0 | L8: 0 | M8: 0 | N8: 0 | O8: 0 | P8: 0 | Q8: 0 | R8: 0 | S8: 0 | T8: 0 | U8: 0 | V8: 0 | W8: 0 | X8: 0 | Y8: 0 | Z8: 0 | AA8: 0 | AB8: 0 | AC8: 0 | AD8: 0 | AE8: 0 | AF8: 0 | AG8: 0 | AH8: 0 | AI8: 0
B9: 63 | C9: 1 | D9: c | E9: 2 | G9: 0 | H9: 0 | I9: 0 | J9: 0 | K9: 0 | L9: 0 | M9: 0 | N9: 0 | O9: 0 | P9: 0 | Q9: 0 | R9: 0 | S9: 0 | T9: 0 | U9: 0 | V9: 0 | W9: 0 | X9: 0 | Y9: 0 | Z9: 0 | AA9: 0 | AB9: 0 | AC9: 0 | AD9: 0 | AE9: 0 | AF9: 0 | AG9: 0 | AH9: 0 | AI9: 0
B10: 63 | C10: 1 | D10: c | E10: 3 | G10: 0 | H10: 0 | I10: 0 | J10: 0 | K10: 0 | L10: 0 | M10: 0 | N10: 0 | O10: 0 | P10: 0 | Q10: 0 | R10: 0 | S10: 0 | T10: 0 | U10: 0 | V10: 0 | W10: 0 | X10: 0 | Y10: 0 | Z10: 0 | AA10: 0 | AB10: 0 | AC10: 0 | AD10: 0 | AE10: 0 | AF10: 0 | AG10: 0 | AH10: 0 | AI10: 0
B11: 63 | C11: 1 | D11: c | E11: 4 | G11: 0 | H11: 0 | I11: 0 | J11: 0 | K11: 0 | L11: 0 | M11: 0 | N11: 0 | O11: 0 | P11: 0 | Q11: 0 | R11: 0 | S11: 0 | T11: 0 | U11: 0 | V11: 0 | W11: 0 | X11: 0 | Y11: 0 | Z11: 0 | AA11: 0 | AB11: 0 | AC11: 0 | AD11: 0 | AE11: 0 | AF11: 0 | AG11: 0 | AH11: 0 | AI11: 0
B12: Celkem | G12: =SUM(G6:G11) -> 0 | H12: =SUM(H6:H11) -> 0 | I12: 0 | J12: 0 | K12: 0 | L12: 0 | M12: 0 | N12: 0 | O12: 0 | P12: 0 | Q12: 0 | R12: 0 | S12: 0 | T12: 0 | U12: 0 | V12: 0 | W12: 0 | X12: 0 | Y12: 0 | Z12: 0 | AA12: 0 | AB12: 0 | AC12: 0 | AD12: 0 | AE12: 0 | AF12: 0 | AG12: 0 | AH12: 0 | AI12: 0

Sheet Zákon č. 320-2015 Sb.
B2: PŘEHLED PŘESTUPKŮ ZA ROK 2018
B3: Zákon č. 320/2015 Sb., o Hasičském záchranném sboru České republiky a o změně některých zákonů (zákon o hasičském záchranném sboru)
B4: § | C4: odst. | D4: písm. | E4: bod | F4: ve znění zákona č. 183/2017 Sb. | G4: počet podnětů k zahájení řízení o přestupku | H4: počet odložených věcí | I4: počet zahájených řízení o přestupku | L4: počet pravomocných rozhodnutí o uznání obviněného vinným ze spáchání přestupku | O4: počet zastavených řízení | P4: počet rozhodnutí o schválení dohody o narovnání | Q4: počet pravomocných rozhodnutí, kterými bylo upuštěno od uložení správního trestu | R4: počet pravomocných rozhodnutí, kterými byla mimořádně snížena výměra pokuty | S4: počet napomenutí | T4: počet pokut | U4: celková výměra pokut (v Kč) | V4: průměrná výměra pokuty (v Kč) | W4: počet zákazů činnosti | X4: celková délka uložených zákazů činnosti (v letech) | Y4: průměrná délka zákazu činnosti (v letech) | Z4: počet propadnutí věci nebo náhradní hodnoty | AA4: počet zveřejnění rozhodnutí o přestupku | AB4: počet omezujících opatření | AC4: počet zabrání věci nebo náhradní hodnoty | AD4: počet podaných odvolání | AE4: odvolání zamítnuto a napadené rozhodnutí potvrzeno | AF4: odvolání vyřízeno v rámci autoremedury | AG4: rozhodnutí změněno | AH4: rozhodnutí zrušeno a věc vrácena k novému projednání | AI4: rozhodnutí zrušeno a řízení zastaveno
I5: oznámení o zahájení řízení | J5: příkaz | K5: příkaz na místě | L5: rozhodnutí | M5: příkaz | N5: příkaz na místě
B6: 45 | C6: 1 | D6: a | G6: 0 | H6: 0 | I6: 0 | J6: 0 | K6: 0 | L6: 0 | M6: 0 | N6: 0 | O6: 0 | P6: 0 | Q6: 0 | R6: 0 | S6: 0 | T6: 0 | U6: 0 | V6: 0 | W6: 0 | X6: 0 | Y6: 0 | Z6: 0 | AA6: 0 | AB6: 0 | AC6: 0 | AD6: 0 | AE6: 0 | AF6: 0 | AG6: 0 | AH6: 0 | AI6: 0
B7: 45 | C7: 1 | D7: b | G7: 1 | H7: 0 | I7: 0 | J7: 0 | K7: 1 | L7: 0 | M7: 0 | N7: 1 | O7: 0 | P7: 0 | Q7: 0 | R7: 0 | S7: 0 | T7: 1 | U7: 500 | V7: 500 | W7: 0 | X7: 0 | Y7: 0 | Z7: 0 | AA7: 0 | AB7: 0 | AC7: 0 | AD7: 0 | AE7: 0 | AF7: 0 | AG7: 0 | AH7: 0 | AI7: 0
B8: 45 | C8: 1 | D8: c | G8: 0 | H8: 0 | I8: 0 | J8: 0 | K8: 0 | L8: 0 | M8: 0 | N8: 0 | O8: 0 | P8: 0 | Q8: 0 | R8: 0 | S8: 0 | T8: 0 | U8: 0 | V8: 0 | W8: 0 | X8: 0 | Y8: 0 | Z8: 0 | AA8: 0 | AB8: 0 | AC8: 0 | AD8: 0 | AE8: 0 | AF8: 0 | AG8: 0 | AH8: 0 | AI8: 0
B9: 45 | C9: 1 | D9: d | G9: 0 | H9: 0 | I9: 0 | J9: 0 | K9: 0 | L9: 0 | M9: 0 | N9: 0 | O9: 0 | P9: 0 | Q9: 0 | R9: 0 | S9: 0 | T9: 0 | U9: 0 | V9: 0 | W9: 0 | X9: 0 | Y9: 0 | Z9: 0 | AA9: 0 | AB9: 0 | AC9: 0 | AD9: 0 | AE9: 0 | AF9: 0 | AG9: 0 | AH9: 0 | AI9: 0
B10: 45 | C10: 2 | G10: 0 | H10: 0 | I10: 0 | J10: 0 | K10: 0 | L10: 0 | M10: 0 | N10: 0 | O10: 0 | P10: 0 | Q10: 0 | R10: 0 | S10: 0 | T10: 0 | U10: 0 | V10: 0 | W10: 0 | X10: 0 | Y10: 0 | Z10: 0 | AA10: 0 | AB10: 0 | AC10: 0 | AD10: 0 | AE10: 0 | AF10: 0 | AG10: 0 | AH10: 0 | AI10: 0
B11: 46 | C11: 1 | D11: a | G11: 0 | H11: 0 | I11: 0 | J11: 0 | K11: 0 | L11: 0 | M11: 0 | N11: 0 | O11: 0 | P11: 0 | Q11: 0 | R11: 0 | S11: 0 | T11: 0 | U11: 0 | V11: 0 | W11: 0 | X11: 0 | Y11: 0 | Z11: 0 | AA11: 0 | AB11: 0 | AC11: 0 | AD11: 0 | AE11: 0 | AF11: 0 | AG11: 0 | AH11: 0 | AI11: 0
